Workbook

Sheet Kold
B2: Bruger: | D2: =Makro!D20 -> 0 | L2: Bjælkeberegning | N2: Betonelement-Foreningen feb 2019
B3: Sagsnavn: | D3: Betonelementhuset | I3: Sag nr.: | J3: 23 - 4545 | L3: =BF16 -> For ny bruger: Klik på knappen 'angiv nyt brugernavn' for ibrugtagning.
B4: Bygningsdel: | D4: Bjælke i modul D-E/12, stueetage | I4: Dato: | J4: 2008-03-01
B5: Emne: | D5: Normale lastkombinationer | I5: Init: | J5: JFJ
L7: Spændvidde | N7: Tværsnit | O7: h | P7: 700
L8: L | M8: 5 | O8: b | P8: 300 | AX8: Anvendelsestilstand, tøjninger, spændinger og revnevidder | BJ8: BRUDLAST, MOMENTKAPACITET
L9: Længdearmering c' = | N9: 40 | O9: beff | P9: =MIN(P8,2.0001*(P8-2*N9)) -> 300 | AT9: A_1 | AU9: =P11*0.25*PI()*N11^2 -> 1608.495439 | AV9: mm2 | BB9: e_0 | BC9: s_o | BD9: s_2 | BE9: s_3 | BF9: s_m | BG9: w | BJ9: L | BK9: h | BL9: b | BM9: fck | BN9: fcd | BO9: Ecd | BP9: Ac | BQ9: ac | BR9: Esc | BS9: fyd_c | BT9: At | BU9: at | BV9: Est | BW9: fyd_t | BX9: At | BY9: at | BZ9: Est | CA9: fyd_t | CB9: Modenhed | CC9: 1+f | CD9: uterm | CE9: emax | CF9: e1 | CG9: k | CH9: Tilstand: | CI9: Nf
N10: d (mm) | O10: c (mm) | P10: antal | AT10: A_2 | AU10: =P12*0.25*PI()*N12^2 -> 0 | AV10: mm2 | AX10: Langtid | BB10: =BK79 -> 2.449329155e-05 | BC10: =BR79 -> 11.98362889 | BD10: =BV79 -> 25.17318363 | BE10: =BT79 -> 29.15427068 | BF10: =(BE10*AU11+BD10*AU10)/(AU10+AU11) -> 29.15427068 | BG10: =BT141 -> 0 | BJ10: (m) | BK10: (m) | BL10: (m) | BM10: (Mpa) | BN10: (Mpa) | BO10: (Mpa) | BP10: (m2) | BQ10: (m) | BR10: (Mpa) | BS10: (Mpa) | BT10: (m2) | BU10: (m) | BV10: (Mpa) | BW10: (Mpa) | BX10: (m2) | BY10: (m) | BZ10: (Mpa) | CA10: (Mpa) | CB10: (døgn) | CD10: (m)
L11: Tryklag t | N11: 16 | O11: 40 | P11: 8 | AT11: A_3 | AU11: =P13*0.25*PI()*N13^2 -> 1608.495439 | AV11: mm2 | AX11: Korttid | BB11: =BK102 -> 4.441732069e-05 | BC11: =BR102 -> 6.608439668 | BD11: =BV102 -> 25.2419029 | BE11: =BT102 -> 28.6544396 | BF11: =(BE11*AU11+BD11*AU10)/(AU10+AU11) -> 28.6544396 | BJ11: =M8 -> 5 | BK11: =P7/1000 -> 0.7 | BL11: =P9/1000 -> 0.3 | BM11: =M21 -> 35 | BN11: =BM11/M18 -> 25 | BO11: =22000*((BM11+8)/10)^0.3/M18 -> 24340.81871 | BP11: =AU9/1000000 -> 0.001608495439 | BQ11: =O11/1000 -> 0.04 | BR11: 200000 | BS11: =P18/M19 -> 416.6666667 | BT11: =AU11/1000000 -> 0.001608495439 | BU11: =O13/1000 -> 0.04 | BV11: 200000 | BW11: =P18/M19 -> 416.6666667 | BX11: =AU10/1000000 -> 0 | BY11: =O12/1000 -> 0.1 | BZ11: 200000 | CA11: =P19 -> 416.6666667 | CC11: 1 | CD11: 0 | CE11: =0.0035 -> 0.0035 | CF11: =0.7*($M$21+8)^(0.31)/1000 -> 0.002246328469 | CG11: =1.05*BO11*CF11/BN11 -> 2.29645391 | CH11: 1 | CI11: =0+0.000001 -> 1e-06
L12: Træklag 1 | N12: 14 | O12: 100 | P12: 0 | AT12: E_sk | AU12: 200000 | AV12: Mpa | AX12: Kar. last | BB12: =BB11+BB10 -> 6.891061224e-05 | BC12: =BC11+BC10 -> 18.59206856 | BD12: =BD11+BD10 -> 50.41508652 | BE12: =BE11+BE10 -> 57.80871028 | BF12: =BF11+BF10 -> 57.80871028 | BG12: =BS141 -> 0 | BJ12: hc | BK12: e0 | BL12: a' | BM12: b' | BN12: N' | BO12: tN' | BP12: t' | BQ12: Nc | BR12: sac | BS12: Nac | BT12: sat | BU12: Nat | BV12: sat | BW12: Nat | BX12: Mtot | BY12: N | BZ12: N | CA12: A | CB12: B1 | CC12: B2 | CD12: B2' | CE12: B3 | CF12: C1 | CG12: C2 | CH12: C2'
L13: Træklag 2 | N13: 16 | O13: 40 | P13: 8 | AT13: E_sd | AU13: =AU12/M19 -> 166666.6667 | AV13: MPa
L14: Bøjler | N14: d (mm) | O14: a (mm) | P14: cotq | AT14: d | AU14: =P7-(AU10*O12+AU11*O13)/(AU10+AU11) -> 660 | AV14: mm | BJ14: =0.5*(-(CB14+CC14+CD14+CE14)+SQRT(MAX((CB14+CC14+CD14+CE14)^2+4*CA14*(CF14+CG14+CH14),0)))/CA14 -> 0.1736713275 | BK14: =0.025*$CE$11 -> 8.75e-05 | BL14: =IF($CH$11=1,BK14/($CG$11*$CF$11),2^(1/3)*$CF$11/BK14) -> 0.01696199998 | BM14: =IF($CH$11=1,-($CG$11-2)*BK14/$CF$11,3*($CF$11/BK14)^2) -> -0.01154760644 | BN14: =IF(CH$11=1,0.5*(CG$11*BK14*BN$11/CF$11)*(1-CI13^2+(BL14-BM14)*(BM14^2*(1-CI13^2)+2*BM14*(1-CI13)+2*LN((1-BM14)/(1-BM14*CI13)))/(BM14^3)),BN$11*BM14*(LN((1-BL14+BL14^2)/(1+BL14)^2)/(6*BL14)+ATAN((2-BL14)/(BL14*3^0.5))/(BL14*3^0.5)-LN((CI13^2-BL14*CI13+BL14^2)/(CI13+BL14)^2)/(6*BL14)-ATAN((2*CI13-BL14)/(BL14*3^0.5))/(BL14*3^0.5))) -> 1.097086602 | BO14: =IF(CH$11=1,(CG$11*BK14*BN$11/CF$11)*(1-CI13^3-(BL14-BM14)*(-2*BM14^3*(1-CI13^3)-3*BM14^2*(1-CI13^2)-6*BM14*(1-CI13)-6*LN((1-BM14)/(1-BM14*CI13)))/(2*BM14^4))/3,BN$11*BM14*(LN((1+BL14^3)/(BL14^3+CI13^3)))/3) -> 0.729644318 | BP14: =BO14/BN14 -> 0.6650744951 | BQ14: =BN14*BJ14*BL$11 -> 0.05715974597 | BR14: =MAX(MIN(BS$11,CC$11*BR$11*BK14*(BJ14-BQ$11)/BJ14),-BS$11) -> 13.469398 | BS14: =BR14*BP$11 -> 0.02166546524 | BT14: =MIN(BW$11,CC$11*BV$11*BK14*(BK$11-BJ14-BU$11)/BJ14) -> 49.00493301 | BU14: =BT14*BT$11 -> 0.07882421121 | BV14: =MIN($CA$11,CC$11*$BZ$11*BK14*(BK$11-BJ14-$BY$11)/BJ14) -> 42.95903001 | BW14: =BV14*$BX$11 -> 0 | BX14: =(0.5*BK$11-BJ14+BP14*BJ14)*BQ14+(0.5*BK$11-BQ$11)*BS14+(0.5*BK$11-BU$11)*BU14+(0.5*BK$11-BY$11)*BW14 -> 0.0478329023 | BY14: =BQ14+BS14-BU14-BW14 -> 9.999999999e-07 | BZ14: =$CI$11 -> 1e-06 | CA14: =BN14*BL$11 -> 0.3291259806 | CB14: =IF(BR13<BS$11,CC$11*BK14*BP$11*BR$11,BP$11*BS$11) -> 0.02814867018 | CC14: =IF(BT13<BW$11,CC$11*BK14*BT$11*BV$11,-BT$11*BW$11) -> 0.02814867018 | CD14: =IF(BV13<CA$11,CC$11*BK14*$BX$11*$BZ$11,-$BX$11*CA$11) -> 0 | CE14: =-BZ14 -> -1e-06 | CF14: =IF(BR13<BS$11,BQ$11*CC$11*BK14*BP$11*BR$11,0) -> 0.001125946807 | CG14: =IF(BT13<BW$11,(BK$11-BU$11)*CC$11*BK14*BT$11*BV$11,0) -> 0.01857812232 | CH14: =IF(BV13<CA$11,(BK$11-$BY$11)*CC$11*BK14*$BX$11*$BZ$11,0) -> 0 | CI14: =IF(BX14>BX13,BK14,CI13) -> 8.75e-05 | CJ14: =IF(BX14>BX13,BR14,CJ13) -> 13.469398 | CK14: =IF(BX14>BX13,BT14,CK13) -> 49.00493301 | CL14: =IF(BX14>BX13,BV14,CL13) -> 42.95903001
L15: Type 1 | N15: 6 | O15: 150 | P15: 2 | AT15: c_w | AU15: =(AU11*O13+AU10*O12)/(AU10+AU11) -> 40 | BJ15: =0.5*(-(CB15+CC15+CD15+CE15)+SQRT(MAX((CB15+CC15+CD15+CE15)^2+4*CA15*(CF15+CG15+CH15),0)))/CA15 -> 0.1747809512 | BK15: =0.025*$CE$11+BK14 -> 0.000175 | BL15: 0.03392399996 | BM15: -0.02309521288 | BN15: 2.15274995 | BO15: 1.428274493 | BP15: =BO15/BN15 -> 0.663465115 | BQ15: 0.1128779052 | BR15: 26.98997379 | BS15: 0.04341324973 | BT15: 97.16543247 | BU15: 0.1562901549 | BV15: 85.15039315 | BW15: =BV15*$BX$11 -> 0 | BX15: 0.0947758566 | BY15: =BQ15+BS15-BU15-BW15 -> 1e-06 | BZ15: =$CI$11 -> 1e-06 | CA15: 0.6458249851 | CB15: =IF(2*BR14-BR13<BS$11,CC$11*BK15*BP$11*BR$11,BP$11*BS$11) -> 0.05629734035 | CC15: =IF(2*BT14-BT13<BW$11,CC$11*BK15*BT$11*BV$11,-BT$11*BW$11) -> 0.05629734035 | CD15: =IF(2*BV14-BV13<CA$11,CC$11*BK15*$BX$11*$BZ$11,-$BX$11*CA$11) -> 0 | CE15: =-BZ15 -> -1e-06 | CF15: =IF(2*BR14-BR13<BS$11,BQ$11*CC$11*BK15*BP$11*BR$11,0) -> 0.002251893614 | CG15: =IF(2*BT14-BT13<BW$11,(BK$11-BU$11)*CC$11*BK15*BT$11*BV$11,0) -> 0.03715624463 | CH15: =IF(2*BV14-BV13<CA$11,(BK$11-$BY$11)*CC$11*BK15*$BX$11*$BZ$11,0) -> 0 | CI15: 0.000175 | CJ15: 26.98997379 | CK15: 97.16543247 | CL15: =IF(BX15>BX14,BV15,CL14) -> 85.15039315
L16: Type 2 | N16: 6 | O16: 150 | P16: =P15 -> 2 | AX16: Fejltabel | BE16: Fejl | BF16: =IF(BG46=1,BF46,BF17&BF18&BF19&BF20&BF21&BF22&BF23&BF24&BF25&BF26&BF27&BF28&BF29&BF30&BF31&BF32&BF33&BF34&BF35&BF36&BF37&BF38&BF39&BF40&BF41&BF42&BF43&BF44&BF45) -> For ny bruger: Klik på knappen 'angiv nyt brugernavn' for ibrugtagning. | BG16: NB'er | BJ16: 0.1758956311 | BK16: 0.0002625 | BL16: 0.05088599994 | BM16: -0.03464281932 | BN16: 3.168035501 | BO16: 2.096725026 | BP16: =BO16/BN16 -> 0.6618376043 | BQ16: =BN16*BJ16*BL$11 -> 0.1671730812 | BR16: 40.56110199 | BS16: 0.06524234754 | BT16: 144.4918171 | BU16: 0.2324144287 | BV16: 126.5834701 | BW16: 0 | BX16: 0.1408405089 | BY16: 1e-06 | BZ16: 1e-06 | CA16: 0.9504106503 | CB16: =IF(2*BR15-BR14<BS$11,CC$11*BK16*BP$11*BR$11,BP$11*BS$11) -> 0.08444601053 | CC16: =IF(2*BT15-BT14<BW$11,CC$11*BK16*BT$11*BV$11,-BT$11*BW$11) -> 0.08444601053 | CD16: =IF(2*BV15-BV14<CA$11,CC$11*BK16*$BX$11*$BZ$11,-$BX$11*CA$11) -> 0 | CE16: -1e-06 | CF16: =IF(2*BR15-BR14<BS$11,BQ$11*CC$11*BK16*BP$11*BR$11,0) -> 0.003377840421 | CG16: =IF(2*BT15-BT14<BW$11,(BK$11-BU$11)*CC$11*BK16*BT$11*BV$11,0) -> 0.05573436695 | CH16: =IF(2*BV15-BV14<CA$11,(BK$11-$BY$11)*CC$11*BK16*$BX$11*$BZ$11,0) -> 0 | CI16: 0.0002625 | CJ16: 40.56110199 | CK16: 144.4918171 | CL16: 126.5834701
L17: Partialkoefficienter | N17: Længdearmering | AT17: h_int | AU17: =P7-BJ56*(1-BP56)*1000-(AU10*O12+AU11*O13)/(AU10+AU11) -> 635.5627805 | AV17: mm | AX17: Negative inddata accepteres ikke; | BE17: =IF(MIN(M8,P7:P9,N9,N11:P13,N15:P15,N16:O16,M18:M19,P18,P21,M21,P24,P25,C22:K28)<0,1,0) -> 0 | BF17: =IF(BE17=1,AX17,"") ->  | BJ17: 0.1770152995 | BK17: 0.00035 | BL17: 0.06784799991 | BM17: -0.04619042576 | BN17: 4.14395159 | BO17: 2.735799566 | BP17: 0.6601910052 | BQ17: 0.2200628496 | BR17: 54.18215823 | BS17: 0.08715175436 | BT17: 190.9943893 | BU17: 0.307213604 | BV17: 167.2676266 | BW17: 0 | BX17: 0.1860381719 | BY17: 9.999999998e-07 | BZ17: 1e-06 | CA17: 1.243185477 | CB17: 0.1125946807 | CC17: 0.1125946807 | CD17: 0 | CE17: -1e-06 | CF17: 0.004503787228 | CG17: 0.07431248927 | CH17: 0 | CI17: 0.00035 | CJ17: 54.18215823 | CK17: 190.9943893 | CL17: 167.2676266
L18: gc | M18: 1.4 | O18: fyk | P18: 500 | AT18: Min arm | AU18: =CEILING(MAX(0.26*0.3*M21^(2/3)*P9*AU14/P18,0.0013*P9*AU14),1) -> 331 | AV18: mm2 | AX18: ="Bøjleafstand, a_1 skal være < "&CEILING(MIN(2*(N15^2*PI()/4)*P21/(0.063*P9*SQRT(M21)),0.75*AU14*MIN(1,P15)),1)&" mm; " -> Bøjleafstand, a_1 skal være < 208 mm; | BE18: 0 | BF18: =IF(BG18=1,AX18,"") ->  | BG18: =IF(O15>MIN(5*2*(N15^2*PI()/4)*P21/(P9*SQRT(10*M21)/10),0.75*AU14*MIN(1,P15)),1,0) -> 0 | BJ18: 0.1781400913 | BK18: 0.0004375 | BL18: 0.08480999989 | BM18: -0.0577380322 | BN18: 5.08147113 | BO18: 3.346272362 | BP18: 0.6585243282 | BQ18: 0.2715641193 | BR18: 67.85254179 | BS18: 0.109140504 | BT18: 236.6830605 | BU18: 0.3807036233 | BV18: 207.2118732 | BW18: 0 | BX18: 0.230379738 | BY18: 9.999999998e-07 | BZ18: 1e-06 | CA18: 1.524441339 | CB18: 0.1407433509 | CC18: 0.1407433509 | CD18: 0 | CE18: -1e-06 | CF18: 0.005629734035 | CG18: 0.09289061158 | CH18: 0 | CI18: 0.0004375 | CJ18: 67.85254179 | CK18: 236.6830605 | CL18: 207.2118732
C19: ="="&IF(AU23>M30," "&TEXT(AU23,"0,0")&" kNm > "," "&TEXT(AU23,"0,0")&" kNm < ") -> = 0,0 kNm < | D19: =IF(AU23>M30,"!"," ") ->  | L19: gs | M19: 1.2 | O19: fyd | P19: =P18/M19 -> 416.6666667 | AT19: Max arm | AU19: =0.04*P7*P9 -> 8400 | AV19: mm2 | AX19: ="Bøjleafstand, a_2 skal være < "&CEILING(MIN(2*(N16^2*PI()/4)*P21/(0.063*P9*SQRT(M21)),0.75*AU14*MIN(1,P15)),1)&" mm; " -> Bøjleafstand, a_2 skal være < 208 mm; | BE19: 0 | BF19: =IF(BG19=1,AX19,"") ->  | BG19: =IF(O16>MIN(5*2*(N16^2*PI()/4)*P21/(P9*SQRT(10*M21)/10),0.75*AU14*MIN(1,P15)),1,0) -> 0 | BJ19: 0.1792701771 | BK19: 0.000525 | BL19: 0.1017719999 | BM19: -0.06928563864 | BN19: 5.981533211 | BO19: 3.928889632 | BP19: 0.656836549 | BQ19: 0.3216931554 | BR19: 81.57167485 | BS19: 0.1312076669 | BT19: 281.5673651 | BU19: 0.4528998224 | BV19: 246.4248773 | BW19: 0 | BX19: 0.2738756937 | BY19: 9.999999998e-07 | BZ19: 1e-06 | CA19: 1.794459963 | CB19: 0.1688920211 | CC19: 0.1688920211 | CD19: 0 | CE19: -1e-06 | CF19: 0.006755680842 | CG19: 0.1114687339 | CH19: 0 | CI19: 0.000525 | CJ19: 81.57167485 | CK19: 281.5673651 | CL19: 246.4248773
L20: Beton | N20: Bøjlearmering | AT20: Akt. arm | AU20: =CEILING((N12^2*P12+N13^2*P13)*PI()/4,1) -> 1609 | AV20: mm2 | AX20: 20 MPa < f_ck < 50 MPa; | BE20: =IF(OR(M21<20,M21>50),1,0) -> 0 | BF20: =IF(BE20=1,AX20,"") ->  | BJ20: 0.1804057398 | BK20: 0.0006125 | BL20: 0.1187339998 | BM20: -0.08083324508 | BN20: 6.845044619 | BO20: 4.484370853 | BP20: 0.6551266065 | BQ20: 0.3704656016 | BR20: 95.33900166 | BS20: 0.1533523493 | BT20: 325.6564727 | BU20: 0.5238169509 | BV20: 284.9149752 | BW20: 0 | BX20: 0.3165361335 | BY20: 9.999999998e-07 | BZ20: 1e-06 | CA20: 2.053513386 | CB20: 0.1970406912 | CC20: 0.1970406912 | CD20: 0 | CE20: -1e-06 | CF20: 0.007881627649 | CG20: 0.1300468562 | CH20: 0 | CI20: 0.0006125 | CJ20: 95.33900166 | CK20: 325.6564727 | CL20: 284.9149752
B21: Lastparametre: | C21: gk [kN/m] | D21: qk [kN/m] | E21: e [mm] | F21: x1 [m] | G21: x2 [m] | H21: ϒg | I21: ϒq | J21: ψ1 | K21: ψ2 | L21: fck | M21: 35 | O21: fyk | P21: 410 | AT21: M_L | AU21: =MAX(Kold2!P31:BG31) -> 0 | AV21: kNm | AW21: Langtid | AX21: x_2 skal være større end x_1; | BE21: =IF(OR(Kold2!D91>Kold2!D92,Kold2!E91>Kold2!E92,Kold2!F91>Kold2!F92),1,0) -> 0 | BJ21: 0.1815469685 | BK21: 0.0007 | BL21: 0.1356959998 | BM21: -0.09238085152 | BN21: 7.672881264 | BO21: 5.013409978 | BP21: 0.6533934002 | BQ21: 0.4178965 | BR21: 109.1539878 | BS21: 0.1755736915 | BT21: 368.9592008 | BU21: 0.5934691915 | BV21: 322.6901825 | BW21: 0 | BX21: 0.3583707737 | BY21: 9.999999997e-07 | BZ21: 1e-06 | CA21: 2.301864379 | CB21: 0.2251893614 | CC21: 0.2251893614 | CD21: 0 | CE21: -1e-06 | CF21: 0.009007574456 | CG21: 0.1486249785 | CH21: 0 | CI21: 0.0007 | CJ21: 109.1539878 | CK21: 368.9592008 | CL21: 322.6901825
B22: p1 | C22: 5 | D22: 0 | E22: 25 | F22: =0 -> 0 | G22: =M8 -> 5 | H22: 1.1 | I22: 0 | J22: 0 | K22: 0 | L22: fcd | M22: =M21/M18 -> 25 | O22: fyd | P22: =P21/M19 -> 341.6666667 | AT22: M_k | AU22: =MAX(Kold2!P32:BG32) -> 0 | AV22: kNm | AW22: Kar. | AX22: x_2 skal være mindre end L; | BE22: =IF(OR(Kold2!D92>M8,Kold2!E92>M8,Kold2!F92>M8),1,0) -> 0 | BJ22: 0.1826940569 | BK22: 0.0007875 | BL22: 0.1526579998 | BM22: -0.103928458 | BN22: 8.465889535 | BO22: 5.516676592 | BP22: 0.6516357873 | BQ22: 0.4640003113 | BR22: 123.0161196 | BS22: 0.1978708673 | BT22: 411.4840259 | BU22: 0.6618701787 | BV22: 359.7582053 | BW22: 0 | BX22: 0.3993889643 | BY22: 9.999999999e-07 | BZ22: 1e-06 | CA22: 2.53976686 | CB22: 0.2533380316 | CC22: 0.2533380316 | CD22: 0 | CE22: -1e-06 | CF22: 0.01013352126 | CG22: 0.1672031008 | CH22: 0 | CI22: 0.0007875 | CJ22: 123.0161196 | CK22: 411.4840259 | CL22: 359.7582053
B23: p2 | C23: 6 | D23: 3 | E23: 15 | F23: 1 | G23: 3 | H23: 1.1 | I23: 1.65 | J23: 0.6 | K23: 0.5 | L23: Nedbøjninger | N23: Krybetal | AT23: M_d | AU23: =MAX(Kold2!P33:BG33) -> 0 | AV23: kNm | AX23: x_1 skal være mindre end L; | BE23: =IF(OR(Kold2!H91>M8,Kold2!I91>M8,Kold2!J91>M8),1,0) -> 0 | BJ23: 0.1651031182 | BK23: 0.000875 | BL23: 0.1696199998 | BM23: -0.1154760644 | BN23: 9.22488758 | BO23: 5.994816994 | BP23: 0.64985258 | BQ23: 0.4569173114 | BR23: 132.6022544 | BS23: 0.2132901214 | BT23: 416.6666667 | BU23: 0.6702064328 | BV23: 416.6666667 | BW23: 0 | BX23: 0.4073904041 | BY23: 9.999999999e-07 | BZ23: 1e-06 | CA23: 2.767466274 | CB23: 0.2814867018 | CC23: -0.6702064328 | CD23: 0 | CE23: -1e-06 | CF23: 0.01125946807 | CG23: 0 | CH23: 0 | CI23: 0.000875 | CJ23: 132.6022544 | CK23: 416.6666667 | CL23: 416.6666667
B24: p3 | C24: 3 | D24: 7 | E24: 25 | F24: 2 | G24: 4 | H24: 1.1 | I24: 1.65 | J24: 0.6 | K24: 0.5 | L24: uL | M24: =IF(OR(BG28=1,BG29=1,BG30=1),"",BO141) -> 0 | O24: RH | P24: 0.55 | AT24: maks V_d | AU24: =MAX(Kold2!P56:BD56) -> 2.75e-05 | AV24: kN | AX24: ="Trækarmering, "&AU20&" mm^2 opfylder ikke minimumskrav: "&AU18&" mm^2; " -> Trækarmering, 1609 mm^2 opfylder ikke minimumskrav: 331 mm^2; | BE24: 0 | BF24: =IF(BG24=1,AX24,"") ->  | BG24: =IF(AU18>AU20,1,0) -> 0 | BJ24: 0.1486898791 | BK24: 0.0009625 | BL24: 0.1865819998 | BM24: -0.1270236708 | BN24: 9.950666521 | BO24: 6.448455233 | BP24: 0.6480425425 | BQ24: 0.4438690206 | BR24: 140.7143637 | BS24: 0.2263384122 | BT24: 416.6666667 | BU24: 0.6702064328 | BV24: 416.6666667 | BW24: 0 | BX24: 0.4100542784 | BY24: 9.999999999e-07 | BZ24: 1e-06 | CA24: 2.985199956 | CB24: 0.3096353719 | CC24: -0.6702064328 | CD24: 0 | CE24: -1e-06 | CF24: 0.01238541488 | CG24: 0 | CH24: 0 | CI24: 0.0009625 | CJ24: 140.7143637 | CK24: 416.6666667 | CL24: 416.6666667
C25: Gk [kN] | D25: Qk [kN] | E25: e [mm] | F25: x1 [m] | L25: ukar | M25: =IF(OR(BG28=1,BG29=1,BG30=1),"",BM141) ->  | O25: to | P25: 28 | AX25: Grænse forskydningstrykbrud (V_ud_0) overskredet; | BE25: 0 | BF25: =IF(BG25=1,AX25,"") ->  | BG25: =IF(AU24>P30,1,0) -> 0 | BJ25: 0.1353625845 | BK25: 0.00105 | BL25: 0.2035439997 | BM25: -0.1385712773 | BN25: 10.64399161 | BO25: 6.878194077 | BP25: 0.6462043875 | BQ25: 0.4322394641 | BR25: 147.9444473 | BS25: 0.2379679686 | BT25: 416.6666667 | BU25: 0.6702064328 | BV25: 416.6666667 | BW25: 0 | BX25: 0.4121176313 | BY25: 1e-06 | BZ25: 1e-06 | CA25: 3.193197482 | CB25: 0.3377840421 | CC25: -0.6702064328 | CD25: 0 | CE25: -1e-06 | CF25: 0.01351136168 | CG25: 0 | CH25: 0 | CI25: 0.00105 | CJ25: 147.9444473 | CK25: 416.6666667 | CL25: 416.6666667
B26: P1 | C26: 15 | D26: 0 | E26: 10 | F26: 1 | H26: 1.1 | I26: 1.65 | J26: 0.6 | K26: 0.5 | L26: Revnevidder | O26: fo | P26: =AU36 -> 1.988101231 | AT26: Beregning af slutkrybetal | AX26: Grænser 0,5 < cot0 < 2 overholdes ikke; | BE26: 0 | BF26: =IF(BG26=1,AX26,"") ->  | BG26: =IF(OR(P15<0.5,P15>2),1,0) -> 0 | BJ26: 0.1244029642 | BK26: 0.0011375 | BL26: 0.2205059997 | BM26: -0.1501188837 | BN26: 11.30560329 | BO26: 7.28461594 | BP26: 0.6443367727 | BQ26: 0.4219351684 | BR26: 154.3506176 | BS26: 0.2482722643 | BT26: 416.6666667 | BU26: 0.6702064328 | BV26: 416.6666667 | BW26: 0 | BX26: 0.4137369474 | BY26: 9.999999998e-07 | BZ26: 1e-06 | CA26: 3.391680988 | CB26: 0.3659327123 | CC26: -0.6702064328 | CD26: 0 | CE26: -1e-06 | CF26: 0.01463730849 | CG26: 0 | CH26: 0 | CI26: 0.0011375 | CJ26: 154.3506176 | CK26: 416.6666667 | CL26: 416.6666667
B27: P2 | C27: 12 | E27: 15 | F27: 1.5 | H27: 1.1 | I27: 1.65 | J27: 0.6 | K27: 0.5 | L27: wk,L | M27: =IF(OR(BG28=1,BG29=1,BG30=1),"",IF(BO136=0,"urevnet",BT141)) -> urevnet | N27: Svindtøjning | AT27: to | AU27: =P25 -> 28 | AX27: Partialkoefficienter skal være større end 1; | BE27: =IF(MIN(M18:M19)<1,1,0) -> 0 | BJ27: 0.1152931601 | BK27: 0.001225 | BL27: 0.2374679997 | BM27: -0.1616664902 | BN27: 11.93621829 | BO27: 7.668283753 | BP27: 0.6424382971 | BQ27: 0.4128492981 | BR27: 159.9992941 | BS27: 0.2573581347 | BT27: 416.6666667 | BU27: 0.6702064328 | BV27: 416.6666667 | BW27: 0 | BX27: 0.4150227979 | BY27: 9.999999999e-07 | BZ27: 1e-06 | CA27: 3.580865488 | CB27: 0.3940813825 | CC27: -0.6702064328 | CD27: 0 | CE27: -1e-06 | CF27: 0.0157632553 | CG27: 0 | CH27: 0 | CI27: 0.001225 | CJ27: 159.9992941 | CK27: 416.6666667 | CL27: 416.6666667
B28: P3 | C28: 17 | D28: 5 | E28: 20 | F28: 2 | H28: 1.1 | I28: 1.65 | J28: 0.6 | K28: 0.5 | L28: wk,kar | M28: =IF(OR(BG28=1,BG29=1,BG30=1),"",IF(BM136=0,"urevnet",BS141)) ->  | O28: ecs | P28: =1000*BX140 -> 0.4259533057 | AT28: RH | AU28: =P24*100 -> 55 | AX28: M_d > M_ud ! | BF28: =IF(BG28=1,AX28,"") ->  | BG28: =IF(AU23>M30,1,0) -> 0 | BJ28: 0.1076500128 | BK28: 0.0013125 | BL28: 0.2544299997 | BM28: -0.1732140966 | BN28: 12.53653054 | BO28: 8.029741796 | BP28: 0.640507497 | BQ28: 0.404867302 | BR28: 164.961693 | BS28: 0.2653401308 | BT28: 416.6666667 | BU28: 0.6702064328 | BV28: 416.6666667 | BW28: 0 | BX28: 0.4160548798 | BY28: 1e-06 | BZ28: 1e-06 | CA28: 3.760959161 | CB28: 0.4222300526 | CC28: -0.6702064328 | CD28: 0 | CE28: -1e-06 | CF28: 0.01688920211 | CG28: 0 | CH28: 0 | CI28: 0.0013125 | CJ28: 164.961693 | CK28: 416.6666667 | CL28: 416.6666667
C29: Jævnt fordelte laste [kN/m] | F29: Punktlaste [kN] | I29: Kontrol: | J29: Langtid | K29: Brudstadie | L29: Momentkapacitet | N29: Forskydningskapacitet | AT29: h | AU29: =P7 -> 700 | AX29: ="Armeringsspænding = "&TEXT(MAX(BD10+BD11,BE10+BE11),0)&" MPa > f_yk for kar. last ! " -> Armeringsspænding = 58 MPa > f_yk for kar. last ! | BG29: =IF(BG28=1,0,IF(OR(BD10+BD11>P18,BE10+BE11>P18),1,0)) -> 0 | BJ29: 0.1011840209 | BK29: 0.0014 | BL29: 0.2713919997 | BM29: -0.184761703 | BN29: 13.10721213 | BO29: 8.369516479 | BP29: 0.6385428417 | BQ29: 0.3978721278 | BR29: 169.3105858 | BS29: 0.272335305 | BT29: 416.6666667 | BU29: 0.6702064328 | BV29: 416.6666667 | BW29: 0 | BX29: 0.4168915321 | BY29: 1e-06 | BZ29: 1e-06 | CA29: 3.932163638 | CB29: 0.4503787228 | CC29: -0.6702064328 | CD29: 0 | CE29: -1e-06 | CF29: 0.01801514891 | CG29: 0 | CH29: 0 | CI29: 0.0014 | CJ29: 169.3105858 | CK29: 416.6666667 | CL29: 416.6666667
C30: p1 | D30: p2 | E30: p3 | F30: P1 | G30: P2 | H30: P3 | I30: M (kNm) | J30: =INDEX(AU21:AU22,MATCH(J29,AW21:AW22,0)) -> 0 | K30: =M30 -> 420.8645938 | L30: MRd | M30: =BX56*1000 -> 420.8645938 | N30: v/ trykbrud i krop: | O30: VRd,0 | P30: =BL110 -> 782.3579441 | AT30: b | AU30: =P9 -> 300 | AX30: ="Betonkanttøjning = "&TEXT(1000*(BB10+BB11),"0,00")&" 0/00 > 0,6*e_1 for kar. last ! " -> Betonkanttøjning = 0,07 0/00 > 0,6*e_1 for kar. last ! | BG30: =IF(BG28=1,0,IF(BB10+BB11>0.6*CF63,IF(BG28=0,1,0),0)) -> 0 | BJ30: 0.09567270323 | BK30: 0.0014875 | BL30: 0.2883539996 | BM30: -0.1963093095 | BN30: 13.6489142 | BO30: 8.688117092 | BP30: 0.6365427288 | BQ30: 0.3917485554 | BR30: 173.1176046 | BS30: 0.2784588774 | BT30: 416.6666667 | BU30: 0.6702064328 | BV30: 416.6666667 | BW30: 0 | BX30: 0.4175759917 | BY30: 9.999999999e-07 | BZ30: 1e-06 | CA30: 4.094674261 | CB30: 0.478527393 | CC30: -0.6702064328 | CD30: 0 | CE30: -1e-06 | CF30: 0.01914109572 | CG30: 0 | CH30: 0 | CI30: 0.0014875 | CJ30: 173.1176046 | CK30: 416.6666667 | CL30: 416.6666667
B31: Langtidsværdi | C31: =Kold2!D87 -> 5 | D31: =Kold2!E87 -> 7.5 | E31: =Kold2!F87 -> 6.5 | F31: =Kold2!H87 -> 15 | G31: =Kold2!I87 -> 12 | H31: =Kold2!J87 -> 19.5 | I31: x (mm) | J31: =IF(OR(BG28=1,BG29=1,BG30=1),"-",IF(IF(J29="langtid",BO136,BM136)=0,"urevnet",IF(J29="langtid",BJ79,BJ102)*1000)) -> urevnet | K31: =BJ56*1000 -> 59.90131746 | L31: EIL,revnet | M31: =IF(OR(BG28=1,BG29=1,BG30=1),"",CK63) -> 84847.18807 | N31: v/ type 1 bøjler: | O31: VRd,1 | P31: =BL111 -> 144.0066807 | R31: NB: Resultaterne skal altid kontrolleres af ansvarlig statiker | AT31: ho | AU31: =2*AU29*AU30/(2*(AU29+AU30)) -> 210 | BJ31: 0.09094269797 | BK31: 0.001575 | BL31: 0.3053159996 | BM31: -0.2078569159 | BN31: 14.1622678 | BO31: 8.986036512 | BP31: 0.6345054789 | BQ31: 0.3863864529 | BR31: 176.4512184 | BS31: 0.2838209799 | BT31: 416.6666667 | BU31: 0.6702064328 | BV31: 416.6666667 | BW31: 0 | BX31: 0.4181406348 | BY31: 1e-06 | BZ31: 1e-06 | CA31: 4.248680339 | CB31: 0.5066760632 | CC31: -0.6702064328 | CD31: 0 | CE31: -1e-06 | CF31: 0.02026704253 | CG31: 0 | CH31: 0 | CI31: 0.001575 | CJ31: 176.4512184 | CK31: 416.6666667 | CL31: 416.6666667
B32: Kar. værdi | C32: =Kold2!D88 -> 5 | D32: =Kold2!E88 -> 9 | E32: =Kold2!F88 -> 10 | F32: =Kold2!H88 -> 15 | G32: =Kold2!I88 -> 12 | H32: =Kold2!J88 -> 22 | I32: e0 (o/oo) | J32: =IF(OR(BG28=1,BG29=1,BG30=1),"-",IF(IF(J29="langtid",BO136,BM136)=0,"urevnet",1000*IF(J29="langtid",BB10,BB12))) -> urevnet | K32: =1000*BK56 -> 3.0625 | L32: EIkort,revnet | M32: =IF(OR(BG28=1,BG29=1,BG30=1),"",CK86) -> 98983.27007 | N32: v/ type 2 bøjler: | O32: VRd,2 | P32: =BL112 -> 144.0066807 | AT32: fck | AU32: =M21 -> 35 | AX32: Kar. last mindre end langtidslast ! | BG32: =IF(OR(Kold2!D88<Kold2!D87,Kold2!E88<Kold2!E87,Kold2!F88<Kold2!F87,Kold2!H88<Kold2!H87,Kold2!I88<Kold2!I87,Kold2!J88<Kold2!J87),1,0) -> 0 | BJ32: 0.08685735602 | BK32: 0.0016625 | BL32: 0.3222779996 | BM32: -0.2194045224 | BN32: 14.64788463 | BO32: 9.263751875 | BP32: 0.632429331 | BQ32: 0.381682959 | BR32: 179.3753758 | BS32: 0.2885244738 | BT32: 416.6666667 | BU32: 0.6702064328 | BV32: 416.6666667 | BW32: 0 | BX32: 0.4186099239 | BY32: 1e-06 | BZ32: 1e-06 | CA32: 4.394365388 | CB32: 0.5348247333 | CC32: -0.6702064328 | CD32: 0 | CE32: -1e-06 | CF32: 0.02139298933 | CG32: 0 | CH32: 0 | CI32: 0.0016625 | CJ32: 179.3753758 | CK32: 416.6666667 | CL32: 416.6666667
B33: Regnm. værdi | C33: =Kold2!D89 -> 5.5 | D33: =Kold2!E89 -> 11.55 | E33: =Kold2!F89 -> 14.85 | F33: =Kold2!H89 -> 16.5 | G33: =Kold2!I89 -> 13.2 | H33: =Kold2!J89 -> 26.95 | I33: sst (MPa) | J33: =IF(OR(BG28=1,BG29=1,BG30=1),"-",IF(IF(J29="langtid",BO136,BM136)=0,"urevnet",IF(J29="langtid",BT79,BT102))) -> urevnet | K33: =BT56 -> 416.6666667 | L33: Forskydningskraftens største excentricitet, exc.: | P33: =MAX(Kold2!P61:BD61) -> 25 | R33: Vejledning: | U33: Betonelementbyggeriers statik | AT33: fcm | AU33: =AU32+8 -> 43 | AX33: Regnm. last mindre end kar. last ! | BG33: =IF(OR(Kold2!D89<Kold2!D88,Kold2!E89<Kold2!E88,Kold2!F89<Kold2!F88,Kold2!H89<Kold2!H88,Kold2!I89<Kold2!I88,Kold2!J89<Kold2!J88),1,0) -> 0 | BJ33: 0.08330790984 | BK33: 0.00175 | BL33: 0.3392399996 | BM33: -0.2309521288 | BN33: 15.10635786 | BO33: 9.521725216 | BP33: 0.6303124357 | BQ33: 0.3775437295 | BR33: 181.9487306 | BS33: 0.2926637032 | BT33: 416.6666667 | BU33: 0.6702064328 | BV33: 416.6666667 | BW33: 0 | BX33: 0.4190024941 | BY33: 1e-06 | BZ33: 1e-06 | CA33: 4.531907358 | CB33: 0.5629734035 | CC33: -0.6702064328 | CD33: 0 | CE33: -1e-06 | CF33: 0.02251893614 | CG33: 0 | CH33: 0 | CI33: 0.00175 | CJ33: 181.9487306 | CK33: 416.6666667 | CL33: 416.6666667
I34: z (mm) | J34: - | K34: =AU17 -> 635.5627805 | L34: Forankringskrav til hovedarmering over lejer, Na : | P34: =CF112 -> 3.102564103e-05 | R34: Polyteknisk Forlag 2010 eller www.bef.dk | AT34: a1 | AU34: =IF(AU33<35,1,(35/AU33)^0.7) -> 0.8658042477 | AX34: Forskydningsarmering bør vurderes nærmere ! | BG34: =IF(Kold2!I81=1,1,0) -> 0 | BJ34: 0.08020704455 | BK34: 0.0018375 | BL34: 0.3562019995 | BM34: -0.2424997352 | BN34: 15.53826283 | BO34: 9.760404075 | BP34: 0.6281528496 | BQ34: 0.3738834417 | BR34: 184.2243279 | BS34: 0.296323991 | BT34: 416.6666667 | BU34: 0.6702064328 | BV34: 416.6666667 | BW34: 0 | BX34: 0.4193326517 | BY34: 1e-06 | BZ34: 1e-06 | CA34: 4.66147885 | CB34: 0.5911220737 | CC34: -0.6702064328 | CD34: 0 | CE34: -1e-06 | CF34: 0.02364488295 | CG34: 0 | CH34: 0 | CI34: 0.0018375 | CJ34: 184.2243279 | CK34: 416.6666667 | CL34: 416.6666667
AT35: a2 | AU35: =IF(AU33<35,1,(35/AU33)^0.2) -> 0.9596655786 | AX35: b - 2*c' skal mindst være 3*maks(d) ! | BE35: =IF(P8-2*N9<3*MAX(N11:N13),1,0) -> 0 | BF35: =IF(BE35=1,AX35,"") ->  | BJ35: 0.07748413058 | BK35: 0.001925 | BL35: 0.3731639995 | BM35: -0.2540473417 | BN35: 15.94415775 | BO35: 9.980222077 | BP35: 0.6259485282 | BQ35: 0.3706257603 | BR35: 186.2496251 | BS35: 0.2995816725 | BT35: 416.6666667 | BU35: 0.6702064328 | BV35: 416.6666667 | BW35: 0 | BX35: 0.4196114626 | BY35: 1e-06 | BZ35: 1e-06 | CA35: 4.783247325 | CB35: 0.6192707439 | CC35: -0.6702064328 | CD35: 0 | CE35: -1e-06 | CF35: 0.02477082976 | CG35: 0 | CH35: 0 | CI35: 0.001925 | CJ35: 186.2496251 | CK35: 416.6666667 | CL35: 416.6666667
AT36: f | AU36: =(1/(0.1+AU27^0.2))*(16.8/AU33^0.5)*(1+10*AU34*(1-AU28/100)/AU31^(1/3))*AU35 -> 1.988101231 | AX36: ="Trækarmering, "&AU20&" mm^2 overstiger maksimumværdi: "&AU19&" mm^2; " -> Trækarmering, 1609 mm^2 overstiger maksimumværdi: 8400 mm^2; | BE36: 0 | BF36: =IF(BE36=1,AX36,"") ->  | BG36: =IF(AU20>AU19,1,0) -> 0 | BJ36: 0.07508163497 | BK36: 0.0020125 | BL36: 0.3901259995 | BM36: -0.2655949481 | BN36: 16.32458433 | BO36: 10.18159948 | BP36: 0.6236973189 | BQ36: 0.3677029446 | BR36: 188.0667367 | BS36: 0.3025044882 | BT36: 416.6666667 | BU36: 0.6702064328 | BV36: 416.6666667 | BW36: 0 | BX36: 0.4198475502 | BY36: 1e-06 | BZ36: 1e-06 | CA36: 4.8973753 | CB36: 0.6474194141 | CC36: -0.6702064328 | CD36: 0 | CE36: -1e-06 | CF36: 0.02589677656 | CG36: 0 | CH36: 0 | CI36: 0.0020125 | CJ36: 188.0667367 | CK36: 416.6666667 | CL36: 416.6666667
AX37: Træklag 1 skal ligge højere end træklag 2 | BE37: =IF(AND(O12<O13,AU10>0),1,0) -> 0 | BF37: =IF(BE37=1,AX37,"") ->  | BJ37: 0.07295238659 | BK37: 0.0021 | BL37: 0.4070879995 | BM37: -0.2771425546 | BN37: 16.68006846 | BO37: 10.3649437 | BP37: 0.6213969524 | BQ37: 0.3650552407 | BR37: 189.7128115 | BS37: 0.305152192 | BT37: 416.6666667 | BU37: 0.6702064328 | BV37: 416.6666667 | BW37: 0 | BX37: 0.4200476837 | BY37: 9.999999999e-07 | BZ37: 1e-06 | CA37: 5.004020537 | CB37: 0.6755680842 | CC37: -0.6702064328 | CD37: 0 | CE37: -1e-06 | CF37: 0.02702272337 | CG37: 0 | CH37: 0 | CI37: 0.0021 | CJ37: 189.7128115 | CK37: 416.6666667 | CL37: 416.6666667
BJ38: 0.07105747108 | BK38: 0.0021875 | BL38: 0.4240499995 | BM38: -0.288690161 | BN38: 17.01112073 | BO38: 10.53064982 | BP38: 0.6190450345 | BQ38: 0.3626301659 | BR38: 191.2204782 | BS38: 0.3075772669 | BT38: 416.6666667 | BU38: 0.6702064328 | BV38: 416.6666667 | BW38: 0 | BX38: 0.4202172164 | BY38: 1e-06 | BZ38: 1e-06 | CA38: 5.10333622 | CB38: 0.7037167544 | CC38: -0.6702064328 | CD38: 0 | CE38: -1e-06 | CF38: 0.02814867018 | CG38: 0 | CH38: 0 | CI38: 0.0021875 | CJ38: 191.2204782 | CK38: 416.6666667 | CL38: 416.6666667
BJ39: 0.0693645965 | BK39: 0.002275 | BL39: 0.4410119994 | BM39: -0.3002377674 | BN39: 17.31823709 | BO39: 10.67910104 | BP39: 0.6166390368 | BQ39: 0.3603817584 | BR39: 192.6183108 | BS39: 0.3098256743 | BT39: 416.6666667 | BU39: 0.6702064328 | BV39: 416.6666667 | BW39: 0 | BX39: 0.4203604128 | BY39: 1e-06 | BZ39: 1e-06 | CA39: 5.195471128 | CB39: 0.7318654246 | CC39: -0.6702064328 | CD39: 0 | CE39: -1e-06 | CF39: 0.02927461698 | CG39: 0 | CH39: 0 | CI39: 0.002275 | CJ39: 192.6183108 | CK39: 416.6666667 | CL39: 416.6666667
BJ40: 0.06784681514 | BK40: 0.0023625 | BL40: 0.4579739994 | BM40: -0.3117853739 | BN40: 17.60189932 | BO40: 10.81066915 | BP40: 0.6141762858 | BQ40: 0.3582698428 | BR40: 193.9312866 | BS40: 0.3119375899 | BT40: 416.6666667 | BU40: 0.6702064328 | BV40: 416.6666667 | BW40: 0 | BX40: 0.4204806945 | BY40: 9.999999999e-07 | BZ40: 1e-06 | CA40: 5.280569797 | CB40: 0.7600140948 | CC40: -0.6702064328 | CD40: 0 | CE40: -1e-06 | CF40: 0.03040056379 | CG40: 0 | CH40: 0 | CI40: 0.0023625 | CJ40: 193.9312866 | CK40: 416.6666667 | CL40: 416.6666667
BJ41: 0.06648151702 | BK41: 0.00245 | BL41: 0.4749359994 | BM41: -0.3233329803 | BN41: 17.86257559 | BO41: 10.92571496 | BP41: 0.6116539524 | BQ41: 0.356259337 | BR41: 195.1812161 | BS41: 0.3139480958 | BT41: 416.6666667 | BU41: 0.6702064328 | BV41: 416.6666667 | BW41: 0 | BX41: 0.4205808272 | BY41: 1e-06 | BZ41: 1e-06 | CA41: 5.358772677 | CB41: 0.7881627649 | CC41: -0.6702064328 | CD41: 0 | CE41: -1e-06 | CF41: 0.0315265106 | CG41: 0 | CH41: 0 | CI41: 0.00245 | CJ41: 195.1812161 | CK41: 416.6666667 | CL41: 416.6666667
BJ42: 0.0652496327 | BK42: 0.0025375 | BL42: 0.4918979994 | BM42: -0.3348805868 | BN42: 18.10072093 | BO42: 11.02458871 | BP42: 0.6090690395 | BQ42: 0.3543196177 | BR42: 196.3871376 | BS42: 0.315887815 | BT42: 416.6666667 | BU42: 0.6702064328 | BV42: 416.6666667 | BW42: 0 | BX42: 0.4206630622 | BY42: 1e-06 | BZ42: 1e-06 | CA42: 5.43021628 | CB42: 0.8163114351 | CC42: -0.6702064328 | CD42: 0 | CE42: -1e-06 | CF42: 0.0326524574 | CG42: 0 | CH42: 0 | CI42: 0.0025375 | CJ42: 196.3871376 | CK42: 416.6666667 | CL42: 416.6666667
BJ43: 0.06413499801 | BK43: 0.002625 | BL43: 0.5088599994 | BM43: -0.3464281932 | BN43: 18.31677774 | BO43: 11.10763047 | BP43: 0.6064183684 | BQ43: 0.3524239512 | BR43: 197.5656716 | BS43: 0.3177834816 | BT43: 416.6666667 | BU43: 0.6702064328 | BV43: 416.6666667 | BW43: 0 | BX43: 0.4207292451 | BY43: 9.999999999e-07 | BZ43: 1e-06 | CA43: 5.495033322 | CB43: 0.8444601053 | CC43: -0.6702064328 | CD43: 0 | CE43: -1e-06 | CF43: 0.03377840421 | CG43: 0 | CH43: 0 | CI43: 0.002625 | CJ43: 197.5656716 | CK43: 416.6666667 | CL43: 416.6666667
BJ44: 0.06312384526 | BK44: 0.0027125 | BL44: 0.5258219993 | BM44: -0.3579757996 | BN44: 18.5111762 | BO44: 11.1751705 | BP44: 0.6036985645 | BQ44: 0.3505489866 | BR44: 198.7313352 | BS44: 0.3196584462 | BT44: 416.6666667 | BU44: 0.6702064328 | BV44: 416.6666667 | BW44: 0 | BX44: 0.4207808996 | BY44: 1e-06 | BZ44: 1e-06 | CA44: 5.55335286 | CB44: 0.8726087755 | CC44: -0.6702064328 | CD44: 0 | CE44: -1e-06 | CF44: 0.03490435102 | CG44: 0 | CH44: 0 | CI44: 0.0027125 | CJ44: 198.7313352 | CK44: 416.6666667 | CL44: 416.6666667
BJ45: 0.06220439343 | BK45: 0.0028 | BL45: 0.5427839993 | BM45: -0.3695234061 | BN45: 18.68433473 | BO45: 11.22752961 | BP45: 0.6009060411 | BQ45: 0.3486743126 | BR45: 199.8968182 | BS45: 0.3215331202 | BT45: 416.6666667 | BU45: 0.6702064328 | BV45: 416.6666667 | BW45: 0 | BX45: 0.4208192924 | BY45: 1e-06 | BZ45: 1e-06 | CA45: 5.605300419 | CB45: 0.9007574456 | CC45: -0.6702064328 | CD45: 0 | CE45: -1e-06 | CF45: 0.03603029783 | CG45: 0 | CH45: 0 | CI45: 0.0028 | CJ45: 199.8968182 | CK45: 416.6666667 | CL45: 416.6666667
AX46: For ny bruger: Klik på knappen 'angiv nyt brugernavn' for ibrugtagning. | BF46: =IF(BG46=1,AX46,"") -> For ny bruger: Klik på knappen 'angiv nyt brugernavn' for ibrugtagning. | BG46: =Makro!E20 -> 1 | BJ46: 0.06136651655 | BK46: 0.0028875 | BL46: 0.5597459993 | BM46: -0.3810710125 | BN46: 18.8366604 | BO46: 11.26501954 | BP46: 0.598036982 | BQ46: 0.3467820697 | BR46: 201.0732236 | BS46: 0.3234253631 | BT46: 416.6666667 | BU46: 0.6702064328 | BV46: 416.6666667 | BW46: 0 | BX46: 0.4208454834 | BY46: 1e-06 | BZ46: 1e-06 | CA46: 5.650998121 | CB46: 0.9289061158 | CC46: -0.6702064328 | CD46: 0 | CE46: -1e-06 | CF46: 0.03715624463 | CG46: 0 | CH46: 0 | CI46: 0.0028875 | CJ46: 201.0732236 | CK46: 416.6666667 | CL46: 416.6666667
BJ47: 0.06060147384 | BK47: 0.002975 | BL47: 0.5767079993 | BM47: -0.392618619 | BN47: 18.96854934 | BO47: 11.28794323 | BP47: 0.5950873222 | BQ47: 0.3448566139 | BR47: 202.2702776 | BS47: 0.3253508188 | BT47: 416.6666667 | BU47: 0.6702064328 | BV47: 416.6666667 | BW47: 0 | BX47: 0.4208603661 | BY47: 1e-06 | BZ47: 1e-06 | CA47: 5.690564801 | CB47: 0.957054786 | CC47: -0.6702064328 | CD47: 0 | CE47: -1e-06 | CF47: 0.03828219144 | CG47: 0 | CH47: 0 | CI47: 0.002975 | CJ47: 202.2702776 | CK47: 416.6666667 | CL47: 416.6666667
BJ48: 0.05990168929 | BK48: 0.0030625 | BL48: 0.5936699992 | BM48: -0.4041662254 | BN48: 19.08038707 | BO48: 11.29659518 | BP48: 0.5920527263 | BQ48: 0.3428842253 | BR48: 203.4965096 | BS48: 0.3273232075 | BT48: 416.6666667 | BU48: 0.6702064328 | BV48: 416.6666667 | BW48: 0 | BX48: 0.4208646978 | BY48: 9.999999999e-07 | BZ48: 1e-06 | CA48: 5.72411612 | CB48: 0.9852034562 | CC48: -0.6702064328 | CD48: 0 | CE48: -1e-06 | CF48: 0.03940813825 | CG48: 0 | CH48: 0 | CI48: 0.0030625 | CJ48: 203.4965096 | CK48: 416.6666667 | CL48: 416.6666667
BJ49: 0.05926057054 | BK49: 0.00315 | BL49: 0.6106319992 | BM49: -0.4157138318 | BN49: 19.17254892 | BO49: 11.29126173 | BP49: 0.5889285654 | BQ49: 0.3408528563 | BR49: 204.7594096 | BS49: 0.3293545764 | BT49: 416.6666667 | BU49: 0.6702064328 | BV49: 416.6666667 | BW49: 0 | BX49: 0.4208591253 | BY49: 9.999999999e-07 | BZ49: 1e-06 | CA49: 5.751764677 | CB49: 1.013352126 | CC49: -0.6702064328 | CD49: 0 | CE49: -1e-06 | CF49: 0.04053408505 | CG49: 0 | CH49: 0 | CI49: 0.0030625 | CJ49: 203.4965096 | CK49: 416.6666667 | CL49: 416.6666667
BJ50: 0.05867233745 | BK50: 0.0032375 | BL50: 0.6275939992 | BM50: -0.4272614383 | BN50: 19.24542278 | BO50: 11.27222142 | BP50: 0.5857092123 | BQ50: 0.338752182 | BR50: 206.0653968 | BS50: 0.3314552508 | BT50: 416.6666667 | BU50: 0.6702064328 | BV50: 416.6666667 | BW50: 0 | BX50: 0.4208441978 | BY50: 1e-06 | BZ50: 1e-06 | CA50: 5.773626835 | CB50: 1.041500797 | CC50: -0.6702064328 | CD50: 0 | CE50: -1e-06 | CF50: 0.04166003186 | CG50: 0 | CH50: 0 | CI50: 0.0030625 | CJ50: 203.4965096 | CK50: 416.6666667 | CL50: 416.6666667
BJ51: 0.05813196459 | BK51: 0.003325 | BL51: 0.6445559992 | BM51: -0.4388090447 | BN51: 19.29934402 | BO51: 11.23974505 | BP51: 0.5823900046 | BQ51: 0.336572635 | BR51: 207.420419 | BS51: 0.3336347978 | BT51: 416.6666667 | BU51: 0.6702064328 | BV51: 416.6666667 | BW51: 0 | BX51: 0.4208204017 | BY51: 9.999999998e-07 | BZ51: 1e-06 | CA51: 5.789803206 | CB51: 1.069649467 | CC51: -0.6702064328 | CD51: 0 | CE51: -1e-06 | CF51: 0.04278597867 | CG51: 0 | CH51: 0 | CI51: 0.0030625 | CJ51: 203.4965096 | CK51: 416.6666667 | CL51: 416.6666667
BJ52: 0.05763501191 | BK52: 0.0034125 | BL52: 0.6615179992 | BM52: -0.4503566512 | BN52: 19.33465941 | BO52: 11.19409618 | BP52: 0.5789652636 | BQ52: 0.3343059976 | BR52: 208.8295851 | BS52: 0.3359014352 | BT52: 416.6666667 | BU52: 0.6702064328 | BV52: 416.6666667 | BW52: 0 | BX52: 0.4207881545 | BY52: 9.999999997e-07 | BZ52: 1e-06 | CA52: 5.800397823 | CB52: 1.097798137 | CC52: -0.6702064328 | CD52: 0 | CE52: -1e-06 | CF52: 0.04391192547 | CG52: 0 | CH52: 0 | CI52: 0.0030625 | CJ52: 203.4965096 | CK52: 416.6666667 | CL52: 416.6666667
BJ53: 0.05717756084 | BK53: 0.0035 | BL53: 0.6784799991 | BM53: -0.4619042576 | BN53: 19.35170682 | BO53: 11.13553126 | BP53: 0.5754288945 | BQ53: 0.3319450183 | BR53: 210.2974036 | BS53: 0.3382624145 | BT53: 416.6666667 | BU53: 0.6702064328 | BV53: 416.6666667 | BW53: 0 | BX53: 0.4207478216 | BY53: 9.999999999e-07 | BZ53: 1e-06 | CA53: 5.805512047 | CB53: 1.125946807 | CC53: -0.6702064328 | CD53: 0 | CE53: -1e-06 | CF53: 0.04503787228 | CG53: 0 | CH53: 0 | CI53: 0.0030625 | CJ53: 203.4965096 | CK53: 416.6666667 | CL53: 416.6666667
BR54: =CJ53 -> 203.4965096 | BS54: 0.3273232075 | BT54: =CK53 -> 416.6666667 | BU54: 0.6702064328 | BV54: =CL53 -> 416.6666667 | BW54: 0
BJ55: 0.05990131746 | BK55: =CI53 -> 0.0030625 | BL55: =IF($CH$11=1,BK55/($CG$11*$CF$11),2^(1/3)*$CF$11/BK55) -> 0.5936699992 | BM55: =IF($CH$11=1,-($CG$11-2)*BK55/$CF$11,3*($CF$11/BK55)^2) -> -0.4041662254 | BN55: =IF(CH$11=1,0.5*(CG$11*BK55*BN$11/CF$11)*(1-CI54^2+(BL55-BM55)*(BM55^2*(1-CI54^2)+2*BM55*(1-CI54)+2*LN((1-BM55)/(1-BM55*CI54)))/(BM55^3)),BN$11*BM55*(LN((1-BL55+BL55^2)/(1+BL55)^2)/(6*BL55)+ATAN((2-BL55)/(BL55*3^0.5))/(BL55*3^0.5)-LN((CI54^2-BL55*CI54+BL55^2)/(CI54+BL55)^2)/(6*BL55)-ATAN((2*CI54-BL55)/(BL55*3^0.5))/(BL55*3^0.5))) -> 19.08073276 | BO55: =IF(CH$11=1,(CG$11*BK55*BN$11/CF$11)*(1-CI54^3-(BL55-BM55)*(-2*BM55^3*(1-CI54^3)-3*BM55^2*(1-CI54^2)-6*BM55*(1-CI54)-6*LN((1-BM55)/(1-BM55*CI54)))/(2*BM55^4))/3,BN$11*BM55*(LN((1+BL55^3)/(BL55^3+CI54^3)))/3) -> 11.29659587 | BP55: =BO55/BN55 -> 0.5920420359 | BQ55: =BN55*BJ55*BL$11 -> 0.342888309 | BR55: =MAX(MIN(BS$11,CC$11*BR$11*BK55*(BJ55-BQ$11)/BJ55),-BS$11) -> 203.4939707 | BS55: 0.3273191237 | BT55: =MIN(BW$11,CC$11*BV$11*BK55*(BK$11-BJ55-BU$11)/BJ55) -> 416.6666667 | BU55: 0.6702064328 | BV55: =MIN($CA$11,CC$11*$BZ$11*BK55*(BK$11-BJ55-$BY$11)/BJ55) -> 416.6666667 | BW55: 0 | BX55: =(0.5*BK$11-BJ55+BP55*BJ55)*BQ55+(0.5*BK$11-BQ$11)*BS55+(0.5*BK$11-BU$11)*BU55+(0.5*BK$11-BY$11)*BW55 -> 0.4208645938 | BY55: =BQ55+BS55-BU55-BW55 -> 1e-06 | BZ55: =$CI$11 -> 1e-06 | CA55: =BN55*BL$11 -> 5.724219827 | CB55: =IF(BR54<BS$11,CC$11*BK55*BP$11*BR$11,BP$11*BS$11) -> 0.9852034562 | CC55: =IF(BT54<BW$11,CC$11*BK55*BT$11*BV$11,-BT$11*BW$11) -> -0.6702064328 | CD55: =IF(BV54<CA$11,CC$11*BK55*$BX$11*$BZ$11,-$BX$11*CA$11) -> 0 | CE55: =-BZ55 -> -1e-06 | CF55: =IF(BR54<BS$11,BQ$11*CC$11*BK55*BP$11*BR$11,0) -> 0.03940813825 | CG55: =IF(BT54<BW$11,(BK$11-BU$11)*CC$11*BK55*BT$11*BV$11,0) -> 0 | CH55: =IF(BV54<CA$11,(BK$11-$BY$11)*CC$11*BK55*$BX$11*$BZ$11,0) -> 0
BJ56: 0.05990131746 | BK56: =BK55 -> 0.0030625 | BL56: =IF($CH$11=1,BK56/($CG$11*$CF$11),2^(1/3)*$CF$11/BK56) -> 0.5936699992 | BM56: =IF($CH$11=1,-($CG$11-2)*BK56/$CF$11,3*($CF$11/BK56)^2) -> -0.4041662254 | BN56: =IF(CH$11=1,0.5*(CG$11*BK56*BN$11/CF$11)*(1-CI55^2+(BL56-BM56)*(BM56^2*(1-CI55^2)+2*BM56*(1-CI55)+2*LN((1-BM56)/(1-BM56*CI55)))/(BM56^3)),BN$11*BM56*(LN((1-BL56+BL56^2)/(1+BL56)^2)/(6*BL56)+ATAN((2-BL56)/(BL56*3^0.5))/(BL56*3^0.5)-LN((CI55^2-BL56*CI55+BL56^2)/(CI55+BL56)^2)/(6*BL56)-ATAN((2*CI55-BL56)/(BL56*3^0.5))/(BL56*3^0.5))) -> 19.08073276 | BO56: =IF(CH$11=1,(CG$11*BK56*BN$11/CF$11)*(1-CI55^3-(BL56-BM56)*(-2*BM56^3*(1-CI55^3)-3*BM56^2*(1-CI55^2)-6*BM56*(1-CI55)-6*LN((1-BM56)/(1-BM56*CI55)))/(2*BM56^4))/3,BN$11*BM56*(LN((1+BL56^3)/(BL56^3+CI55^3)))/3) -> 11.29659587 | BP56: =BO56/BN56 -> 0.5920420359 | BQ56: =BN56*BJ56*BL$11 -> 0.342888309 | BR56: =MAX(MIN(BS$11,CC$11*BR$11*BK56*(BJ56-BQ$11)/BJ56),-BS$11) -> 203.4939707 | BS56: 0.3273191237 | BT56: =MIN(BW$11,CC$11*BV$11*BK56*(BK$11-BJ56-BU$11)/BJ56) -> 416.6666667 | BU56: 0.6702064328 | BV56: =MIN($CA$11,CC$11*$BZ$11*BK56*(BK$11-BJ56-$BY$11)/BJ56) -> 416.6666667 | BW56: 0 | BX56: =(0.5*BK$11-BJ56+BP56*BJ56)*BQ56+(0.5*BK$11-BQ$11)*BS56+(0.5*BK$11-BU$11)*BU56+(0.5*BK$11-BY$11)*BW56 -> 0.4208645938 | BY56: =BQ56+BS56-BU56-BW56 -> 1e-06 | BZ56: =$CI$11 -> 1e-06 | CA56: =BN56*BL$11 -> 5.724219827 | CB56: =IF(BR55<BS$11,CC$11*BK56*BP$11*BR$11,BP$11*BS$11) -> 0.9852034562 | CC56: =IF(BT55<BW$11,CC$11*BK56*BT$11*BV$11,-BT$11*BW$11) -> -0.6702064328 | CD56: =IF(BV55<CA$11,CC$11*BK56*$BX$11*$BZ$11,-$BX$11*CA$11) -> 0 | CE56: =-BZ56 -> -1e-06 | CF56: =IF(BR55<BS$11,BQ$11*CC$11*BK56*BP$11*BR$11,0) -> 0.03940813825 | CG56: =IF(BT55<BW$11,(BK$11-BU$11)*CC$11*BK56*BT$11*BV$11,0) -> 0 | CH56: =IF(BV55<CA$11,(BK$11-$BY$11)*CC$11*BK56*$BX$11*$BZ$11,0) -> 0
BJ57: hc | BK57: e0 | BL57: a' | BM57: b' | BN57: N' | BO57: tN' | BP57: t' | BQ57: Nc | BR57: sac | BS57: Nac | BT57: sat | BU57: Nat | BV57: sat | BW57: Nat | BX57: Mtot | BY57: N | BZ57: N | CA57: A | CB57: B1 | CC57: B2' | CD57: B2 | CE57: B3 | CF57: C1 | CG57: C2 | CH57: C2'
BJ60: LANGTIDSLAST
BJ61: L | BK61: h | BL61: b | BM61: fck | BN61: fcd | BO61: Ecd | BP61: Ac | BQ61: ac | BR61: Esc | BS61: fyd_c | BT61: At | BU61: at | BV61: Est | BW61: fyd_t | BX61: At | BY61: at | BZ61: Est | CA61: fyd_t | CB61: Modenhed | CC61: 1+f | CD61: uterm | CE61: emax | CF61: e1 | CG61: k | CH61: Tilstand: | CI61: Nf | CK61: EIL
BJ62: (m) | BK62: (m) | BL62: (m) | BM62: (Mpa) | BN62: (Mpa) | BO62: (Mpa) | BP62: (m2) | BQ62: (m) | BR62: (Mpa) | BS62: (Mpa) | BT62: (m2) | BU62: (m) | BV62: (Mpa) | BW62: (Mpa) | BX62: (m2) | BY62: (m) | BZ62: (Mpa) | CA62: (Mpa) | CB62: (døgn) | CD62: (m) | CK62: (kNm2)
BJ63: =BJ11 -> 5 | BK63: =BK11 -> 0.7 | BL63: =BL11 -> 0.3 | BM63: =BM11 -> 35 | BN63: =BM63 -> 35 | BO63: =22000*((BM11+8)/10)^0.3 -> 34077.1462 | BP63: =BP11 -> 0.001608495439 | BQ63: =BQ11 -> 0.04 | BR63: =BR11 -> 200000 | BS63: =P18 -> 500 | BT63: =BT11 -> 0.001608495439 | BU63: =BU11 -> 0.04 | BV63: =BV11 -> 200000 | BW63: =P18 -> 500 | BX63: =BX11 -> 0 | BY63: =BY11 -> 0.1 | BZ63: =BZ11 -> 200000 | CA63: =P18 -> 500 | CB63: =CB11 -> 0 | CC63: =1+P26 -> 2.988101231 | CD63: =CD11 -> 0 | CE63: =CE11 -> 0.0035 | CF63: =0.7*($M$21+8)^(0.31)/1000 -> 0.002246328469 | CG63: =1.05*BO63*CF63/BN63 -> 2.29645391 | CH63: =CH11 -> 1 | CI63: 0 | CK63: =1000*CJ80/(CC63*BK79/BJ79) -> 84847.18807
BJ64: hc | BK64: e0 | BN64: N' | BO64: tN' | BP64: t' | BQ64: Nc | BR64: sac | BS64: Nac | BT64: sat | BU64: Nat | BV64: sat | BW64: Nat | BX64: Mtot | BY64: N | BZ64: N | CA64: A | CB64: B1 | CC64: B2 | CD64: B2' | CE64: B3 | CF64: C1 | CG64: C2 | CI64: e0
BJ66: =0.5*(-(CB66+CC66+CD66+CE66)+SQRT(MAX((CB66+CC66+CD66+CE66)^2+4*CA66*(CF66+CG66+CH66),0)))/CA66 -> 0.2206077438 | BK66: =MIN(BZ66/(BK63*BL63*BO63)+0.1*CF63,CK80) -> 3.371542049e-05 | BN66: =0.5*BK66*$BO$63 -> 0.5744626567 | BO66: =0.5*2*BK66*$BO$63/3 -> 0.3829751044 | BP66: =BO66/BN66 -> 0.6666666667 | BQ66: =BN66*BJ66*BL$63 -> 0.03801927317 | BR66: =MAX(MIN(BS$63,CC$63*BR$63*BK66*(BJ66-BQ$63)/BJ66),-BS$63) -> 16.49565241 | BS66: =BR66*BP$63 -> 0.02653318166 | BT66: =MIN(BW$63,CC$63*BV$63*BK66*(BK$63-BJ66-BU$63)/BJ66) -> 40.13151252 | BU66: =BT66*BT$63 -> 0.06455135484 | BV66: =MIN($CA$63,CC$63*$BZ$63*BK66*(BK$63-BJ66-$BY$63)/BJ66) -> 34.6514643 | BW66: =BV66*$BX$63 -> 0 | BX66: =(0.5*BK$63-BJ66+BP66*BJ66)*BQ66+(0.5*BK$63-BQ$63)*BS66+(0.5*BK$63-BU$63)*BU66+(0.5*BK$63-BY$63)*BW66 -> 0.0387471699 | BY66: =BQ66+BS66-BU66-BW66 -> 1.1e-06 | BZ66: =$CI$63+0.000001 -> 1e-06 | CA66: =BN66*BL$63 -> 0.172338797 | CB66: =IF(BR65<BS$63,CC$63*BK66*BP$63*BR$63,BP$63*BS$63) -> 0.03240960337 | CC66: =IF(BT65<BW$63,CC$63*BK66*BT$63*BV$63,-BT$63*BW$63) -> 0.03240960337 | CD66: =IF(BV65<CA$63,CC$63*BK66*$BX$63*$BZ$63,-$BX$63*CA$63) -> 0 | CE66: =-(BZ66+0.0000001) -> -1.1e-06 | CF66: =IF(BR65<BS$63,BQ$63*CC$63*BK66*BP$63*BR$63,0) -> 0.001296384135 | CG66: =IF(BT65<BW$63,(BK$63-BU$63)*CC$63*BK66*BT$63*BV$63,0) -> 0.02139033823 | CH66: =IF(BV65<CA$63,(BK$63-$BY$63)*CC$63*BK66*$BX$63*$BZ$63,0) -> 0
BJ67: 0.2206074567 | BK67: =MIN(BZ66/(BK63*BL63*BO63)+0.12*CF63,1.2*CK80) -> 4.045850459e-05 | BN67: =0.5*BK67*$BO$63 -> 0.689355188 | BO67: =0.5*2*BK67*$BO$63/3 -> 0.4595701253 | BP67: =BO67/BN67 -> 0.6666666667 | BQ67: 0.04562306843 | BR67: 19.79477719 | BS67: 0.03183980882 | BT67: 48.15790918 | BU67: 0.07746177725 | BV67: 41.58184275 | BW67: 0 | BX67: 0.04649663593 | BY67: =BQ67+BS67-BU67-BW67 -> 1.1e-06 | BZ67: =$CI$63+0.000001 -> 1e-06 | CA67: 0.2068065564 | CB67: 0.03889152405 | CC67: 0.03889152405 | CD67: 0 | CE67: =-(BZ67+0.0000001) -> -1.1e-06 | CF67: 0.001555660962 | CG67: 0.02566840587 | CH67: 0 | CI67: =BK67 -> 4.045850459e-05
BJ68: 0.2206083925 | BK68: =IF(BX67<>BX66,BK67+(BK67-BK66)*($CJ$80-BX67)/(BX67-BX66),BK67) -> 2.449329155e-05 | BN68: 0.4173307386 | BO68: 0.2782204924 | BP68: 0.6666666667 | BQ68: 0.02761999901 | BR68: 11.98362889 | BS68: 0.01927561241 | BT68: 29.15427068 | BU68: 0.04689451141 | BV68: 25.17318363 | BW68: 0 | BX68: 0.02814867018 | BY68: 1.1e-06 | BZ68: 1e-06 | CA68: 0.1251992216 | CB68: 0.02354465265 | CC68: 0.02354465265 | CD68: 0 | CE68: -1.1e-06 | CF68: 0.0009417861061 | CG68: 0.01553947075 | CH68: 0 | CI68: 2.449329155e-05
BJ69: 0.2206083925 | BK69: =IF(BX68<>BX67,BK68+(BK68-BK67)*($CJ$80-BX68)/(BX68-BX67),BK68) -> 2.449329155e-05 | BN69: 0.4173307386 | BO69: 0.2782204924 | BP69: 0.6666666667 | BQ69: 0.02761999901 | BR69: 11.98362889 | BS69: 0.01927561241 | BT69: 29.15427068 | BU69: 0.04689451141 | BV69: 25.17318363 | BW69: 0 | BX69: 0.02814867018 | BY69: 1.1e-06 | BZ69: 1e-06 | CA69: 0.1251992216 | CB69: 0.02354465265 | CC69: 0.02354465265 | CD69: 0 | CE69: -1.1e-06 | CF69: 0.0009417861061 | CG69: 0.01553947075 | CH69: 0 | CI69: 2.449329155e-05
BJ70: 0.2206083925 | BK70: 2.449329155e-05 | BN70: 0.4173307386 | BO70: 0.2782204924 | BP70: 0.6666666667 | BQ70: 0.02761999901 | BR70: 11.98362889 | BS70: 0.01927561241 | BT70: 29.15427068 | BU70: 0.04689451141 | BV70: 25.17318363 | BW70: 0 | BX70: 0.02814867018 | BY70: 1.1e-06 | BZ70: 1e-06 | CA70: 0.1251992216 | CB70: 0.02354465265 | CC70: 0.02354465265 | CD70: 0 | CE70: -1.1e-06 | CF70: 0.0009417861061 | CG70: 0.01553947075 | CH70: 0 | CI70: 2.449329155e-05
BJ71: 0.2206083925 | BK71: 2.449329155e-05 | BN71: 0.4173307386 | BO71: 0.2782204924 | BP71: 0.6666666667 | BQ71: 0.02761999901 | BR71: 11.98362889 | BS71: 0.01927561241 | BT71: 29.15427068 | BU71: 0.04689451141 | BV71: 25.17318363 | BW71: 0 | BX71: 0.02814867018 | BY71: 1.1e-06 | BZ71: 1e-06 | CA71: 0.1251992216 | CB71: 0.02354465265 | CC71: 0.02354465265 | CD71: 0 | CE71: -1.1e-06 | CF71: 0.0009417861061 | CG71: 0.01553947075 | CH71: 0 | CI71: 2.449329155e-05
BJ72: 0.2206083925 | BK72: 2.449329155e-05 | BN72: 0.4173307386 | BO72: 0.2782204924 | BP72: 0.6666666667 | BQ72: 0.02761999901 | BR72: 11.98362889 | BS72: 0.01927561241 | BT72: 29.15427068 | BU72: 0.04689451141 | BV72: 25.17318363 | BW72: 0 | BX72: 0.02814867018 | BY72: 1.1e-06 | BZ72: 1e-06 | CA72: 0.1251992216 | CB72: 0.02354465265 | CC72: 0.02354465265 | CD72: 0 | CE72: -1.1e-06 | CF72: 0.0009417861061 | CG72: 0.01553947075 | CH72: 0 | CI72: 2.449329155e-05
BJ73: 0.2206083925 | BK73: 2.449329155e-05 | BN73: 0.4173307386 | BO73: 0.2782204924 | BP73: 0.6666666667 | BQ73: 0.02761999901 | BR73: 11.98362889 | BS73: 0.01927561241 | BT73: 29.15427068 | BU73: 0.04689451141 | BV73: 25.17318363 | BW73: 0 | BX73: 0.02814867018 | BY73: 1.1e-06 | BZ73: 1e-06 | CA73: 0.1251992216 | CB73: 0.02354465265 | CC73: 0.02354465265 | CD73: 0 | CE73: -1.1e-06 | CF73: 0.0009417861061 | CG73: 0.01553947075 | CH73: 0 | CI73: 2.449329155e-05
BJ74: 0.2206083925 | BK74: 2.449329155e-05 | BN74: 0.4173307386 | BO74: 0.2782204924 | BP74: 0.6666666667 | BQ74: 0.02761999901 | BR74: 11.98362889 | BS74: 0.01927561241 | BT74: 29.15427068 | BU74: 0.04689451141 | BV74: 25.17318363 | BW74: 0 | BX74: 0.02814867018 | BY74: 1.1e-06 | BZ74: 1e-06 | CA74: 0.1251992216 | CB74: 0.02354465265 | CC74: 0.02354465265 | CD74: 0 | CE74: -1.1e-06 | CF74: 0.0009417861061 | CG74: 0.01553947075 | CH74: 0 | CI74: 2.449329155e-05
BJ75: 0.2206083925 | BK75: 2.449329155e-05 | BN75: 0.4173307386 | BO75: 0.2782204924 | BP75: 0.6666666667 | BQ75: 0.02761999901 | BR75: 11.98362889 | BS75: 0.01927561241 | BT75: 29.15427068 | BU75: 0.04689451141 | BV75: 25.17318363 | BW75: 0 | BX75: 0.02814867018 | BY75: 1.1e-06 | BZ75: 1e-06 | CA75: 0.1251992216 | CB75: 0.02354465265 | CC75: 0.02354465265 | CD75: 0 | CE75: -1.1e-06 | CF75: 0.0009417861061 | CG75: 0.01553947075 | CH75: 0 | CI75: 2.449329155e-05
BJ76: 0.2206083925 | BK76: 2.449329155e-05 | BN76: 0.4173307386 | BO76: 0.2782204924 | BP76: 0.6666666667 | BQ76: 0.02761999901 | BR76: 11.98362889 | BS76: 0.01927561241 | BT76: 29.15427068 | BU76: 0.04689451141 | BV76: 25.17318363 | BW76: 0 | BX76: 0.02814867018 | BY76: 1.1e-06 | BZ76: 1e-06 | CA76: 0.1251992216 | CB76: 0.02354465265 | CC76: 0.02354465265 | CD76: 0 | CE76: -1.1e-06 | CF76: 0.0009417861061 | CG76: 0.01553947075 | CH76: 0 | CI76: 2.449329155e-05
BJ77: =BJ76 -> 0.2206083925 | BK77: =BK76 -> 2.449329155e-05 | BR77: =BR76 -> 11.98362889 | BS77: 0.01927561241 | BT77: 29.15427068 | BU77: 0.04689451141 | BV77: 25.17318363 | BW77: 0 | BX77: 0.02814867018 | CI77: =CI76 -> 2.449329155e-05
BJ78: 0.2206083925 | BK78: =IF(BX77<>BX76,BK77+(BK77-BK76)*($CJ$80-BX77)/(BX77-BX76),BK77) -> 2.449329155e-05 | BN78: =0.5*BK78*$BO$63 -> 0.4173307386 | BO78: =0.5*2*BK78*$BO$63/3 -> 0.2782204924 | BP78: =BO78/BN78 -> 0.6666666667 | BQ78: =BN78*BJ78*BL$63 -> 0.02761999901 | BR78: =MAX(MIN(BS$63,CC$63*BR$63*BK78*(BJ78-BQ$63)/BJ78),-BS$63) -> 11.98362889 | BS78: =BR78*BP$63 -> 0.01927561241 | BT78: =MIN(BW$63,CC$63*BV$63*BK78*(BK$63-BJ78-BU$63)/BJ78) -> 29.15427068 | BU78: =BT78*BT$63 -> 0.04689451141 | BV78: =MIN($CA$63,CC$63*$BZ$63*BK78*(BK$63-BJ78-$BY$63)/BJ78) -> 25.17318363 | BW78: =BV78*$BX$63 -> 0 | BX78: =(0.5*BK$63-BJ78+BP78*BJ78)*BQ78+(0.5*BK$63-BQ$63)*BS78+(0.5*BK$63-BU$63)*BU78+(0.5*BK$63-BY$63)*BW78 -> 0.02814867018 | BY78: =BQ78+BS78-BU78-BW78 -> 1.1e-06 | BZ78: =$CI$63+0.000001 -> 1e-06 | CA78: =BN78*BL$63 -> 0.1251992216 | CB78: =IF(BR77<BS$63,CC$63*BK78*BP$63*BR$63,BP$63*BS$63) -> 0.02354465265 | CC78: =IF(BT77<BW$63,CC$63*BK78*BT$63*BV$63,-BT$63*BW$63) -> 0.02354465265 | CD78: =IF(BV77<CA$63,CC$63*BK78*$BX$63*$BZ$63,-$BX$63*CA$63) -> 0 | CE78: =-(BZ78+0.0000001) -> -1.1e-06 | CF78: =IF(BR77<BS$63,BQ$63*CC$63*BK78*BP$63*BR$63,0) -> 0.0009417861061 | CG78: =IF(BT77<BW$63,(BK$63-BU$63)*CC$63*BK78*BT$63*BV$63,0) -> 0.01553947075 | CH78: =IF(BV77<CA$63,(BK$63-$BY$63)*CC$63*BK78*$BX$63*$BZ$63,0) -> 0 | CI78: =CI77 -> 2.449329155e-05
BJ79: 0.2206083925 | BK79: =IF(BX78<>BX77,BK78+(BK78-BK77)*($CJ$80-BX78)/(BX78-BX77),BK78) -> 2.449329155e-05 | BN79: =0.5*BK79*$BO$63 -> 0.4173307386 | BO79: =0.5*2*BK79*$BO$63/3 -> 0.2782204924 | BP79: =BO79/BN79 -> 0.6666666667 | BQ79: =BN79*BJ79*BL$63 -> 0.02761999901 | BR79: =MAX(MIN(BS$63,CC$63*BR$63*BK79*(BJ79-BQ$63)/BJ79),-BS$63) -> 11.98362889 | BS79: =BR79*BP$63 -> 0.01927561241 | BT79: =MIN(BW$63,CC$63*BV$63*BK79*(BK$63-BJ79-BU$63)/BJ79) -> 29.15427068 | BU79: =BT79*BT$63 -> 0.04689451141 | BV79: =MIN($CA$63,CC$63*$BZ$63*BK79*(BK$63-BJ79-$BY$63)/BJ79) -> 25.17318363 | BW79: =BV79*$BX$63 -> 0 | BX79: =(0.5*BK$63-BJ79+BP79*BJ79)*BQ79+(0.5*BK$63-BQ$63)*BS79+(0.5*BK$63-BU$63)*BU79+(0.5*BK$63-BY$63)*BW79 -> 0.02814867018 | BY79: =BQ79+BS79-BU79-BW79 -> 1.1e-06 | BZ79: =$CI$63+0.000001 -> 1e-06 | CA79: =BN79*BL$63 -> 0.1251992216 | CB79: =IF(BR78<BS$63,CC$63*BK79*BP$63*BR$63,BP$63*BS$63) -> 0.02354465265 | CC79: =IF(BT78<BW$63,CC$63*BK79*BT$63*BV$63,-BT$63*BW$63) -> 0.02354465265 | CD79: =IF(BV78<CA$63,CC$63*BK79*$BX$63*$BZ$63,-$BX$63*CA$63) -> 0 | CE79: =-(BZ79+0.0000001) -> -1.1e-06 | CF79: =IF(BR78<BS$63,BQ$63*CC$63*BK79*BP$63*BR$63,0) -> 0.0009417861061 | CG79: =IF(BT78<BW$63,(BK$63-BU$63)*CC$63*BK79*BT$63*BV$63,0) -> 0.01553947075 | CH79: =IF(BV78<CA$63,(BK$63-$BY$63)*CC$63*BK79*$BX$63*$BZ$63,0) -> 0 | CI79: =CI78 -> 2.449329155e-05
CI80: korr-M_L = | CJ80: =MAX(AU21/1000,0.05*(BT63*BS63+BX63*BW63)*BK63) -> 0.02814867018 | CK80: =CJ80/((BL63*BK63^2/6)*BO63) -> 3.371542049e-05
BJ83: KORTTIDSLAST
BJ84: L | BK84: h | BL84: b | BM84: fck | BN84: fcd | BO84: Ecd | BP84: Ac | BQ84: ac | BR84: Esc | BS84: fyd_c | BT84: At | BU84: at | BV84: Est | BW84: fyd_t | BX84: At | BY84: at | BZ84: Est | CA84: fyd_t | CB84: Modenhed | CC84: 1+f | CD84: uterm | CE84: emax | CF84: e1 | CG84: k | CH84: Tilstand: | CI84: Nf | CK84: EI_k
BJ85: (m) | BK85: (m) | BL85: (m) | BM85: (Mpa) | BN85: (Mpa) | BO85: (Mpa) | BP85: (m2) | BQ85: (m) | BR85: (Mpa) | BS85: (Mpa) | BT85: (m2) | BU85: (m) | BV85: (Mpa) | BW85: (Mpa) | BX85: (m2) | BY85: (m) | BZ85: (Mpa) | CA85: (Mpa) | CB85: (døgn) | CD85: (m) | CK85: (kNm2)
BJ86: =BJ63 -> 5 | BK86: =BK63 -> 0.7 | BL86: =BL63 -> 0.3 | BM86: =BM63 -> 35 | BN86: =BN63 -> 35 | BO86: =22000*((BM11+8)/10)^0.3 -> 34077.1462 | BP86: =BP63 -> 0.001608495439 | BQ86: =BQ63 -> 0.04 | BR86: 200000 | BS86: 500 | BT86: 0.001608495439 | BU86: 0.04 | BV86: 200000 | BW86: 500 | BX86: 0 | BY86: 0.1 | BZ86: 200000 | CA86: 500 | CB86: =CB63 -> 0 | CC86: 1 | CD86: =CD63 -> 0 | CE86: 0.0035 | CF86: =0.7*($M$21+8)^(0.31)/1000 -> 0.002246328469 | CG86: =1.05*BO86*CF86/BN86 -> 2.29645391 | CH86: 1 | CI86: 0 | CK86: =1000*CJ103/(CC86*BK102/BJ102) -> 98983.27007
BJ87: hc | BK87: e0 | BL87: a' | BM87: b' | BN87: N' | BO87: tN' | BP87: t' | BQ87: Nc | BR87: sac | BS87: Nac | BT87: sat | BU87: Nat | BV87: sat | BW87: Nat | BX87: Mtot | BY87: N | BZ87: N | CA87: A | CB87: B1 | CC87: B2 | CD87: B2' | CE87: B3 | CF87: C1 | CG87: C2 | CI87: e0
BJ89: =0.5*(-(CB89+CC89+CD89+CE89)+SQRT(MAX((CB89+CC89+CD89+CE89)^2+4*CA89*(CF89+CG89+CH89),0)))/CA89 -> 0.1561916442 | BK89: =MIN(BZ89/(BK86*BL86*BO86)+0.1*CF86,CK103) -> 3.371542049e-05 | BN89: =0.5*BK89*$BO$86 -> 0.5744626567 | BO89: =0.5*2*BK89*$BO$86/3 -> 0.3829751044 | BP89: =BO89/BN89 -> 0.6666666667 | BQ89: =BN89*BJ89*BL$86 -> 0.02691788006 | BR89: =MAX(MIN(BS$86,CC$86*BR$86*BK89*(BJ89-BQ$86)/BJ89),-BS$86) -> 5.016209621 | BS89: =BR89*BP$86 -> 0.008068550295 | BT89: =MIN(BW$86,CC$86*BV$86*BK89*(BK$86-BJ89-BU$86)/BJ89) -> 21.75034478 | BU89: =BT89*BT$86 -> 0.03498533036 | BV89: =MIN($CA$86,CC$86*$BZ$86*BK89*(BK$86-BJ89-$BY$86)/BJ89) -> 19.16003306 | BW89: =BV89*$BX$86 -> 0 | BX89: =(0.5*BK$86-BJ89+BP89*BJ89)*BQ89+(0.5*BK$86-BQ$86)*BS89+(0.5*BK$86-BU$86)*BU89+(0.5*BK$86-BY$86)*BW89 -> 0.02136651171 | BY89: =BQ89+BS89-BU89-BW89 -> 1.1e-06 | BZ89: =$CI$86+0.000001 -> 1e-06 | CA89: =BN89*BL$86 -> 0.172338797 | CB89: =IF(BR88<BS$86,CC$86*BK89*BP$86*BR$86,BP$86*BS$86) -> 0.01084622002 | CC89: =IF(BT88<BW$86,CC$86*BK89*BT$86*BV$86,-BT$86*BW$86) -> 0.01084622002 | CD89: =IF(BV88<CA$86,CC$86*BK89*$BX$86*$BZ$86,-$BX$86*CA$86) -> 0 | CE89: =-(BZ89+0.0000001) -> -1.1e-06 | CF89: =IF(BR88<BS$86,BQ$86*CC$86*BK89*BP$86*BR$86,0) -> 0.0004338488006 | CG89: =IF(BT88<BW$86,(BK$86-BU$86)*CC$86*BK89*BT$86*BV$86,0) -> 0.00715850521 | CH89: =IF(BV88<CA$86,(BK$86-$BY$86)*CC$86*BK89*$BX$86*$BZ$86,0) -> 0
BJ90: 0.1561912651 | BK90: =MIN(BZ89/(BK86*BL86*BO86)+0.12*CF86,1.2*CK103) -> 4.045850459e-05 | BN90: =0.5*BK90*$BO$86 -> 0.689355188 | BO90: =0.5*2*BK90*$BO$86/3 -> 0.4595701253 | BP90: =BO90/BN90 -> 0.6666666667 | BQ90: 0.03230137767 | BR90: 6.019446516 | BS90: 0.009682252263 | BT90: 26.10049673 | BU90: 0.04198252993 | BV90: 22.99211512 | BW90: 0 | BX90: 0.02563983365 | BY90: =BQ90+BS90-BU90-BW90 -> 1.1e-06 | BZ90: =$CI$86+0.000001 -> 1e-06 | CA90: 0.2068065564 | CB90: 0.01301546402 | CC90: 0.01301546402 | CD90: 0 | CE90: =-(BZ90+0.0000001) -> -1.1e-06 | CF90: 0.0005206185607 | CG90: 0.008590206252 | CH90: 0 | CI90: =BK90 -> 4.045850459e-05
BJ91: 0.1561910961 | BK91: =IF(BX90<>BX89,BK90+(BK90-BK89)*($CJ$103-BX90)/(BX90-BX89),BK90) -> 4.441732069e-05 | BN91: =0.5*BK91*$BO$86 -> 0.7568077654 | BO91: 0.5045385103 | BP91: =BO91/BN91 -> 0.6666666667 | BQ91: =BN91*BJ91*BL$86 -> 0.03546199033 | BR91: =MAX(MIN(BS$86,CC$86*BR$86*BK91*(BJ91-BQ$86)/BJ91),-BS$86) -> 6.608439668 | BS91: =BR91*BP$86 -> 0.01062964506 | BT91: =MIN(BW$86,CC$86*BV$86*BK91*(BK$86-BJ91-BU$86)/BJ91) -> 28.6544396 | BU91: =BT91*BT$86 -> 0.04609053539 | BV91: =MIN($CA$86,CC$86*$BZ$86*BK91*(BK$86-BJ91-$BY$86)/BJ91) -> 25.2419029 | BW91: =BV91*$BX$86 -> 0 | BX91: =(0.5*BK$86-BJ91+BP91*BJ91)*BQ91+(0.5*BK$86-BQ$86)*BS91+(0.5*BK$86-BU$86)*BU91+(0.5*BK$86-BY$86)*BW91 -> 0.02814867018 | BY91: =BQ91+BS91-BU91-BW91 -> 1.1e-06 | BZ91: 1e-06 | CA91: =BN91*BL$86 -> 0.2270423296 | CB91: =IF(BR90<BS$86,CC$86*BK91*BP$86*BR$86,BP$86*BS$86) -> 0.01428901154 | CC91: =IF(BT90<BW$86,CC$86*BK91*BT$86*BV$86,-BT$86*BW$86) -> 0.01428901154 | CD91: =IF(BV90<CA$86,CC$86*BK91*$BX$86*$BZ$86,-$BX$86*CA$86) -> 0 | CE91: -1.1e-06 | CF91: =IF(BR90<BS$86,BQ$86*CC$86*BK91*BP$86*BR$86,0) -> 0.0005715604618 | CG91: =IF(BT90<BW$86,(BK$86-BU$86)*CC$86*BK91*BT$86*BV$86,0) -> 0.009430747619 | CH91: =IF(BV90<CA$86,(BK$86-$BY$86)*CC$86*BK91*$BX$86*$BZ$86,0) -> 0 | CI91: 4.441732069e-05
BJ92: 0.1561910961 | BK92: =IF(BX91<>BX90,BK91+(BK91-BK90)*($CJ$103-BX91)/(BX91-BX90),BK91) -> 4.441732069e-05 | BN92: 0.7568077654 | BO92: 0.5045385103 | BP92: =BO92/BN92 -> 0.6666666667 | BQ92: 0.03546199033 | BR92: 6.608439668 | BS92: 0.01062964506 | BT92: 28.6544396 | BU92: 0.04609053539 | BV92: 25.2419029 | BW92: 0 | BX92: 0.02814867018 | BY92: =BQ92+BS92-BU92-BW92 -> 1.1e-06 | BZ92: 1e-06 | CA92: 0.2270423296 | CB92: 0.01428901154 | CC92: 0.01428901154 | CD92: 0 | CE92: -1.1e-06 | CF92: 0.0005715604618 | CG92: 0.009430747619 | CH92: 0 | CI92: 4.441732069e-05
BJ93: 0.1561910961 | BK93: 4.441732069e-05 | BN93: 0.7568077654 | BO93: 0.5045385103 | BP93: 0.6666666667 | BQ93: 0.03546199033 | BR93: 6.608439668 | BS93: 0.01062964506 | BT93: 28.6544396 | BU93: 0.04609053539 | BV93: 25.2419029 | BW93: 0 | BX93: 0.02814867018 | BY93: 1.1e-06 | BZ93: 1e-06 | CA93: 0.2270423296 | CB93: 0.01428901154 | CC93: 0.01428901154 | CD93: 0 | CE93: -1.1e-06 | CF93: 0.0005715604618 | CG93: 0.009430747619 | CH93: 0 | CI93: 4.441732069e-05
BJ94: 0.1561910961 | BK94: 4.441732069e-05 | BN94: 0.7568077654 | BO94: 0.5045385103 | BP94: 0.6666666667 | BQ94: 0.03546199033 | BR94: 6.608439668 | BS94: 0.01062964506 | BT94: 28.6544396 | BU94: 0.04609053539 | BV94: 25.2419029 | BW94: 0 | BX94: 0.02814867018 | BY94: 1.1e-06 | BZ94: 1e-06 | CA94: 0.2270423296 | CB94: 0.01428901154 | CC94: 0.01428901154 | CD94: 0 | CE94: -1.1e-06 | CF94: 0.0005715604618 | CG94: 0.009430747619 | CH94: 0 | CI94: 4.441732069e-05
BJ95: 0.1561910961 | BK95: 4.441732069e-05 | BN95: 0.7568077654 | BO95: 0.5045385103 | BP95: 0.6666666667 | BQ95: 0.03546199033 | BR95: 6.608439668 | BS95: 0.01062964506 | BT95: 28.6544396 | BU95: 0.04609053539 | BV95: 25.2419029 | BW95: 0 | BX95: 0.02814867018 | BY95: 1.1e-06 | BZ95: 1e-06 | CA95: 0.2270423296 | CB95: 0.01428901154 | CC95: 0.01428901154 | CD95: 0 | CE95: -1.1e-06 | CF95: 0.0005715604618 | CG95: 0.009430747619 | CH95: 0 | CI95: 4.441732069e-05
BJ96: 0.1561910961 | BK96: 4.441732069e-05 | BN96: =0.5*BK96*$BO$86 -> 0.7568077654 | BO96: 0.5045385103 | BP96: 0.6666666667 | BQ96: 0.03546199033 | BR96: 6.608439668 | BS96: 0.01062964506 | BT96: 28.6544396 | BU96: 0.04609053539 | BV96: 25.2419029 | BW96: 0 | BX96: 0.02814867018 | BY96: 1.1e-06 | BZ96: 1e-06 | CA96: 0.2270423296 | CB96: 0.01428901154 | CC96: 0.01428901154 | CD96: 0 | CE96: -1.1e-06 | CF96: 0.0005715604618 | CG96: 0.009430747619 | CH96: 0 | CI96: 4.441732069e-05
BJ97: 0.1561910961 | BK97: 4.441732069e-05 | BN97: 0.7568077654 | BO97: 0.5045385103 | BP97: 0.6666666667 | BQ97: 0.03546199033 | BR97: 6.608439668 | BS97: 0.01062964506 | BT97: 28.6544396 | BU97: 0.04609053539 | BV97: 25.2419029 | BW97: 0 | BX97: 0.02814867018 | BY97: 1.1e-06 | BZ97: 1e-06 | CA97: 0.2270423296 | CB97: 0.01428901154 | CC97: 0.01428901154 | CD97: 0 | CE97: -1.1e-06 | CF97: 0.0005715604618 | CG97: 0.009430747619 | CH97: 0 | CI97: 4.441732069e-05
BJ98: 0.1561910961 | BK98: 4.441732069e-05 | BN98: 0.7568077654 | BO98: 0.5045385103 | BP98: 0.6666666667 | BQ98: 0.03546199033 | BR98: 6.608439668 | BS98: 0.01062964506 | BT98: 28.6544396 | BU98: 0.04609053539 | BV98: 25.2419029 | BW98: 0 | BX98: 0.02814867018 | BY98: 1.1e-06 | BZ98: 1e-06 | CA98: 0.2270423296 | CB98: 0.01428901154 | CC98: 0.01428901154 | CD98: 0 | CE98: -1.1e-06 | CF98: 0.0005715604618 | CG98: 0.009430747619 | CH98: 0 | CI98: 4.441732069e-05
BJ99: 0.1561910961 | BK99: 4.441732069e-05 | BN99: 0.7568077654 | BO99: 0.5045385103 | BP99: 0.6666666667 | BQ99: 0.03546199033 | BR99: 6.608439668 | BS99: 0.01062964506 | BT99: 28.6544396 | BU99: 0.04609053539 | BV99: 25.2419029 | BW99: 0 | BX99: 0.02814867018 | BY99: 1.1e-06 | BZ99: 1e-06 | CA99: 0.2270423296 | CB99: 0.01428901154 | CC99: 0.01428901154 | CD99: 0 | CE99: -1.1e-06 | CF99: 0.0005715604618 | CG99: 0.009430747619 | CH99: 0 | CI99: 4.441732069e-05
BJ100: =BJ99 -> 0.1561910961 | BK100: =BK99 -> 4.441732069e-05 | BR100: =BR99 -> 6.608439668 | BS100: 0.01062964506 | BT100: 28.6544396 | BU100: 0.04609053539 | BV100: 25.2419029 | BW100: 0 | BX100: 0.02814867018 | CI100: =CI99 -> 4.441732069e-05
BJ101: =0.5*(-(CB101+CC101+CD101+CE101)+SQRT(MAX((CB101+CC101+CD101+CE101)^2+4*CA101*(CF101+CG101+CH101),0)))/CA101 -> 0.1561910961 | BK101: =IF(BX100<>BX99,BK100+(BK100-BK99)*($CJ$103-BX100)/(BX100-BX99),BK100) -> 4.441732069e-05 | BN101: =0.5*BK101*$BO$86 -> 0.7568077654 | BO101: =0.5*2*BK101*$BO$86/3 -> 0.5045385103 | BP101: =BO101/BN101 -> 0.6666666667 | BQ101: =BN101*BJ101*BL$86 -> 0.03546199033 | BR101: =MAX(MIN(BS$86,CC$86*BR$86*BK101*(BJ101-BQ$86)/BJ101),-BS$86) -> 6.608439668 | BS101: =BR101*BP$86 -> 0.01062964506 | BT101: =MIN(BW$86,CC$86*BV$86*BK101*(BK$86-BJ101-BU$86)/BJ101) -> 28.6544396 | BU101: =BT101*BT$86 -> 0.04609053539 | BV101: =MIN($CA$86,CC$86*$BZ$86*BK101*(BK$86-BJ101-$BY$86)/BJ101) -> 25.2419029 | BW101: =BV101*$BX$86 -> 0 | BX101: =(0.5*BK$86-BJ101+BP101*BJ101)*BQ101+(0.5*BK$86-BQ$86)*BS101+(0.5*BK$86-BU$86)*BU101+(0.5*BK$86-BY$86)*BW101 -> 0.02814867018 | BY101: =BQ101+BS101-BU101-BW101 -> 1.1e-06 | BZ101: =$CI$86+0.000001 -> 1e-06 | CA101: =BN101*BL$86 -> 0.2270423296 | CB101: =IF(BR100<BS$86,CC$86*BK101*BP$86*BR$86,BP$86*BS$86) -> 0.01428901154 | CC101: =IF(BT100<BW$86,CC$86*BK101*BT$86*BV$86,-BT$86*BW$86) -> 0.01428901154 | CD101: =IF(BV100<CA$86,CC$86*BK101*$BX$86*$BZ$86,-$BX$86*CA$86) -> 0 | CE101: =-(BZ101+0.0000001) -> -1.1e-06 | CF101: =IF(BR100<BS$86,BQ$86*CC$86*BK101*BP$86*BR$86,0) -> 0.0005715604618 | CG101: =IF(BT100<BW$86,(BK$86-BU$86)*CC$86*BK101*BT$86*BV$86,0) -> 0.009430747619 | CH101: =IF(BV100<CA$86,(BK$86-$BY$86)*CC$86*BK101*$BX$86*$BZ$86,0) -> 0 | CI101: =CI100 -> 4.441732069e-05
BJ102: =0.5*(-(CB102+CC102+CD102+CE102)+SQRT(MAX((CB102+CC102+CD102+CE102)^2+4*CA102*(CF102+CG102+CH102),0)))/CA102 -> 0.1561910961 | BK102: =IF(BX101<>BX100,BK101+(BK101-BK100)*($CJ$103-BX101)/(BX101-BX100),BK101) -> 4.441732069e-05 | BN102: =0.5*BK102*$BO$86 -> 0.7568077654 | BO102: =0.5*2*BK102*$BO$86/3 -> 0.5045385103 | BP102: =BO102/BN102 -> 0.6666666667 | BQ102: =BN102*BJ102*BL$86 -> 0.03546199033 | BR102: =MAX(MIN(BS$86,CC$86*BR$86*BK102*(BJ102-BQ$86)/BJ102),-BS$86) -> 6.608439668 | BS102: =BR102*BP$86 -> 0.01062964506 | BT102: =MIN(BW$86,CC$86*BV$86*BK102*(BK$86-BJ102-BU$86)/BJ102) -> 28.6544396 | BU102: =BT102*BT$86 -> 0.04609053539 | BV102: =MIN($CA$86,CC$86*$BZ$86*BK102*(BK$86-BJ102-$BY$86)/BJ102) -> 25.2419029 | BW102: =BV102*$BX$86 -> 0 | BX102: =(0.5*BK$86-BJ102+BP102*BJ102)*BQ102+(0.5*BK$86-BQ$86)*BS102+(0.5*BK$86-BU$86)*BU102+(0.5*BK$86-BY$86)*BW102 -> 0.02814867018 | BY102: =BQ102+BS102-BU102-BW102 -> 1.1e-06 | BZ102: =$CI$86+0.000001 -> 1e-06 | CA102: =BN102*BL$86 -> 0.2270423296 | CB102: =IF(BR101<BS$86,CC$86*BK102*BP$86*BR$86,BP$86*BS$86) -> 0.01428901154 | CC102: =IF(BT101<BW$86,CC$86*BK102*BT$86*BV$86,-BT$86*BW$86) -> 0.01428901154 | CD102: =IF(BV101<CA$86,CC$86*BK102*$BX$86*$BZ$86,-$BX$86*CA$86) -> 0 | CE102: =-(BZ102+0.0000001) -> -1.1e-06 | CF102: =IF(BR101<BS$86,BQ$86*CC$86*BK102*BP$86*BR$86,0) -> 0.0005715604618 | CG102: =IF(BT101<BW$86,(BK$86-BU$86)*CC$86*BK102*BT$86*BV$86,0) -> 0.009430747619 | CH102: =IF(BV101<CA$86,(BK$86-$BY$86)*CC$86*BK102*$BX$86*$BZ$86,0) -> 0 | CI102: =CI101 -> 4.441732069e-05
CI103: korr-M_kort = | CJ103: =MAX((AU22-AU21)/1000,0.05*(BT86*BS86+BX86*BW86)*BK86) -> 0.02814867018 | CK103: =CJ103/((BL86*BK86^2/6)*BO86) -> 3.371542049e-05
BJ107: FORSKYDNING
BL109: V | BM109: v | BN109: f_cd | BO109: b | BP109: h | BQ109: h_int | BR109: c | BS109: b | BT109: cot0 | BU109: w | BV109: a | BW109: d | BX109: A | BY109: f_yd
BJ110: Betontrykbrud | BL110: =1000*(BM110*BN110*BT110)/((1+BT110^2)*(1/(BO110*BQ110)+BU110/((1.4*BS110)*(BO110-BS110*BO110)*(BP110-BS110*BO110)))) -> 782.3579441 | BM110: =0.7-$M$21/200 -> 0.525 | BN110: =$M$22 -> 25 | BO110: =$P$9/1000 -> 0.3 | BP110: =$P$7/1000 -> 0.7 | BQ110: =$K$34/1000 -> 0.6355627805 | BR110: =$O$13/1000 -> 0.04 | BS110: =MIN(BP110/(2*(BO110+BP110)),0.5) -> 0.35 | BT110: =$P$15 -> 2 | BU110: =$P$33/$P$9 -> 0.08333333333
BJ111: Bøjler, type 1 | BL111: =MIN($BL$110,1000*BX111*BY111*BT111/(BV111*(1/BQ111+BU111*BO111/((BO111-BS111*BO111)*(BP111-BS111*BO111))))) -> 144.0066807 | BO111: =$P$9/1000 -> 0.3 | BP111: =$P$7/1000 -> 0.7 | BQ111: =$K$34/1000 -> 0.6355627805 | BR111: =$O$13/1000 -> 0.04 | BS111: =MIN(BP111/(2*(BO111+BP111)),0.5) -> 0.35 | BT111: =$P$15 -> 2 | BU111: =$P$33/$P$9 -> 0.08333333333 | BV111: =$O$15/1000 -> 0.15 | BW111: =N15 -> 6 | BX111: =2*PI()*(BW111/1000)^2/4 -> 5.654866776e-05 | BY111: =P22 -> 341.6666667
BJ112: Bøjler, type 2 | BL112: =MIN($BL$110,1000*BX112*BY112*BT112/(BV112*(1/BQ112+BU112*BO112/((BO112-BS112*BO112)*(BP112-BS112*BO112))))) -> 144.0066807 | BO112: =$P$9/1000 -> 0.3 | BP112: =$P$7/1000 -> 0.7 | BQ112: =$K$34/1000 -> 0.6355627805 | BR112: =$O$13/1000 -> 0.04 | BS112: 0.35 | BT112: =$P$15 -> 2 | BU112: =$P$33/$P$9 -> 0.08333333333 | BV112: =$O$16/1000 -> 0.15 | BW112: =N16 -> 6 | BX112: =2*PI()*(BW112/1000)^2/4 -> 5.654866776e-05 | BY112: =P22 -> 341.6666667 | CD112: Vederlagsforankring: | CF112: =0.5*BU110*BO110*$AU$24*BT110/(MIN(BP110,BO110)*(1-BS110))+0.5*$AU$24*BT110 -> 3.102564103e-05 | CG112: KN
BB115: <
BJ117: ANVENDELSESSTADIE - HENSYN TIL KRYBNING, TENSION STIFFENING, SVIND MV:
BJ118: L | BK118: h | BL118: b | BM118: fck | BN118: fcd | BO118: Ecd = Ecm | BP118: Ac | BQ118: ac | BR118: Esc | BS118: fyd_c | BT118: At | BU118: at | BV118: Est | BW118: fyd_t | BX118: At | BY118: at | BZ118: Est | CA118: fyd_t | CB118: Modenhed | CC118: 1+f | CE118: RH | CF118: feff = fctm | CG118: EI_k
BJ119: (m) | BK119: (m) | BL119: (m) | BM119: (Mpa) | BN119: (Mpa) | BO119: (Mpa) | BP119: (m2) | BQ119: (m) | BR119: (Mpa) | BS119: (Mpa) | BT119: (m2) | BU119: (m) | BV119: (Mpa) | BW119: (Mpa) | BX119: (m2) | BY119: (m) | BZ119: (Mpa) | CA119: (Mpa) | CB119: (døgn) | CF119: (Mpa) | CG119: (kNm2)
BJ120: =BJ63 -> 5 | BK120: =BK63 -> 0.7 | BL120: =BL63 -> 0.3 | BM120: =BM63 -> 35 | BN120: =BN63 -> 35 | BO120: =22000*((BM120+8)/10)^0.3 -> 34077.1462 | BP120: =BP63 -> 0.001608495439 | BQ120: =BQ63 -> 0.04 | BR120: 200000 | BS120: 500 | BT120: 0.001608495439 | BU120: 0.04 | BV120: - | BW120: 500 | BX120: 0 | BY120: 0.1 | BZ120: - | CA120: 500 | CB120: 0 | CC120: 2.988101231 | CE120: =P24 -> 0.55 | CF120: =0.3*BM120^(2/3) -> 3.209962442 | CG120: 5565.999946
BJ121: Nedbøjninger | BL121: Urevnet | BM121: Revnet, korttid | BN121: Urevnet | BO121: Revnet, langtid | BQ121: Revnevidder | BS121: Korttid | BT121: Langtid | BV121: Udtørringssvind
BJ122: (1+ f) | BL122: 1 | BM122: 1 | BN122: =CC120 -> 2.988101231 | BO122: =CC120 -> 2.988101231 | BQ122: (1+ f) | BS122: 1 | BT122: =CC120 -> 2.988101231 | BW122: CEM-klasse: | BX122: N
BB123: < | BJ123: aeff | BK123: - | BL123: =BR120/BO120 -> 5.869036064 | BM123: =BR120/BO120 -> 5.869036064 | BN123: =BN122*BR120/BO120 -> 17.53727388 | BO123: =BO122*BR120/BO120 -> 17.53727388 | BQ123: aeff | BS123: =BR120/BO120 -> 5.869036064 | BT123: =BT122*BR120/BO120 -> 17.53727388 | BW123: fcmo | BX123: 10 | BY123: MPa
BJ124: hc | BK124: (m) | BL124: - | BM124: =BJ102 -> 0.1561910961 | BN124: - | BO124: =BJ79 -> 0.2206083925 | BQ124: kt | BS124: 0.6 | BT124: 0.4 | BW124: fcm | BX124: =BM120+8 -> 43 | BY124: MPa
BJ125: Atr | BK125: (m2) | BL125: =BK120*BL120+BL123*BP120+BL123*BT120+BL123*BX120 -> 0.2288806355 | BM125: =BM124*BL120+BM123*BP120+BM123*BT120+BM123*BX120 -> 0.06573796431 | BN125: =BK120*BL120+BN123*BP120+BN123*BT120+BN123*BX120 -> 0.2664172501 | BO125: =BO124*BL120+BO123*BP120+BO123*BT120+BO123*BX120 -> 0.1225997678 | BQ125: x1 | BS125: 0 | BT125: 0 | BW125: ads1 | BX125: 4
BJ126: Sy | BK126: (m3) | BL126: =BL123*(0.5*BK120-BQ120)*BP120-BL123*(0.5*BK120-BU120)*BT120-BL123*(0.5*BK120-BY120)*BX120 -> 0 | BM126: =BM124*BL120*(0.5*BK120-0.5*BM124)+BM123*(0.5*BK120-BQ120)*BP120-BM123*(0.5*BK120-BU120)*BT120-BM123*(0.5*BK120-BY120)*BX120 -> 0.01274071632 | BN126: =BN123*(0.5*BK120-BQ120)*BP120-BN123*(0.5*BK120-BU120)*BT120-BN123*(0.5*BK120-BY120)*BX120 -> 0 | BO126: =BO124*BL120*(0.5*BK120-0.5*BO124)+BO123*(0.5*BK120-BQ120)*BP120-BO123*(0.5*BK120-BU120)*BT120-BO123*(0.5*BK120-BY120)*BX120 -> 0.01586367178 | BQ126: As | BS126: =BT120+BX120 -> 0.001608495439 | BT126: =BT120+BX120 -> 0.001608495439 | BW126: ads2 | BX126: 0.12
BJ127: Iy | BK127: (m4) | BL127: =BL120*BK120^3/12+BL123*(0.5*BK120-BQ120)^2*BP120+BL123*(0.5*BK120-BU120)^2*BT120+BL123*(0.5*BK120-BY120)^2*BX120 -> 0.01038942907 | BM127: =BL120*BM124^3/12+BL120*BM124*(0.5*BK120-0.5*BM124)^2+BM123*(0.5*BK120-BQ120)^2*BP120+BM123*(0.5*BK120-BU120)^2*BT120+BM123*(0.5*BK120-BY120)^2*BX120 -> 0.005373946173 | BN127: =BL120*BK120^3/12+BN123*(0.5*BK120-BQ120)^2*BP120+BN123*(0.5*BK120-BU120)^2*BT120+BN123*(0.5*BK120-BY120)^2*BX120 -> 0.01399669773 | BO127: =BL120*BO124^3/12+BL120*BO124*(0.5*BK120-0.5*BO124)^2+BO123*(0.5*BK120-BQ120)^2*BP120+BO123*(0.5*BK120-BU120)^2*BT120+BO123*(0.5*BK120-BY120)^2*BX120 -> 0.009492567871 | BQ127: d | BS127: =BK120-(BX120*BY120+BT120*BU120)/(BT120+BX120) -> 0.66 | BT127: =BK120-(BX120*BY120+BT120*BU120)/(BT120+BX120) -> 0.66 | BW127: RH0 | BX127: 1
BJ128: z | BK128: (m) | BL128: =BL126/BL125 -> 0 | BM128: =BM126/BM125 -> 0.1938106306 | BN128: =BN126/BN125 -> 0 | BO128: =BO126/BO125 -> 0.129393979 | BQ128: hc,eff | BS128: =MIN(2.5*(BK120-BS127),(BK120-BM124)/3,BK120/2) -> 0.1 | BT128: =MIN(2.5*(BK120-BT127),(BK120-BO124)/3,BK120/2) -> 0.1 | BW128: RH | BX128: =CE120 -> 0.55
BJ129: Io | BK129: (m4) | BL129: =BL127-BL125*BL128^2 -> 0.01038942907 | BM129: =BM127-BM125*BM128^2 -> 0.002904659909 | BN129: =BN127-BN125*BN128^2 -> 0.01399669773 | BO129: =BO127-BO125*BO128^2 -> 0.007439904258 | BQ129: Ac,eff | BS129: =BS128*BL120 -> 0.03 | BT129: =BT128*BL120 -> 0.03 | BW129: bRH | BX129: =1.55*(1-(BX128/BX127)^3) -> 1.29211875
BJ130: aeff*Sa | BK130: (m3) | BL130: =-(BL123*(0.5*BK120-BQ120-BL128)*BP120-BL123*(0.5*BK120-BU120+BL128)*BT120-BL123*(0.5*BK120-BY120+BL128)*BX120) -> 0 | BM130: =-(BM123*(0.5*BK120-BQ120-BM128)*BP120-BM123*(0.5*BK120-BU120+BM128)*BT120-BM123*(0.5*BK120-BY120+BM128)*BX120) -> 0.003659267867 | BN130: =-(BN123*(0.5*BK120-BQ120-BN128)*BP120-BN123*(0.5*BK120-BU120+BN128)*BT120-BN123*(0.5*BK120-BY120+BN128)*BX120) -> 0 | BO130: =-(BO123*(0.5*BK120-BQ120-BO128)*BP120-BO123*(0.5*BK120-BU120+BO128)*BT120-BO123*(0.5*BK120-BY120+BO128)*BX120) -> 0.007300052475 | BQ130: rp,eff | BS130: =BS126/BS129 -> 0.05361651462 | BT130: =BT126/BT129 -> 0.05361651462 | BW130: ecd,0 | BX130: =0.85*((220+110*BX125)*EXP(-BX126*BX124/BX123))*BX129/1000000 -> 0.0004326825068
BJ131: Sa/Io | BK131: (m) | BL131: =MAX(BL130/BL129,0) -> 0 | BM131: =MAX(BM130/BM129,0) -> 1.25979219 | BN131: =MAX(BN130/BN129,0) -> 0 | BO131: =MAX(BO130/BO129,0) -> 0.9812024754 | BQ131: esm-ecm | BS131: =MAX(BM133-BS124*CF120*(1+BS123*BS130)/BS130,0.6*BM133)/BR120 -> 0 | BT131: =MAX(BO133-BT124*CF120*(1+BT123*BT130)/BT130,0.6*BO133)/BR120 -> 0 | BW131: b | BX131: 1
BJ132: Mcr | BK132: (MNm) | BL132: =CF120*BL129/(0.5*BK120+BL128) -> 0.09528479172 | BN132: =CF120*BN129/(0.5*BK120+BN128) -> 0.1283682115 | BQ132: seq | BS132: =((N12^2*P12+N13^2*P13)/(N12*P12+N13*P13))/1000 -> 0.016 | BT132: =((N12^2*P12+N13^2*P13)/(N12*P12+N13*P13))/1000 -> 0.016 | BW132: h0 | BX132: =2*BK120*BL120/(2*(BK120+BL120)) -> 0.21 | BY132: m
BJ133: sat2 | BK133: (MPa) | BL133: - | BM133: =(AU22-AU21)/1000*BM123*(0.5*BK120+BM128-BU120)/BM129 -> 0 | BN133: - | BO133: =(AU21/1000)*BO123*(0.5*BK120+BO128-BU120)/BO129 -> 0 | BQ133: c | BS133: =BK120-BS127-0.5*BS132 -> 0.032 | BT133: =BK120-BT127-0.5*BT132 -> 0.032 | BW133: kn | BX133: =IF(BX132<0.1,1,IF(BX132<0.2,0.85+0.15*(0.2-BX132)/0.1,IF(BX132<0.3,0.75+0.1*(0.3-BX132)/0.1,IF(BX132<0.5,0.7+0.05*(0.5-BX132)/0.2,0.7)))) -> 0.84
BJ134: sr2 | BK134: (MPa, spænding i armering svarende til korttids-revnemoment) | BO134: =BO123*BL132*(0.5*BK120+BO128-BU120)/BO129 -> 98.68983623 | BQ134: k1 | BS134: 0.8 | BT134: 0.8 | BW134: ecd | BX134: =BX130*BX131*BX133 -> 0.0003634533057
BJ135: EI | BK135: (MNm2) | BL135: =BL129*BO120 -> 354.0420933 | BM135: =BM129*BO120 -> 98.98252039 | BN135: =BN129*BO120/BN122 -> 159.6222746 | BO135: =BO129*BO120/BO122 -> 84.84675904 | BQ135: k2 | BS135: 0.5 | BT135: 0.5
BJ136: x | BK136: (faktor vedr. tension stiffening) | BM136: =MAX(1-1*(BO134/(BM133+BO133))^2,MAX(0,1-0.5*(BO134/BO133)^2),0) ->  | BO136: =IF(BL132>CJ80,0,BM136) -> 0 | BQ136: k3 | BS136: =3.4*(25/(1000*BS133))^(2/3) -> 2.884068718 | BT136: =BS136 -> 2.884068718 | BV136: Autogent svind
BJ137: u | BK137: (mm, elastisk u) | BL137: =BM137*BM135/BL135 -> 0 | BM137: =Kold2!D8-Kold!BO137 -> 0 | BN137: =BO137*BO135/BN135 -> 0 | BO137: =Kold2!D7 -> 0 | BQ137: k4 | BS137: 0.425 | BT137: 0.425 | BW137: eca | BX137: =2.5*(BM120-10)/1000000 -> 6.25e-05
BJ138: uts | BK138: (mm, incl tension stiffening) | BM138: =BM136*BM137+(1-BM136)*BL137 ->  | BO138: =BO136*BO137+(1-BO136)*BN137 -> 0 | BQ138: s,rmaks | BS138: =MIN(1.3*(BK120-BM124),BS136*BS133+BS134*BS135*BS137*BS132/BS130) -> 0.1430208371 | BT138: =MIN(1.3*(BK120-BO124),BT136*BT133+BT134*BT135*BT137*BT132/BT130) -> 0.1430208371
BJ139: us | BK139: (mm, svindtillæg - langtid) | BN139: =1000*0.125*BX140*BN131*BJ120^2 -> 0 | BO139: =1000*0.125*BX140*BO131*BJ120^2 -> 1.306082619 | BQ139: wk | BS139: =1000*BS138*BS131 -> 0 | BT139: =1000*BT138*BT131 -> 0 | BV139: Resulterende svind
BJ140: ucs | BK140: (mm, svindtillæg incl tension stiffening) | BO140: =BO136*BO139+(1-BO136)*BN139 -> 0 | BW140: esc | BX140: =BX134+BX137 -> 0.0004259533057
BJ141: ures | BK141: (mm, resulterende udbøjning) | BM141: =BO141+BM138 ->  | BO141: =BO140+BO138 -> 0 | BQ141: wk, res | BS141: =BS139+BT139 -> 0 | BT141: =BT139 -> 0

Sheet Kold2
B3: Nedbøjninger | K3: p/P | L3: x1 | M3: x2 | N3: R1 | O3: R2 | P3: 0 | Q3: 1 | R3: 2 | S3: 3 | T3: 4 | U3: 5 | V3: 6 | W3: 7 | X3: 8 | Y3: 9 | Z3: 10 | AA3: 11 | AB3: 12 | AC3: 13 | AD3: 14 | AE3: 15 | AF3: 16 | AG3: 17 | AH3: 18 | AI3: 19 | AJ3: 20 | AK3: 21 | AL3: 22 | AM3: 23 | AN3: 24 | AO3: 25 | AP3: 26 | AQ3: 27 | AR3: 28 | AS3: 29 | AT3: 30 | AU3: 31 | AV3: 32 | AW3: 33 | AX3: 34 | AY3: 35 | AZ3: 36 | BA3: 37 | BB3: 38 | BC3: 39 | BD3: 40
B4: L | C4: (m) | D4: =IF(Makro!E20=1,0.00001,Kold!M8) -> 1e-05 | P4: 0 | Q4: =Q3*($BD$4-$P$4)/40 -> 2.5e-07 | R4: =R3*($BD$4-$P$4)/40 -> 5e-07 | S4: 7.5e-07 | T4: 1e-06 | U4: 1.25e-06 | V4: 1.5e-06 | W4: 1.75e-06 | X4: 2e-06 | Y4: 2.25e-06 | Z4: 2.5e-06 | AA4: 2.75e-06 | AB4: 3e-06 | AC4: 3.25e-06 | AD4: 3.5e-06 | AE4: 3.75e-06 | AF4: 4e-06 | AG4: 4.25e-06 | AH4: 4.5e-06 | AI4: 4.75e-06 | AJ4: 5e-06 | AK4: 5.25e-06 | AL4: 5.5e-06 | AM4: 5.75e-06 | AN4: 6e-06 | AO4: 6.25e-06 | AP4: 6.5e-06 | AQ4: 6.75e-06 | AR4: 7e-06 | AS4: 7.25e-06 | AT4: 7.5e-06 | AU4: 7.75e-06 | AV4: 8e-06 | AW4: 8.25e-06 | AX4: 8.5e-06 | AY4: 8.75e-06 | AZ4: 9e-06 | BA4: 9.25e-06 | BB4: 9.5e-06 | BC4: 9.75e-06 | BD4: =$D$4 -> 1e-05 | BE4: =L18 -> 1 | BF4: =L22 -> 1.5 | BG4: =L26 -> 2
B5: EI_L | C5: (kNm2) | D5: =Kold!M31 -> 84847.18807
B6: EI_k | C6: (kNm2) | D6: =Kold!M32 -> 98983.27007 | I6: p1 | J6: L | K6: =D12 -> 5 | L6: =D16 -> 0 | M6: =D17 -> 5 | N6: =(M6-L6)*K6-O6 -> -6249975 | O6: =0.5*K6*(M6^2-L6^2)/$D$4 -> 6250000 | P6: =$N6*P$4-IF(P$4>$L6,0.5*($L6-P$4)^2*$K6)+IF(P$4>$M6,0.5*(P$4-$M6)^2*$K6) -> 0 | Q6: =$N6*Q$4-IF(Q$4>$L6,0.5*($L6-Q$4)^2*$K6)+IF(Q$4>$M6,0.5*(Q$4-$M6)^2*$K6) -> -1.56249375 | R6: -3.1249875 | S6: -4.68748125 | T6: -6.249975 | U6: -7.81246875 | V6: -9.3749625 | W6: -10.93745625 | X6: -12.49995 | Y6: -14.06244375 | Z6: -15.6249375 | AA6: -17.18743125 | AB6: -18.749925 | AC6: -20.31241875 | AD6: -21.8749125 | AE6: -23.43740625 | AF6: -24.9999 | AG6: -26.56239375 | AH6: =$N6*AH$4-IF(AH$4>$L6,0.5*($L6-AH$4)^2*$K6)+IF(AH$4>$M6,0.5*(AH$4-$M6)^2*$K6) -> -28.1248875 | AI6: -29.68738125 | AJ6: -31.249875 | AK6: -32.81236875 | AL6: -34.3748625 | AM6: -35.93735625 | AN6: -37.49985 | AO6: -39.06234375 | AP6: -40.6248375 | AQ6: -42.18733125 | AR6: -43.749825 | AS6: -45.31231875 | AT6: -46.8748125 | AU6: -48.43730625 | AV6: -49.9998 | AW6: -51.56229375 | AX6: -53.1247875 | AY6: -54.68728125 | AZ6: -56.249775 | BA6: -57.81226875 | BB6: -59.3747625 | BC6: -60.93725625 | BD6: -62.49975 | BE6: -6249977.5 | BF6: =$N6*BF$4-IF(BF$4>$L6,0.5*($L6-BF$4)^2*$K6)+IF(BF$4>$M6,0.5*(BF$4-$M6)^2*$K6) -> -9374968.125 | BG6: -12499960
B7: u_L | C7: (mm) | D7: =1000*MAX(P70:BD70) -> 0 | I7: p1 | J7: K | K7: =D13 -> 5 | L7: =D16 -> 0 | M7: =D17 -> 5 | N7: =(M7-L7)*K7-O7 -> -6249975 | O7: =0.5*K7*(M7^2-L7^2)/$D$4 -> 6250000 | P7: =$N7*P$4-IF(P$4>$L7,0.5*($L7-P$4)^2*$K7)+IF(P$4>$M7,0.5*(P$4-$M7)^2*$K7) -> 0 | Q7: -1.56249375 | R7: -3.1249875 | S7: -4.68748125 | T7: -6.249975 | U7: -7.81246875 | V7: -9.3749625 | W7: -10.93745625 | X7: -12.49995 | Y7: -14.06244375 | Z7: -15.6249375 | AA7: -17.18743125 | AB7: -18.749925 | AC7: -20.31241875 | AD7: -21.8749125 | AE7: -23.43740625 | AF7: -24.9999 | AG7: -26.56239375 | AH7: -28.1248875 | AI7: -29.68738125 | AJ7: -31.249875 | AK7: -32.81236875 | AL7: -34.3748625 | AM7: -35.93735625 | AN7: -37.49985 | AO7: -39.06234375 | AP7: -40.6248375 | AQ7: -42.18733125 | AR7: -43.749825 | AS7: -45.31231875 | AT7: -46.8748125 | AU7: -48.43730625 | AV7: -49.9998 | AW7: -51.56229375 | AX7: -53.1247875 | AY7: -54.68728125 | AZ7: -56.249775 | BA7: -57.81226875 | BB7: -59.3747625 | BC7: -60.93725625 | BD7: -62.49975 | BE7: -6249977.5 | BF7: -9374968.125 | BG7: -12499960
B8: u_k | C8: (mm) | D8: =1000*MAX(P74:BD74) -> 0 | I8: p1 | J8: d | K8: =D14 -> 5.5 | L8: =D16 -> 0 | M8: =D17 -> 5 | N8: =(M8-L8)*K8-O8 -> -6874972.5 | O8: =0.5*K8*(M8^2-L8^2)/$D$4 -> 6875000 | P8: =$N8*P$4-IF(P$4>$L8,0.5*($L8-P$4)^2*$K8)+IF(P$4>$M8,0.5*(P$4-$M8)^2*$K8) -> 0 | Q8: -1.718743125 | R8: -3.43748625 | S8: -5.156229375 | T8: -6.8749725 | U8: -8.593715625 | V8: -10.31245875 | W8: -12.03120188 | X8: -13.749945 | Y8: -15.46868813 | Z8: -17.18743125 | AA8: -18.90617438 | AB8: -20.6249175 | AC8: -22.34366063 | AD8: -24.06240375 | AE8: -25.78114688 | AF8: -27.49989 | AG8: -29.21863313 | AH8: -30.93737625 | AI8: -32.65611938 | AJ8: -34.3748625 | AK8: -36.09360563 | AL8: -37.81234875 | AM8: -39.53109188 | AN8: -41.249835 | AO8: -42.96857813 | AP8: -44.68732125 | AQ8: -46.40606438 | AR8: -48.1248075 | AS8: -49.84355063 | AT8: -51.56229375 | AU8: -53.28103688 | AV8: -54.99978 | AW8: -56.71852313 | AX8: -58.43726625 | AY8: -60.15600938 | AZ8: -61.8747525 | BA8: -63.59349563 | BB8: -65.31223875 | BC8: -67.03098188 | BD8: -68.749725 | BE8: -6874975.25 | BF8: -10312464.94 | BG8: -13749956
I10: p2 | J10: L | K10: =E12 -> 7.5 | L10: =E16 -> 1 | M10: =E17 -> 3 | N10: =(M10-L10)*K10-O10 -> -2999985 | O10: =0.5*K10*(M10^2-L10^2)/$D$4 -> 3000000 | P10: =$N10*P$4-IF(P$4>$L10,0.5*($L10-P$4)^2*$K10)+IF(P$4>$M10,0.5*(P$4-$M10)^2*$K10)+IF(P$4>$D$4,(P$4-$D$4)*$O10) -> 0 | Q10: -0.74999625 | R10: -1.4999925 | S10: -2.24998875 | T10: -2.999985 | U10: -3.74998125 | V10: -4.4999775 | W10: -5.24997375 | X10: -5.99997 | Y10: -6.74996625 | Z10: -7.4999625 | AA10: -8.24995875 | AB10: -8.999955 | AC10: -9.74995125 | AD10: -10.4999475 | AE10: -11.24994375 | AF10: -11.99994 | AG10: -12.74993625 | AH10: -13.4999325 | AI10: -14.24992875 | AJ10: -14.999925 | AK10: -15.74992125 | AL10: -16.4999175 | AM10: -17.24991375 | AN10: -17.99991 | AO10: -18.74990625 | AP10: -19.4999025 | AQ10: -20.24989875 | AR10: -20.999895 | AS10: -21.74989125 | AT10: -22.4998875 | AU10: -23.24988375 | AV10: -23.99988 | AW10: -24.74987625 | AX10: -25.4998725 | AY10: -26.24986875 | AZ10: -26.999865 | BA10: -27.74986125 | BB10: -28.4998575 | BC10: -29.24985375 | BD10: -29.99985 | BE10: -2999985 | BF10: -4499978.437 | BG10: -5999973.75
B11: Jævnt fordelte laste | D11: p1 | E11: p2 | F11: p3 | I11: p2 | J11: K | K11: =E13 -> 9 | L11: =E16 -> 1 | M11: =E17 -> 3 | N11: =(M11-L11)*K11-O11 -> -3599982 | O11: =0.5*K11*(M11^2-L11^2)/$D$4 -> 3600000 | P11: =$N11*P$4-IF(P$4>$L11,0.5*($L11-P$4)^2*$K11)+IF(P$4>$M11,0.5*(P$4-$M11)^2*$K11)+IF(P$4>$D$4,(P$4-$D$4)*$O11) -> 0 | Q11: -0.8999955 | R11: -1.799991 | S11: -2.6999865 | T11: -3.599982 | U11: -4.4999775 | V11: -5.399973 | W11: -6.2999685 | X11: -7.199964 | Y11: -8.0999595 | Z11: -8.999955 | AA11: -9.8999505 | AB11: -10.799946 | AC11: -11.6999415 | AD11: -12.599937 | AE11: -13.4999325 | AF11: -14.399928 | AG11: -15.2999235 | AH11: -16.199919 | AI11: -17.0999145 | AJ11: -17.99991 | AK11: -18.8999055 | AL11: -19.799901 | AM11: -20.6998965 | AN11: -21.599892 | AO11: -22.4998875 | AP11: -23.399883 | AQ11: -24.2998785 | AR11: -25.199874 | AS11: -26.0998695 | AT11: -26.999865 | AU11: -27.8998605 | AV11: -28.799856 | AW11: -29.6998515 | AX11: -30.599847 | AY11: -31.4998425 | AZ11: -32.399838 | BA11: -33.2998335 | BB11: -34.199829 | BC11: -35.0998245 | BD11: -35.99982 | BE11: -3599982 | BF11: -5399974.125 | BG11: -7199968.5
B12: Langtidsværdi | C12: (kN/m) | D12: =Kold2!D87*D26 -> 5 | E12: =Kold2!E87*D26 -> 7.5 | F12: =Kold2!F87*D26 -> 6.5 | I12: p2 | J12: d | K12: =E14 -> 11.55 | L12: =E16 -> 1 | M12: =E17 -> 3 | N12: =(M12-L12)*K12-O12 -> -4619976.9 | O12: =0.5*K12*(M12^2-L12^2)/$D$4 -> 4620000 | P12: =$N12*P$4-IF(P$4>$L12,0.5*($L12-P$4)^2*$K12)+IF(P$4>$M12,0.5*(P$4-$M12)^2*$K12)+IF(P$4>$D$4,(P$4-$D$4)*$O12) -> 0 | Q12: -1.154994225 | R12: -2.30998845 | S12: -3.464982675 | T12: -4.6199769 | U12: -5.774971125 | V12: -6.92996535 | W12: -8.084959575 | X12: -9.2399538 | Y12: -10.39494803 | Z12: -11.54994225 | AA12: -12.70493648 | AB12: -13.8599307 | AC12: -15.01492493 | AD12: -16.16991915 | AE12: -17.32491338 | AF12: -18.4799076 | AG12: -19.63490183 | AH12: -20.78989605 | AI12: -21.94489028 | AJ12: -23.0998845 | AK12: -24.25487873 | AL12: -25.40987295 | AM12: -26.56486718 | AN12: -27.7198614 | AO12: -28.87485563 | AP12: -30.02984985 | AQ12: -31.18484408 | AR12: -32.3398383 | AS12: -33.49483252 | AT12: -34.64982675 | AU12: -35.80482098 | AV12: -36.9598152 | AW12: -38.11480943 | AX12: -39.26980365 | AY12: -40.42479788 | AZ12: -41.5797921 | BA12: -42.73478633 | BB12: -43.88978055 | BC12: -45.04477478 | BD12: -46.199769 | BE12: -4619976.9 | BF12: -6929966.794 | BG12: -9239959.575
B13: Kar. værdi | C13: (kN/m) | D13: =Kold2!D88*D26 -> 5 | E13: =Kold2!E88*D26 -> 9 | F13: =Kold2!F88*D26 -> 10
B14: Regnm. værdi | C14: (kN/m) | D14: =Kold2!D89*D26 -> 5.5 | E14: =Kold2!E89*D26 -> 11.55 | F14: =Kold2!F89*D26 -> 14.85 | I14: p3 | J14: L | K14: =F12 -> 6.5 | L14: =F16 -> 2 | M14: =F17 -> 4 | N14: =(M14-L14)*K14-O14 -> -3899987 | O14: =0.5*K14*(M14^2-L14^2)/$D$4 -> 3900000 | P14: =$N14*P$4-IF(P$4>$L14,0.5*($L14-P$4)^2*$K14)+IF(P$4>$M14,0.5*(P$4-$M14)^2*$K14)+IF(P$4>$D$4,(P$4-$D$4)*$O14) -> 0 | Q14: -0.97499675 | R14: -1.9499935 | S14: -2.92499025 | T14: -3.899987 | U14: -4.87498375 | V14: -5.8499805 | W14: -6.82497725 | X14: -7.799974 | Y14: -8.77497075 | Z14: -9.7499675 | AA14: -10.72496425 | AB14: -11.699961 | AC14: -12.67495775 | AD14: -13.6499545 | AE14: -14.62495125 | AF14: -15.599948 | AG14: -16.57494475 | AH14: -17.5499415 | AI14: -18.52493825 | AJ14: -19.499935 | AK14: -20.47493175 | AL14: -21.4499285 | AM14: -22.42492525 | AN14: -23.399922 | AO14: -24.37491875 | AP14: -25.3499155 | AQ14: -26.32491225 | AR14: -27.299909 | AS14: -28.27490575 | AT14: -29.2499025 | AU14: -30.22489925 | AV14: -31.199896 | AW14: -32.17489275 | AX14: -33.1498895 | AY14: -34.12488625 | AZ14: -35.099883 | BA14: -36.07487975 | BB14: -37.0498765 | BC14: -38.02487325 | BD14: -38.99987 | BE14: -3899987 | BF14: -5849980.5 | BG14: -7799974
B15: exc | C15: (m) | D15: =Kold2!D90 -> 25 | E15: =Kold2!E90 -> 15 | F15: =Kold2!F90 -> 25 | I15: p3 | J15: K | K15: =F13 -> 10 | L15: =F16 -> 2 | M15: =F17 -> 4 | N15: =(M15-L15)*K15-O15 -> -5999980 | O15: =0.5*K15*(M15^2-L15^2)/$D$4 -> 6000000 | P15: =$N15*P$4-IF(P$4>$L15,0.5*($L15-P$4)^2*$K15)+IF(P$4>$M15,0.5*(P$4-$M15)^2*$K15)+IF(P$4>$D$4,(P$4-$D$4)*$O15) -> 0 | Q15: -1.499995 | R15: -2.99999 | S15: -4.499985 | T15: -5.99998 | U15: -7.499975 | V15: -8.99997 | W15: -10.499965 | X15: -11.99996 | Y15: -13.499955 | Z15: -14.99995 | AA15: -16.499945 | AB15: -17.99994 | AC15: -19.499935 | AD15: -20.99993 | AE15: -22.499925 | AF15: -23.99992 | AG15: -25.499915 | AH15: -26.99991 | AI15: -28.499905 | AJ15: -29.9999 | AK15: -31.499895 | AL15: -32.99989 | AM15: -34.499885 | AN15: -35.99988 | AO15: -37.499875 | AP15: -38.99987 | AQ15: -40.499865 | AR15: -41.99986 | AS15: -43.499855 | AT15: -44.99985 | AU15: -46.499845 | AV15: -47.99984 | AW15: -49.499835 | AX15: -50.99983 | AY15: -52.499825 | AZ15: -53.99982 | BA15: -55.499815 | BB15: -56.99981 | BC15: -58.499805 | BD15: -59.9998 | BE15: -5999980 | BF15: -8999970 | BG15: -11999960
B16: x1 | C16: (m) | D16: =Kold2!D91 -> 0 | E16: =Kold2!E91 -> 1 | F16: =Kold2!F91 -> 2 | I16: p3 | J16: d | K16: =F14 -> 14.85 | L16: =F16 -> 2 | M16: =F17 -> 4 | N16: =(M16-L16)*K16-O16 -> -8909970.3 | O16: =0.5*K16*(M16^2-L16^2)/$D$4 -> 8910000 | P16: =$N16*P$4-IF(P$4>$L16,0.5*($L16-P$4)^2*$K16)+IF(P$4>$M16,0.5*(P$4-$M16)^2*$K16)+IF(P$4>$D$4,(P$4-$D$4)*$O16) -> 0 | Q16: -2.227492575 | R16: -4.45498515 | S16: -6.682477725 | T16: -8.9099703 | U16: -11.13746287 | V16: -13.36495545 | W16: -15.59244802 | X16: -17.8199406 | Y16: -20.04743317 | Z16: -22.27492575 | AA16: -24.50241832 | AB16: -26.7299109 | AC16: -28.95740347 | AD16: -31.18489605 | AE16: -33.41238862 | AF16: -35.6398812 | AG16: -37.86737377 | AH16: -40.09486635 | AI16: -42.32235892 | AJ16: -44.5498515 | AK16: -46.77734408 | AL16: -49.00483665 | AM16: -51.23232922 | AN16: -53.4598218 | AO16: -55.68731437 | AP16: -57.91480695 | AQ16: -60.14229952 | AR16: -62.3697921 | AS16: -64.59728467 | AT16: -66.82477725 | AU16: -69.05226982 | AV16: -71.2797624 | AW16: -73.50725497 | AX16: -75.73474755 | AY16: -77.96224012 | AZ16: -80.1897327 | BA16: -82.41722528 | BB16: -84.64471785 | BC16: -86.87221043 | BD16: -89.099703 | BE16: -8909970.3 | BF16: -13364955.45 | BG16: -17819940.6
B17: x2 | C17: (m) | D17: =Kold2!D92 -> 5 | E17: =Kold2!E92 -> 3 | F17: =Kold2!F92 -> 4
I18: P1 | J18: L | K18: =D20 -> 15 | L18: =D24 -> 1 | N18: =K18-O18 -> -1499985 | O18: =K18*L18/$D$4 -> 1500000 | P18: =$N18*P$4-IF(P$4>$L18,(P$4-$L18)*$K18) -> 0 | Q18: =$N18*Q$4-IF(Q$4>$L18,(Q$4-$L18)*$K18) -> -0.37499625 | R18: -0.7499925 | S18: -1.12498875 | T18: -1.499985 | U18: -1.87498125 | V18: -2.2499775 | W18: -2.62497375 | X18: -2.99997 | Y18: -3.37496625 | Z18: -3.7499625 | AA18: -4.12495875 | AB18: -4.499955 | AC18: -4.87495125 | AD18: -5.2499475 | AE18: -5.62494375 | AF18: -5.99994 | AG18: -6.37493625 | AH18: -6.7499325 | AI18: -7.12492875 | AJ18: -7.499925 | AK18: -7.87492125 | AL18: -8.2499175 | AM18: -8.62491375 | AN18: -8.99991 | AO18: -9.37490625 | AP18: -9.7499025 | AQ18: -10.12489875 | AR18: -10.499895 | AS18: -10.87489125 | AT18: -11.2498875 | AU18: -11.62488375 | AV18: -11.99988 | AW18: -12.37487625 | AX18: -12.7498725 | AY18: -13.12486875 | AZ18: -13.499865 | BA18: -13.87486125 | BB18: -14.2498575 | BC18: -14.62485375 | BD18: -14.99985 | BE18: =$N18*BE$4-IF(BE$4>$L18,(BE$4-$L18)*$K18) -> -1499985 | BF18: -2249985 | BG18: -2999985
B19: Punktlaste | D19: P1 | E19: P2 | F19: P3 | I19: P1 | J19: K | K19: =D21 -> 15 | L19: =D24 -> 1 | N19: =K19-O19 -> -1499985 | O19: =K19*L19/$D$4 -> 1500000 | P19: =$N19*P$4-IF(P$4>$L19,(P$4-$L19)*$K19) -> 0 | Q19: -0.37499625 | R19: -0.7499925 | S19: -1.12498875 | T19: -1.499985 | U19: -1.87498125 | V19: -2.2499775 | W19: -2.62497375 | X19: -2.99997 | Y19: -3.37496625 | Z19: -3.7499625 | AA19: -4.12495875 | AB19: -4.499955 | AC19: -4.87495125 | AD19: -5.2499475 | AE19: -5.62494375 | AF19: -5.99994 | AG19: -6.37493625 | AH19: -6.7499325 | AI19: -7.12492875 | AJ19: -7.499925 | AK19: -7.87492125 | AL19: -8.2499175 | AM19: -8.62491375 | AN19: -8.99991 | AO19: -9.37490625 | AP19: -9.7499025 | AQ19: -10.12489875 | AR19: -10.499895 | AS19: -10.87489125 | AT19: -11.2498875 | AU19: -11.62488375 | AV19: -11.99988 | AW19: -12.37487625 | AX19: -12.7498725 | AY19: -13.12486875 | AZ19: -13.499865 | BA19: -13.87486125 | BB19: -14.2498575 | BC19: -14.62485375 | BD19: -14.99985 | BE19: -1499985 | BF19: -2249985 | BG19: -2999985
B20: Langtidsværdi | C20: (kN) | D20: =Kold2!H87*D26 -> 15 | E20: =Kold2!I87*D26 -> 12 | F20: =Kold2!J87*D26 -> 19.5 | I20: P1 | J20: d | K20: =D22 -> 16.5 | L20: =D24 -> 1 | N20: =K20-O20 -> -1649983.5 | O20: =K20*L20/$D$4 -> 1650000 | P20: =$N20*P$4-IF(P$4>$L20,(P$4-$L20)*$K20) -> 0 | Q20: -0.412495875 | R20: -0.82499175 | S20: -1.237487625 | T20: -1.6499835 | U20: -2.062479375 | V20: -2.47497525 | W20: -2.887471125 | X20: -3.299967 | Y20: -3.712462875 | Z20: -4.12495875 | AA20: -4.537454625 | AB20: -4.9499505 | AC20: -5.362446375 | AD20: -5.77494225 | AE20: -6.187438125 | AF20: -6.599934 | AG20: -7.012429875 | AH20: -7.42492575 | AI20: -7.837421625 | AJ20: -8.2499175 | AK20: -8.662413375 | AL20: -9.07490925 | AM20: -9.487405125 | AN20: -9.899901 | AO20: -10.31239687 | AP20: -10.72489275 | AQ20: -11.13738862 | AR20: -11.5498845 | AS20: -11.96238037 | AT20: -12.37487625 | AU20: -12.78737212 | AV20: -13.199868 | AW20: -13.61236387 | AX20: -14.02485975 | AY20: -14.43735563 | AZ20: -14.8498515 | BA20: -15.26234737 | BB20: -15.67484325 | BC20: -16.08733912 | BD20: -16.499835 | BE20: -1649983.5 | BF20: -2474983.5 | BG20: -3299983.5
B21: Kar. værdi | C21: (kN) | D21: =Kold2!H88*D26 -> 15 | E21: =Kold2!I88*D26 -> 12 | F21: =Kold2!J88*D26 -> 22
B22: Regnm. værdi | C22: (kN) | D22: =Kold2!H89*D26 -> 16.5 | E22: =Kold2!I89*D26 -> 13.2 | F22: =Kold2!J89*D26 -> 26.95 | I22: P2 | J22: L | K22: =E20 -> 12 | L22: =E24 -> 1.5 | N22: =K22-O22 -> -1799988 | O22: =K22*L22/$D$4 -> 1800000 | P22: =$N22*P$4-IF(P$4>$L22,(P$4-$L22)*$K22) -> 0 | Q22: -0.449997 | R22: -0.899994 | S22: -1.349991 | T22: -1.799988 | U22: -2.249985 | V22: -2.699982 | W22: -3.149979 | X22: -3.599976 | Y22: -4.049973 | Z22: -4.49997 | AA22: -4.949967 | AB22: -5.399964 | AC22: -5.849961 | AD22: -6.299958 | AE22: -6.749955 | AF22: -7.199952 | AG22: -7.649949 | AH22: -8.099946 | AI22: -8.549943 | AJ22: -8.99994 | AK22: -9.449937 | AL22: -9.899934 | AM22: -10.349931 | AN22: -10.799928 | AO22: -11.249925 | AP22: -11.699922 | AQ22: -12.149919 | AR22: -12.599916 | AS22: -13.049913 | AT22: -13.49991 | AU22: -13.949907 | AV22: -14.399904 | AW22: -14.849901 | AX22: -15.299898 | AY22: -15.749895 | AZ22: -16.199892 | BA22: -16.649889 | BB22: -17.099886 | BC22: -17.549883 | BD22: -17.99988 | BE22: -1799988 | BF22: -2699982 | BG22: -3599982
B23: exc | C23: (m) | D23: =Kold2!H90 -> 10 | E23: =Kold2!I90 -> 15 | F23: =Kold2!J90 -> 20 | I23: P2 | J23: K | K23: =E21 -> 12 | L23: =E24 -> 1.5 | N23: =K23-O23 -> -1799988 | O23: =K23*L23/$D$4 -> 1800000 | P23: =$N23*P$4-IF(P$4>$L23,(P$4-$L23)*$K23) -> 0 | Q23: -0.449997 | R23: -0.899994 | S23: -1.349991 | T23: -1.799988 | U23: -2.249985 | V23: -2.699982 | W23: -3.149979 | X23: -3.599976 | Y23: -4.049973 | Z23: -4.49997 | AA23: -4.949967 | AB23: -5.399964 | AC23: -5.849961 | AD23: -6.299958 | AE23: -6.749955 | AF23: -7.199952 | AG23: -7.649949 | AH23: -8.099946 | AI23: -8.549943 | AJ23: -8.99994 | AK23: -9.449937 | AL23: -9.899934 | AM23: -10.349931 | AN23: -10.799928 | AO23: -11.249925 | AP23: -11.699922 | AQ23: -12.149919 | AR23: -12.599916 | AS23: -13.049913 | AT23: -13.49991 | AU23: -13.949907 | AV23: -14.399904 | AW23: -14.849901 | AX23: -15.299898 | AY23: -15.749895 | AZ23: -16.199892 | BA23: -16.649889 | BB23: -17.099886 | BC23: -17.549883 | BD23: -17.99988 | BE23: -1799988 | BF23: -2699982 | BG23: -3599982
B24: x | C24: (m) | D24: =Kold2!H91 -> 1 | E24: =Kold2!I91 -> 1.5 | F24: =Kold2!J91 -> 2 | I24: P2 | J24: d | K24: =E22 -> 13.2 | L24: =E24 -> 1.5 | N24: =K24-O24 -> -1979986.8 | O24: =K24*L24/$D$4 -> 1980000 | P24: =$N24*P$4-IF(P$4>$L24,(P$4-$L24)*$K24) -> 0 | Q24: -0.4949967 | R24: -0.9899934 | S24: -1.4849901 | T24: -1.9799868 | U24: -2.4749835 | V24: -2.9699802 | W24: -3.4649769 | X24: -3.9599736 | Y24: -4.4549703 | Z24: -4.949967 | AA24: -5.4449637 | AB24: -5.9399604 | AC24: -6.4349571 | AD24: -6.9299538 | AE24: -7.4249505 | AF24: -7.9199472 | AG24: -8.4149439 | AH24: -8.9099406 | AI24: -9.4049373 | AJ24: -9.899934 | AK24: -10.3949307 | AL24: -10.8899274 | AM24: -11.3849241 | AN24: -11.8799208 | AO24: -12.3749175 | AP24: -12.8699142 | AQ24: -13.3649109 | AR24: -13.8599076 | AS24: -14.3549043 | AT24: -14.849901 | AU24: -15.3448977 | AV24: -15.8398944 | AW24: -16.3348911 | AX24: -16.8298878 | AY24: -17.3248845 | AZ24: -17.8198812 | BA24: -18.3148779 | BB24: -18.8098746 | BC24: -19.3048713 | BD24: -19.799868 | BE24: -1979986.8 | BF24: -2969980.2 | BG24: -3959980.2
B26: Inddatatest | C26: =MAX(Kold!BE17:BE46) -> 0 | D26: =IF(C26=1,0,1) -> 1 | I26: P3 | J26: L | K26: =F20 -> 19.5 | L26: =F24 -> 2 | N26: =K26-O26 -> -3899980.5 | O26: =K26*L26/$D$4 -> 3900000 | P26: =$N26*P$4-IF(P$4>$L26,(P$4-$L26)*$K26) -> 0 | Q26: -0.974995125 | R26: -1.94999025 | S26: -2.924985375 | T26: -3.8999805 | U26: -4.874975625 | V26: -5.84997075 | W26: -6.824965875 | X26: -7.799961 | Y26: -8.774956125 | Z26: -9.74995125 | AA26: -10.72494637 | AB26: -11.6999415 | AC26: -12.67493662 | AD26: -13.64993175 | AE26: -14.62492687 | AF26: =$N26*AF$4-IF(AF$4>$L26,(AF$4-$L26)*$K26) -> -15.599922 | AG26: -16.57491712 | AH26: -17.54991225 | AI26: -18.52490737 | AJ26: -19.4999025 | AK26: -20.47489763 | AL26: -21.44989275 | AM26: -22.42488787 | AN26: -23.399883 | AO26: -24.37487812 | AP26: -25.34987325 | AQ26: -26.32486837 | AR26: -27.2998635 | AS26: -28.27485862 | AT26: -29.24985375 | AU26: -30.22484887 | AV26: -31.199844 | AW26: -32.17483912 | AX26: -33.14983425 | AY26: -34.12482937 | AZ26: -35.0998245 | BA26: -36.07481963 | BB26: -37.04981475 | BC26: -38.02480988 | BD26: -38.999805 | BE26: -3899980.5 | BF26: -5849970.75 | BG26: -7799961
I27: P3 | J27: K | K27: =F21 -> 22 | L27: =F24 -> 2 | N27: =K27-O27 -> -4399978 | O27: =K27*L27/$D$4 -> 4400000 | P27: =$N27*P$4-IF(P$4>$L27,(P$4-$L27)*$K27) -> 0 | Q27: =$N27*Q$4-IF(Q$4>$L27,(Q$4-$L27)*$K27) -> -1.0999945 | R27: -2.199989 | S27: -3.2999835 | T27: -4.399978 | U27: -5.4999725 | V27: -6.599967 | W27: -7.6999615 | X27: -8.799956 | Y27: -9.8999505 | Z27: -10.999945 | AA27: -12.0999395 | AB27: -13.199934 | AC27: -14.2999285 | AD27: -15.399923 | AE27: -16.4999175 | AF27: -17.599912 | AG27: -18.6999065 | AH27: -19.799901 | AI27: -20.8998955 | AJ27: -21.99989 | AK27: -23.0998845 | AL27: -24.199879 | AM27: -25.2998735 | AN27: -26.399868 | AO27: -27.4998625 | AP27: -28.599857 | AQ27: -29.6998515 | AR27: -30.799846 | AS27: -31.8998405 | AT27: -32.999835 | AU27: -34.0998295 | AV27: -35.199824 | AW27: -36.2998185 | AX27: -37.399813 | AY27: -38.4998075 | AZ27: -39.599802 | BA27: -40.6997965 | BB27: -41.799791 | BC27: -42.8997855 | BD27: -43.99978 | BE27: -4399978 | BF27: =$N27*BF$4-IF(BF$4>$L27,(BF$4-$L27)*$K27) -> -6599967 | BG27: =$N27*BG$4-IF(BG$4>$L27,(BG$4-$L27)*$K27) -> -8799956
I28: P3 | J28: d | K28: =F22 -> 26.95 | L28: =F24 -> 2 | N28: =K28-O28 -> -5389973.05 | O28: =K28*L28/$D$4 -> 5390000 | P28: =$N28*P$4-IF(P$4>$L28,(P$4-$L28)*$K28) -> 0 | Q28: -1.347493263 | R28: -2.694986525 | S28: -4.042479788 | T28: -5.38997305 | U28: -6.737466313 | V28: -8.084959575 | W28: -9.432452838 | X28: -10.7799461 | Y28: -12.12743936 | Z28: -13.47493263 | AA28: -14.82242589 | AB28: -16.16991915 | AC28: -17.51741241 | AD28: -18.86490568 | AE28: -20.21239894 | AF28: -21.5598922 | AG28: -22.90738546 | AH28: -24.25487873 | AI28: -25.60237199 | AJ28: -26.94986525 | AK28: -28.29735851 | AL28: -29.64485177 | AM28: -30.99234504 | AN28: -32.3398383 | AO28: -33.68733156 | AP28: -35.03482483 | AQ28: -36.38231809 | AR28: -37.72981135 | AS28: -39.07730461 | AT28: -40.42479788 | AU28: -41.77229114 | AV28: -43.1197844 | AW28: -44.46727766 | AX28: -45.81477092 | AY28: -47.16226419 | AZ28: -48.50975745 | BA28: -49.85725071 | BB28: -51.20474397 | BC28: -52.55223724 | BD28: -53.8997305 | BE28: =$N28*BE$4-IF(BE$4>$L28,(BE$4-$L28)*$K28) -> -5389973.05 | BF28: =$N28*BF$4-IF(BF$4>$L28,(BF$4-$L28)*$K28) -> -8084959.575 | BG28: =$N28*BG$4-IF(BG$4>$L28,(BG$4-$L28)*$K28) -> -10779946.1
I30: MOMENTER | O30: punkt | P30: =P3 -> 0 | Q30: =Q3 -> 1 | R30: 2 | S30: 3 | T30: 4 | U30: 5 | V30: 6 | W30: 7 | X30: 8 | Y30: 9 | Z30: 10 | AA30: 11 | AB30: 12 | AC30: 13 | AD30: 14 | AE30: 15 | AF30: 16 | AG30: 17 | AH30: 18 | AI30: 19 | AJ30: 20 | AK30: 21 | AL30: 22 | AM30: 23 | AN30: 24 | AO30: 25 | AP30: 26 | AQ30: 27 | AR30: 28 | AS30: 29 | AT30: 30 | AU30: 31 | AV30: 32 | AW30: 33 | AX30: 34 | AY30: 35 | AZ30: 36 | BA30: 37 | BB30: 38 | BC30: 39 | BD30: 40 | BE30: =BE4*40/$D$4 -> 4000000 | BF30: =BF4*40/$D$4 -> 6000000 | BG30: =BG4*40/$D$4 -> 8000000
O31: : | P31: =P6+P10+P14+P18+P22+P26 -> 0 | Q31: =Q6+Q10+Q14+Q18+Q22+Q26 -> -5.087475125 | R31: -10.17495025 | S31: -15.26242538 | T31: -20.3499005 | U31: -25.43737563 | V31: -30.52485075 | W31: -35.61232588 | X31: -40.699801 | Y31: -45.78727613 | Z31: -50.87475125 | AA31: -55.96222638 | AB31: -61.0497015 | AC31: -66.13717663 | AD31: -71.22465175 | AE31: -76.31212688 | AF31: =AF6+AF10+AF14+AF18+AF22+AF26 -> -81.399602 | AG31: -86.48707713 | AH31: -91.57455225 | AI31: -96.66202738 | AJ31: -101.7495025 | AK31: -106.8369776 | AL31: -111.9244528 | AM31: -117.0119279 | AN31: -122.099403 | AO31: -127.1868781 | AP31: -132.2743533 | AQ31: -137.3618284 | AR31: -142.4493035 | AS31: -147.5367786 | AT31: -152.6242538 | AU31: -157.7117289 | AV31: -162.799204 | AW31: -167.8866791 | AX31: -172.9741543 | AY31: -178.0616294 | AZ31: -183.1491045 | BA31: -188.2365796 | BB31: -193.3240548 | BC31: -198.4115299 | BD31: -203.499005 | BE31: =BE6+BE10+BE14+BE18+BE22+BE26 -> -20349903 | BF31: -30524864.81 | BG31: -40699835.75
O32: : | P32: =P7+P11+P15+P19+P23+P27 -> 0 | Q32: -5.887472 | R32: -11.774944 | S32: -17.662416 | T32: -23.549888 | U32: -29.43736 | V32: -35.324832 | W32: -41.212304 | X32: -47.099776 | Y32: -52.987248 | Z32: -58.87472 | AA32: -64.762192 | AB32: -70.649664 | AC32: -76.537136 | AD32: -82.424608 | AE32: -88.31208 | AF32: =AF7+AF11+AF15+AF19+AF23+AF27 -> -94.199552 | AG32: -100.087024 | AH32: -105.974496 | AI32: -111.861968 | AJ32: -117.74944 | AK32: -123.636912 | AL32: -129.524384 | AM32: -135.411856 | AN32: -141.299328 | AO32: -147.1868 | AP32: -153.074272 | AQ32: -158.961744 | AR32: -164.849216 | AS32: -170.736688 | AT32: -176.62416 | AU32: -182.511632 | AV32: -188.399104 | AW32: -194.286576 | AX32: -200.174048 | AY32: -206.06152 | AZ32: -211.948992 | BA32: -217.836464 | BB32: -223.723936 | BC32: -229.611408 | BD32: -235.49888 | BE32: -23549890.5 | BF32: -35324846.25 | BG32: -47099811.5
O33: : | P33: =P8+P12+P16+P20+P24+P28 -> 0 | Q33: -7.356215763 | R33: -14.71243153 | S33: -22.06864729 | T33: -29.42486305 | U33: -36.78107881 | V33: -44.13729458 | W33: -51.49351034 | X33: -58.8497261 | Y33: -66.20594186 | Z33: -73.56215763 | AA33: -80.91837339 | AB33: -88.27458915 | AC33: -95.63080491 | AD33: -102.9870207 | AE33: -110.3432364 | AF33: =AF8+AF12+AF16+AF20+AF24+AF28 -> -117.6994522 | AG33: -125.055668 | AH33: -132.4118837 | AI33: -139.7680995 | AJ33: -147.1243153 | AK33: -154.480531 | AL33: -161.8367468 | AM33: -169.1929625 | AN33: -176.5491783 | AO33: -183.9053941 | AP33: -191.2616098 | AQ33: -198.6178256 | AR33: -205.9740414 | AS33: -213.3302571 | AT33: -220.6864729 | AU33: -228.0426886 | AV33: -235.3989044 | AW33: -242.7551202 | AX33: -250.1113359 | AY33: -257.4675517 | AZ33: -264.8237675 | BA33: -272.1799832 | BB33: -279.536199 | BC33: -286.8924147 | BD33: -294.2486305 | BE33: -29424865.8 | BF33: -44137310.46 | BG33: -58849765.98
K35: p/P | L35: x1 | M35: x2 | P35: 0 | Q35: 1 | R35: 2 | S35: 3 | T35: 4 | U35: 5 | V35: 6 | W35: 7 | X35: 8 | Y35: 9 | Z35: 10 | AA35: 11 | AB35: 12 | AC35: 13 | AD35: 14 | AE35: 15 | AF35: 16 | AG35: 17 | AH35: 18 | AI35: 19 | AJ35: 20 | AK35: 21 | AL35: 22 | AM35: 23 | AN35: 24 | AO35: 25 | AP35: 26 | AQ35: 27 | AR35: 28 | AS35: 29 | AT35: 30 | AU35: 31 | AV35: 32 | AW35: 33 | AX35: 34 | AY35: 35 | AZ35: 36 | BA35: 37 | BB35: 38 | BC35: 39 | BD35: 40 | BJ35: hi cot 0 | BK35: L-hi cot 0 | BM35: ½hi cot 0 | BN35: L-½hi cot 0
P36: 0 | Q36: =Q35*($BD$4-$P$4)/40 -> 2.5e-07 | R36: 5e-07 | S36: 7.5e-07 | T36: 1e-06 | U36: 1.25e-06 | V36: 1.5e-06 | W36: 1.75e-06 | X36: 2e-06 | Y36: 2.25e-06 | Z36: 2.5e-06 | AA36: 2.75e-06 | AB36: 3e-06 | AC36: 3.25e-06 | AD36: 3.5e-06 | AE36: 3.75e-06 | AF36: 4e-06 | AG36: 4.25e-06 | AH36: 4.5e-06 | AI36: 4.75e-06 | AJ36: 5e-06 | AK36: 5.25e-06 | AL36: 5.5e-06 | AM36: 5.75e-06 | AN36: 6e-06 | AO36: 6.25e-06 | AP36: 6.5e-06 | AQ36: 6.75e-06 | AR36: 7e-06 | AS36: 7.25e-06 | AT36: 7.5e-06 | AU36: 7.75e-06 | AV36: 8e-06 | AW36: 8.25e-06 | AX36: 8.5e-06 | AY36: 8.75e-06 | AZ36: 9e-06 | BA36: 9.25e-06 | BB36: 9.5e-06 | BC36: 9.75e-06 | BD36: =$D$4 -> 1e-05 | BE36: 0 | BF36: =Kold!K34*Kold!P15/1000 -> 1.271125561 | BG36: =BH36-Kold!K34*Kold!P15/1000 -> 3.728874439 | BH36: =Kold!M8 -> 5 | BJ36: =BF36 -> 1.271125561 | BK36: =BG36 -> 3.728874439 | BM36: =0.5*BJ36 -> 0.6355627805 | BN36: =BH36-BM36 -> 4.36443722
B37: Excentriciteter | I37: Venstresidig forskydning
B38: exc. p_1 | C38: (mm) | D38: =D15 -> 25 | I38: =I8 -> p1 | J38: =J8 -> d | K38: =K8 -> 5.5 | L38: =L8 -> 0 | M38: =M8 -> 5 | P38: =IF(P$36<=$L38,$K38*($M38-$L38)*($D$4-0.5*($L38+$M38))/$D$4,IF(P$36<=$M38,$K38*($M38-P$36)*($D$4-0.5*(P$36+$M38))/$D$4,0)) -> -6874972.5 | Q38: =IF(Q$36<=$L38,$K38*($M38-$L38)*($D$4-0.5*($L38+$M38))/$D$4,IF(Q$36<=$M38,$K38*($M38-Q$36)*($D$4-0.5*(Q$36+$M38))/$D$4,0)) -> -6874972.5 | R38: -6874972.5 | S38: -6874972.5 | T38: -6874972.5 | U38: -6874972.5 | V38: -6874972.5 | W38: -6874972.5 | X38: -6874972.5 | Y38: -6874972.5 | Z38: -6874972.5 | AA38: -6874972.5 | AB38: -6874972.5 | AC38: -6874972.5 | AD38: -6874972.5 | AE38: -6874972.5 | AF38: -6874972.5 | AG38: =IF(AG$36<=$L38,$K38*($M38-$L38)*($D$4-0.5*($L38+$M38))/$D$4,IF(AG$36<=$M38,$K38*($M38-AG$36)*($D$4-0.5*(AG$36+$M38))/$D$4,0)) -> -6874972.5 | AH38: -6874972.5 | AI38: -6874972.5 | AJ38: -6874972.5 | AK38: -6874972.5 | AL38: -6874972.5 | AM38: -6874972.5 | AN38: -6874972.5 | AO38: -6874972.5 | AP38: -6874972.5 | AQ38: -6874972.5 | AR38: -6874972.5 | AS38: -6874972.5 | AT38: -6874972.5 | AU38: -6874972.5 | AV38: -6874972.5 | AW38: =IF(AW$36<=$L38,$K38*($M38-$L38)*($D$4-0.5*($L38+$M38))/$D$4,IF(AW$36<=$M38,$K38*($M38-AW$36)*($D$4-0.5*(AW$36+$M38))/$D$4,0)) -> -6874972.5 | AX38: -6874972.5 | AY38: -6874972.5 | AZ38: -6874972.5 | BA38: -6874972.5 | BB38: -6874972.5 | BC38: -6874972.5 | BD38: -6874972.5 | BJ38: =IF(BJ$36<=$L38,$K38*($M38-$L38)*($D$4-0.5*($L38+$M38))/$D$4,IF(BJ$36<=$M38,$K38*($M38-BJ$36)*($D$4-0.5*(BJ$36+$M38))/$D$4,0)) -> -6430645.438 | BK38: -3051254.249 | BM38: =IF(BM$36<=$L38,$K38*($M38-$L38)*($D$4-0.5*($L38+$M38))/$D$4,IF(BM$36<=$M38,$K38*($M38-BM$36)*($D$4-0.5*(BM$36+$M38))/$D$4,0)) -> -6763892.482 | BN38: -1636710.638
B39: exc. p_2 | C39: (mm) | D39: =E15 -> 15 | I39: =I12 -> p2 | J39: =J12 -> d | K39: =K12 -> 11.55 | L39: =L12 -> 1 | M39: =M12 -> 3 | P39: =IF(P$36<=$L39,$K39*($M39-$L39)*($D$4-0.5*($L39+$M39))/$D$4,IF(P$36<=$M39,$K39*($M39-P$36)*($D$4-0.5*(P$36+$M39))/$D$4,0)) -> -4619976.9 | Q39: -4619976.9 | R39: -4619976.9 | S39: -4619976.9 | T39: -4619976.9 | U39: -4619976.9 | V39: -4619976.9 | W39: -4619976.9 | X39: -4619976.9 | Y39: -4619976.9 | Z39: -4619976.9 | AA39: -4619976.9 | AB39: -4619976.9 | AC39: -4619976.9 | AD39: -4619976.9 | AE39: -4619976.9 | AF39: -4619976.9 | AG39: -4619976.9 | AH39: -4619976.9 | AI39: -4619976.9 | AJ39: -4619976.9 | AK39: -4619976.9 | AL39: -4619976.9 | AM39: -4619976.9 | AN39: -4619976.9 | AO39: -4619976.9 | AP39: -4619976.9 | AQ39: -4619976.9 | AR39: -4619976.9 | AS39: -4619976.9 | AT39: -4619976.9 | AU39: -4619976.9 | AV39: -4619976.9 | AW39: -4619976.9 | AX39: -4619976.9 | AY39: -4619976.9 | AZ39: -4619976.9 | BA39: -4619976.9 | BB39: -4619976.9 | BC39: -4619976.9 | BD39: -4619976.9 | BJ39: -4264378.521 | BK39: 0 | BM39: -4619976.9 | BN39: 0
B40: exc. p_3 | C40: (mm) | D40: =F15 -> 25 | I40: =I16 -> p3 | J40: =J16 -> d | K40: =K16 -> 14.85 | L40: =L16 -> 2 | M40: =M16 -> 4 | P40: =IF(P$36<=$L40,$K40*($M40-$L40)*($D$4-0.5*($L40+$M40))/$D$4,IF(P$36<=$M40,$K40*($M40-P$36)*($D$4-0.5*(P$36+$M40))/$D$4,0)) -> -8909970.3 | Q40: -8909970.3 | R40: -8909970.3 | S40: -8909970.3 | T40: -8909970.3 | U40: -8909970.3 | V40: -8909970.3 | W40: -8909970.3 | X40: -8909970.3 | Y40: -8909970.3 | Z40: -8909970.3 | AA40: -8909970.3 | AB40: -8909970.3 | AC40: -8909970.3 | AD40: -8909970.3 | AE40: -8909970.3 | AF40: -8909970.3 | AG40: -8909970.3 | AH40: -8909970.3 | AI40: -8909970.3 | AJ40: -8909970.3 | AK40: -8909970.3 | AL40: -8909970.3 | AM40: -8909970.3 | AN40: -8909970.3 | AO40: -8909970.3 | AP40: -8909970.3 | AQ40: -8909970.3 | AR40: -8909970.3 | AS40: -8909970.3 | AT40: -8909970.3 | AU40: -8909970.3 | AV40: -8909970.3 | AW40: -8909970.3 | AX40: -8909970.3 | AY40: -8909970.3 | AZ40: -8909970.3 | BA40: -8909970.3 | BB40: -8909970.3 | BC40: -8909970.3 | BD40: -8909970.3 | BJ40: -8909970.3 | BK40: -1555901.322 | BM40: -8909970.3 | BN40: 0
B41: exc. P_1 | C41: (mm) | D41: =D23 -> 10 | I41: =I20 -> P1 | J41: =J20 -> d | K41: =K20 -> 16.5 | L41: =L20 -> 1 | M41: =M20 -> 0 | P41: =IF(P$36<=$L41,$K41*($D$4-$L41)/$D$4,0) -> -1649983.5 | Q41: =IF(Q$36<=$L41,$K41*($D$4-$L41)/$D$4,0) -> -1649983.5 | R41: -1649983.5 | S41: -1649983.5 | T41: -1649983.5 | U41: -1649983.5 | V41: -1649983.5 | W41: -1649983.5 | X41: -1649983.5 | Y41: -1649983.5 | Z41: -1649983.5 | AA41: -1649983.5 | AB41: -1649983.5 | AC41: -1649983.5 | AD41: -1649983.5 | AE41: -1649983.5 | AF41: -1649983.5 | AG41: =IF(AG$36<=$L41,$K41*($D$4-$L41)/$D$4,0) -> -1649983.5 | AH41: -1649983.5 | AI41: -1649983.5 | AJ41: -1649983.5 | AK41: -1649983.5 | AL41: -1649983.5 | AM41: -1649983.5 | AN41: -1649983.5 | AO41: -1649983.5 | AP41: -1649983.5 | AQ41: -1649983.5 | AR41: -1649983.5 | AS41: -1649983.5 | AT41: -1649983.5 | AU41: -1649983.5 | AV41: -1649983.5 | AW41: =IF(AW$36<=$L41,$K41*($D$4-$L41)/$D$4,0) -> -1649983.5 | AX41: -1649983.5 | AY41: -1649983.5 | AZ41: -1649983.5 | BA41: -1649983.5 | BB41: -1649983.5 | BC41: -1649983.5 | BD41: -1649983.5 | BJ41: =IF(BJ$36<=$L41,$K41*($D$4-$L41)/$D$4,0) -> 0 | BK41: 0 | BM41: =IF(BM$36<=$L41,$K41*($D$4-$L41)/$D$4,0) -> -1649983.5 | BN41: 0
B42: exc. P_2 | C42: (mm) | D42: =E23 -> 15 | I42: =I24 -> P2 | J42: =J24 -> d | K42: =K24 -> 13.2 | L42: =L24 -> 1.5 | M42: =M24 -> 0 | P42: =IF(P$36<=$L42,$K42*($D$4-$L42)/$D$4,0) -> -1979986.8 | Q42: -1979986.8 | R42: -1979986.8 | S42: -1979986.8 | T42: -1979986.8 | U42: -1979986.8 | V42: -1979986.8 | W42: -1979986.8 | X42: -1979986.8 | Y42: -1979986.8 | Z42: -1979986.8 | AA42: -1979986.8 | AB42: -1979986.8 | AC42: -1979986.8 | AD42: -1979986.8 | AE42: -1979986.8 | AF42: -1979986.8 | AG42: -1979986.8 | AH42: -1979986.8 | AI42: -1979986.8 | AJ42: -1979986.8 | AK42: -1979986.8 | AL42: -1979986.8 | AM42: -1979986.8 | AN42: -1979986.8 | AO42: -1979986.8 | AP42: -1979986.8 | AQ42: -1979986.8 | AR42: -1979986.8 | AS42: -1979986.8 | AT42: -1979986.8 | AU42: -1979986.8 | AV42: -1979986.8 | AW42: -1979986.8 | AX42: -1979986.8 | AY42: -1979986.8 | AZ42: -1979986.8 | BA42: -1979986.8 | BB42: -1979986.8 | BC42: -1979986.8 | BD42: -1979986.8 | BJ42: -1979986.8 | BK42: 0 | BM42: -1979986.8 | BN42: 0
B43: exc. P_3 | C43: (mm) | D43: =F23 -> 20 | I43: =I28 -> P3 | J43: =J28 -> d | K43: =K28 -> 26.95 | L43: =L28 -> 2 | M43: =M28 -> 0 | P43: =IF(P$36<=$L43,$K43*($D$4-$L43)/$D$4,0) -> -5389973.05 | Q43: -5389973.05 | R43: -5389973.05 | S43: -5389973.05 | T43: -5389973.05 | U43: -5389973.05 | V43: -5389973.05 | W43: -5389973.05 | X43: -5389973.05 | Y43: -5389973.05 | Z43: -5389973.05 | AA43: -5389973.05 | AB43: -5389973.05 | AC43: -5389973.05 | AD43: -5389973.05 | AE43: -5389973.05 | AF43: -5389973.05 | AG43: -5389973.05 | AH43: -5389973.05 | AI43: -5389973.05 | AJ43: -5389973.05 | AK43: -5389973.05 | AL43: -5389973.05 | AM43: -5389973.05 | AN43: -5389973.05 | AO43: -5389973.05 | AP43: -5389973.05 | AQ43: -5389973.05 | AR43: -5389973.05 | AS43: -5389973.05 | AT43: -5389973.05 | AU43: -5389973.05 | AV43: -5389973.05 | AW43: -5389973.05 | AX43: -5389973.05 | AY43: -5389973.05 | AZ43: -5389973.05 | BA43: -5389973.05 | BB43: -5389973.05 | BC43: -5389973.05 | BD43: -5389973.05 | BJ43: -5389973.05 | BK43: 0 | BM43: -5389973.05 | BN43: 0
I44: Højresidig forskydning
I45: =I38 -> p1 | J45: d | K45: 5.5 | L45: 0 | M45: 5 | P45: =IF(P$36<$L45,0,IF(P$36<$M45,$K45*(P$36-$L45)*0.5*($L45+P$36)/$D$4,$K45*($M45-$L45)*0.5*($L45+$M45)/$D$4)) -> 0 | Q45: =IF(Q$36<$L45,0,IF(Q$36<$M45,$K45*(Q$36-$L45)*0.5*($L45+Q$36)/$D$4,$K45*($M45-$L45)*0.5*($L45+$M45)/$D$4)) -> 1.71875e-08 | R45: 6.875e-08 | S45: 1.546875e-07 | T45: 2.75e-07 | U45: 4.296875e-07 | V45: 6.1875e-07 | W45: 8.421875e-07 | X45: 1.1e-06 | Y45: 1.3921875e-06 | Z45: 1.71875e-06 | AA45: 2.0796875e-06 | AB45: 2.475e-06 | AC45: 2.9046875e-06 | AD45: 3.36875e-06 | AE45: 3.8671875e-06 | AF45: 4.4e-06 | AG45: =IF(AG$36<$L45,0,IF(AG$36<$M45,$K45*(AG$36-$L45)*0.5*($L45+AG$36)/$D$4,$K45*($M45-$L45)*0.5*($L45+$M45)/$D$4)) -> 4.9671875e-06 | AH45: 5.56875e-06 | AI45: 6.2046875e-06 | AJ45: 6.875e-06 | AK45: 7.5796875e-06 | AL45: 8.31875e-06 | AM45: 9.0921875e-06 | AN45: 9.9e-06 | AO45: 1.07421875e-05 | AP45: 1.161875e-05 | AQ45: 1.25296875e-05 | AR45: 1.3475e-05 | AS45: 1.44546875e-05 | AT45: 1.546875e-05 | AU45: 1.65171875e-05 | AV45: 1.76e-05 | AW45: =IF(AW$36<$L45,0,IF(AW$36<$M45,$K45*(AW$36-$L45)*0.5*($L45+AW$36)/$D$4,$K45*($M45-$L45)*0.5*($L45+$M45)/$D$4)) -> 1.87171875e-05 | AX45: 1.986875e-05 | AY45: 2.10546875e-05 | AZ45: 2.2275e-05 | BA45: 2.35296875e-05 | BB45: 2.481875e-05 | BC45: 2.61421875e-05 | BD45: 2.75e-05 | BJ45: =IF(BJ$36<$L45,0,IF(BJ$36<$M45,$K45*(BJ$36-$L45)*0.5*($L45+BJ$36)/$D$4,$K45*($M45-$L45)*0.5*($L45+$M45)/$D$4)) -> 444334.0527 | BK45: 3823738.76 | BM45: =IF(BM$36<$L45,0,IF(BM$36<$M45,$K45*(BM$36-$L45)*0.5*($L45+BM$36)/$D$4,$K45*($M45-$L45)*0.5*($L45+$M45)/$D$4)) -> 111083.5132 | BN45: 5238285.867
I46: p2 | J46: d | K46: 11.55 | L46: 1 | M46: 3 | P46: =IF(P$36<$L46,0,IF(P$36<$M46,$K46*(P$36-$L46)*0.5*($L46+P$36)/$D$4,$K46*($M46-$L46)*0.5*($L46+$M46)/$D$4)) -> 0 | Q46: 0 | R46: 0 | S46: 0 | T46: 0 | U46: 0 | V46: 0 | W46: 0 | X46: 0 | Y46: 0 | Z46: 0 | AA46: 0 | AB46: 0 | AC46: 0 | AD46: 0 | AE46: 0 | AF46: 0 | AG46: 0 | AH46: 0 | AI46: 0 | AJ46: 0 | AK46: 0 | AL46: 0 | AM46: 0 | AN46: 0 | AO46: 0 | AP46: 0 | AQ46: 0 | AR46: 0 | AS46: 0 | AT46: 0 | AU46: 0 | AV46: 0 | AW46: 0 | AX46: 0 | AY46: 0 | AZ46: 0 | BA46: 0 | BB46: 0 | BC46: 0 | BD46: 0 | BJ46: 355601.5107 | BK46: 4620000 | BM46: 0 | BN46: 4620000
I47: p3 | J47: d | K47: 14.85 | L47: 2 | M47: 4 | P47: =IF(P$36<$L47,0,IF(P$36<$M47,$K47*(P$36-$L47)*0.5*($L47+P$36)/$D$4,$K47*($M47-$L47)*0.5*($L47+$M47)/$D$4)) -> 0 | Q47: 0 | R47: 0 | S47: 0 | T47: 0 | U47: 0 | V47: 0 | W47: 0 | X47: 0 | Y47: 0 | Z47: 0 | AA47: 0 | AB47: 0 | AC47: 0 | AD47: 0 | AE47: 0 | AF47: 0 | AG47: 0 | AH47: 0 | AI47: 0 | AJ47: 0 | AK47: 0 | AL47: 0 | AM47: 0 | AN47: 0 | AO47: 0 | AP47: 0 | AQ47: 0 | AR47: 0 | AS47: 0 | AT47: 0 | AU47: 0 | AV47: 0 | AW47: 0 | AX47: 0 | AY47: 0 | AZ47: 0 | BA47: 0 | BB47: 0 | BC47: 0 | BD47: 0 | BJ47: 0 | BK47: 7354094.652 | BM47: 0 | BN47: 8910000
I48: P1 | J48: d | K48: 16.5 | L48: 1 | M48: 0 | P48: =IF(P$36<$L48,0,$K48*$L48/$D$4) -> 0 | Q48: =IF(Q$36<$L48,0,$K48*$L48/$D$4) -> 0 | R48: 0 | S48: 0 | T48: 0 | U48: 0 | V48: 0 | W48: 0 | X48: 0 | Y48: 0 | Z48: 0 | AA48: 0 | AB48: 0 | AC48: 0 | AD48: 0 | AE48: 0 | AF48: 0 | AG48: =IF(AG$36<$L48,0,$K48*$L48/$D$4) -> 0 | AH48: 0 | AI48: 0 | AJ48: 0 | AK48: 0 | AL48: 0 | AM48: 0 | AN48: 0 | AO48: 0 | AP48: 0 | AQ48: 0 | AR48: 0 | AS48: 0 | AT48: 0 | AU48: 0 | AV48: 0 | AW48: =IF(AW$36<$L48,0,$K48*$L48/$D$4) -> 0 | AX48: 0 | AY48: 0 | AZ48: 0 | BA48: 0 | BB48: 0 | BC48: 0 | BD48: 0 | BJ48: =IF(BJ$36<$L48,0,$K48*$L48/$D$4) -> 1650000 | BK48: 1650000 | BM48: =IF(BM$36<$L48,0,$K48*$L48/$D$4) -> 0 | BN48: 1650000
I49: =I42 -> P2 | J49: d | K49: 13.2 | L49: 1.5 | M49: 0 | P49: =IF(P$36<$L49,0,$K49*$L49/$D$4) -> 0 | Q49: 0 | R49: 0 | S49: 0 | T49: 0 | U49: 0 | V49: 0 | W49: 0 | X49: 0 | Y49: 0 | Z49: 0 | AA49: 0 | AB49: 0 | AC49: 0 | AD49: 0 | AE49: 0 | AF49: 0 | AG49: 0 | AH49: 0 | AI49: 0 | AJ49: 0 | AK49: 0 | AL49: 0 | AM49: 0 | AN49: 0 | AO49: 0 | AP49: 0 | AQ49: 0 | AR49: 0 | AS49: 0 | AT49: 0 | AU49: 0 | AV49: 0 | AW49: 0 | AX49: 0 | AY49: 0 | AZ49: 0 | BA49: 0 | BB49: 0 | BC49: 0 | BD49: 0 | BJ49: 0 | BK49: 1980000 | BM49: 0 | BN49: 1980000
I50: P3 | J50: d | K50: 26.95 | L50: 2 | M50: 0 | P50: =IF(P$36<$L50,0,$K50*$L50/$D$4) -> 0 | Q50: 0 | R50: 0 | S50: 0 | T50: 0 | U50: 0 | V50: 0 | W50: 0 | X50: 0 | Y50: 0 | Z50: 0 | AA50: 0 | AB50: 0 | AC50: 0 | AD50: 0 | AE50: 0 | AF50: 0 | AG50: 0 | AH50: 0 | AI50: 0 | AJ50: 0 | AK50: 0 | AL50: 0 | AM50: 0 | AN50: 0 | AO50: 0 | AP50: 0 | AQ50: 0 | AR50: 0 | AS50: 0 | AT50: 0 | AU50: 0 | AV50: 0 | AW50: 0 | AX50: 0 | AY50: 0 | AZ50: 0 | BA50: 0 | BB50: 0 | BC50: 0 | BD50: 0 | BJ50: 0 | BK50: 5390000 | BM50: 0 | BN50: 5390000
I52: V_d - venstre | P52: =SUM(P38:P43) -> -29424863.05 | Q52: =SUM(Q38:Q43) -> -29424863.05 | R52: -29424863.05 | S52: -29424863.05 | T52: -29424863.05 | U52: -29424863.05 | V52: -29424863.05 | W52: -29424863.05 | X52: -29424863.05 | Y52: -29424863.05 | Z52: -29424863.05 | AA52: -29424863.05 | AB52: -29424863.05 | AC52: -29424863.05 | AD52: -29424863.05 | AE52: -29424863.05 | AF52: -29424863.05 | AG52: -29424863.05 | AH52: -29424863.05 | AI52: -29424863.05 | AJ52: -29424863.05 | AK52: -29424863.05 | AL52: -29424863.05 | AM52: -29424863.05 | AN52: -29424863.05 | AO52: -29424863.05 | AP52: -29424863.05 | AQ52: -29424863.05 | AR52: -29424863.05 | AS52: -29424863.05 | AT52: -29424863.05 | AU52: -29424863.05 | AV52: -29424863.05 | AW52: -29424863.05 | AX52: -29424863.05 | AY52: -29424863.05 | AZ52: -29424863.05 | BA52: -29424863.05 | BB52: -29424863.05 | BC52: -29424863.05 | BD52: -29424863.05 | BJ52: =SUM(BJ38:BJ43) -> -26974954.11 | BK52: =SUM(BK38:BK43) -> -4607155.57 | BM52: =SUM(BM38:BM43) -> -29313783.03 | BN52: =SUM(BN38:BN43) -> -1636710.638
I53: V_d - højre | P53: =SUM(P45:P50) -> 0 | Q53: =SUM(Q45:Q50) -> 1.71875e-08 | R53: 6.875e-08 | S53: 1.546875e-07 | T53: 2.75e-07 | U53: 4.296875e-07 | V53: 6.1875e-07 | W53: 8.421875e-07 | X53: 1.1e-06 | Y53: 1.3921875e-06 | Z53: 1.71875e-06 | AA53: 2.0796875e-06 | AB53: 2.475e-06 | AC53: 2.9046875e-06 | AD53: 3.36875e-06 | AE53: 3.8671875e-06 | AF53: 4.4e-06 | AG53: 4.9671875e-06 | AH53: 5.56875e-06 | AI53: 6.2046875e-06 | AJ53: 6.875e-06 | AK53: 7.5796875e-06 | AL53: 8.31875e-06 | AM53: 9.0921875e-06 | AN53: 9.9e-06 | AO53: 1.07421875e-05 | AP53: 1.161875e-05 | AQ53: 1.25296875e-05 | AR53: 1.3475e-05 | AS53: 1.44546875e-05 | AT53: 1.546875e-05 | AU53: 1.65171875e-05 | AV53: 1.76e-05 | AW53: 1.87171875e-05 | AX53: 1.986875e-05 | AY53: 2.10546875e-05 | AZ53: 2.2275e-05 | BA53: 2.35296875e-05 | BB53: 2.481875e-05 | BC53: 2.61421875e-05 | BD53: 2.75e-05 | BJ53: =SUM(BJ45:BJ50) -> 2449935.563 | BK53: =SUM(BK45:BK50) -> 24817833.41 | BM53: =SUM(BM45:BM50) -> 111083.5132 | BN53: =SUM(BN45:BN50) -> 27788285.87
I55: FORSKYDNING | P55: =P35 -> 0 | Q55: =Q35 -> 1 | R55: 2 | S55: 3 | T55: 4 | U55: 5 | V55: 6 | W55: 7 | X55: 8 | Y55: 9 | Z55: 10 | AA55: 11 | AB55: 12 | AC55: 13 | AD55: 14 | AE55: 15 | AF55: 16 | AG55: 17 | AH55: 18 | AI55: 19 | AJ55: 20 | AK55: 21 | AL55: 22 | AM55: 23 | AN55: 24 | AO55: 25 | AP55: 26 | AQ55: 27 | AR55: 28 | AS55: 29 | AT55: 30 | AU55: 31 | AV55: 32 | AW55: 33 | AX55: 34 | AY55: 35 | AZ55: 36 | BA55: 37 | BB55: 38 | BC55: 39 | BD55: 40 | BE55: =BF55 -> 10.16900449 | BF55: =40*BF36/Kold!$M$8 -> 10.16900449 | BG55: =40*BG36/Kold!$M$8 -> 29.83099551 | BH55: =BG55 -> 29.83099551
K56: fyd | L56: d | M56: a | N56: hicot | O56: : | P56: =MAX(P53,P52) -> 0 | Q56: =MAX(Q53,Q52) -> 1.71875e-08 | R56: 6.875e-08 | S56: 1.546875e-07 | T56: 2.75e-07 | U56: 4.296875e-07 | V56: 6.1875e-07 | W56: 8.421875e-07 | X56: 1.1e-06 | Y56: 1.3921875e-06 | Z56: 1.71875e-06 | AA56: 2.0796875e-06 | AB56: 2.475e-06 | AC56: 2.9046875e-06 | AD56: 3.36875e-06 | AE56: 3.8671875e-06 | AF56: 4.4e-06 | AG56: 4.9671875e-06 | AH56: 5.56875e-06 | AI56: 6.2046875e-06 | AJ56: 6.875e-06 | AK56: 7.5796875e-06 | AL56: 8.31875e-06 | AM56: 9.0921875e-06 | AN56: 9.9e-06 | AO56: 1.07421875e-05 | AP56: 1.161875e-05 | AQ56: 1.25296875e-05 | AR56: 1.3475e-05 | AS56: 1.44546875e-05 | AT56: 1.546875e-05 | AU56: 1.65171875e-05 | AV56: 1.76e-05 | AW56: 1.87171875e-05 | AX56: 1.986875e-05 | AY56: 2.10546875e-05 | AZ56: 2.2275e-05 | BA56: 2.35296875e-05 | BB56: 2.481875e-05 | BC56: 2.61421875e-05 | BD56: 2.75e-05
K57: =550/1.3 -> 423.0769231 | L57: 12 | M57: 150 | N57: 900 | O57: : | P57: =Kold!$P$31 -> 144.0066807 | Q57: =Kold!$P$31 -> 144.0066807 | R57: =Kold!$P$31 -> 144.0066807 | S57: =Kold!$P$31 -> 144.0066807 | T57: =Kold!$P$31 -> 144.0066807 | U57: =Kold!$P$31 -> 144.0066807 | V57: =Kold!$P$31 -> 144.0066807 | W57: =Kold!$P$31 -> 144.0066807 | X57: =Kold!$P$31 -> 144.0066807 | Y57: =Kold!$P$31 -> 144.0066807 | Z57: =Kold!$P$31 -> 144.0066807 | AA57: =Kold!$P$31 -> 144.0066807 | AB57: =Kold!$P$31 -> 144.0066807 | AC57: =Kold!$P$31 -> 144.0066807 | AD57: =Kold!$P$31 -> 144.0066807 | AE57: =Kold!$P$31 -> 144.0066807 | AF57: =Kold!$P$31 -> 144.0066807 | AG57: =Kold!$P$31 -> 144.0066807 | AH57: =Kold!$P$31 -> 144.0066807 | AI57: =Kold!$P$31 -> 144.0066807 | AJ57: =Kold!$P$31 -> 144.0066807 | AK57: =Kold!$P$31 -> 144.0066807 | AL57: =Kold!$P$31 -> 144.0066807 | AM57: =Kold!$P$31 -> 144.0066807 | AN57: =Kold!$P$31 -> 144.0066807 | AO57: =Kold!$P$31 -> 144.0066807 | AP57: =Kold!$P$31 -> 144.0066807 | AQ57: =Kold!$P$31 -> 144.0066807 | AR57: =Kold!$P$31 -> 144.0066807 | AS57: =Kold!$P$31 -> 144.0066807 | AT57: =Kold!$P$31 -> 144.0066807 | AU57: =Kold!$P$31 -> 144.0066807 | AV57: =Kold!$P$31 -> 144.0066807 | AW57: =Kold!$P$31 -> 144.0066807 | AX57: =Kold!$P$31 -> 144.0066807 | AY57: =Kold!$P$31 -> 144.0066807 | AZ57: =Kold!$P$31 -> 144.0066807 | BA57: =Kold!$P$31 -> 144.0066807 | BB57: =Kold!$P$31 -> 144.0066807 | BC57: =Kold!$P$31 -> 144.0066807 | BD57: =Kold!$P$31 -> 144.0066807
K58: =550/1.3 -> 423.0769231 | L58: 12 | M58: 100 | N58: 900 | O58: : | P58: =Kold!$P$32 -> 144.0066807 | Q58: =Kold!$P$32 -> 144.0066807 | R58: =Kold!$P$32 -> 144.0066807 | S58: =Kold!$P$32 -> 144.0066807 | T58: =Kold!$P$32 -> 144.0066807 | U58: =Kold!$P$32 -> 144.0066807 | V58: =Kold!$P$32 -> 144.0066807 | W58: =Kold!$P$32 -> 144.0066807 | X58: =Kold!$P$32 -> 144.0066807 | Y58: =Kold!$P$32 -> 144.0066807 | Z58: =Kold!$P$32 -> 144.0066807 | AA58: =Kold!$P$32 -> 144.0066807 | AB58: =Kold!$P$32 -> 144.0066807 | AC58: =Kold!$P$32 -> 144.0066807 | AD58: =Kold!$P$32 -> 144.0066807 | AE58: =Kold!$P$32 -> 144.0066807 | AF58: =Kold!$P$32 -> 144.0066807 | AG58: =Kold!$P$32 -> 144.0066807 | AH58: =Kold!$P$32 -> 144.0066807 | AI58: =Kold!$P$32 -> 144.0066807 | AJ58: =Kold!$P$32 -> 144.0066807 | AK58: =Kold!$P$32 -> 144.0066807 | AL58: =Kold!$P$32 -> 144.0066807 | AM58: =Kold!$P$32 -> 144.0066807 | AN58: =Kold!$P$32 -> 144.0066807 | AO58: =Kold!$P$32 -> 144.0066807 | AP58: =Kold!$P$32 -> 144.0066807 | AQ58: =Kold!$P$32 -> 144.0066807 | AR58: =Kold!$P$32 -> 144.0066807 | AS58: =Kold!$P$32 -> 144.0066807 | AT58: =Kold!$P$32 -> 144.0066807 | AU58: =Kold!$P$32 -> 144.0066807 | AV58: =Kold!$P$32 -> 144.0066807 | AW58: =Kold!$P$32 -> 144.0066807 | AX58: =Kold!$P$32 -> 144.0066807 | AY58: =Kold!$P$32 -> 144.0066807 | AZ58: =Kold!$P$32 -> 144.0066807 | BA58: =Kold!$P$32 -> 144.0066807 | BB58: =Kold!$P$32 -> 144.0066807 | BC58: =Kold!$P$32 -> 144.0066807 | BD58: =Kold!$P$32 -> 144.0066807
K59: =550/1.3 -> 423.0769231 | L59: 12 | M59: 65 | N59: 900 | O59: : | BE59: =1.1*MAX(P56:BD56) -> 3.025e-05 | BF59: 0 | BG59: 0 | BH59: =1.1*MAX(P56:BD56) -> 3.025e-05
T60: 0 | X60: 0 | AB60: 0 | AF60: 0 | AJ60: 0 | AN60: 0 | AR60: 0 | AV60: 0 | AZ60: 0
I61: EXCENTRICITET | P61: =IF(P52>=P53,IF(P52=0,0,SUMPRODUCT($D$38:$D$43,P38:P43)/P52),IF(P53=0,0,SUMPRODUCT($D$38:$D$43,P45:P50)/P53)) -> 0 | Q61: =IF(Q52>=Q53,IF(Q52=0,0,SUMPRODUCT($D$38:$D$43,Q38:Q43)/Q52),IF(Q53=0,0,SUMPRODUCT($D$38:$D$43,Q45:Q50)/Q53)) -> 25 | R61: 25 | S61: 25 | T61: 25 | U61: 25 | V61: 25 | W61: 25 | X61: 25 | Y61: 25 | Z61: 25 | AA61: 25 | AB61: 25 | AC61: 25 | AD61: 25 | AE61: 25 | AF61: 25 | AG61: 25 | AH61: 25 | AI61: 25 | AJ61: 25 | AK61: 25 | AL61: 25 | AM61: 25 | AN61: 25 | AO61: 25 | AP61: 25 | AQ61: 25 | AR61: 25 | AS61: 25 | AT61: 25 | AU61: 25 | AV61: 25 | AW61: 25 | AX61: 25 | AY61: 25 | AZ61: 25 | BA61: 25 | BB61: 25 | BC61: 25 | BD61: 25
P65: 0 | Q65: 1 | R65: 2 | S65: 3 | T65: 4 | U65: 5 | V65: 6 | W65: 7 | X65: 8 | Y65: 9 | Z65: 10 | AA65: 11 | AB65: 12 | AC65: 13 | AD65: 14 | AE65: 15 | AF65: 16 | AG65: 17 | AH65: 18 | AI65: 19 | AJ65: 20 | AK65: 21 | AL65: 22 | AM65: 23 | AN65: 24 | AO65: 25 | AP65: 26 | AQ65: 27 | AR65: 28 | AS65: 29 | AT65: 30 | AU65: 31 | AV65: 32 | AW65: 33 | AX65: 34 | AY65: 35 | AZ65: 36 | BA65: 37 | BB65: 38 | BC65: 39 | BD65: 40
I66: UDBØJNINGER | P66: 0 | Q66: =Q65*($BD$4-$P$4)/40 -> 2.5e-07 | R66: 5e-07 | S66: 7.5e-07 | T66: 1e-06 | U66: 1.25e-06 | V66: 1.5e-06 | W66: 1.75e-06 | X66: 2e-06 | Y66: 2.25e-06 | Z66: 2.5e-06 | AA66: 2.75e-06 | AB66: 3e-06 | AC66: 3.25e-06 | AD66: 3.5e-06 | AE66: 3.75e-06 | AF66: 4e-06 | AG66: 4.25e-06 | AH66: 4.5e-06 | AI66: 4.75e-06 | AJ66: 5e-06 | AK66: 5.25e-06 | AL66: 5.5e-06 | AM66: 5.75e-06 | AN66: 6e-06 | AO66: 6.25e-06 | AP66: 6.5e-06 | AQ66: 6.75e-06 | AR66: 7e-06 | AS66: 7.25e-06 | AT66: 7.5e-06 | AU66: 7.75e-06 | AV66: 8e-06 | AW66: 8.25e-06 | AX66: 8.5e-06 | AY66: 8.75e-06 | AZ66: 9e-06 | BA66: 9.25e-06 | BB66: 9.5e-06 | BC66: 9.75e-06 | BD66: =$D$4 -> 1e-05
J68: L | O68: a1 | P68: 0 | Q68: =P68+(0.5*(Q31+P31)/$D$5)*(Q66-P66) -> -7.495055583e-12 | R68: =Q68+(0.5*(R31+Q31)/$D$5)*(R66-Q66) -> -2.998022233e-11 | S68: -6.745550025e-11 | T68: -1.199208893e-10 | U68: -1.873763896e-10 | V68: -2.69822001e-10 | W68: -3.672577236e-10 | X68: -4.796835573e-10 | Y68: -6.070995022e-10 | Z68: -7.495055583e-10 | AA68: -9.069017255e-10 | AB68: -1.079288004e-09 | AC68: -1.266664394e-09 | AD68: -1.469030894e-09 | AE68: -1.686387506e-09 | AF68: -1.918734229e-09 | AG68: -2.166071063e-09 | AH68: -2.428398009e-09 | AI68: -2.705715065e-09 | AJ68: -2.998022233e-09 | AK68: -3.305319512e-09 | AL68: -3.627606902e-09 | AM68: -3.964884403e-09 | AN68: -4.317152016e-09 | AO68: -4.684409739e-09 | AP68: -5.066657574e-09 | AQ68: -5.46389552e-09 | AR68: -5.876123577e-09 | AS68: -6.303341745e-09 | AT68: -6.745550025e-09 | AU68: -7.202748415e-09 | AV68: -7.674936917e-09 | AW68: -8.16211553e-09 | AX68: -8.664284254e-09 | AY68: -9.181443089e-09 | AZ68: -9.713592035e-09 | BA68: -1.026073109e-08 | BB68: -1.082286026e-08 | BC68: -1.139997954e-08 | BD68: =BC68+(0.5*(BD31+BC31)/$D$5)*(BD66-BC66) -> -1.199208893e-08
O69: u1 | P69: 0 | Q69: =P69+P68*(Q66-P66)+0.5*(0.5*(Q31+P31)/$D$5)*(Q66-P66)^2 -> -9.368819479e-19 | R69: -5.621291687e-18 | S69: -1.780075701e-17 | T69: -4.122280571e-17 | U69: -7.963496557e-17 | V69: -1.367847644e-16 | W69: -2.1641973e-16 | X69: -3.222873901e-16 | Y69: -4.581352725e-16 | Z69: -6.277109051e-16 | AA69: -8.347618155e-16 | AB69: -1.083035532e-15 | AC69: -1.376279581e-15 | AD69: -1.718241492e-15 | AE69: -2.112668792e-15 | AF69: -2.563309009e-15 | AG69: -3.073909671e-15 | AH69: -3.648218305e-15 | AI69: -4.289982439e-15 | AJ69: -5.002949602e-15 | AK69: -5.79086732e-15 | AL69: -6.657483121e-15 | AM69: -7.606544535e-15 | AN69: -8.641799087e-15 | AO69: -9.766994306e-15 | AP69: -1.098587772e-14 | AQ69: -1.230219686e-14 | AR69: -1.371969924e-14 | AS69: -1.524213241e-14 | AT69: -1.687324388e-14 | AU69: -1.861678119e-14 | AV69: -2.047649185e-14 | AW69: -2.245612341e-14 | AX69: -2.455942338e-14 | AY69: -2.67901393e-14 | AZ69: -2.915201869e-14 | BA69: -3.164880908e-14 | BB69: -3.4284258e-14 | BC69: -3.706211298e-14 | BD69: -3.998612153e-14
O70: u2 | P70: 0 | Q70: =-(Q69-Q65*$BD$69/40) -> -9.987161564e-16 | R70: =-(R69-R65*$BD$69/40) -> -1.993684785e-15 | S70: -2.981158358e-15 | T70: -3.957389348e-15 | U70: -4.918630226e-15 | V70: -5.861133466e-15 | W70: -6.781151539e-15 | X70: -7.674936917e-15 | Y70: -8.538742073e-15 | Z70: -9.368819479e-15 | AA70: -1.016142161e-14 | AB70: -1.091280093e-14 | AC70: -1.161920992e-14 | AD70: -1.227690104e-14 | AE70: -1.288212678e-14 | AF70: -1.34311396e-14 | AG70: -1.392019198e-14 | AH70: -1.434553639e-14 | AI70: -1.470342529e-14 | AJ70: -1.499011117e-14 | AK70: -1.520184649e-14 | AL70: -1.533488372e-14 | AM70: -1.538547535e-14 | AN70: -1.534987383e-14 | AO70: -1.522433165e-14 | AP70: -1.500510128e-14 | AQ70: -1.468843518e-14 | AR70: -1.427058583e-14 | AS70: -1.37478057e-14 | AT70: -1.311634727e-14 | AU70: -1.2372463e-14 | AV70: -1.151240538e-14 | AW70: -1.053242686e-14 | AX70: -9.428779923e-15 | AY70: -8.197717044e-15 | AZ70: -6.835490692e-15 | BA70: -5.338353339e-15 | BB70: -3.702557458e-15 | BC70: -1.924355521e-15 | BD70: 0
J72: K | O72: a1 | P72: 0 | Q72: =P72+(0.5*(Q32-Q31+P32-P31)/$D$6)*(Q66-P66) -> -1.010267789e-12 | R72: -4.041071155e-12 | S72: -9.092410099e-12 | T72: -1.616428462e-11 | U72: -2.525669472e-11 | V72: -3.63696404e-11 | W72: -4.950312165e-11 | X72: -6.465713848e-11 | Y72: -8.183169089e-11 | Z72: -1.010267789e-10 | AA72: -1.222424024e-10 | AB72: -1.454785616e-10 | AC72: -1.707352563e-10 | AD72: -1.980124866e-10 | AE72: -2.273102525e-10 | AF72: -2.586285539e-10 | AG72: -2.91967391e-10 | AH72: -3.273267636e-10 | AI72: -3.647066717e-10 | AJ72: -4.041071155e-10 | AK72: -4.455280948e-10 | AL72: -4.889696098e-10 | AM72: -5.344316603e-10 | AN72: -5.819142463e-10 | AO72: -6.31417368e-10 | AP72: -6.829410252e-10 | AQ72: -7.36485218e-10 | AR72: -7.920499464e-10 | AS72: -8.496352104e-10 | AT72: -9.092410099e-10 | AU72: -9.70867345e-10 | AV72: -1.034514216e-09 | AW72: -1.100181622e-09 | AX72: -1.167869564e-09 | AY72: -1.237578041e-09 | AZ72: -1.309307054e-09 | BA72: -1.383056603e-09 | BB72: -1.458826687e-09 | BC72: -1.536617307e-09 | BD72: -1.616428462e-09
O73: u1 | P73: 0 | Q73: =P73+P72*(Q66-P66)+0.5*(0.5*(Q32-Q31+P32-P31)/$D$6)*(Q66-P66)^2 -> -1.262834736e-19 | R73: -7.577008416e-19 | S73: -2.399385998e-18 | T73: -5.556472838e-18 | U73: -1.073409526e-17 | V73: -1.843738715e-17 | W73: -2.91714824e-17 | X73: -4.344151492e-17 | Y73: -6.175261859e-17 | Z73: -8.460992731e-17 | AA73: -1.12518575e-16 | AB73: -1.459836955e-16 | AC73: -1.855104227e-16 | AD73: -2.316038906e-16 | AE73: -2.84769233e-16 | AF73: -3.455115838e-16 | AG73: -4.143360769e-16 | AH73: -4.917478462e-16 | AI73: -5.782520256e-16 | AJ73: -6.74353749e-16 | AK73: -7.805581503e-16 | AL73: -8.973703634e-16 | AM73: -1.025295522e-15 | AN73: -1.16483876e-15 | AO73: -1.316505212e-15 | AP73: -1.480800011e-15 | AQ73: -1.658228292e-15 | AR73: -1.849295187e-15 | AS73: -2.054505832e-15 | AT73: -2.274365359e-15 | AU73: -2.509378904e-15 | AV73: -2.760051599e-15 | AW73: -3.026888579e-15 | AX73: -3.310394977e-15 | AY73: -3.611075927e-15 | AZ73: -3.929436564e-15 | BA73: -4.265982022e-15 | BB73: -4.621217433e-15 | BC73: -4.995647932e-15 | BD73: -5.389778653e-15
O74: u2 | P74: 0 | Q74: =-(Q73-Q65*$BD$73/40)+Q70 -> -1.133334339e-15 | R74: =-(R73-R65*$BD$73/40)+R70 -> -2.262416017e-15 | S74: -3.382992371e-15 | T74: -4.49081074e-15 | U74: -5.581618463e-15 | V74: -6.651162877e-15 | W74: -7.69519132e-15 | X74: -8.709451133e-15 | Y74: -9.689689651e-15 | Z74: -1.063165421e-14 | AA74: -1.153109216e-14 | AB74: -1.238375083e-14 | AC74: -1.318537756e-14 | AD74: -1.393171968e-14 | AE74: -1.461852455e-14 | AF74: -1.524153948e-14 | AG74: -1.579651183e-14 | AH74: -1.627918893e-14 | AI74: -1.668531812e-14 | AJ74: -1.701064674e-14 | AK74: -1.725092213e-14 | AL74: -1.740189162e-14 | AM74: -1.745930255e-14 | AN74: -1.741890227e-14 | AO74: -1.72764381e-14 | AP74: -1.702765739e-14 | AQ74: -1.666830748e-14 | AR74: -1.61941357e-14 | AS74: -1.560088939e-14 | AT74: -1.48843159e-14 | AU74: -1.404016256e-14 | AV74: -1.30641767e-14 | AW74: -1.195210567e-14 | AX74: -1.06996968e-14 | AY74: -9.302697438e-15 | AZ74: -7.756854915e-15 | BA74: -6.057916571e-15 | BB74: -4.201629746e-15 | BC74: -2.183741776e-15 | BD74: 0
C78: ϒg | D78: =Kold!H22 -> 1.1 | I78: Bøjlekapacitet
C79: ϒq | D79: =Kold!I22 -> 0 | K79: =2*MAX(Kold!P31,Kold!P32)*Kold2!D4/(Kold2!D4-Kold!P15*Kold!K34/1000)^2 -> 0.001782553466 | L79: 0 | M79: =Kold!M8 -> 5 | P79: =IF(P$36<=$L79,$K79*($M79-$L79)*($D$4-0.5*($L79+$M79))/$D$4,IF(P$36<=$M79,$K79*($M79-P$36)*($D$4-0.5*(P$36+$M79))/$D$4,0)) -> -2228.18292 | Q79: =IF(Q$36<=$L79,$K79*($M79-$L79)*($D$4-0.5*($L79+$M79))/$D$4,IF(Q$36<=$M79,$K79*($M79-Q$36)*($D$4-0.5*(Q$36+$M79))/$D$4,0)) -> -2228.18292 | R79: =IF(R$36<=$L79,$K79*($M79-$L79)*($D$4-0.5*($L79+$M79))/$D$4,IF(R$36<=$M79,$K79*($M79-R$36)*($D$4-0.5*(R$36+$M79))/$D$4,0)) -> -2228.18292 | S79: -2228.18292 | T79: -2228.18292 | U79: -2228.18292 | V79: -2228.18292 | W79: -2228.18292 | X79: -2228.18292 | Y79: -2228.18292 | Z79: -2228.18292 | AA79: -2228.18292 | AB79: -2228.18292 | AC79: -2228.18292 | AD79: -2228.18292 | AE79: -2228.18292 | AF79: -2228.18292 | AG79: -2228.18292 | AH79: -2228.18292 | AI79: -2228.18292 | AJ79: -2228.18292 | AK79: -2228.18292 | AL79: -2228.18292 | AM79: -2228.18292 | AN79: -2228.18292 | AO79: -2228.18292 | AP79: -2228.18292 | AQ79: -2228.18292 | AR79: -2228.18292 | AS79: -2228.18292 | AT79: -2228.18292 | AU79: -2228.18292 | AV79: -2228.18292 | AW79: -2228.18292 | AX79: -2228.18292 | AY79: -2228.18292 | AZ79: -2228.18292 | BA79: -2228.18292 | BB79: -2228.18292 | BC79: -2228.18292 | BD79: -2228.18292
C80: ψ1 | D80: =Kold!J22 -> 0 | K80: =2*MAX(Kold!P31,Kold!P32)*Kold2!D4/(Kold2!D4-Kold!P15*Kold!K34/1000)^2 -> 0.001782553466 | L80: 0 | M80: =Kold!M8 -> 5 | P80: =IF(P$36<$L80,0,IF(P$36<$M80,$K80*(P$36-$L80)*0.5*($L80+P$36)/$D$4,$K80*($M80-$L80)*0.5*($L80+$M80)/$D$4)) -> 0 | Q80: =IF(Q$36<$L80,0,IF(Q$36<$M80,$K80*(Q$36-$L80)*0.5*($L80+Q$36)/$D$4,$K80*($M80-$L80)*0.5*($L80+$M80)/$D$4)) -> 5.570479582e-12 | R80: =IF(R$36<$L80,0,IF(R$36<$M80,$K80*(R$36-$L80)*0.5*($L80+R$36)/$D$4,$K80*($M80-$L80)*0.5*($L80+$M80)/$D$4)) -> 2.228191833e-11 | S80: 5.013431624e-11 | T80: 8.912767331e-11 | U80: 1.392619895e-10 | V80: 2.005372649e-10 | W80: 2.729534995e-10 | X80: 3.565106932e-10 | Y80: 4.512088461e-10 | Z80: 5.570479582e-10 | AA80: 6.740280294e-10 | AB80: 8.021490598e-10 | AC80: 9.414110493e-10 | AD80: 1.091813998e-09 | AE80: 1.253357906e-09 | AF80: 1.426042773e-09 | AG80: 1.609868599e-09 | AH80: 1.804835384e-09 | AI80: 2.010943129e-09 | AJ80: 2.228191833e-09 | AK80: 2.456581496e-09 | AL80: 2.696112118e-09 | AM80: 2.946783699e-09 | AN80: 3.208596239e-09 | AO80: 3.481549739e-09 | AP80: 3.765644197e-09 | AQ80: 4.060879615e-09 | AR80: 4.367255992e-09 | AS80: 4.684773328e-09 | AT80: 5.013431624e-09 | AU80: 5.353230878e-09 | AV80: 5.704171092e-09 | AW80: 6.066252265e-09 | AX80: 6.439474396e-09 | AY80: 6.823837488e-09 | AZ80: 7.219341538e-09 | BA80: 7.625986547e-09 | BB80: 8.043772516e-09 | BC80: 8.472699444e-09 | BD80: 8.912767331e-09
C81: ψ2 | D81: =Kold!K22 -> 0 | I81: =MAX(Q81:BC81) -> 0 | Q81: =IF(Q56>MAX(Q79:Q80,Kold!$P$32,Kold!$P$31),1,0) -> 0 | R81: =IF(R56>MAX(R79:R80,Kold!$P$32,Kold!$P$31),1,0) -> 0 | S81: =IF(S56>MAX(S79:S80,Kold!$P$32,Kold!$P$31),1,0) -> 0 | T81: =IF(T56>MAX(T79:T80,Kold!$P$32,Kold!$P$31),1,0) -> 0 | U81: =IF(U56>MAX(U79:U80,Kold!$P$32,Kold!$P$31),1,0) -> 0 | V81: =IF(V56>MAX(V79:V80,Kold!$P$32,Kold!$P$31),1,0) -> 0 | W81: =IF(W56>MAX(W79:W80,Kold!$P$32,Kold!$P$31),1,0) -> 0 | X81: =IF(X56>MAX(X79:X80,Kold!$P$32,Kold!$P$31),1,0) -> 0 | Y81: =IF(Y56>MAX(Y79:Y80,Kold!$P$32,Kold!$P$31),1,0) -> 0 | Z81: =IF(Z56>MAX(Z79:Z80,Kold!$P$32,Kold!$P$31),1,0) -> 0 | AA81: =IF(AA56>MAX(AA79:AA80,Kold!$P$32,Kold!$P$31),1,0) -> 0 | AB81: =IF(AB56>MAX(AB79:AB80,Kold!$P$32,Kold!$P$31),1,0) -> 0 | AC81: =IF(AC56>MAX(AC79:AC80,Kold!$P$32,Kold!$P$31),1,0) -> 0 | AD81: =IF(AD56>MAX(AD79:AD80,Kold!$P$32,Kold!$P$31),1,0) -> 0 | AE81: =IF(AE56>MAX(AE79:AE80,Kold!$P$32,Kold!$P$31),1,0) -> 0 | AF81: =IF(AF56>MAX(AF79:AF80,Kold!$P$32,Kold!$P$31),1,0) -> 0 | AG81: =IF(AG56>MAX(AG79:AG80,Kold!$P$32,Kold!$P$31),1,0) -> 0 | AH81: =IF(AH56>MAX(AH79:AH80,Kold!$P$32,Kold!$P$31),1,0) -> 0 | AI81: =IF(AI56>MAX(AI79:AI80,Kold!$P$32,Kold!$P$31),1,0) -> 0 | AJ81: =IF(AJ56>MAX(AJ79:AJ80,Kold!$P$32,Kold!$P$31),1,0) -> 0 | AK81: =IF(AK56>MAX(AK79:AK80,Kold!$P$32,Kold!$P$31),1,0) -> 0 | AL81: =IF(AL56>MAX(AL79:AL80,Kold!$P$32,Kold!$P$31),1,0) -> 0 | AM81: =IF(AM56>MAX(AM79:AM80,Kold!$P$32,Kold!$P$31),1,0) -> 0 | AN81: =IF(AN56>MAX(AN79:AN80,Kold!$P$32,Kold!$P$31),1,0) -> 0 | AO81: =IF(AO56>MAX(AO79:AO80,Kold!$P$32,Kold!$P$31),1,0) -> 0 | AP81: =IF(AP56>MAX(AP79:AP80,Kold!$P$32,Kold!$P$31),1,0) -> 0 | AQ81: =IF(AQ56>MAX(AQ79:AQ80,Kold!$P$32,Kold!$P$31),1,0) -> 0 | AR81: =IF(AR56>MAX(AR79:AR80,Kold!$P$32,Kold!$P$31),1,0) -> 0 | AS81: =IF(AS56>MAX(AS79:AS80,Kold!$P$32,Kold!$P$31),1,0) -> 0 | AT81: =IF(AT56>MAX(AT79:AT80,Kold!$P$32,Kold!$P$31),1,0) -> 0 | AU81: =IF(AU56>MAX(AU79:AU80,Kold!$P$32,Kold!$P$31),1,0) -> 0 | AV81: =IF(AV56>MAX(AV79:AV80,Kold!$P$32,Kold!$P$31),1,0) -> 0 | AW81: =IF(AW56>MAX(AW79:AW80,Kold!$P$32,Kold!$P$31),1,0) -> 0 | AX81: =IF(AX56>MAX(AX79:AX80,Kold!$P$32,Kold!$P$31),1,0) -> 0 | AY81: =IF(AY56>MAX(AY79:AY80,Kold!$P$32,Kold!$P$31),1,0) -> 0 | AZ81: =IF(AZ56>MAX(AZ79:AZ80,Kold!$P$32,Kold!$P$31),1,0) -> 0 | BA81: =IF(BA56>MAX(BA79:BA80,Kold!$P$32,Kold!$P$31),1,0) -> 0 | BB81: =IF(BB56>MAX(BB79:BB80,Kold!$P$32,Kold!$P$31),1,0) -> 0 | BC81: =IF(BC56>MAX(BC79:BC80,Kold!$P$32,Kold!$P$31),1,0) -> 0
C85: Jævnt fordelte laste | G85: Punktlaste
D86: p1 | E86: p2 | F86: p3 | H86: P1 | I86: P2 | J86: P3
B87: Langtidsværdi | C87: (kN/m) | D87: =B95+C95*J95 -> 5 | E87: =B96+C96*J96 -> 7.5 | F87: =B97+C97*J97 -> 6.5 | G87: (kN) | H87: =B99+C99*J99 -> 15 | I87: =B100+C100*J100 -> 12 | J87: =B101+C101*J101 -> 19.5
B88: Kar. værdi | C88: (kN/m) | D88: =B95+C95 -> 5 | E88: =B96+C96 -> 9 | F88: =B97+C97 -> 10 | G88: (kN) | H88: =B99+C99 -> 15 | I88: =B100+C100 -> 12 | J88: =B101+C101 -> 22
B89: Regnm. værdi | C89: (kN/m) | D89: =G95*B95+C95*H95 -> 5.5 | E89: =G96*B96+C96*H96 -> 11.55 | F89: =G97*B97+C97*H97 -> 14.85 | G89: (kN) | H89: =G99*B99+C99*H99 -> 16.5 | I89: =G100*B100+C100*H100 -> 13.2 | J89: =G101*B101+C101*H101 -> 26.95
B90: Excentricitet, exc. | C90: (mm) | D90: =Kold!E22 -> 25 | E90: =Kold!E23 -> 15 | F90: =Kold!E24 -> 25 | G90: (mm) | H90: =Kold!E26 -> 10 | I90: =Kold!E27 -> 15 | J90: =Kold!E28 -> 20
B91: x1 | C91: (m) | D91: =Kold!F22 -> 0 | E91: =Kold!F23 -> 1 | F91: =Kold!F24 -> 2 | G91: (m) | H91: =Kold!F26 -> 1 | I91: =Kold!F27 -> 1.5 | J91: =Kold!F28 -> 2
B92: x2 | C92: (m) | D92: =Kold!G22 -> 5 | E92: =Kold!G23 -> 3 | F92: =Kold!G24 -> 4
A94: =Kold!B21 -> Lastparametre: | B94: =Kold!C21 -> gk [kN/m] | C94: =Kold!D21 -> qk [kN/m] | D94: =Kold!E21 -> e [mm] | E94: =Kold!F21 -> x1 [m] | F94: =Kold!G21 -> x2 [m] | G94: =Kold!H21 -> ϒg | H94: =Kold!I21 -> ϒq | I94: =Kold!J21 -> ψ1 | J94: =Kold!K21 -> ψ2
A95: =Kold!B22 -> p1 | B95: =Kold!C22 -> 5 | C95: =Kold!D22 -> 0 | D95: =Kold!E22 -> 25 | E95: =Kold!F22 -> 0 | F95: =Kold!G22 -> 5 | G95: =Kold!H22 -> 1.1 | H95: =Kold!I22 -> 0 | I95: =Kold!J22 -> 0 | J95: =Kold!K22 -> 0
A96: =Kold!B23 -> p2 | B96: =Kold!C23 -> 6 | C96: =Kold!D23 -> 3 | D96: =Kold!E23 -> 15 | E96: =Kold!F23 -> 1 | F96: =Kold!G23 -> 3 | G96: =Kold!H23 -> 1.1 | H96: =Kold!I23 -> 1.65 | I96: =Kold!J23 -> 0.6 | J96: =Kold!K23 -> 0.5
A97: =Kold!B24 -> p3 | B97: =Kold!C24 -> 3 | C97: =Kold!D24 -> 7 | D97: =Kold!E24 -> 25 | E97: =Kold!F24 -> 2 | F97: =Kold!G24 -> 4 | G97: =Kold!H24 -> 1.1 | H97: =Kold!I24 -> 1.65 | I97: =Kold!J24 -> 0.6 | J97: =Kold!K24 -> 0.5
A98: =Kold!B25 -> 0 | B98: =Kold!C25 -> Gk [kN] | C98: =Kold!D25 -> Qk [kN] | D98: =Kold!E25 -> e [mm] | E98: =Kold!F25 -> x1 [m] | F98: =Kold!G25 -> 0
A99: =Kold!B26 -> P1 | B99: =Kold!C26 -> 15 | C99: =Kold!D26 -> 0 | D99: =Kold!E26 -> 10 | E99: =Kold!F26 -> 1 | F99: =Kold!G26 -> 0 | G99: =Kold!H26 -> 1.1 | H99: =Kold!I26 -> 1.65 | I99: =Kold!J26 -> 0.6 | J99: =Kold!K26 -> 0.5
A100: =Kold!B27 -> P2 | B100: =Kold!C27 -> 12 | C100: =Kold!D27 -> 0 | D100: =Kold!E27 -> 15 | E100: =Kold!F27 -> 1.5 | F100: =Kold!G27 -> 0 | G100: =Kold!H27 -> 1.1 | H100: =Kold!I27 -> 1.65 | I100: =Kold!J27 -> 0.6 | J100: =Kold!K27 -> 0.5
A101: =Kold!B28 -> P3 | B101: =Kold!C28 -> 17 | C101: =Kold!D28 -> 5 | D101: =Kold!E28 -> 20 | E101: =Kold!F28 -> 2 | F101: =Kold!G28 -> 0 | G101: =Kold!H28 -> 1.1 | H101: =Kold!I28 -> 1.65 | I101: =Kold!J28 -> 0.6 | J101: =Kold!K28 -> 0.5

Sheet Brand
B2: Bruger: | C2: =Kold!D2 -> 0 | K2: =Kold!L2 -> Bjælkeberegning | M2: =Kold!N2 -> Betonelement-Foreningen feb 2019
B3: Sagsnavn: | C3: =Kold!D3 -> Betonelementhuset | H3: Sag nr.: | I3: =Kold!J3 -> 23 - 4545 | K3: =BD15 ->  | AS3: 2
B4: Bygningsdel: | C4: =Kold!D4 -> Bjælke i modul D-E/12, stueetage | H4: Dato: | I4: =Kold!J4 -> 2008-03-01 | AS4: Tilslag: Kvartsholdigt
B5: Emne: | C5: Brandlastkombinationer | H5: Init: | I5: =Kold!J5 -> JFJ | AS5: Tilslag: Søsand / granit
K7: Spændvidde | M7: Tværsnit | N7: h | O7: =Kold!P7 -> 700
K8: L | L8: =Kold!M8 -> 5 | N8: b | O8: =Kold!P8 -> 300 | BH8: BRUDLAST, MOMENTKAPACITET
K9: Længdearmering c' = | M9: =Kold!N9 -> 40 | N9: beff | O9: =Kold!P9 -> 300 | AR9: A_1 | AS9: =O11*0.25*PI()*M11^2 -> 1608.495439 | AT9: mm2 | AW9: a | AX9: y | AY9: EI | AZ9: s_b | BA9: s_o | BB9: s_2 | BC9: s_3 | BD9: s_m | BE9: w | BH9: L | BI9: h | BJ9: b | BK9: fck | BL9: fcd | BM9: Ecd | BN9: Ac | BO9: ac | BP9: Esc | BQ9: fyd_c | BR9: At | BS9: at | BT9: Est | BU9: fyd_t | BV9: At | BW9: at | BX9: Est | BY9: fyd_t | BZ9: Modenhed | CA9: 1+f | CB9: uterm | CC9: emax | CD9: e1 | CE9: k | CF9: Tilstand: | CG9: Nf | HA9: =Makro!A20 -> 0 | HD9: Bruger skal registreres | HE9: 1
M10: d (mm) | N10: c (mm) | O10: antal | AR10: A_2 | AS10: =O12*0.25*PI()*M12^2 -> 0 | AT10: mm2 | AV10: Langtid | AW10: "-" | AX10: "-" | AY10: "-" | AZ10: "-" | BA10: "-" | BB10: "-" | BC10: "-" | BD10: "-" | BE10: "-" | BH10: (m) | BI10: (m) | BJ10: (m) | BK10: (Mpa) | BL10: (Mpa) | BM10: (Mpa) | BN10: (m2) | BO10: (m) | BP10: (Mpa) | BQ10: (Mpa) | BR10: (m2) | BS10: (m) | BT10: (Mpa) | BU10: (Mpa) | BV10: (m2) | BW10: (m) | BX10: (Mpa) | BY10: (Mpa) | BZ10: (døgn) | CB10: (m)
K11: Tryklag t | M11: =Kold!N11 -> 16 | N11: =Kold!O11 -> 40 | O11: =Kold!P11 -> 8 | AR11: A_3 | AS11: =O13*0.25*PI()*M13^2 -> 1608.495439 | AT11: mm2 | AV11: Korttid | AW11: "-" | AX11: "-" | AY11: "-" | AZ11: "-" | BA11: "-" | BB11: "-" | BC11: "-" | BD11: "-" | BE11: "-" | BH11: =L8 -> 5 | BI11: =AT32/1000 -> 0.6834870703 | BJ11: =AT33/1000 -> 0.2669741406 | BK11: =L21 -> 35 | BL11: =AT28 -> 35 | BM11: =22000*((BK11+8)/10)^0.3/L18 -> 34077.1462 | BN11: =AS9/1000000 -> 0.001608495439 | BO11: =AT34/1000 -> 0.04 | BP11: =AT24*200000 -> 199852.9132 | BQ11: =AS24*O18/L19 -> 489.4850685 | BR11: =AS11/1000000 -> 0.001608495439 | BS11: =AT36/1000 -> 0.0234870703 | BT11: =AT26*200000 -> 197399 | BU11: =AS26*O18/L19 -> 442.2844899 | BV11: =AS10/1000000 -> 0 | BW11: =AT35/1000 -> 0.0834870703 | BX11: =AT25*200000 -> 200000 | BY11: =AS25*O19 -> 500 | CA11: 1 | CB11: 0 | CC11: =IF(CF11=1,Kold!CE11,MIN(2*CD11,Firsidig!$G$21)) -> 0.005 | CD11: =IF(CF11=1,Kold!CF11,Firsidig!$F$21) -> 0.0025 | CE11: =Kold!CG11 -> 2.29645391 | CF11: =IF(AND(L23>0.1,MAX(AT38:AT40)>0),-1,1) -> -1 | CG11: 0
K12: Træklag 1 | M12: =Kold!N12 -> 14 | N12: =Kold!O12 -> 100 | O12: =Kold!P12 -> 0 | AR12: E_sk | AS12: 200000 | AT12: Mpa | AV12: Kar. last | AZ12: "-" | BA12: "-" | BB12: "-" | BC12: "-" | BD12: "-" | BE12: "-" | BH12: hc | BI12: e0 | BJ12: a' | BK12: b' | BL12: N' | BM12: tN' | BN12: t' | BO12: Nc | BP12: sac | BQ12: Nac | BR12: sat | BS12: Nat | BT12: sat | BU12: Nat | BV12: Mtot | BW12: N | BX12: N | BY12: A | BZ12: B1 | CA12: B2 | CB12: B2' | CC12: B3 | CD12: C1 | CE12: C2 | CF12: C2'
K13: Træklag 2 | M13: =Kold!N13 -> 16 | N13: =Kold!O13 -> 40 | O13: =Kold!P13 -> 8 | AR13: E_sd | AS13: =AS12/L19 -> 200000 | AT13: MPa
K14: Bøjler | M14: d (mm) | N14: a (mm) | O14: cotq | AR14: c_w | AS14: =(AS11*AT36+AS10*AT35)/(AS10+AS11) -> 23.4870703 | BH14: =0.5*(-(BZ14+CA14+CB14+CC14)+SQRT(MAX((BZ14+CA14+CB14+CC14)^2+4*BY14*(CD14+CE14+CF14),0)))/BY14 -> 0.1899918045 | BI14: =0.025*$CC$11 -> 0.000125 | BJ14: =IF($CF$11=1,BI14/($CE$11*$CD$11),2^(1/3)*$CD$11/BI14) -> 25.198421 | BK14: =IF($CF$11=1,-($CE$11-2)*BI14/$CD$11,3*($CD$11/BI14)^2) -> 1200 | BL14: =IF(CF$11=1,0.5*(CE$11*BI14*BL$11/CD$11)*(1-CG13^2+(BJ14-BK14)*(BK14^2*(1-CG13^2)+2*BK14*(1-CG13)+2*LN((1-BK14)/(1-BK14*CG13)))/(BK14^3)),BL$11*BK14*(LN((1-BJ14+BJ14^2)/(1+BJ14)^2)/(6*BJ14)+ATAN((2-BJ14)/(BJ14*3^0.5))/(BJ14*3^0.5)-LN((CG13^2-BJ14*CG13+BJ14^2)/(CG13+BJ14)^2)/(6*BJ14)-ATAN((2*CG13-BJ14)/(BJ14*3^0.5))/(BJ14*3^0.5))) -> 1.312467189 | BM14: =IF(CF$11=1,(CE$11*BI14*BL$11/CD$11)*(1-CG13^3-(BJ14-BK14)*(-2*BK14^3*(1-CG13^3)-3*BK14^2*(1-CG13^2)-6*BK14*(1-CG13)-6*LN((1-BK14)/(1-BK14*CG13)))/(2*BK14^4))/3,BL$11*BK14*(LN((1+BJ14^3)/(BJ14^3+CG13^3)))/3) -> 0.8749726574 | BN14: =BM14/BL14 -> 0.6666625001 | BO14: =BL14*BH14*BJ$11 -> 0.06657214029 | BP14: =MAX(MIN(BQ$11,CA$11*BP$11*BI14*(BH14-BO$11)/BH14),-BQ$11) -> 19.72210009 | BQ14: =BP14*BN$11 -> 0.03172290804 | BR14: =MIN(BU$11,CA$11*BT$11*BI14*(BI$11-BH14-BS$11)/BH14) -> 61.04154601 | BS14: =BR14*BR$11 -> 0.09818504833 | BT14: =MIN($BY$11,CA$11*$BX$11*BI14*(BI$11-BH14-$BW$11)/BH14) -> 53.95077392 | BU14: =BT14*$BV$11 -> 0 | BV14: =(0.5*BI$11-BH14+BN14*BH14)*BO14+(0.5*BI$11-BO$11)*BQ14+(0.5*BI$11-BS$11)*BS14+(0.5*BI$11-BW$11)*BU14 -> 0.05935470098 | BW14: =BO14+BQ14-BS14-BU14 -> 0.00011 | BX14: =$CG$11+0.00001 -> 1e-05 | BY14: =BL14*BJ$11 -> 0.3503947998 | BZ14: =IF(BP13<BQ$11,CA$11*BI14*BN$11*BP$11,BN$11*BQ$11) -> 0.04018281241 | CA14: =IF(BR13<BU$11,CA$11*BI14*BR$11*BT$11,-BR$11*BU$11) -> 0.03968942389 | CB14: =IF(BT13<BY$11,CA$11*BI14*$BV$11*$BX$11,-$BV$11*BY$11) -> 0 | CC14: =-(BX14+0.0001) -> -0.00011 | CD14: =IF(BP13<BQ$11,BO$11*CA$11*BI14*BN$11*BP$11,0) -> 0.001607312496 | CE14: =IF(BR13<BU$11,(BI$11-BS$11)*CA$11*BI14*BR$11*BT$11,0) -> 0.02619501976 | CF14: =IF(BT13<BY$11,(BI$11-$BW$11)*CA$11*BI14*$BV$11*$BX$11,0) -> 0 | CG14: =IF(BV14>BV13,BI14,CG13) -> 0.000125 | CH14: =IF(BV14>BV13,BP14,CH13) -> 19.72210009 | CI14: =IF(BV14>BV13,BR14,CI13) -> 61.04154601 | CJ14: =IF(BV14>BV13,BT14,CJ13) -> 53.95077392
K15: Type 1 | M15: =Kold!N15 -> 6 | N15: =Kold!O15 -> 150 | O15: 2.5 | AR15: a_w | AS15: =AS14*2*AT33/(O12*M12+O13*M13) -> 97.9756314 | AV15: Fejltabel | BC15: Fejl | BD15: =BD16&BD17&BD18&BD19&BD20&BD21&BD22&BD23&BD24&BD25&BD26&BD27&BD28&BD29&BD30&BD31&BD32&BD33&BD34&BD35&BD36&BD37&BD38&BD39&BD40&BD41&BD42&BD43&BD44&BD45 ->  | BE15: NB'er | BH15: =0.5*(-(BZ15+CA15+CB15+CC15)+SQRT(MAX((BZ15+CA15+CB15+CC15)^2+4*BY15*(CD15+CE15+CF15),0)))/BY15 -> 0.1899531211 | BI15: =0.025*$CC$11+BI14 -> 0.00025 | BJ15: 12.5992105 | BK15: 300 | BL15: 2.624475123 | BM15: 1.749562646 | BN15: =BM15/BL15 -> 0.666633351 | BO15: 0.1330938817 | BP15: 39.44205802 | BQ15: 0.06344237042 | BR15: 122.1180038 | BS15: 0.1964262521 | BT15: 107.933704 | BU15: =BT15*$BV$11 -> 0 | BV15: 0.1187131817 | BW15: =BO15+BQ15-BS15-BU15 -> 0.00011 | BX15: 1e-05 | BY15: 0.7006669905 | BZ15: =IF(2*BP14-BP13<BQ$11,CA$11*BI15*BN$11*BP$11,BN$11*BQ$11) -> 0.08036562482 | CA15: =IF(2*BR14-BR13<BU$11,CA$11*BI15*BR$11*BT$11,-BR$11*BU$11) -> 0.07937884777 | CB15: =IF(2*BT14-BT13<BY$11,CA$11*BI15*$BV$11*$BX$11,-$BV$11*BY$11) -> 0 | CC15: =-(BX15+0.0001) -> -0.00011 | CD15: =IF(2*BP14-BP13<BQ$11,BO$11*CA$11*BI15*BN$11*BP$11,0) -> 0.003214624993 | CE15: =IF(2*BR14-BR13<BU$11,(BI$11-BS$11)*CA$11*BI15*BR$11*BT$11,0) -> 0.05239003953 | CF15: =IF(2*BT14-BT13<BY$11,(BI$11-$BW$11)*CA$11*BI15*$BV$11*$BX$11,0) -> 0 | CG15: 0.00025 | CH15: 39.44205802 | CI15: 122.1180038 | CJ15: =IF(BV15>BV14,BT15,CJ14) -> 107.933704
K16: Type 2 | M16: =Kold!N16 -> 6 | N16: =Kold!O16 -> 150 | O16: =O15 -> 2.5 | AR16: h_int | AS16: =O7-BH56*(1-BN56)*1000-(AS10*N12+AS11*N13)/(AS10+AS11) -> 637.727627 | AT16: mm | AV16: Negative inddata accepteres ikke; | BC16: =IF(MIN(O15,L18,L19,L23)<0,1,0) -> 0 | BD16: =IF(BC16=1,AV16,"") ->  | BH16: 0.1899649381 | BI16: 0.000375 | BJ16: 8.399473666 | BK16: 133.3333333 | BL16: 3.934844741 | BM16: 2.622787645 | BN16: =BM16/BL16 -> 0.6665542905 | BO16: 0.1995585081 | BP16: 59.16406876 | BQ16: 0.09516513473 | BR16: 183.1610061 | BS16: 0.2946136429 | BT16: 161.8858193 | BU16: 0 | BV16: 0.1780353574 | BW16: 0.00011 | BX16: 1e-05 | BY16: 1.050501793 | BZ16: =IF(2*BP15-BP14<BQ$11,CA$11*BI16*BN$11*BP$11,BN$11*BQ$11) -> 0.1205484372 | CA16: =IF(2*BR15-BR14<BU$11,CA$11*BI16*BR$11*BT$11,-BR$11*BU$11) -> 0.1190682717 | CB16: =IF(2*BT15-BT14<BY$11,CA$11*BI16*$BV$11*$BX$11,-$BV$11*BY$11) -> 0 | CC16: =-(BX16+0.0001) -> -0.00011 | CD16: =IF(2*BP15-BP14<BQ$11,BO$11*CA$11*BI16*BN$11*BP$11,0) -> 0.004821937489 | CE16: =IF(2*BR15-BR14<BU$11,(BI$11-BS$11)*CA$11*BI16*BR$11*BT$11,0) -> 0.07858505929 | CF16: =IF(2*BT15-BT14<BY$11,(BI$11-$BW$11)*CA$11*BI16*$BV$11*$BX$11,0) -> 0 | CG16: 0.000375 | CH16: 59.16406876 | CI16: 183.1610061 | CJ16: 161.8858193
K17: Partialkoefficienter | M17: Længdearmering | AR17: Min arm | AS17: =CEILING(AT33*AT32*0.45*SQRT(L21/10)/O18,1) -> 308 | AT17: mm2 | BH17: 0.1900115349 | BI17: 0.0005 | BJ17: 6.299605249 | BK17: 75 | BL17: 5.241620201 | BM17: 3.493018611 | BN17: 0.6664005549 | BO17: 0.2658977809 | BP17: 78.89058493 | BQ17: 0.126895146 | BR17: 244.1305816 | BS17: 0.3926829269 | BT17: 215.7703033 | BU17: 0 | BV17: 0.2372778576 | BW17: 0.00011 | BX17: 1e-05 | BY17: 1.399377048 | BZ17: 0.1607312496 | CA17: 0.1587576955 | CB17: 0 | CC17: -0.00011 | CD17: 0.006429249986 | CE17: 0.1047800791 | CF17: 0 | CG17: 0.0005 | CH17: 78.89058493 | CI17: 244.1305816 | CJ17: 215.7703033
K18: gc | L18: 1 | N18: fyk | O18: =Kold!P18 -> 500 | AR18: Akt. arm | AS18: =CEILING((M12^2*O12+M13^2*O13)*PI()/4,1) -> 1609 | AT18: mm2 | BH18: 0.1900966969 | BI18: 0.000625 | BJ18: 5.0396842 | BK18: 48 | BL18: 6.542090117 | BM18: 4.357998647 | BN18: 0.6661477554 | BO18: 0.3320169762 | BP18: 98.62501106 | BQ18: 0.1586378804 | BR18: 304.9712451 | BS18: 0.4905448567 | BT18: 269.5360505 | BU18: 0 | BV18: 0.2963804872 | BW18: 0.00011 | BX18: 1e-05 | BY18: 1.746568887 | BZ18: 0.200914062 | CA18: 0.1984471194 | CB18: 0 | CC18: -0.00011 | CD18: 0.008036562482 | CE18: 0.1309750988 | CF18: 0 | CG18: 0.000625 | CH18: 98.62501106 | CI18: 304.9712451 | CJ18: 269.5360505
B19: =IF(AS21>L30," "&TEXT(AS21,"0,0")&" kNm > "," "&TEXT(AS21,"0,0")&" kNm < ") -> 85,1 kNm < | C19: =IF(AS21>L30,"!"," ") ->  | K19: gs | L19: 1 | N19: fyd | O19: =O18/L19 -> 500 | BH19: 0.1902272604 | BI19: 0.00075 | BJ19: 4.199736833 | BK19: 33.33333333 | BL19: 7.832827243 | BM19: 5.214878241 | BN19: 0.665772151 | BO19: 0.3977960795 | BP19: 118.3716607 | BQ19: 0.1904002763 | BR19: 365.6126972 | BS19: 0.5880863558 | BT19: 323.1183102 | BU19: 0 | BV19: 0.355267 | BW19: 0.00011 | BX19: 1e-05 | BY19: 2.091162322 | BZ19: 0.2410968745 | CA19: 0.2381365433 | CB19: 0 | CC19: -0.00011 | CD19: 0.009643874978 | CE19: 0.1571701186 | CF19: 0 | CG19: 0.00075 | CH19: 118.3716607 | CI19: 365.6126972 | CJ19: 323.1183102
K20: Beton | M20: Bøjlearmering | AR20: M_k | AS20: =MAX(Brand2!P31:BG31) -> 94.3 | AT20: kNm | AV20: x_2 skal være større end x_1; | BC20: =IF(OR(Brand2!D91>Brand2!D92,Brand2!E91>Brand2!E92,Brand2!F91>Brand2!F92),1,0) -> 0 | BD20: =IF(BC20=1,AV20,"") ->  | BH20: 0.190410661 | BI20: 0.000875 | BJ20: 3.599774428 | BK20: 24.48979592 | BL20: 9.109751401 | BM20: 6.060271103 | BN20: 0.6652509862 | BO20: 0.4630916852 | BP20: 138.1356881 | BQ20: 0.2221906242 | BR20: 425.9709372 | BS20: 0.6851723094 | BT20: 376.4397118 | BU20: 0 | BV20: 0.4138463284 | BW20: 0.00011 | BX20: 1e-05 | BY20: 2.432068051 | BZ20: 0.2812796869 | CA20: 0.2778259672 | CB20: 0 | CC20: -0.00011 | CD20: 0.01125118747 | CE20: 0.1833651384 | CF20: 0 | CG20: 0.000875 | CH20: 138.1356881 | CI20: 425.9709372 | CJ20: 376.4397118
B21: Lastparametre: | C21: g [kN/m] | D21: q [kN/m] | E21: e [mm] | F21: x1 [m] | G21: x2 [m] | H21: ϒg | I21: ϒq | J21: ψ1 | K21: fck | L21: =Kold!M21 -> 35 | N21: fyk | O21: =Kold!P21 -> 410 | AR21: M_d | AS21: =MAX(Brand2!P32:BG32) -> 85.14 | AT21: kNm | AV21: x_2 skal være mindre end L; | BC21: =IF(OR(Brand2!D92>L8,Brand2!E92>L8,Brand2!F92>L8),1,0) -> 0 | BD21: =IF(BC21=1,AV21,"") ->  | BH21: 0.1684862928 | BI21: 0.001 | BJ21: 3.149802625 | BK21: 18.75 | BL21: 10.36821894 | BM21: 6.890333415 | BN21: 0.6645628779 | BO21: 0.4663778662 | BP21: 152.4062254 | BQ21: 0.2451447184 | BR21: 442.2844899 | BS21: 0.7114125846 | BT21: 500 | BU21: 0 | BV21: 0.4334060375 | BW21: 0.00011 | BX21: 1e-05 | BY21: 2.76804634 | BZ21: 0.3214624993 | CA21: -0.7114125846 | CB21: 0 | CC21: -0.00011 | CD21: 0.01285849997 | CE21: 0 | CF21: 0 | CG21: 0.001 | CH21: 152.4062254 | CI21: 442.2844899 | CJ21: 500
B22: p1 | C22: =Kold!C22 -> 5 | D22: =Kold!D22 -> 0 | E22: =Kold!E22 -> 25 | F22: =Kold!F22 -> 0 | G22: =Kold!G22 -> 5 | H22: =Kold!H22 -> 1.1 | I22: =Kold!I22 -> 0 | J22: =Kold!J22 -> 0 | K22: fcd | L22: =L21/L18 -> 35 | N22: fyd | O22: =O21/L19 -> 410 | AR22: maks V_d | AS22: =MAX(Brand2!P55:BD55) -> 60.02 | AT22: kN | AV22: x_1 skal være mindre end L; | BC22: =IF(OR(Brand2!H91>L8,Brand2!I91>L8,Brand2!J91>L8),1,0) -> 0 | BD22: =IF(BC22=1,AV22,"") ->  | BH22: 0.1451240228 | BI22: 0.001125 | BJ22: 2.799824555 | BK22: 14.81481481 | BL22: 11.60313976 | BM22: 7.70086732 | BN22: 0.6636882328 | BO22: 0.4495562385 | BP22: 162.8642145 | BQ22: 0.2619663461 | BR22: 442.2844899 | BS22: 0.7114125846 | BT22: 500 | BU22: 0 | BV22: 0.43714979 | BW22: 0.00011 | BX22: 1e-05 | BY22: 3.097738265 | BZ22: 0.3616453117 | CA22: -0.7114125846 | CB22: 0 | CC22: -0.00011 | CD22: 0.01446581247 | CE22: 0 | CF22: 0 | CG22: 0.001125 | CH22: 162.8642145 | CI22: 442.2844899 | CJ22: 500
B23: p2 | C23: =Kold!C23 -> 6 | D23: =Kold!D23 -> 3 | E23: =Kold!E23 -> 15 | F23: =Kold!F23 -> 1 | G23: =Kold!G23 -> 3 | H23: =Kold!H23 -> 1.1 | I23: =Kold!I23 -> 1.65 | J23: =Kold!J23 -> 0.6 | K23: Brand, tid: | L23: 60 | M23: Stålreduktioner | AR23: Længdearmering | AS23: zs,0.2 | AT23: Espk / Esk | BH23: 0.127442375 | BI23: 0.00125 | BJ23: 2.5198421 | BK23: 12 | BL23: 12.80912038 | BM23: 8.487447042 | BN23: 0.6626096713 | BO23: 0.4358151873 | BP23: 171.4070122 | BQ23: 0.2757073973 | BR23: 442.2844899 | BS23: 0.7114125846 | BT23: 500 | BU23: 0 | BV23: 0.4398024967 | BW23: 0.00011 | BX23: 1e-05 | BY23: 3.419703904 | BZ23: 0.4018281241 | CA23: -0.7114125846 | CB23: 0 | CC23: -0.00011 | CD23: 0.01607312496 | CE23: 0 | CF23: 0 | CG23: 0.00125 | CH23: 171.4070122 | CI23: 442.2844899 | CJ23: 500
B24: p3 | C24: =Kold!C24 -> 3 | D24: =Kold!D24 -> 7 | E24: =Kold!E24 -> 25 | F24: =Kold!F24 -> 2 | G24: =Kold!G24 -> 4 | H24: =Kold!H24 -> 1.1 | I24: =Kold!I24 -> 1.65 | J24: =Kold!J24 -> 0.6 | K24: Bund: | L24: =IF(Makro!A1=1,"NEJ","JA") -> JA | N24: fsy,q / fyk | O24: Es,q / Es | AR24: Tryklag | AS24: =Firsidig!E47 -> 0.978970137 | AT24: =Firsidig!E46 -> 0.999264566 | AV24: Grænse forskydningstrykbrud (V_ud_0) overskredet; | BC24: 0 | BD24: =IF(BE24=1,AV24,"") ->  | BE24: =IF(AS22>O30,1,0) -> 0 | BH24: 0.1138237599 | BI24: 0.001375 | BJ24: 2.290765545 | BK24: 9.917355372 | BL24: 13.9806284 | BM24: 9.24556333 | BN24: 0.6613124294 | BO24: 0.4248433423 | BP24: 178.2281972 | BQ24: 0.2866792423 | BR24: 442.2844899 | BS24: 0.7114125846 | BT24: 500 | BU24: 0 | BV24: 0.4417247228 | BW24: 0.00011 | BX24: 1e-05 | BY24: 3.732466251 | BZ24: 0.4420109365 | CA24: -0.7114125846 | CB24: 0 | CC24: -0.00011 | CD24: 0.01768043746 | CE24: 0 | CF24: 0 | CG24: 0.001375 | CH24: 178.2281972 | CI24: 442.2844899 | CJ24: 500
C25: G [kN] | D25: Q [kN] | E25: e [mm] | F25: x1 [m] | K25: Sider: | L25: =IF(Makro!A2=1,"NEJ","JA") -> JA | M25: Tryklag t: | N25: =AS24 -> 0.978970137 | O25: 0.999264566 | AR25: Træklag 1 | AS25: =Firsidig!E35 -> 1 | AT25: =Firsidig!E34 -> 1 | BH25: 0.1031759086 | BI25: 0.0015 | BJ25: 2.099868416 | BK25: 8.333333333 | BL25: 15.11217103 | BM25: 9.970779393 | BN25: 0.6597847106 | BO25: 0.4162692777 | BP25: 183.5586846 | BQ25: 0.2952533069 | BR25: 442.2844899 | BS25: 0.7114125846 | BT25: 500 | BU25: 0 | BV25: 0.4431478722 | BW25: 0.00011 | BX25: 1e-05 | BY25: 4.034558875 | BZ25: 0.4821937489 | CA25: -0.7114125846 | CB25: 0 | CC25: -0.00011 | CD25: 0.01928774996 | CE25: 0 | CF25: 0 | CG25: 0.0015 | CH25: 183.5586846 | CI25: 442.2844899 | CJ25: 500
B26: P1 | C26: =Kold!C26 -> 15 | D26: =Kold!D26 -> 0 | E26: =Kold!E26 -> 10 | F26: =Kold!F26 -> 1 | G26: =Kold!G26 -> 0 | H26: =Kold!H26 -> 1.1 | I26: =Kold!I26 -> 1.65 | J26: =Kold!J26 -> 0.6 | K26: Betonreduktioner | M26: Træklag 1: | N26: 1 | O26: 1 | AR26: Træklag 2 | AS26: =Firsidig!E41 -> 0.8845689798 | AT26: =Firsidig!E40 -> 0.986995 | AV26: Partialkoefficienter skal være større end 1; | BC26: =IF(MIN(L18:L19)<1,1,0) -> 0 | BD26: =IF(BC26=1,AV26,"") ->  | BH26: 0.09473811401 | BI26: 0.001625 | BJ26: 1.938340077 | BK26: 7.100591716 | BL26: 16.19847799 | BM26: 10.65888945 | BN26: 0.6580179605 | BO26: 0.4097020547 | BP26: 187.6415205 | BQ26: 0.3018205299 | BR26: 442.2844899 | BS26: 0.7114125846 | BT26: 500 | BU26: 0 | BV26: 0.4442232488 | BW26: 0.00011 | BX26: 1e-05 | BY26: 4.324574739 | BZ26: 0.5223765613 | CA26: -0.7114125846 | CB26: 0 | CC26: -0.00011 | CD26: 0.02089506245 | CE26: 0 | CF26: 0 | CG26: 0.001625 | CH26: 187.6415205 | CI26: 442.2844899 | CJ26: 500
B27: P2 | C27: =Kold!C27 -> 12 | D27: =Kold!D27 -> 0 | E27: =Kold!E27 -> 15 | F27: =Kold!F27 -> 1.5 | G27: =Kold!G27 -> 0 | H27: =Kold!H27 -> 1.1 | I27: =Kold!I27 -> 1.65 | J27: =Kold!J27 -> 0.6 | K27: Randzone: | L27: =Firsidig!E23*1000 -> 16.5129297 | M27: Træklag 2: | N27: 0.8845689798 | O27: 0.986995 | AR27: Bøjler | AS27: zs,0.2 | AT27: =Firsidig!E49 -> 0.7980234986 | AV27: M_d > M_ud ! | BD27: =IF(BE27=1,AV27,"") ->  | BE27: =IF(AS21>L30,1,0) -> 0 | BH27: 0.08796873373 | BI27: 0.00175 | BJ27: 1.799887214 | BK27: 6.12244898 | BL27: 17.2346776 | BM27: 11.30606987 | BN27: 0.6560070422 | BO27: 0.4047629024 | BP27: 190.7121866 | BQ27: 0.3067596822 | BR27: 442.2844899 | BS27: 0.7114125846 | BT27: 500 | BU27: 0 | BV27: 0.445051132 | BW27: 0.00011 | BX27: 1e-05 | BY27: 4.60121324 | BZ27: 0.5625593737 | CA27: -0.7114125846 | CB27: 0 | CC27: -0.00011 | CD27: 0.02250237495 | CE27: 0 | CF27: 0 | CG27: 0.00175 | CH27: 190.7121866 | CI27: 442.2844899 | CJ27: 500
B28: P3 | C28: =Kold!C28 -> 17 | D28: =Kold!D28 -> 5 | E28: =Kold!E28 -> 20 | F28: =Kold!F28 -> 2 | G28: =Kold!G28 -> 0 | H28: =Kold!H28 -> 1.1 | I28: =Kold!I28 -> 1.65 | J28: =Kold!J28 -> 0.6 | K28: kc,M | L28: =Firsidig!E21 -> 1 | M28: Bøjlearmering: | N28: =AT27 -> 0.7980234986 | AR28: Beton | AS28: Red f_cd | AT28: =AT29*L21/L18 -> 35 | BH28: 0.08247560619 | BI28: 0.001875 | BJ28: 1.679894733 | BK28: 5.333333333 | BL28: 18.21645523 | BM28: 11.90901301 | BN28: 0.6537502964 | BO28: 0.4011054696 | BP28: 192.9860089 | BQ28: 0.310417115 | BR28: 442.2844899 | BS28: 0.7114125846 | BT28: 500 | BU28: 0 | BV28: 0.4456987823 | BW28: 0.00011 | BX28: 1e-05 | BY28: 4.863322479 | BZ28: 0.6027421861 | CA28: -0.7114125846 | CB28: 0 | CC28: -0.00011 | CD28: 0.02410968745 | CE28: 0 | CF28: 0 | CG28: 0.001875 | CH28: 192.9860089 | CI28: 442.2844899 | CJ28: 500
C29: Jævnt fordelte laste [kN/m] | F29: Punktlaste [kN] | I29: Kontrolparametre | K29: Momentkapacitet | M29: Forskydningskapacitet | AS29: zc,M = | AT29: =L28 -> 1 | BH29: 0.07797085714 | BI29: 0.002 | BJ29: 1.574901312 | BK29: 4.6875 | BL29: 19.14018393 | BM29: 12.46503488 | BN29: 0.6512494824 | BO29: 0.3984259461 | BP29: 194.651866 | BQ29: 0.3130966385 | BR29: 442.2844899 | BS29: 0.7114125846 | BT29: 500 | BU29: 0 | BV29: 0.4462118836 | BW29: 0.00011 | BX29: 1e-05 | BY29: 5.109934156 | BZ29: 0.6429249986 | CA29: -0.7114125846 | CB29: 0 | CC29: -0.00011 | CD29: 0.02571699994 | CE29: 0 | CF29: 0 | CG29: 0.002 | CH29: 194.651866 | CI29: 442.2844899 | CJ29: 500
C30: p1 | D30: p2 | E30: p3 | F30: P1 | G30: P2 | H30: P3 | I30: M (kNm) | J30: =L30 -> 447.9382658 | K30: MRd | L30: =BV56*1000 -> 447.9382658 | M30: v/ trykbrud i krop: | N30: VRd,0 | O30: =BJ64 -> 851.0614983 | BH30: 0.07424053311 | BI30: 0.002125 | BJ30: 1.482260059 | BK30: 4.152249135 | BL30: 20.00302002 | BM30: 12.97215054 | BN30: 0.6485096016 | BO30: 0.3964659082 | BP30: 195.8704196 | BQ30: 0.3150566764 | BR30: 442.2844899 | BS30: 0.7114125846 | BT30: 500 | BU30: 0 | BV30: 0.4466219183 | BW30: 0.00011 | BX30: 1e-05 | BY30: 5.340289079 | BZ30: 0.683107811 | CA30: -0.7114125846 | CB30: 0 | CC30: -0.00011 | CD30: 0.02732431244 | CE30: 0 | CF30: 0 | CG30: 0.002125 | CH30: 195.8704196 | CI30: 442.2844899 | CJ30: 500
B31: Regnm. værdi | C31: =Kold2!D96 -> 15 | D31: =Kold2!E96 -> 1 | E31: =Kold2!F96 -> 3 | F31: =Kold2!H96 -> 1.65 | G31: =Kold2!I96 -> 0.6 | H31: =Kold2!J96 -> 0.5 | I31: x (mm) | J31: =BH56*1000 -> 57.20375846 | K31: =INDEX(AS4:AS5,Makro!A3,1) -> Tilslag: Søsand / granit | M31: v/ type 1 bøjler: | N31: VRd,1 | O31: =BJ65 -> 173.3120044 | Q31: NB: Resultaterne skal altid kontrolleres af ansvarlig statiker | BH31: 0.07112373618 | BI31: 0.00225 | BJ31: 1.399912278 | BK31: 3.703703704 | BL31: 20.8029593 | BM31: 13.4291136 | BN31: 0.6455386183 | BO31: 0.3950107173 | BP31: 196.7751102 | BQ31: 0.3165118672 | BR31: 442.2844899 | BS31: 0.7114125846 | BT31: 500 | BU31: 0 | BV31: 0.4469509587 | BW31: 0.00011 | BX31: 1e-05 | BY31: 5.553852181 | BZ31: 0.7232906234 | CA31: -0.7114125846 | CB31: 0 | CC31: -0.00011 | CD31: 0.02893162494 | CE31: 0 | CF31: 0 | CG31: 0.00225 | CH31: 196.7751102 | CI31: 442.2844899 | CJ31: 500
I32: e0 (o/oo) | J32: =BI56*1000 -> 3.375 | K32: =INDEX(AR33:AR35,Makro!A4,1) -> Stål: Bratkølet | M32: v/ type 2 bøjler: | N32: VRd,2 | O32: =BJ66 -> 173.3120044 | AR32: 2 | AS32: h_red | AT32: =O7-L27*AT39 -> 683.4870703 | BH32: 0.06849807057 | BI32: 0.002375 | BJ32: 1.326232684 | BK32: 3.324099723 | BL32: 21.53885338 | BM32: 13.83541995 | BN32: 0.6423470973 | BO32: 0.3938856108 | BP32: 197.4745879 | BQ32: 0.3176369738 | BR32: 442.2844899 | BS32: 0.7114125846 | BT32: 500 | BU32: 0 | BV32: 0.4472147987 | BW32: 0.00011 | BX32: 1e-05 | BY32: 5.75031687 | BZ32: 0.7634734358 | CA32: -0.7114125846 | CB32: 0 | CC32: -0.00011 | CD32: 0.03053893743 | CE32: 0 | CF32: 0 | CG32: 0.002375 | CH32: 197.4745879 | CI32: 442.2844899 | CJ32: 500
I33: sst (MPa) | J33: =IF(AND(AS11=0,AS10=0),0,BR56) -> 442.2844899 | K33: Forskydningskraftens største excentricitet, exc.: | O33: =MAX(Brand2!P60:BD60) -> 21.21559633 | Q33: Vejledning | T33: Betonelementbyggeriers statik | AR33: Stål: Varmvalset | AS33: b_red | AT33: =O8-2*L27*AT40 -> 266.9741406 | AV33: Forskydningsarmering bør vurderes nærmere ! | BD33: =IF(BE33=1,AV33,"") ->  | BE33: =IF(Brand2!I68=1,1,0) -> 0 | BH33: 0.06626937799 | BI33: 0.0025 | BJ33: 1.25992105 | BK33: 3 | BL33: 22.21038858 | BM33: 14.19127855 | BN33: 0.6389477834 | BO33: 0.3929508641 | BP33: 198.0557189 | BQ33: 0.3185717205 | BR33: 442.2844899 | BS33: 0.7114125846 | BT33: 500 | BU33: 0 | BV33: 0.4474250091 | BW33: 0.00011 | BX33: 1e-05 | BY33: 5.929599402 | BZ33: 0.8036562482 | CA33: -0.7114125846 | CB33: 0 | CC33: -0.00011 | CD33: 0.03214624993 | CE33: 0 | CF33: 0 | CG33: 0.0025 | CH33: 198.0557189 | CI33: 442.2844899 | CJ33: 500
I34: z (mm) | J34: =AS16 -> 637.727627 | K34: Forankringskrav til hovedarmering over lejer, Na : | O34: =CD66 -> 84.33416087 | T34: Polyteknisk Forlag 2011, eller www.bef.dk | AR34: Stål: Bratkølet | AS34: a_t_red | AT34: =N11 -> 40 | BH34: 0.06436442907 | BI34: 0.002625 | BJ34: 1.199924809 | BK34: 2.721088435 | BL34: 22.81803291 | BM34: 14.4975547 | BN34: 0.6353551491 | BO34: 0.3920968205 | BP34: 198.586677 | BQ34: 0.3194257641 | BR34: 442.2844899 | BS34: 0.7114125846 | BT34: 500 | BU34: 0 | BV34: 0.4475902929 | BW34: 0.00011 | BX34: 1e-05 | BY34: 6.091824727 | BZ34: 0.8438390606 | CA34: -0.7114125846 | CB34: 0 | CC34: -0.00011 | CD34: 0.03375356242 | CE34: 0 | CF34: 0 | CG34: 0.002625 | CH34: 198.586677 | CI34: 442.2844899 | CJ34: 500
AR35: Stål: Kolddeformeret | AS35: a_1_red | AT35: =N12-L27*AT39 -> 83.4870703 | BD35: =IF(BC35=1,AV35,"") ->  | BH35: 0.06272567204 | BI35: 0.00275 | BJ35: 1.145382773 | BK35: 2.479338843 | BL35: 23.36295815 | BM35: 14.75569242 | BN35: 0.6315849358 | BO35: 0.3912391901 | BP35: 199.1198649 | BQ35: 0.3202833945 | BR35: 442.2844899 | BS35: 0.7114125846 | BT35: 500 | BU35: 0 | BV35: 0.4477173831 | BW35: 0.00011 | BX35: 1e-05 | BY35: 6.237305674 | BZ35: 0.884021873 | CA35: -0.7114125846 | CB35: 0 | CC35: -0.00011 | CD35: 0.03536087492 | CE35: 0 | CF35: 0 | CG35: 0.00275 | CH35: 199.1198649 | CI35: 442.2844899 | CJ35: 500
AR36: =IF(Makro!A4=1,"Q",IF(Makro!A4=2,"AC","C")) -> AC | AS36: a_2_red | AT36: =N13-L27*AT39 -> 23.4870703 | BH36: 0.06130742515 | BI36: 0.002875 | BJ36: 1.095583522 | BK36: 2.268431002 | BL36: 23.8469448 | BM36: 14.96762341 | BN36: 0.6276537117 | BO36: 0.3903148008 | BP36: 199.6945568 | BQ36: 0.3212077838 | BR36: 442.2844899 | BS36: 0.7114125846 | BT36: 500 | BU36: 0 | BV36: 0.4478116392 | BW36: 0.00011 | BX36: 1e-05 | BY36: 6.366517593 | BZ36: 0.9242046854 | CA36: -0.7114125846 | CB36: 0 | CC36: -0.00011 | CD36: 0.03696818742 | CE36: 0 | CF36: 0 | CG36: 0.002875 | CH36: 199.6945568 | CI36: 442.2844899 | CJ36: 500
BH37: 0.06007308939 | BI37: 0.003 | BJ37: 1.049934208 | BK37: 2.083333333 | BL37: 24.27227781 | BM37: 15.13566969 | BN37: 0.6235784629 | BO37: 0.3892778549 | BP37: 200.339225 | BQ37: 0.3222447297 | BR37: 442.2844899 | BS37: 0.7114125846 | BT37: 500 | BU37: 0 | BV37: 0.4478774443 | BW37: 0.00011 | BX37: 1e-05 | BY37: 6.480070509 | BZ37: 0.9643874978 | CA37: -0.7114125846 | CB37: 0 | CC37: -0.00011 | CD37: 0.03857549991 | CE37: 0 | CF37: 0 | CG37: 0.003 | CH37: 200.339225 | CI37: 442.2844899 | CJ37: 500
AR38: Brand, trykside | AS38: 1 | AT38: =AS38-1 -> 0 | BH38: 0.0589930882 | BI38: 0.003125 | BJ38: 1.00793684 | BK38: 1.92 | BL38: 24.6416399 | BM38: 15.26244605 | BN38: 0.6193762309 | BO38: 0.388096687 | BP38: 201.073556 | BQ38: 0.3234258976 | BR38: 442.2844899 | BS38: 0.7114125846 | BT38: 500 | BU38: 0 | BV38: 0.4479184721 | BW38: 0.00011 | BX38: 1e-05 | BY38: 6.578680635 | BZ38: 1.00457031 | CA38: -0.7114125846 | CB38: 0 | CC38: -0.00011 | CD38: 0.04018281241 | CE38: 0 | CF38: 0 | CG38: 0.003125 | CH38: 201.073556 | CI38: 442.2844899 | CJ38: 500
AR39: Brand, trækside | AS39: 2 | AT39: =Makro!A1-1 -> 1 | BH39: 0.05804332926 | BI39: 0.00325 | BJ39: 0.9691700384 | BK39: 1.775147929 | BL39: 24.95800816 | BM39: 15.35076743 | BN39: 0.6150638037 | BO39: 0.3867509902 | BP39: 201.9101743 | BQ39: 0.3247715944 | BR39: 442.2844899 | BS39: 0.7114125846 | BT39: 500 | BU39: 0 | BV39: 0.4479378648 | BW39: 0.00011 | BX39: 1e-05 | BY39: 6.66314278 | BZ39: 1.044753123 | CA39: -0.7114125846 | CB39: 0 | CC39: -0.00011 | CD39: 0.04179012491 | CE39: 0 | CF39: 0 | CG39: 0.00325 | CH39: 201.9101743 | CI39: 442.2844899 | CJ39: 500
AR40: Brand, sider | AS40: 2 | AT40: =Makro!A2-1 -> 1 | BH40: 0.05720404433 | BI40: 0.003375 | BJ40: 0.9332748518 | BK40: 1.646090535 | BL40: 25.22455822 | BM40: 15.40356473 | BN40: 0.6106574629 | BO40: 0.3852294677 | BP40: 202.8561033 | BQ40: 0.3262931169 | BR40: 442.2844899 | BS40: 0.7114125846 | BT40: 500 | BU40: 0 | BV40: 0.4479383547 | BW40: 0.00011 | BX40: 1e-05 | BY40: 6.734304754 | BZ40: 1.084935935 | CA40: -0.7114125846 | CB40: 0 | CC40: -0.00011 | CD40: 0.0433974374 | CE40: 0 | CF40: 0 | CG40: 0.003375 | CH40: 202.8561033 | CI40: 442.2844899 | CJ40: 500
BH41: 0.05645890549 | BI41: 0.0035 | BJ41: 0.8999436071 | BK41: 1.530612245 | BL41: 25.44457879 | BM41: 15.42381122 | BN41: 0.6061727863 | BO41: 0.3835278605 | BP41: 203.9139908 | BQ41: 0.3279947241 | BR41: 442.2844899 | BS41: 0.7114125846 | BT41: 500 | BU41: 0 | BV41: 0.4479223462 | BW41: 0.00011 | BX41: 1e-05 | BY41: 6.793044555 | BZ41: 1.125118747 | CA41: -0.7114125846 | CB41: 0 | CC41: -0.00011 | CD41: 0.0450047499 | CE41: 0 | CF41: 0 | CG41: 0.003375 | CH41: 202.8561033 | CI41: 442.2844899 | CJ41: 500
AT42: NEJ | BH42: 0.05579432275 | BI42: 0.003625 | BJ42: 0.8689110689 | BK42: 1.426872771 | BL42: 25.62143072 | BM42: 15.41446095 | BN42: 0.6016237389 | BO42: 0.3816476434 | BP42: 205.0829199 | BQ42: 0.3298749412 | BR42: 442.2844899 | BS42: 0.7114125846 | BT42: 500 | BU42: 0 | BV42: 0.4478919668 | BW42: 0.00011 | BX42: 1e-05 | BY42: 6.840259449 | BZ42: 1.16530156 | CA42: -0.7114125846 | CB42: 0 | CC42: -0.00011 | CD42: 0.0466120624 | CE42: 0 | CF42: 0 | CG42: 0.003375 | CH42: 202.8561033 | CI42: 442.2844899 | CJ42: 500
AT43: JA | BH43: 0.05519898284 | BI43: 0.00375 | BJ43: 0.8399473666 | BK43: 1.333333333 | BL43: 25.7583912 | BM43: 15.37839844 | BN43: 0.5970248036 | BO43: 0.3795937094 | BP43: 206.3598486 | BQ43: 0.3319288752 | BR43: 442.2844899 | BS43: 0.7114125846 | BT43: 500 | BU43: 0 | BV43: 0.4478491281 | BW43: 0.00011 | BX43: 1e-05 | BY43: 6.876824353 | BZ43: 1.205484372 | CA43: -0.7114125846 | CB43: 0 | CC43: -0.00011 | CD43: 0.04821937489 | CE43: 0 | CF43: 0 | CG43: 0.003375 | CH43: 202.8561033 | CI43: 442.2844899 | CJ43: 500
BH44: 0.05466336802 | BI44: 0.003875 | BJ44: 0.8128522903 | BK44: 1.248699272 | BL44: 25.85869575 | BM44: 15.31840042 | BN44: 0.5923887485 | BO44: 0.3773741956 | BP44: 207.7397181 | BQ44: 0.334148389 | BR44: 442.2844899 | BS44: 0.7114125846 | BT44: 500 | BU44: 0 | BV44: 0.4477955352 | BW44: 0.00011 | BX44: 1e-05 | BY44: 6.903603076 | BZ44: 1.245667185 | CA44: -0.7114125846 | CB44: 0 | CC44: -0.00011 | CD44: 0.04982668739 | CE44: 0 | CF44: 0 | CG44: 0.003375 | CH44: 202.8561033 | CI44: 442.2844899 | CJ44: 500
BH45: 0.05417945101 | BI45: 0.004 | BJ45: 0.7874506562 | BK45: 1.171875 | BL45: 25.92547098 | BM45: 15.23710725 | BN45: 0.5877273075 | BO45: 0.3749992957 | BP45: 209.216191 | BQ45: 0.3365232889 | BR45: 442.2844899 | BS45: 0.7114125846 | BT45: 500 | BU45: 0 | BV45: 0.4477327162 | BW45: 0.00011 | BX45: 1e-05 | BY45: 6.921430334 | BZ45: 1.285849997 | CA45: -0.7114125846 | CB45: 0 | CC45: -0.00011 | CD45: 0.05143399988 | CE45: 0 | CF45: 0 | CG45: 0.003375 | CH45: 202.8561033 | CI45: 442.2844899 | CJ45: 500
BH46: 0.05374043377 | BI46: 0.004125 | BJ46: 0.7635885151 | BK46: 1.101928375 | BL46: 25.96170646 | BM46: 15.1370036 | BN46: 0.5830511804 | BO46: 0.3724805501 | BP46: 210.7820926 | BQ46: 0.3390420345 | BR46: 442.2844899 | BS46: 0.7114125846 | BT46: 500 | BU46: 0 | BV46: 0.4476620407 | BW46: 0.00011 | BX46: 1e-05 | BY46: 6.931104271 | BZ46: 1.32603281 | CA46: -0.7114125846 | CB46: 0 | CC46: -0.00011 | CD46: 0.05304131238 | CE46: 0 | CF46: 0 | CG46: 0.003375 | CH46: 202.8561033 | CI46: 442.2844899 | CJ46: 500
BH47: 0.05334053765 | BI47: 0.00425 | BJ47: 0.7411300293 | BK47: 1.038062284 | BL47: 25.97023543 | BM47: 15.02040649 | BN47: 0.5783700551 | BO47: 0.3698302855 | BP47: 212.4297595 | BQ47: 0.3416922991 | BR47: 442.2844899 | BS47: 0.7114125846 | BT47: 500 | BU47: 0 | BV47: 0.4475847344 | BW47: 0.00011 | BX47: 1e-05 | BY47: 6.933381285 | BZ47: 1.366215622 | CA47: -0.7114125846 | CB47: 0 | CC47: -0.00011 | CD47: 0.05464862488 | CE47: 0 | CF47: 0 | CG47: 0.003375 | CH47: 202.8561033 | CI47: 442.2844899 | CJ47: 500
BH48: 0.05297483354 | BI48: 0.004375 | BJ48: 0.7199548857 | BK48: 0.9795918367 | BL48: 25.95372259 | BM48: 14.88945974 | BN48: 0.5736926441 | BO48: 0.3670611799 | BP48: 214.1513096 | BQ48: 0.3444614047 | BR48: 442.2844899 | BS48: 0.7114125846 | BT48: 500 | BU48: 0 | BV48: 0.4475018928 | BW48: 0.00011 | BX48: 1e-05 | BY48: 6.928972784 | BZ48: 1.406398434 | CA48: -0.7114125846 | CB48: 0 | CC48: -0.00011 | CD48: 0.05625593737 | CE48: 0 | CF48: 0 | CG48: 0.003375 | CH48: 202.8561033 | CI48: 442.2844899 | CJ48: 500
BH49: 0.05263910353 | BI49: 0.0045 | BJ49: 0.6999561388 | BK49: 0.9259259259 | BL49: 25.91465795 | BM49: 14.74613316 | BN49: 0.5690267333 | BO49: 0.3641859295 | BP49: 215.9388499 | BQ49: 0.3473366551 | BR49: 442.2844899 | BS49: 0.7114125846 | BT49: 500 | BU49: 0 | BV49: 0.4474144925 | BW49: 0.00011 | BX49: 1e-05 | BY49: 6.918543536 | BZ49: 1.446581247 | CA49: -0.7114125846 | CB49: 0 | CC49: -0.00011 | CD49: 0.05786324987 | CE49: 0 | CF49: 0 | CG49: 0.003375 | CH49: 202.8561033 | CI49: 442.2844899 | CJ49: 500
BH50: 0.05232972757 | BI50: 0.004625 | BJ50: 0.6810384053 | BK50: 0.8765522279 | BL50: 25.85535531 | BM50: 14.5922257 | BN50: 0.5643792369 | BO50: 0.3612169999 | BP50: 217.7846305 | BQ50: 0.3503055847 | BR50: 442.2844899 | BS50: 0.7114125846 | BT50: 500 | BU50: 0 | BV50: 0.4473234019 | BW50: 0.00011 | BX50: 1e-05 | BY50: 6.902711263 | BZ50: 1.486764059 | CA50: -0.7114125846 | CB50: 0 | CC50: -0.00011 | CD50: 0.05947056237 | CE50: 0 | CF50: 0 | CG50: 0.003375 | CH50: 202.8561033 | CI50: 442.2844899 | CJ50: 500
BH51: 0.05204359003 | BI51: 0.00475 | BJ51: 0.663116342 | BK51: 0.8310249307 | BL51: 25.77795438 | BM51: 14.42937126 | BN51: 0.5597562574 | BO51: 0.3581664439 | BP51: 219.6811581 | BQ51: 0.3533561407 | BR51: 442.2844899 | BS51: 0.7114125846 | BT51: 500 | BU51: 0 | BV51: 0.4472293908 | BW51: 0.00011 | BX51: 1e-05 | BY51: 6.882047216 | BZ51: 1.526946872 | CA51: -0.7114125846 | CB51: 0 | CC51: -0.00011 | CD51: 0.06107787486 | CE51: 0 | CF51: 0 | CG51: 0.003375 | CH51: 202.8561033 | CI51: 442.2844899 | CJ51: 500
BH52: 0.05177800238 | BI52: 0.004875 | BJ52: 0.6461133589 | BK52: 0.7889546351 | BL52: 25.68442569 | BM52: 14.2590466 | BN52: 0.5551631469 | BO52: 0.3550457739 | BP52: 221.6212755 | BQ52: 0.3564768107 | BR52: 442.2844899 | BS52: 0.7114125846 | BT52: 500 | BU52: 0 | BV52: 0.4471331398 | BW52: 0.00011 | BX52: 1e-05 | BY52: 6.857077476 | BZ52: 1.567129684 | CA52: -0.7114125846 | CB52: 0 | CC52: -0.00011 | CD52: 0.06268518736 | CE52: 0 | CF52: 0 | CG52: 0.003375 | CH52: 202.8561033 | CI52: 442.2844899 | CJ52: 500
BH53: 0.05153063885 | BI53: 0.005 | BJ53: 0.6299605249 | BK53: 0.75 | BL53: 25.57657742 | BM53: 14.08258039 | BN53: 0.550604569 | BO53: 0.3518658768 | BP53: 223.5982143 | BQ53: 0.3596567078 | BR53: 442.2844899 | BS53: 0.7114125846 | BT53: 500 | BU53: 0 | BV53: 0.4470352482 | BW53: 0.00011 | BX53: 1e-05 | BY53: 6.828284777 | BZ53: 1.607312496 | CA53: -0.7114125846 | CB53: 0 | CC53: -0.00011 | CD53: 0.06429249986 | CE53: 0 | CF53: 0 | CG53: 0.003375 | CH53: 202.8561033 | CI53: 442.2844899 | CJ53: 500
BP54: =CH53 -> 202.8561033 | BQ54: 0.3262931169 | BR54: =CI53 -> 442.2844899 | BS54: 0.7114125846 | BT54: =CJ53 -> 500 | BU54: 0
BH55: 0.05720375846 | BI55: =CG53 -> 0.003375 | BJ55: =IF($CF$11=1,BI55/($CE$11*$CD$11),2^(1/3)*$CD$11/BI55) -> 0.9332748518 | BK55: =IF($CF$11=1,-($CE$11-2)*BI55/$CD$11,3*($CD$11/BI55)^2) -> 1.646090535 | BL55: =IF(CF$11=1,0.5*(CE$11*BI55*BL$11/CD$11)*(1-CG54^2+(BJ55-BK55)*(BK55^2*(1-CG54^2)+2*BK55*(1-CG54)+2*LN((1-BK55)/(1-BK55*CG54)))/(BK55^3)),BL$11*BK55*(LN((1-BJ55+BJ55^2)/(1+BJ55)^2)/(6*BJ55)+ATAN((2-BJ55)/(BJ55*3^0.5))/(BJ55*3^0.5)-LN((CG54^2-BJ55*CG54+BJ55^2)/(CG54+BJ55)^2)/(6*BJ55)-ATAN((2*CG54-BJ55)/(BJ55*3^0.5))/(BJ55*3^0.5))) -> 25.22493253 | BM55: =IF(CF$11=1,(CE$11*BI55*BL$11/CD$11)*(1-CG54^3-(BJ55-BK55)*(-2*BK55^3*(1-CG54^3)-3*BK55^2*(1-CG54^2)-6*BK55*(1-CG54)-6*LN((1-BK55)/(1-BK55*CG54)))/(2*BK55^4))/3,BL$11*BK55*(LN((1+BJ55^3)/(BJ55^3+CG54^3)))/3) -> 15.40356554 | BN55: =BM55/BL55 -> 0.6106484336 | BO55: =BL55*BH55*BJ$11 -> 0.385233259 | BP55: =MAX(MIN(BQ$11,CA$11*BP$11*BI55*(BH55-BO$11)/BH55),-BQ$11) -> 202.8537463 | BQ55: 0.3262893256 | BR55: =MIN(BU$11,CA$11*BT$11*BI55*(BI$11-BH55-BS$11)/BH55) -> 442.2844899 | BS55: 0.7114125846 | BT55: =MIN($BY$11,CA$11*$BX$11*BI55*(BI$11-BH55-$BW$11)/BH55) -> 500 | BU55: 0 | BV55: =(0.5*BI$11-BH55+BN55*BH55)*BO55+(0.5*BI$11-BO$11)*BQ55+(0.5*BI$11-BS$11)*BS55+(0.5*BI$11-BW$11)*BU55 -> 0.4479382658 | BW55: =BO55+BQ55-BS55-BU55 -> 0.00011 | BX55: =$CG$11+0.00001 -> 1e-05 | BY55: =BL55*BJ$11 -> 6.734404685 | BZ55: =IF(BP54<BQ$11,CA$11*BI55*BN$11*BP$11,BN$11*BQ$11) -> 1.084935935 | CA55: =IF(BR54<BU$11,CA$11*BI55*BR$11*BT$11,-BR$11*BU$11) -> -0.7114125846 | CB55: =IF(BT54<BY$11,CA$11*BI55*$BV$11*$BX$11,-$BV$11*BY$11) -> 0 | CC55: =-(BX55+0.0001) -> -0.00011 | CD55: =IF(BP54<BQ$11,BO$11*CA$11*BI55*BN$11*BP$11,0) -> 0.0433974374 | CE55: =IF(BR54<BU$11,(BI$11-BS$11)*CA$11*BI55*BR$11*BT$11,0) -> 0 | CF55: =IF(BT54<BY$11,(BI$11-$BW$11)*CA$11*BI55*$BV$11*$BX$11,0) -> 0
BH56: 0.05720375846 | BI56: =BI55 -> 0.003375 | BJ56: =IF($CF$11=1,BI56/($CE$11*$CD$11),2^(1/3)*$CD$11/BI56) -> 0.9332748518 | BK56: =IF($CF$11=1,-($CE$11-2)*BI56/$CD$11,3*($CD$11/BI56)^2) -> 1.646090535 | BL56: =IF(CF$11=1,0.5*(CE$11*BI56*BL$11/CD$11)*(1-CG55^2+(BJ56-BK56)*(BK56^2*(1-CG55^2)+2*BK56*(1-CG55)+2*LN((1-BK56)/(1-BK56*CG55)))/(BK56^3)),BL$11*BK56*(LN((1-BJ56+BJ56^2)/(1+BJ56)^2)/(6*BJ56)+ATAN((2-BJ56)/(BJ56*3^0.5))/(BJ56*3^0.5)-LN((CG55^2-BJ56*CG55+BJ56^2)/(CG55+BJ56)^2)/(6*BJ56)-ATAN((2*CG55-BJ56)/(BJ56*3^0.5))/(BJ56*3^0.5))) -> 25.22493253 | BM56: =IF(CF$11=1,(CE$11*BI56*BL$11/CD$11)*(1-CG55^3-(BJ56-BK56)*(-2*BK56^3*(1-CG55^3)-3*BK56^2*(1-CG55^2)-6*BK56*(1-CG55)-6*LN((1-BK56)/(1-BK56*CG55)))/(2*BK56^4))/3,BL$11*BK56*(LN((1+BJ56^3)/(BJ56^3+CG55^3)))/3) -> 15.40356554 | BN56: =BM56/BL56 -> 0.6106484336 | BO56: =BL56*BH56*BJ$11 -> 0.385233259 | BP56: =MAX(MIN(BQ$11,CA$11*BP$11*BI56*(BH56-BO$11)/BH56),-BQ$11) -> 202.8537463 | BQ56: 0.3262893256 | BR56: =MIN(BU$11,CA$11*BT$11*BI56*(BI$11-BH56-BS$11)/BH56) -> 442.2844899 | BS56: 0.7114125846 | BT56: =MIN($BY$11,CA$11*$BX$11*BI56*(BI$11-BH56-$BW$11)/BH56) -> 500 | BU56: 0 | BV56: =(0.5*BI$11-BH56+BN56*BH56)*BO56+(0.5*BI$11-BO$11)*BQ56+(0.5*BI$11-BS$11)*BS56+(0.5*BI$11-BW$11)*BU56 -> 0.4479382658 | BW56: =BO56+BQ56-BS56-BU56 -> 0.00011 | BX56: =$CG$11+0.00001 -> 1e-05 | BY56: =BL56*BJ$11 -> 6.734404685 | BZ56: =IF(BP55<BQ$11,CA$11*BI56*BN$11*BP$11,BN$11*BQ$11) -> 1.084935935 | CA56: =IF(BR55<BU$11,CA$11*BI56*BR$11*BT$11,-BR$11*BU$11) -> -0.7114125846 | CB56: =IF(BT55<BY$11,CA$11*BI56*$BV$11*$BX$11,-$BV$11*BY$11) -> 0 | CC56: =-(BX56+0.0001) -> -0.00011 | CD56: =IF(BP55<BQ$11,BO$11*CA$11*BI56*BN$11*BP$11,0) -> 0.0433974374 | CE56: =IF(BR55<BU$11,(BI$11-BS$11)*CA$11*BI56*BR$11*BT$11,0) -> 0 | CF56: =IF(BT55<BY$11,(BI$11-$BW$11)*CA$11*BI56*$BV$11*$BX$11,0) -> 0
BH57: hc | BI57: e0 | BJ57: a' | BK57: b' | BL57: N' | BM57: tN' | BN57: t' | BO57: Nc | BP57: sac | BQ57: Nac | BR57: sat | BS57: Nat | BT57: sat | BU57: Nat | BV57: Mtot | BW57: N | BX57: N | BY57: A | BZ57: B1 | CA57: B2' | CB57: B2 | CC57: B3 | CD57: C1 | CE57: C2 | CF57: C2'
BH61: FORSKYDNING
BJ63: V | BK63: v | BL63: f_cd | BM63: b | BN63: h | BO63: h_int | BP63: c | BQ63: b | BR63: cot0 | BS63: w | BT63: a | BU63: d | BV63: A | BW63: f_yd
BH64: Betontrykbrud | BJ64: =1000*(BK64*BL64*BR64)/((1+BR64^2)*(1/(BM64*BO64)+BS64/((1.4*BQ64)*(BM64-BQ64*BM64)*(BN64-BQ64*BM64)))) -> 851.0614983 | BK64: =0.7-$L$21/200 -> 0.525 | BL64: =AT29*$L$22 -> 35 | BM64: =BJ11 -> 0.2669741406 | BN64: =BI11 -> 0.6834870703 | BO64: =$J$34/1000 -> 0.637727627 | BP64: =($N$13-AT40*L27)/1000 -> 0.0234870703 | BQ64: =MIN(BN64/(2*(BM64+BN64)),0.5) -> 0.3595554782 | BR64: =$O$15 -> 2.5 | BS64: =$O$33/(1000*BM64) -> 0.07946685878
BH65: Bøjler, type 1 | BJ65: =MIN($BJ$64,1000*BV65*BW65*BR65/(BT65*(1/BO65+BS65*BM65/((BM65-BQ65*BM65)*(BN65-BQ65*BM65))))) -> 173.3120044 | BM65: =BM64 -> 0.2669741406 | BN65: =BN64 -> 0.6834870703 | BO65: =BO64 -> 0.637727627 | BP65: =BP64 -> 0.0234870703 | BQ65: =MIN(BN65/(2*(BM65+BN65)),0.5) -> 0.3595554782 | BR65: =$O$15 -> 2.5 | BS65: =BS64 -> 0.07946685878 | BT65: =$N$15/1000 -> 0.15 | BU65: =M15 -> 6 | BV65: =2*PI()*(BU65/1000)^2/4 -> 5.654866776e-05 | BW65: =AT27*O22 -> 327.1896344
BH66: Bøjler, type 2 | BJ66: =MIN($BJ$64,1000*BV66*BW66*BR66/(BT66*(1/BO66+BS66*BM66/((BM66-BQ66*BM66)*(BN66-BQ66*BM66))))) -> 173.3120044 | BM66: =BM64 -> 0.2669741406 | BN66: =BN65 -> 0.6834870703 | BO66: =$J$34/1000 -> 0.637727627 | BP66: =BP64 -> 0.0234870703 | BQ66: 0.3595554782 | BR66: =$O$15 -> 2.5 | BS66: =BS64 -> 0.07946685878 | BT66: =$N$16/1000 -> 0.15 | BU66: =M16 -> 6 | BV66: =2*PI()*(BU66/1000)^2/4 -> 5.654866776e-05 | BW66: =BW65 -> 327.1896344 | CB66: Vederlagsforankring | CD66: =0.5*BS64*BM64*$AS$22*BR64/(MIN(BN64,BM64)*(1-BQ64))+0.5*$AS$22*BR64 -> 84.33416087 | CE66: KN

Sheet Brand2
B3: Nedbøjninger | K3: p/P | L3: x1 | M3: x2 | N3: R1 | O3: R2 | P3: 0 | Q3: 1 | R3: 2 | S3: 3 | T3: 4 | U3: 5 | V3: 6 | W3: 7 | X3: 8 | Y3: 9 | Z3: 10 | AA3: 11 | AB3: 12 | AC3: 13 | AD3: 14 | AE3: 15 | AF3: 16 | AG3: 17 | AH3: 18 | AI3: 19 | AJ3: 20 | AK3: 21 | AL3: 22 | AM3: 23 | AN3: 24 | AO3: 25 | AP3: 26 | AQ3: 27 | AR3: 28 | AS3: 29 | AT3: 30 | AU3: 31 | AV3: 32 | AW3: 33 | AX3: 34 | AY3: 35 | AZ3: 36 | BA3: 37 | BB3: 38 | BC3: 39 | BD3: 40
B4: L | C4: (m) | D4: =Brand!L8 -> 5 | P4: 0 | Q4: =Q3*($BD$4-$P$4)/40 -> 0.125 | R4: 0.25 | S4: 0.375 | T4: 0.5 | U4: 0.625 | V4: 0.75 | W4: 0.875 | X4: 1 | Y4: 1.125 | Z4: 1.25 | AA4: 1.375 | AB4: 1.5 | AC4: 1.625 | AD4: 1.75 | AE4: 1.875 | AF4: 2 | AG4: 2.125 | AH4: 2.25 | AI4: 2.375 | AJ4: 2.5 | AK4: 2.625 | AL4: 2.75 | AM4: 2.875 | AN4: 3 | AO4: 3.125 | AP4: 3.25 | AQ4: 3.375 | AR4: 3.5 | AS4: 3.625 | AT4: 3.75 | AU4: 3.875 | AV4: 4 | AW4: 4.125 | AX4: 4.25 | AY4: 4.375 | AZ4: 4.5 | BA4: 4.625 | BB4: 4.75 | BC4: 4.875 | BD4: =$D$4 -> 5 | BE4: =L18 -> 1 | BF4: =L22 -> 1.5 | BG4: =L26 -> 2
I6: p1 | J6: L | K6: =D12 -> 0 | L6: =D16 -> 0 | M6: =D17 -> 5 | N6: =(M6-L6)*K6-O6 -> 0 | O6: =0.5*K6*(M6^2-L6^2)/$D$4 -> 0 | P6: =$N6*P$4-IF(P$4>$L6,0.5*($L6-P$4)^2*$K6)+IF(P$4>$M6,0.5*(P$4-$M6)^2*$K6) -> 0 | Q6: 0 | R6: 0 | S6: 0 | T6: 0 | U6: 0 | V6: 0 | W6: 0 | X6: 0 | Y6: 0 | Z6: =$N6*Z$4-IF(Z$4>$L6,0.5*($L6-Z$4)^2*$K6)+IF(Z$4>$M6,0.5*(Z$4-$M6)^2*$K6) -> 0 | AA6: 0 | AB6: 0 | AC6: 0 | AD6: 0 | AE6: 0 | AF6: 0 | AG6: 0 | AH6: 0 | AI6: 0 | AJ6: =$N6*AJ$4-IF(AJ$4>$L6,0.5*($L6-AJ$4)^2*$K6)+IF(AJ$4>$M6,0.5*(AJ$4-$M6)^2*$K6) -> 0 | AK6: 0 | AL6: 0 | AM6: 0 | AN6: 0 | AO6: 0 | AP6: 0 | AQ6: 0 | AR6: 0 | AS6: 0 | AT6: =$N6*AT$4-IF(AT$4>$L6,0.5*($L6-AT$4)^2*$K6)+IF(AT$4>$M6,0.5*(AT$4-$M6)^2*$K6) -> 0 | AU6: 0 | AV6: 0 | AW6: 0 | AX6: 0 | AY6: 0 | AZ6: 0 | BA6: 0 | BB6: 0 | BC6: 0 | BD6: 0 | BE6: 0 | BF6: 0 | BG6: 0
I7: p1 | J7: K | K7: =D13 -> 5 | L7: =D16 -> 0 | M7: =D17 -> 5 | N7: =(M7-L7)*K7-O7 -> 12.5 | O7: =0.5*K7*(M7^2-L7^2)/$D$4 -> 12.5 | P7: 0 | Q7: 1.5234375 | R7: 2.96875 | S7: 4.3359375 | T7: 5.625 | U7: 6.8359375 | V7: 7.96875 | W7: 9.0234375 | X7: 10 | Y7: 10.8984375 | Z7: 11.71875 | AA7: 12.4609375 | AB7: 13.125 | AC7: 13.7109375 | AD7: 14.21875 | AE7: 14.6484375 | AF7: 15 | AG7: 15.2734375 | AH7: 15.46875 | AI7: 15.5859375 | AJ7: 15.625 | AK7: 15.5859375 | AL7: 15.46875 | AM7: 15.2734375 | AN7: 15 | AO7: 14.6484375 | AP7: 14.21875 | AQ7: 13.7109375 | AR7: 13.125 | AS7: 12.4609375 | AT7: 11.71875 | AU7: 10.8984375 | AV7: 10 | AW7: 9.0234375 | AX7: 7.96875 | AY7: 6.8359375 | AZ7: 5.625 | BA7: 4.3359375 | BB7: 2.96875 | BC7: 1.5234375 | BD7: 0 | BE7: 10 | BF7: 13.125 | BG7: 15
I8: p1 | J8: d | K8: =D14 -> 5 | L8: =D16 -> 0 | M8: =D17 -> 5 | N8: =(M8-L8)*K8-O8 -> 12.5 | O8: =0.5*K8*(M8^2-L8^2)/$D$4 -> 12.5 | P8: 0 | Q8: 1.5234375 | R8: 2.96875 | S8: 4.3359375 | T8: 5.625 | U8: 6.8359375 | V8: 7.96875 | W8: 9.0234375 | X8: 10 | Y8: 10.8984375 | Z8: 11.71875 | AA8: 12.4609375 | AB8: 13.125 | AC8: 13.7109375 | AD8: 14.21875 | AE8: 14.6484375 | AF8: 15 | AG8: 15.2734375 | AH8: 15.46875 | AI8: 15.5859375 | AJ8: 15.625 | AK8: 15.5859375 | AL8: 15.46875 | AM8: 15.2734375 | AN8: 15 | AO8: 14.6484375 | AP8: 14.21875 | AQ8: 13.7109375 | AR8: 13.125 | AS8: 12.4609375 | AT8: 11.71875 | AU8: 10.8984375 | AV8: 10 | AW8: 9.0234375 | AX8: 7.96875 | AY8: 6.8359375 | AZ8: 5.625 | BA8: 4.3359375 | BB8: 2.96875 | BC8: 1.5234375 | BD8: 0 | BE8: 10 | BF8: 13.125 | BG8: 15
I10: p2 | J10: L | K10: =E12 -> 0 | L10: =E16 -> 1 | M10: =E17 -> 3 | N10: =(M10-L10)*K10-O10 -> 0 | O10: =0.5*K10*(M10^2-L10^2)/$D$4 -> 0 | P10: =$N10*P$4-IF(P$4>$L10,0.5*($L10-P$4)^2*$K10)+IF(P$4>$M10,0.5*(P$4-$M10)^2*$K10)+IF(P$4>$D$4,(P$4-$D$4)*$O10) -> 0 | Q10: =$N10*Q$4-IF(Q$4>$L10,0.5*($L10-Q$4)^2*$K10)+IF(Q$4>$M10,0.5*(Q$4-$M10)^2*$K10) -> 0 | R10: 0 | S10: 0 | T10: 0 | U10: 0 | V10: 0 | W10: 0 | X10: 0 | Y10: 0 | Z10: 0 | AA10: =$N10*AA$4-IF(AA$4>$L10,0.5*($L10-AA$4)^2*$K10)+IF(AA$4>$M10,0.5*(AA$4-$M10)^2*$K10) -> 0 | AB10: 0 | AC10: 0 | AD10: 0 | AE10: 0 | AF10: 0 | AG10: 0 | AH10: 0 | AI10: 0 | AJ10: 0 | AK10: =$N10*AK$4-IF(AK$4>$L10,0.5*($L10-AK$4)^2*$K10)+IF(AK$4>$M10,0.5*(AK$4-$M10)^2*$K10) -> 0 | AL10: 0 | AM10: 0 | AN10: 0 | AO10: 0 | AP10: 0 | AQ10: 0 | AR10: 0 | AS10: 0 | AT10: 0 | AU10: =$N10*AU$4-IF(AU$4>$L10,0.5*($L10-AU$4)^2*$K10)+IF(AU$4>$M10,0.5*(AU$4-$M10)^2*$K10) -> 0 | AV10: 0 | AW10: 0 | AX10: 0 | AY10: 0 | AZ10: 0 | BA10: 0 | BB10: 0 | BC10: 0 | BD10: 0 | BE10: 0 | BF10: 0 | BG10: 0
B11: Jævnt fordelte laste | D11: p1 | E11: p2 | F11: p3 | I11: p2 | J11: K | K11: =E13 -> 9 | L11: =E16 -> 1 | M11: =E17 -> 3 | N11: =(M11-L11)*K11-O11 -> 10.8 | O11: =0.5*K11*(M11^2-L11^2)/$D$4 -> 7.2 | P11: =$N11*P$4-IF(P$4>$L11,0.5*($L11-P$4)^2*$K11)+IF(P$4>$M11,0.5*(P$4-$M11)^2*$K11)+IF(P$4>$D$4,(P$4-$D$4)*$O11) -> 0 | Q11: 1.35 | R11: 2.7 | S11: 4.05 | T11: 5.4 | U11: 6.75 | V11: 8.1 | W11: 9.45 | X11: 10.8 | Y11: 12.0796875 | Z11: 13.21875 | AA11: 14.2171875 | AB11: 15.075 | AC11: 15.7921875 | AD11: 16.36875 | AE11: 16.8046875 | AF11: 17.1 | AG11: 17.2546875 | AH11: 17.26875 | AI11: 17.1421875 | AJ11: 16.875 | AK11: 16.4671875 | AL11: 15.91875 | AM11: 15.2296875 | AN11: 14.4 | AO11: 13.5 | AP11: 12.6 | AQ11: 11.7 | AR11: 10.8 | AS11: 9.9 | AT11: 9 | AU11: 8.1 | AV11: 7.2 | AW11: 6.3 | AX11: 5.4 | AY11: 4.5 | AZ11: 3.6 | BA11: 2.7 | BB11: 1.8 | BC11: 0.9 | BD11: 0 | BE11: 10.8 | BF11: 15.075 | BG11: 17.1
I12: p2 | J12: d | K12: =E14 -> 7.8 | L12: =E16 -> 1 | M12: =E17 -> 3 | N12: =(M12-L12)*K12-O12 -> 9.36 | O12: =0.5*K12*(M12^2-L12^2)/$D$4 -> 6.24 | P12: =$N12*P$4-IF(P$4>$L12,0.5*($L12-P$4)^2*$K12)+IF(P$4>$M12,0.5*(P$4-$M12)^2*$K12)+IF(P$4>$D$4,(P$4-$D$4)*$O12) -> 0 | Q12: 1.17 | R12: 2.34 | S12: 3.51 | T12: 4.68 | U12: 5.85 | V12: 7.02 | W12: 8.19 | X12: 9.36 | Y12: 10.4690625 | Z12: 11.45625 | AA12: 12.3215625 | AB12: 13.065 | AC12: 13.6865625 | AD12: 14.18625 | AE12: 14.5640625 | AF12: 14.82 | AG12: 14.9540625 | AH12: 14.96625 | AI12: 14.8565625 | AJ12: 14.625 | AK12: 14.2715625 | AL12: 13.79625 | AM12: 13.1990625 | AN12: 12.48 | AO12: 11.7 | AP12: 10.92 | AQ12: 10.14 | AR12: 9.36 | AS12: 8.58 | AT12: 7.8 | AU12: 7.02 | AV12: 6.24 | AW12: 5.46 | AX12: 4.68 | AY12: 3.9 | AZ12: 3.12 | BA12: 2.34 | BB12: 1.56 | BC12: 0.78 | BD12: 0 | BE12: 9.36 | BF12: 13.065 | BG12: 14.82
B13: Kar. værdi | C13: (kN/m) | D13: =Brand2!D88*D26 -> 5 | E13: =Brand2!E88*D26 -> 9 | F13: =Brand2!F88*D26 -> 10
B14: Regnm. værdi | C14: (kN/m) | D14: =Brand2!D89*D26 -> 5 | E14: =Brand2!E89*D26 -> 7.8 | F14: =Brand2!F89*D26 -> 7.2 | I14: p3 | J14: L | K14: =F12 -> 0 | L14: =F16 -> 2 | M14: =F17 -> 4 | N14: =(M14-L14)*K14-O14 -> 0 | O14: =0.5*K14*(M14^2-L14^2)/$D$4 -> 0 | P14: =$N14*P$4-IF(P$4>$L14,0.5*($L14-P$4)^2*$K14)+IF(P$4>$M14,0.5*(P$4-$M14)^2*$K14)+IF(P$4>$D$4,(P$4-$D$4)*$O14) -> 0 | Q14: =$N14*Q$4-IF(Q$4>$L14,0.5*($L14-Q$4)^2*$K14)+IF(Q$4>$M14,0.5*(Q$4-$M14)^2*$K14) -> 0 | R14: 0 | S14: 0 | T14: 0 | U14: 0 | V14: 0 | W14: 0 | X14: 0 | Y14: 0 | Z14: 0 | AA14: =$N14*AA$4-IF(AA$4>$L14,0.5*($L14-AA$4)^2*$K14)+IF(AA$4>$M14,0.5*(AA$4-$M14)^2*$K14) -> 0 | AB14: 0 | AC14: 0 | AD14: 0 | AE14: 0 | AF14: 0 | AG14: 0 | AH14: 0 | AI14: 0 | AJ14: 0 | AK14: =$N14*AK$4-IF(AK$4>$L14,0.5*($L14-AK$4)^2*$K14)+IF(AK$4>$M14,0.5*(AK$4-$M14)^2*$K14) -> 0 | AL14: 0 | AM14: 0 | AN14: 0 | AO14: 0 | AP14: 0 | AQ14: 0 | AR14: 0 | AS14: 0 | AT14: 0 | AU14: =$N14*AU$4-IF(AU$4>$L14,0.5*($L14-AU$4)^2*$K14)+IF(AU$4>$M14,0.5*(AU$4-$M14)^2*$K14) -> 0 | AV14: 0 | AW14: 0 | AX14: 0 | AY14: 0 | AZ14: 0 | BA14: 0 | BB14: 0 | BC14: 0 | BD14: 0 | BE14: 0 | BF14: 0 | BG14: 0
B15: exc | C15: (m) | D15: =Brand2!D90 -> 25 | E15: =Brand2!E90 -> 15 | F15: =Brand2!F90 -> 25 | I15: p3 | J15: K | K15: =F13 -> 10 | L15: =F16 -> 2 | M15: =F17 -> 4 | N15: =(M15-L15)*K15-O15 -> 8 | O15: =0.5*K15*(M15^2-L15^2)/$D$4 -> 12 | P15: =$N15*P$4-IF(P$4>$L15,0.5*($L15-P$4)^2*$K15)+IF(P$4>$M15,0.5*(P$4-$M15)^2*$K15)+IF(P$4>$D$4,(P$4-$D$4)*$O15) -> 0 | Q15: 1 | R15: 2 | S15: 3 | T15: 4 | U15: 5 | V15: 6 | W15: 7 | X15: 8 | Y15: 9 | Z15: 10 | AA15: 11 | AB15: 12 | AC15: 13 | AD15: 14 | AE15: 15 | AF15: 16 | AG15: 16.921875 | AH15: 17.6875 | AI15: 18.296875 | AJ15: 18.75 | AK15: 19.046875 | AL15: 19.1875 | AM15: 19.171875 | AN15: 19 | AO15: 18.671875 | AP15: 18.1875 | AQ15: 17.546875 | AR15: 16.75 | AS15: 15.796875 | AT15: 14.6875 | AU15: 13.421875 | AV15: 12 | AW15: 10.5 | AX15: 9 | AY15: 7.5 | AZ15: 6 | BA15: 4.5 | BB15: 3 | BC15: 1.5 | BD15: 0 | BE15: 8 | BF15: 12 | BG15: 16
B16: x1 | C16: (m) | D16: =Brand2!D91 -> 0 | E16: =Brand2!E91 -> 1 | F16: =Brand2!F91 -> 2 | I16: p3 | J16: d | K16: =F14 -> 7.2 | L16: =F16 -> 2 | M16: =F17 -> 4 | N16: =(M16-L16)*K16-O16 -> 5.76 | O16: =0.5*K16*(M16^2-L16^2)/$D$4 -> 8.64 | P16: =$N16*P$4-IF(P$4>$L16,0.5*($L16-P$4)^2*$K16)+IF(P$4>$M16,0.5*(P$4-$M16)^2*$K16)+IF(P$4>$D$4,(P$4-$D$4)*$O16) -> 0 | Q16: 0.72 | R16: 1.44 | S16: 2.16 | T16: 2.88 | U16: 3.6 | V16: 4.32 | W16: 5.04 | X16: 5.76 | Y16: 6.48 | Z16: 7.2 | AA16: 7.92 | AB16: 8.64 | AC16: 9.36 | AD16: 10.08 | AE16: 10.8 | AF16: 11.52 | AG16: 12.18375 | AH16: 12.735 | AI16: 13.17375 | AJ16: 13.5 | AK16: 13.71375 | AL16: 13.815 | AM16: 13.80375 | AN16: 13.68 | AO16: 13.44375 | AP16: 13.095 | AQ16: 12.63375 | AR16: 12.06 | AS16: 11.37375 | AT16: 10.575 | AU16: 9.66375 | AV16: 8.64 | AW16: 7.56 | AX16: 6.48 | AY16: 5.4 | AZ16: 4.32 | BA16: 3.24 | BB16: 2.16 | BC16: 1.08 | BD16: 0 | BE16: 5.76 | BF16: 8.64 | BG16: 11.52
B17: x2 | C17: (m) | D17: =Brand2!D92 -> 5 | E17: =Brand2!E92 -> 3 | F17: =Brand2!F92 -> 4
I18: P1 | J18: L | K18: =D20 -> 0 | L18: =D24 -> 1 | N18: =K18-O18 -> 0 | O18: =K18*L18/$D$4 -> 0 | P18: =$N18*P$4-IF(P$4>$L18,(P$4-$L18)*$K18) -> 0 | Q18: 0 | R18: 0 | S18: 0 | T18: 0 | U18: 0 | V18: 0 | W18: 0 | X18: 0 | Y18: 0 | Z18: =$N18*Z$4-IF(Z$4>$L18,(Z$4-$L18)*$K18) -> 0 | AA18: 0 | AB18: 0 | AC18: 0 | AD18: 0 | AE18: 0 | AF18: 0 | AG18: 0 | AH18: 0 | AI18: 0 | AJ18: =$N18*AJ$4-IF(AJ$4>$L18,(AJ$4-$L18)*$K18) -> 0 | AK18: 0 | AL18: 0 | AM18: 0 | AN18: 0 | AO18: 0 | AP18: 0 | AQ18: 0 | AR18: 0 | AS18: 0 | AT18: =$N18*AT$4-IF(AT$4>$L18,(AT$4-$L18)*$K18) -> 0 | AU18: 0 | AV18: 0 | AW18: 0 | AX18: 0 | AY18: 0 | AZ18: 0 | BA18: 0 | BB18: 0 | BC18: 0 | BD18: 0 | BE18: 0 | BF18: 0 | BG18: 0
B19: Punktlaste | D19: P1 | E19: P2 | F19: P3 | I19: P1 | J19: K | K19: =D21 -> 15 | L19: =D24 -> 1 | N19: =K19-O19 -> 12 | O19: =K19*L19/$D$4 -> 3 | P19: 0 | Q19: 1.5 | R19: 3 | S19: 4.5 | T19: 6 | U19: 7.5 | V19: 9 | W19: 10.5 | X19: 12 | Y19: 11.625 | Z19: 11.25 | AA19: 10.875 | AB19: 10.5 | AC19: 10.125 | AD19: 9.75 | AE19: 9.375 | AF19: 9 | AG19: 8.625 | AH19: 8.25 | AI19: 7.875 | AJ19: 7.5 | AK19: 7.125 | AL19: 6.75 | AM19: 6.375 | AN19: 6 | AO19: 5.625 | AP19: 5.25 | AQ19: 4.875 | AR19: 4.5 | AS19: 4.125 | AT19: 3.75 | AU19: 3.375 | AV19: 3 | AW19: 2.625 | AX19: 2.25 | AY19: 1.875 | AZ19: 1.5 | BA19: 1.125 | BB19: 0.75 | BC19: 0.375 | BD19: 0 | BE19: 12 | BF19: 10.5 | BG19: 9
I20: P1 | J20: d | K20: =D22 -> 15 | L20: =D24 -> 1 | N20: =K20-O20 -> 12 | O20: =K20*L20/$D$4 -> 3 | P20: 0 | Q20: 1.5 | R20: 3 | S20: 4.5 | T20: 6 | U20: 7.5 | V20: 9 | W20: 10.5 | X20: 12 | Y20: 11.625 | Z20: 11.25 | AA20: 10.875 | AB20: 10.5 | AC20: 10.125 | AD20: 9.75 | AE20: 9.375 | AF20: 9 | AG20: 8.625 | AH20: 8.25 | AI20: 7.875 | AJ20: 7.5 | AK20: 7.125 | AL20: 6.75 | AM20: 6.375 | AN20: 6 | AO20: 5.625 | AP20: 5.25 | AQ20: 4.875 | AR20: 4.5 | AS20: 4.125 | AT20: 3.75 | AU20: 3.375 | AV20: 3 | AW20: 2.625 | AX20: 2.25 | AY20: 1.875 | AZ20: 1.5 | BA20: 1.125 | BB20: 0.75 | BC20: 0.375 | BD20: 0 | BE20: 12 | BF20: 10.5 | BG20: 9
B21: Kar. værdi | C21: (kN) | D21: =Brand2!H88*D26 -> 15 | E21: =Brand2!I88*D26 -> 12 | F21: =Brand2!J88*D26 -> 22
B22: Regnm. værdi | C22: (kN) | D22: =Brand2!H89*D26 -> 15 | E22: =Brand2!I89*D26 -> 12 | F22: =Brand2!J89*D26 -> 20 | I22: P2 | J22: L | K22: =E20 -> 0 | L22: =E24 -> 1.5 | N22: =K22-O22 -> 0 | O22: =K22*L22/$D$4 -> 0 | P22: =$N22*P$4-IF(P$4>$L22,(P$4-$L22)*$K22) -> 0 | Q22: 0 | R22: 0 | S22: 0 | T22: 0 | U22: 0 | V22: 0 | W22: 0 | X22: 0 | Y22: 0 | Z22: =$N22*Z$4-IF(Z$4>$L22,(Z$4-$L22)*$K22) -> 0 | AA22: 0 | AB22: 0 | AC22: 0 | AD22: 0 | AE22: 0 | AF22: 0 | AG22: 0 | AH22: 0 | AI22: 0 | AJ22: =$N22*AJ$4-IF(AJ$4>$L22,(AJ$4-$L22)*$K22) -> 0 | AK22: 0 | AL22: 0 | AM22: 0 | AN22: 0 | AO22: 0 | AP22: 0 | AQ22: 0 | AR22: 0 | AS22: 0 | AT22: =$N22*AT$4-IF(AT$4>$L22,(AT$4-$L22)*$K22) -> 0 | AU22: 0 | AV22: 0 | AW22: 0 | AX22: 0 | AY22: 0 | AZ22: 0 | BA22: 0 | BB22: 0 | BC22: 0 | BD22: 0 | BE22: 0 | BF22: 0 | BG22: 0
B23: exc | C23: (m) | D23: =Brand2!H90 -> 10 | E23: =Brand2!I90 -> 15 | F23: =Brand2!J90 -> 20 | I23: P2 | J23: K | K23: =E21 -> 12 | L23: =E24 -> 1.5 | N23: =K23-O23 -> 8.4 | O23: =K23*L23/$D$4 -> 3.6 | P23: 0 | Q23: 1.05 | R23: 2.1 | S23: 3.15 | T23: 4.2 | U23: 5.25 | V23: 6.3 | W23: 7.35 | X23: 8.4 | Y23: 9.45 | Z23: 10.5 | AA23: 11.55 | AB23: 12.6 | AC23: 12.15 | AD23: 11.7 | AE23: 11.25 | AF23: 10.8 | AG23: 10.35 | AH23: 9.9 | AI23: 9.45 | AJ23: 9 | AK23: 8.55 | AL23: 8.1 | AM23: 7.65 | AN23: 7.2 | AO23: 6.75 | AP23: 6.3 | AQ23: 5.85 | AR23: 5.4 | AS23: 4.95 | AT23: 4.5 | AU23: 4.05 | AV23: 3.6 | AW23: 3.15 | AX23: 2.7 | AY23: 2.25 | AZ23: 1.8 | BA23: 1.35 | BB23: 0.9 | BC23: 0.45 | BD23: 0 | BE23: 8.4 | BF23: 12.6 | BG23: 10.8
B24: x | C24: (m) | D24: =Brand2!H91 -> 1 | E24: =Brand2!I91 -> 1.5 | F24: =Brand2!J91 -> 2 | I24: P2 | J24: d | K24: =E22 -> 12 | L24: =E24 -> 1.5 | N24: =K24-O24 -> 8.4 | O24: =K24*L24/$D$4 -> 3.6 | P24: 0 | Q24: 1.05 | R24: 2.1 | S24: 3.15 | T24: 4.2 | U24: 5.25 | V24: 6.3 | W24: 7.35 | X24: 8.4 | Y24: 9.45 | Z24: 10.5 | AA24: 11.55 | AB24: 12.6 | AC24: 12.15 | AD24: 11.7 | AE24: 11.25 | AF24: 10.8 | AG24: 10.35 | AH24: 9.9 | AI24: 9.45 | AJ24: 9 | AK24: 8.55 | AL24: 8.1 | AM24: 7.65 | AN24: 7.2 | AO24: 6.75 | AP24: 6.3 | AQ24: 5.85 | AR24: 5.4 | AS24: 4.95 | AT24: 4.5 | AU24: 4.05 | AV24: 3.6 | AW24: 3.15 | AX24: 2.7 | AY24: 2.25 | AZ24: 1.8 | BA24: 1.35 | BB24: 0.9 | BC24: 0.45 | BD24: 0 | BE24: 8.4 | BF24: 12.6 | BG24: 10.8
B26: Inddatatest | C26: =MAX(Brand!BC16:BC45) -> 0 | D26: =IF(C26=1,0,1) -> 1 | I26: P3 | J26: L | K26: =F20 -> 0 | L26: =F24 -> 2 | N26: =K26-O26 -> 0 | O26: =K26*L26/$D$4 -> 0 | P26: =$N26*P$4-IF(P$4>$L26,(P$4-$L26)*$K26) -> 0 | Q26: 0 | R26: 0 | S26: 0 | T26: 0 | U26: 0 | V26: 0 | W26: 0 | X26: 0 | Y26: 0 | Z26: =$N26*Z$4-IF(Z$4>$L26,(Z$4-$L26)*$K26) -> 0 | AA26: 0 | AB26: 0 | AC26: 0 | AD26: 0 | AE26: 0 | AF26: 0 | AG26: 0 | AH26: 0 | AI26: 0 | AJ26: =$N26*AJ$4-IF(AJ$4>$L26,(AJ$4-$L26)*$K26) -> 0 | AK26: 0 | AL26: 0 | AM26: 0 | AN26: 0 | AO26: 0 | AP26: 0 | AQ26: 0 | AR26: 0 | AS26: 0 | AT26: =$N26*AT$4-IF(AT$4>$L26,(AT$4-$L26)*$K26) -> 0 | AU26: 0 | AV26: 0 | AW26: 0 | AX26: 0 | AY26: 0 | AZ26: 0 | BA26: 0 | BB26: 0 | BC26: 0 | BD26: 0 | BE26: 0 | BF26: 0 | BG26: 0
I27: P3 | J27: K | K27: =F21 -> 22 | L27: =F24 -> 2 | N27: =K27-O27 -> 13.2 | O27: =K27*L27/$D$4 -> 8.8 | P27: 0 | Q27: 1.65 | R27: 3.3 | S27: 4.95 | T27: 6.6 | U27: 8.25 | V27: 9.9 | W27: 11.55 | X27: 13.2 | Y27: 14.85 | Z27: 16.5 | AA27: 18.15 | AB27: 19.8 | AC27: 21.45 | AD27: 23.1 | AE27: 24.75 | AF27: 26.4 | AG27: 25.3 | AH27: 24.2 | AI27: 23.1 | AJ27: 22 | AK27: 20.9 | AL27: 19.8 | AM27: 18.7 | AN27: 17.6 | AO27: 16.5 | AP27: 15.4 | AQ27: 14.3 | AR27: 13.2 | AS27: 12.1 | AT27: 11 | AU27: 9.9 | AV27: 8.8 | AW27: 7.7 | AX27: 6.6 | AY27: 5.5 | AZ27: 4.4 | BA27: 3.3 | BB27: 2.2 | BC27: 1.1 | BD27: 0 | BE27: 13.2 | BF27: 19.8 | BG27: 26.4
I28: P3 | J28: d | K28: =F22 -> 20 | L28: =F24 -> 2 | N28: =K28-O28 -> 12 | O28: =K28*L28/$D$4 -> 8 | P28: 0 | Q28: 1.5 | R28: 3 | S28: 4.5 | T28: 6 | U28: 7.5 | V28: 9 | W28: 10.5 | X28: 12 | Y28: 13.5 | Z28: 15 | AA28: 16.5 | AB28: 18 | AC28: 19.5 | AD28: 21 | AE28: 22.5 | AF28: 24 | AG28: 23 | AH28: 22 | AI28: 21 | AJ28: 20 | AK28: 19 | AL28: 18 | AM28: 17 | AN28: 16 | AO28: 15 | AP28: 14 | AQ28: 13 | AR28: 12 | AS28: 11 | AT28: 10 | AU28: 9 | AV28: 8 | AW28: 7 | AX28: 6 | AY28: 5 | AZ28: 4 | BA28: 3 | BB28: 2 | BC28: 1 | BD28: 0 | BE28: 12 | BF28: 18 | BG28: 24
I30: MOMENTER | O30: punkt | P30: =P3 -> 0 | Q30: 1 | R30: 2 | S30: 3 | T30: 4 | U30: 5 | V30: 6 | W30: 7 | X30: 8 | Y30: 9 | Z30: 10 | AA30: 11 | AB30: 12 | AC30: 13 | AD30: 14 | AE30: 15 | AF30: 16 | AG30: 17 | AH30: 18 | AI30: 19 | AJ30: 20 | AK30: 21 | AL30: 22 | AM30: 23 | AN30: 24 | AO30: 25 | AP30: 26 | AQ30: 27 | AR30: 28 | AS30: 29 | AT30: 30 | AU30: 31 | AV30: 32 | AW30: 33 | AX30: 34 | AY30: 35 | AZ30: 36 | BA30: 37 | BB30: 38 | BC30: 39 | BD30: 40 | BE30: =BE4*40/$D$4 -> 8 | BF30: =BF4*40/$D$4 -> 12 | BG30: =BG4*40/$D$4 -> 16
O31: : | P31: =P7+P11+P15+P19+P23+P27 -> 0 | Q31: 8.0734375 | R31: 16.06875 | S31: 23.9859375 | T31: 31.825 | U31: 39.5859375 | V31: 47.26875 | W31: 54.8734375 | X31: 62.4 | Y31: 67.903125 | Z31: 73.1875 | AA31: 78.253125 | AB31: 83.1 | AC31: 86.228125 | AD31: 89.1375 | AE31: 91.828125 | AF31: 94.3 | AG31: 93.725 | AH31: 92.775 | AI31: 91.45 | AJ31: 89.75 | AK31: 87.675 | AL31: 85.225 | AM31: 82.4 | AN31: 79.2 | AO31: 75.6953125 | AP31: 71.95625 | AQ31: 67.9828125 | AR31: 63.775 | AS31: 59.3328125 | AT31: 54.65625 | AU31: 49.7453125 | AV31: 44.6 | AW31: 39.2984375 | AX31: 33.91875 | AY31: 28.4609375 | AZ31: 22.925 | BA31: 17.3109375 | BB31: 11.61875 | BC31: 5.8484375 | BD31: 0 | BE31: 62.4 | BF31: 83.1 | BG31: 94.3
O32: : | P32: =P8+P12+P16+P20+P24+P28 -> 0 | Q32: 7.4634375 | R32: 14.84875 | S32: 22.1559375 | T32: 29.385 | U32: 36.5359375 | V32: 43.60875 | W32: 50.6034375 | X32: 57.52 | Y32: 62.4225 | Z32: 67.125 | AA32: 71.6275 | AB32: 75.93 | AC32: 78.5325 | AD32: 80.935 | AE32: 83.1375 | AF32: 85.14 | AG32: 84.38625 | AH32: 83.32 | AI32: 81.94125 | AJ32: 80.25 | AK32: 78.24625 | AL32: 75.93 | AM32: 73.30125 | AN32: 70.36 | AO32: 67.1671875 | AP32: 63.78375 | AQ32: 60.2096875 | AR32: 56.445 | AS32: 52.4896875 | AT32: 48.34375 | AU32: 44.0071875 | AV32: 39.48 | AW32: 34.8184375 | AX32: 30.07875 | AY32: 25.2609375 | AZ32: 20.365 | BA32: 15.3909375 | BB32: 10.33875 | BC32: 5.2084375 | BD32: 0 | BE32: 57.52 | BF32: 75.93 | BG32: 85.14
K34: p/P | L34: x1 | M34: x2 | P34: 0 | Q34: 1 | R34: 2 | S34: 3 | T34: 4 | U34: 5 | V34: 6 | W34: 7 | X34: 8 | Y34: 9 | Z34: 10 | AA34: 11 | AB34: 12 | AC34: 13 | AD34: 14 | AE34: 15 | AF34: 16 | AG34: 17 | AH34: 18 | AI34: 19 | AJ34: 20 | AK34: 21 | AL34: 22 | AM34: 23 | AN34: 24 | AO34: 25 | AP34: 26 | AQ34: 27 | AR34: 28 | AS34: 29 | AT34: 30 | AU34: 31 | AV34: 32 | AW34: 33 | AX34: 34 | AY34: 35 | AZ34: 36 | BA34: 37 | BB34: 38 | BC34: 39 | BD34: 40 | BJ34: hi cot 0 | BK34: L-hi cot 0 | BM34: ½hi cot 0 | BN34: L-½hi cot 0
P35: 0 | Q35: =Q34*($BD$4-$P$4)/40 -> 0.125 | R35: 0.25 | S35: 0.375 | T35: 0.5 | U35: 0.625 | V35: 0.75 | W35: 0.875 | X35: 1 | Y35: 1.125 | Z35: 1.25 | AA35: 1.375 | AB35: 1.5 | AC35: 1.625 | AD35: 1.75 | AE35: 1.875 | AF35: 2 | AG35: 2.125 | AH35: 2.25 | AI35: 2.375 | AJ35: 2.5 | AK35: 2.625 | AL35: 2.75 | AM35: 2.875 | AN35: 3 | AO35: 3.125 | AP35: 3.25 | AQ35: 3.375 | AR35: 3.5 | AS35: 3.625 | AT35: 3.75 | AU35: 3.875 | AV35: 4 | AW35: 4.125 | AX35: 4.25 | AY35: 4.375 | AZ35: 4.5 | BA35: 4.625 | BB35: 4.75 | BC35: 4.875 | BD35: =$D$4 -> 5 | BE35: 0 | BF35: =Brand!AS16*Brand!O15/1000 -> 1.594319068 | BG35: =BH35-Brand!AS16*Brand!O15/1000 -> 3.405680932 | BH35: =Brand!L8 -> 5 | BJ35: =BF35 -> 1.594319068 | BK35: =BG35 -> 3.405680932 | BM35: =0.5*BJ35 -> 0.7971595338 | BN35: =BH35-BM35 -> 4.202840466
I36: Venstresidig forskydning
B37: Excentriciteter | I37: =I8 -> p1 | J37: =J8 -> d | K37: =K8 -> 5 | L37: =L8 -> 0 | M37: =M8 -> 5 | P37: =IF(P$35<=$L37,$K37*($M37-$L37)*($D$4-0.5*($L37+$M37))/$D$4,IF(P$35<=$M37,$K37*($M37-P$35)*($D$4-0.5*(P$35+$M37))/$D$4,0)) -> 12.5 | Q37: 11.8828125 | R37: 11.28125 | S37: 10.6953125 | T37: 10.125 | U37: 9.5703125 | V37: 9.03125 | W37: 8.5078125 | X37: 8 | Y37: 7.5078125 | Z37: =IF(Z$35<=$L37,$K37*($M37-$L37)*($D$4-0.5*($L37+$M37))/$D$4,IF(Z$35<=$M37,$K37*($M37-Z$35)*($D$4-0.5*(Z$35+$M37))/$D$4,0)) -> 7.03125 | AA37: 6.5703125 | AB37: 6.125 | AC37: 5.6953125 | AD37: 5.28125 | AE37: 4.8828125 | AF37: 4.5 | AG37: 4.1328125 | AH37: 3.78125 | AI37: 3.4453125 | AJ37: =IF(AJ$35<=$L37,$K37*($M37-$L37)*($D$4-0.5*($L37+$M37))/$D$4,IF(AJ$35<=$M37,$K37*($M37-AJ$35)*($D$4-0.5*(AJ$35+$M37))/$D$4,0)) -> 3.125 | AK37: 2.8203125 | AL37: 2.53125 | AM37: 2.2578125 | AN37: 2 | AO37: 1.7578125 | AP37: 1.53125 | AQ37: 1.3203125 | AR37: 1.125 | AS37: 0.9453125 | AT37: =IF(AT$35<=$L37,$K37*($M37-$L37)*($D$4-0.5*($L37+$M37))/$D$4,IF(AT$35<=$M37,$K37*($M37-AT$35)*($D$4-0.5*(AT$35+$M37))/$D$4,0)) -> 0.78125 | AU37: 0.6328125 | AV37: 0.5 | AW37: 0.3828125 | AX37: 0.28125 | AY37: 0.1953125 | AZ37: 0.125 | BA37: 0.0703125 | BB37: 0.03125 | BC37: 0.0078125 | BD37: 0 | BJ37: =IF(BJ$35<=$L37,$K37*($M37-$L37)*($D$4-0.5*($L37+$M37))/$D$4,IF(BJ$35<=$M37,$K37*($M37-BJ$35)*($D$4-0.5*(BJ$35+$M37))/$D$4,0)) -> 5.799331307 | BK37: 1.270926645 | BM37: =IF(BM$35<=$L37,$K37*($M37-$L37)*($D$4-0.5*($L37+$M37))/$D$4,IF(BM$35<=$M37,$K37*($M37-BM$35)*($D$4-0.5*(BM$35+$M37))/$D$4,0)) -> 8.831933992 | BN37: 0.3177316612
B38: exc. p_1 | C38: (mm) | D38: =D15 -> 25 | I38: =I12 -> p2 | J38: =J12 -> d | K38: =K12 -> 7.8 | L38: =L12 -> 1 | M38: =M12 -> 3 | P38: 9.36 | Q38: 9.36 | R38: 9.36 | S38: 9.36 | T38: 9.36 | U38: 9.36 | V38: 9.36 | W38: 9.36 | X38: 9.36 | Y38: 8.5921875 | Z38: 7.84875 | AA38: 7.1296875 | AB38: 6.435 | AC38: 5.7646875 | AD38: 5.11875 | AE38: 4.4971875 | AF38: 3.9 | AG38: 3.3271875 | AH38: 2.77875 | AI38: 2.2546875 | AJ38: 1.755 | AK38: 1.2796875 | AL38: 0.82875 | AM38: 0.4021875 | AN38: 0 | AO38: 0 | AP38: 0 | AQ38: 0 | AR38: 0 | AS38: 0 | AT38: 0 | AU38: 0 | AV38: 0 | AW38: 0 | AX38: 0 | AY38: 0 | AZ38: 0 | BA38: 0 | BB38: 0 | BC38: 0 | BD38: 0 | BJ38: 5.926956838 | BK38: 0 | BM38: 9.36 | BN38: 0
B39: exc. p_2 | C39: (mm) | D39: =E15 -> 15 | I39: =I16 -> p3 | J39: =J16 -> d | K39: =K16 -> 7.2 | L39: =L16 -> 2 | M39: =M16 -> 4 | P39: 5.76 | Q39: 5.76 | R39: 5.76 | S39: 5.76 | T39: 5.76 | U39: 5.76 | V39: 5.76 | W39: 5.76 | X39: 5.76 | Y39: 5.76 | Z39: 5.76 | AA39: 5.76 | AB39: 5.76 | AC39: 5.76 | AD39: 5.76 | AE39: 5.76 | AF39: 5.76 | AG39: 5.23125 | AH39: 4.725 | AI39: 4.24125 | AJ39: 3.78 | AK39: 3.34125 | AL39: 2.925 | AM39: 2.53125 | AN39: 2.16 | AO39: 1.81125 | AP39: 1.485 | AQ39: 1.18125 | AR39: 0.9 | AS39: 0.64125 | AT39: 0.405 | AU39: 0.19125 | AV39: 0 | AW39: 0 | AX39: 0 | AY39: 0 | AZ39: 0 | BA39: 0 | BB39: 0 | BC39: 0 | BD39: 0 | BJ39: 5.76 | BK39: 1.110134368 | BM39: 5.76 | BN39: 0
B40: exc. p_3 | C40: (mm) | D40: =F15 -> 25 | I40: =I20 -> P1 | J40: =J20 -> d | K40: =K20 -> 15 | L40: =L20 -> 1 | M40: =M20 -> 0 | P40: =IF(P$35<=$L40,$K40*($D$4-$L40)/$D$4,0) -> 12 | Q40: 12 | R40: 12 | S40: 12 | T40: 12 | U40: 12 | V40: 12 | W40: 12 | X40: 12 | Y40: 0 | Z40: =IF(Z$35<=$L40,$K40*($D$4-$L40)/$D$4,0) -> 0 | AA40: 0 | AB40: 0 | AC40: 0 | AD40: 0 | AE40: 0 | AF40: 0 | AG40: 0 | AH40: 0 | AI40: 0 | AJ40: =IF(AJ$35<=$L40,$K40*($D$4-$L40)/$D$4,0) -> 0 | AK40: 0 | AL40: 0 | AM40: 0 | AN40: 0 | AO40: 0 | AP40: 0 | AQ40: 0 | AR40: 0 | AS40: 0 | AT40: =IF(AT$35<=$L40,$K40*($D$4-$L40)/$D$4,0) -> 0 | AU40: 0 | AV40: 0 | AW40: 0 | AX40: 0 | AY40: 0 | AZ40: 0 | BA40: 0 | BB40: 0 | BC40: 0 | BD40: 0 | BJ40: =IF(BJ$35<=$L40,$K40*($D$4-$L40)/$D$4,0) -> 0 | BK40: 0 | BM40: =IF(BM$35<=$L40,$K40*($D$4-$L40)/$D$4,0) -> 12 | BN40: 0
B41: exc. P_1 | C41: (mm) | D41: =D23 -> 10 | I41: =I24 -> P2 | J41: =J24 -> d | K41: =K24 -> 12 | L41: =L24 -> 1.5 | M41: =M24 -> 0 | P41: 8.4 | Q41: 8.4 | R41: 8.4 | S41: 8.4 | T41: 8.4 | U41: 8.4 | V41: 8.4 | W41: 8.4 | X41: 8.4 | Y41: 8.4 | Z41: 8.4 | AA41: 8.4 | AB41: 8.4 | AC41: 0 | AD41: 0 | AE41: 0 | AF41: 0 | AG41: 0 | AH41: 0 | AI41: 0 | AJ41: 0 | AK41: 0 | AL41: 0 | AM41: 0 | AN41: 0 | AO41: 0 | AP41: 0 | AQ41: 0 | AR41: 0 | AS41: 0 | AT41: 0 | AU41: 0 | AV41: 0 | AW41: 0 | AX41: 0 | AY41: 0 | AZ41: 0 | BA41: 0 | BB41: 0 | BC41: 0 | BD41: 0 | BJ41: 0 | BK41: 0 | BM41: 8.4 | BN41: 0
B42: exc. P_2 | C42: (mm) | D42: =E23 -> 15 | I42: =I28 -> P3 | J42: =J28 -> d | K42: =K28 -> 20 | L42: =L28 -> 2 | M42: =M28 -> 0 | P42: 12 | Q42: 12 | R42: 12 | S42: 12 | T42: 12 | U42: 12 | V42: 12 | W42: 12 | X42: 12 | Y42: 12 | Z42: 12 | AA42: 12 | AB42: 12 | AC42: 12 | AD42: 12 | AE42: 12 | AF42: 12 | AG42: 0 | AH42: 0 | AI42: 0 | AJ42: 0 | AK42: 0 | AL42: 0 | AM42: 0 | AN42: 0 | AO42: 0 | AP42: 0 | AQ42: 0 | AR42: 0 | AS42: 0 | AT42: 0 | AU42: 0 | AV42: 0 | AW42: 0 | AX42: 0 | AY42: 0 | AZ42: 0 | BA42: 0 | BB42: 0 | BC42: 0 | BD42: 0 | BJ42: 12 | BK42: 0 | BM42: 12 | BN42: 0
B43: exc. P_3 | C43: (mm) | D43: =F23 -> 20 | I43: Højresidig forskydning
I44: =I37 -> p1 | J44: d | K44: 5 | L44: 0 | M44: 5 | P44: =IF(P$35<$L44,0,IF(P$35<$M44,$K44*(P$35-$L44)*0.5*($L44+P$35)/$D$4,$K44*($M44-$L44)*0.5*($L44+$M44)/$D$4)) -> 0 | Q44: 0.0078125 | R44: 0.03125 | S44: 0.0703125 | T44: 0.125 | U44: 0.1953125 | V44: 0.28125 | W44: 0.3828125 | X44: 0.5 | Y44: 0.6328125 | Z44: =IF(Z$35<$L44,0,IF(Z$35<$M44,$K44*(Z$35-$L44)*0.5*($L44+Z$35)/$D$4,$K44*($M44-$L44)*0.5*($L44+$M44)/$D$4)) -> 0.78125 | AA44: 0.9453125 | AB44: 1.125 | AC44: 1.3203125 | AD44: 1.53125 | AE44: 1.7578125 | AF44: 2 | AG44: 2.2578125 | AH44: 2.53125 | AI44: 2.8203125 | AJ44: =IF(AJ$35<$L44,0,IF(AJ$35<$M44,$K44*(AJ$35-$L44)*0.5*($L44+AJ$35)/$D$4,$K44*($M44-$L44)*0.5*($L44+$M44)/$D$4)) -> 3.125 | AK44: 3.4453125 | AL44: 3.78125 | AM44: 4.1328125 | AN44: 4.5 | AO44: 4.8828125 | AP44: 5.28125 | AQ44: 5.6953125 | AR44: 6.125 | AS44: 6.5703125 | AT44: =IF(AT$35<$L44,0,IF(AT$35<$M44,$K44*(AT$35-$L44)*0.5*($L44+AT$35)/$D$4,$K44*($M44-$L44)*0.5*($L44+$M44)/$D$4)) -> 7.03125 | AU44: 7.5078125 | AV44: 8 | AW44: 8.5078125 | AX44: 9.03125 | AY44: 9.5703125 | AZ44: 10.125 | BA44: 10.6953125 | BB44: 11.28125 | BC44: 11.8828125 | BD44: 12.5 | BJ44: =IF(BJ$35<$L44,0,IF(BJ$35<$M44,$K44*(BJ$35-$L44)*0.5*($L44+BJ$35)/$D$4,$K44*($M44-$L44)*0.5*($L44+$M44)/$D$4)) -> 1.270926645 | BK44: 5.799331307 | BM44: =IF(BM$35<$L44,0,IF(BM$35<$M44,$K44*(BM$35-$L44)*0.5*($L44+BM$35)/$D$4,$K44*($M44-$L44)*0.5*($L44+$M44)/$D$4)) -> 0.3177316612 | BN44: 8.831933992
I45: p2 | J45: d | K45: 7.8 | L45: 1 | M45: 3 | P45: 0 | Q45: 0 | R45: 0 | S45: 0 | T45: 0 | U45: 0 | V45: 0 | W45: 0 | X45: 0 | Y45: 0.2071875 | Z45: 0.43875 | AA45: 0.6946875 | AB45: 0.975 | AC45: 1.2796875 | AD45: 1.60875 | AE45: 1.9621875 | AF45: 2.34 | AG45: 2.7421875 | AH45: 3.16875 | AI45: 3.6196875 | AJ45: 4.095 | AK45: 4.5946875 | AL45: 5.11875 | AM45: 5.6671875 | AN45: 6.24 | AO45: 6.24 | AP45: 6.24 | AQ45: 6.24 | AR45: 6.24 | AS45: 6.24 | AT45: 6.24 | AU45: 6.24 | AV45: 6.24 | AW45: 6.24 | AX45: 6.24 | AY45: 6.24 | AZ45: 6.24 | BA45: 6.24 | BB45: 6.24 | BC45: 6.24 | BD45: 6.24 | BJ45: 1.202645566 | BK45: 6.24 | BM45: 0 | BN45: 6.24
I46: p3 | J46: d | K46: 7.2 | L46: 2 | M46: 4 | P46: 0 | Q46: 0 | R46: 0 | S46: 0 | T46: 0 | U46: 0 | V46: 0 | W46: 0 | X46: 0 | Y46: 0 | Z46: 0 | AA46: 0 | AB46: 0 | AC46: 0 | AD46: 0 | AE46: 0 | AF46: 0 | AG46: 0.37125 | AH46: 0.765 | AI46: 1.18125 | AJ46: 1.62 | AK46: 2.08125 | AL46: 2.565 | AM46: 3.07125 | AN46: 3.6 | AO46: 4.15125 | AP46: 4.725 | AQ46: 5.32125 | AR46: 5.94 | AS46: 6.58125 | AT46: 7.245 | AU46: 7.93125 | AV46: 8.64 | AW46: 8.64 | AX46: 8.64 | AY46: 8.64 | AZ46: 8.64 | BA46: 8.64 | BB46: 8.64 | BC46: 8.64 | BD46: 8.64 | BJ46: 0 | BK46: 5.471037082 | BM46: 0 | BN46: 8.64
I47: P1 | J47: d | K47: 15 | L47: 1 | M47: 0 | P47: =IF(P$35<$L47,0,$K47*$L47/$D$4) -> 0 | Q47: 0 | R47: 0 | S47: 0 | T47: 0 | U47: 0 | V47: 0 | W47: 0 | X47: 3 | Y47: 3 | Z47: =IF(Z$35<$L47,0,$K47*$L47/$D$4) -> 3 | AA47: 3 | AB47: 3 | AC47: 3 | AD47: 3 | AE47: 3 | AF47: 3 | AG47: 3 | AH47: 3 | AI47: 3 | AJ47: =IF(AJ$35<$L47,0,$K47*$L47/$D$4) -> 3 | AK47: 3 | AL47: 3 | AM47: 3 | AN47: 3 | AO47: 3 | AP47: 3 | AQ47: 3 | AR47: 3 | AS47: 3 | AT47: =IF(AT$35<$L47,0,$K47*$L47/$D$4) -> 3 | AU47: 3 | AV47: 3 | AW47: 3 | AX47: 3 | AY47: 3 | AZ47: 3 | BA47: 3 | BB47: 3 | BC47: 3 | BD47: 3 | BJ47: =IF(BJ$35<$L47,0,$K47*$L47/$D$4) -> 3 | BK47: 3 | BM47: =IF(BM$35<$L47,0,$K47*$L47/$D$4) -> 0 | BN47: 3
I48: P2 | J48: d | K48: 12 | L48: 1.5 | M48: 0 | P48: 0 | Q48: 0 | R48: 0 | S48: 0 | T48: 0 | U48: 0 | V48: 0 | W48: 0 | X48: 0 | Y48: 0 | Z48: 0 | AA48: 0 | AB48: 3.6 | AC48: 3.6 | AD48: 3.6 | AE48: 3.6 | AF48: 3.6 | AG48: 3.6 | AH48: 3.6 | AI48: 3.6 | AJ48: 3.6 | AK48: 3.6 | AL48: 3.6 | AM48: 3.6 | AN48: 3.6 | AO48: 3.6 | AP48: 3.6 | AQ48: 3.6 | AR48: 3.6 | AS48: 3.6 | AT48: 3.6 | AU48: 3.6 | AV48: 3.6 | AW48: 3.6 | AX48: 3.6 | AY48: 3.6 | AZ48: 3.6 | BA48: 3.6 | BB48: 3.6 | BC48: 3.6 | BD48: 3.6 | BJ48: 3.6 | BK48: 3.6 | BM48: 0 | BN48: 3.6
I49: P3 | J49: d | K49: 20 | L49: 2 | M49: 0 | P49: 0 | Q49: 0 | R49: 0 | S49: 0 | T49: 0 | U49: 0 | V49: 0 | W49: 0 | X49: 0 | Y49: 0 | Z49: 0 | AA49: 0 | AB49: 0 | AC49: 0 | AD49: 0 | AE49: 0 | AF49: 8 | AG49: 8 | AH49: 8 | AI49: 8 | AJ49: 8 | AK49: 8 | AL49: 8 | AM49: 8 | AN49: 8 | AO49: 8 | AP49: 8 | AQ49: 8 | AR49: 8 | AS49: 8 | AT49: 8 | AU49: 8 | AV49: 8 | AW49: 8 | AX49: 8 | AY49: 8 | AZ49: 8 | BA49: 8 | BB49: 8 | BC49: 8 | BD49: 8 | BJ49: 0 | BK49: 8 | BM49: 0 | BN49: 8
I51: V_d - venstre | P51: =SUM(P37:P42) -> 60.02 | Q51: 59.4028125 | R51: 58.80125 | S51: 58.2153125 | T51: 57.645 | U51: 57.0903125 | V51: 56.55125 | W51: 56.0278125 | X51: 55.52 | Y51: 42.26 | Z51: 41.04 | AA51: 39.86 | AB51: 38.72 | AC51: 29.22 | AD51: 28.16 | AE51: 27.14 | AF51: 26.16 | AG51: 12.69125 | AH51: 11.285 | AI51: 9.94125 | AJ51: 8.66 | AK51: 7.44125 | AL51: 6.285 | AM51: 5.19125 | AN51: 4.16 | AO51: 3.5690625 | AP51: 3.01625 | AQ51: 2.5015625 | AR51: 2.025 | AS51: 1.5865625 | AT51: 1.18625 | AU51: 0.8240625 | AV51: 0.5 | AW51: 0.3828125 | AX51: 0.28125 | AY51: 0.1953125 | AZ51: 0.125 | BA51: 0.0703125 | BB51: 0.03125 | BC51: 0.0078125 | BD51: 0 | BJ51: =SUM(BJ37:BJ42) -> 29.48628815 | BK51: =SUM(BK37:BK42) -> 2.381061013 | BM51: =SUM(BM37:BM42) -> 56.35193399 | BN51: =SUM(BN37:BN42) -> 0.3177316612
I52: V_d - højre | P52: =SUM(P44:P49) -> 0 | Q52: 0.0078125 | R52: 0.03125 | S52: 0.0703125 | T52: 0.125 | U52: 0.1953125 | V52: 0.28125 | W52: 0.3828125 | X52: 3.5 | Y52: 3.84 | Z52: 4.22 | AA52: 4.64 | AB52: 8.7 | AC52: 9.2 | AD52: 9.74 | AE52: 10.32 | AF52: 18.94 | AG52: 19.97125 | AH52: 21.065 | AI52: 22.22125 | AJ52: 23.44 | AK52: 24.72125 | AL52: 26.065 | AM52: 27.47125 | AN52: 28.94 | AO52: 29.8740625 | AP52: 30.84625 | AQ52: 31.8565625 | AR52: 32.905 | AS52: 33.9915625 | AT52: 35.11625 | AU52: 36.2790625 | AV52: 37.48 | AW52: 37.9878125 | AX52: 38.51125 | AY52: 39.0503125 | AZ52: 39.605 | BA52: 40.1753125 | BB52: 40.76125 | BC52: 41.3628125 | BD52: 41.98 | BJ52: =SUM(BJ44:BJ49) -> 9.07357221 | BK52: =SUM(BK44:BK49) -> 32.11036839 | BM52: =SUM(BM44:BM49) -> 0.3177316612 | BN52: =SUM(BN44:BN49) -> 38.31193399
I54: FORSKYDNING | P54: =P34 -> 0 | Q54: 1 | R54: 2 | S54: 3 | T54: 4 | U54: 5 | V54: 6 | W54: 7 | X54: 8 | Y54: 9 | Z54: 10 | AA54: 11 | AB54: 12 | AC54: 13 | AD54: 14 | AE54: 15 | AF54: 16 | AG54: 17 | AH54: 18 | AI54: 19 | AJ54: 20 | AK54: 21 | AL54: 22 | AM54: 23 | AN54: 24 | AO54: 25 | AP54: 26 | AQ54: 27 | AR54: 28 | AS54: 29 | AT54: 30 | AU54: 31 | AV54: 32 | AW54: 33 | AX54: 34 | AY54: 35 | AZ54: 36 | BA54: 37 | BB54: 38 | BC54: 39 | BD54: 40 | BE54: =BF54 -> 12.75455254 | BF54: =40*BF35/Brand!$L$8 -> 12.75455254 | BG54: =40*BG35/Brand!$L$8 -> 27.24544746 | BH54: =BG54 -> 27.24544746
O55: : | P55: =MAX(P52,P51) -> 60.02 | Q55: 59.4028125 | R55: 58.80125 | S55: 58.2153125 | T55: 57.645 | U55: 57.0903125 | V55: 56.55125 | W55: 56.0278125 | X55: 55.52 | Y55: 42.26 | Z55: 41.04 | AA55: 39.86 | AB55: 38.72 | AC55: 29.22 | AD55: 28.16 | AE55: 27.14 | AF55: 26.16 | AG55: 19.97125 | AH55: 21.065 | AI55: 22.22125 | AJ55: 23.44 | AK55: 24.72125 | AL55: 26.065 | AM55: 27.47125 | AN55: 28.94 | AO55: 29.8740625 | AP55: 30.84625 | AQ55: 31.8565625 | AR55: 32.905 | AS55: 33.9915625 | AT55: 35.11625 | AU55: 36.2790625 | AV55: 37.48 | AW55: 37.9878125 | AX55: 38.51125 | AY55: 39.0503125 | AZ55: 39.605 | BA55: 40.1753125 | BB55: 40.76125 | BC55: 41.3628125 | BD55: 41.98
O56: : | P56: =Brand!$O$31 -> 173.3120044 | Q56: =Brand!$O$31 -> 173.3120044 | R56: =Brand!$O$31 -> 173.3120044 | S56: =Brand!$O$31 -> 173.3120044 | T56: =Brand!$O$31 -> 173.3120044 | U56: =Brand!$O$31 -> 173.3120044 | V56: =Brand!$O$31 -> 173.3120044 | W56: =Brand!$O$31 -> 173.3120044 | X56: =Brand!$O$31 -> 173.3120044 | Y56: =Brand!$O$31 -> 173.3120044 | Z56: =Brand!$O$31 -> 173.3120044 | AA56: =Brand!$O$31 -> 173.3120044 | AB56: =Brand!$O$31 -> 173.3120044 | AC56: =Brand!$O$31 -> 173.3120044 | AD56: =Brand!$O$31 -> 173.3120044 | AE56: =Brand!$O$31 -> 173.3120044 | AF56: =Brand!$O$31 -> 173.3120044 | AG56: =Brand!$O$31 -> 173.3120044 | AH56: =Brand!$O$31 -> 173.3120044 | AI56: =Brand!$O$31 -> 173.3120044 | AJ56: =Brand!$O$31 -> 173.3120044 | AK56: =Brand!$O$31 -> 173.3120044 | AL56: =Brand!$O$31 -> 173.3120044 | AM56: =Brand!$O$31 -> 173.3120044 | AN56: =Brand!$O$31 -> 173.3120044 | AO56: =Brand!$O$31 -> 173.3120044 | AP56: =Brand!$O$31 -> 173.3120044 | AQ56: =Brand!$O$31 -> 173.3120044 | AR56: =Brand!$O$31 -> 173.3120044 | AS56: =Brand!$O$31 -> 173.3120044 | AT56: =Brand!$O$31 -> 173.3120044 | AU56: =Brand!$O$31 -> 173.3120044 | AV56: =Brand!$O$31 -> 173.3120044 | AW56: =Brand!$O$31 -> 173.3120044 | AX56: =Brand!$O$31 -> 173.3120044 | AY56: =Brand!$O$31 -> 173.3120044 | AZ56: =Brand!$O$31 -> 173.3120044 | BA56: =Brand!$O$31 -> 173.3120044 | BB56: =Brand!$O$31 -> 173.3120044 | BC56: =Brand!$O$31 -> 173.3120044 | BD56: =Brand!$O$31 -> 173.3120044
O57: : | P57: =Brand!$O$32 -> 173.3120044 | Q57: =Brand!$O$32 -> 173.3120044 | R57: =Brand!$O$32 -> 173.3120044 | S57: =Brand!$O$32 -> 173.3120044 | T57: =Brand!$O$32 -> 173.3120044 | U57: =Brand!$O$32 -> 173.3120044 | V57: =Brand!$O$32 -> 173.3120044 | W57: =Brand!$O$32 -> 173.3120044 | X57: =Brand!$O$32 -> 173.3120044 | Y57: =Brand!$O$32 -> 173.3120044 | Z57: =Brand!$O$32 -> 173.3120044 | AA57: =Brand!$O$32 -> 173.3120044 | AB57: =Brand!$O$32 -> 173.3120044 | AC57: =Brand!$O$32 -> 173.3120044 | AD57: =Brand!$O$32 -> 173.3120044 | AE57: =Brand!$O$32 -> 173.3120044 | AF57: =Brand!$O$32 -> 173.3120044 | AG57: =Brand!$O$32 -> 173.3120044 | AH57: =Brand!$O$32 -> 173.3120044 | AI57: =Brand!$O$32 -> 173.3120044 | AJ57: =Brand!$O$32 -> 173.3120044 | AK57: =Brand!$O$32 -> 173.3120044 | AL57: =Brand!$O$32 -> 173.3120044 | AM57: =Brand!$O$32 -> 173.3120044 | AN57: =Brand!$O$32 -> 173.3120044 | AO57: =Brand!$O$32 -> 173.3120044 | AP57: =Brand!$O$32 -> 173.3120044 | AQ57: =Brand!$O$32 -> 173.3120044 | AR57: =Brand!$O$32 -> 173.3120044 | AS57: =Brand!$O$32 -> 173.3120044 | AT57: =Brand!$O$32 -> 173.3120044 | AU57: =Brand!$O$32 -> 173.3120044 | AV57: =Brand!$O$32 -> 173.3120044 | AW57: =Brand!$O$32 -> 173.3120044 | AX57: =Brand!$O$32 -> 173.3120044 | AY57: =Brand!$O$32 -> 173.3120044 | AZ57: =Brand!$O$32 -> 173.3120044 | BA57: =Brand!$O$32 -> 173.3120044 | BB57: =Brand!$O$32 -> 173.3120044 | BC57: =Brand!$O$32 -> 173.3120044 | BD57: =Brand!$O$32 -> 173.3120044
O58: : | BE58: =1.1*MAX(P55:BD55) -> 66.022 | BF58: 0 | BG58: 0 | BH58: =1.1*MAX(P55:BD55) -> 66.022
T59: 0 | X59: 0 | AB59: 0 | AF59: 0 | AK59: 0 | AN59: 0 | AR59: 0 | AV59: 0 | AZ59: 0
I60: EXCENTRICITET | P60: =IF(P51>=P52,IF(P51=0,0,SUMPRODUCT($D$38:$D$43,P37:P42)/P51),IF(P52=0,0,SUMPRODUCT($D$38:$D$43,P44:P49)/P52)) -> 18.04231923 | Q60: 17.97002983 | R60: 17.89811016 | S60: 17.82662959 | T60: 17.75565964 | U60: 17.68527388 | V60: 17.61554784 | W60: 17.54655891 | X60: 17.47838617 | Y60: 19.55934986 | Z60: 19.57876462 | AA60: 19.59867348 | AB60: 19.61905992 | AC60: 20.97375513 | AD60: 21.05158026 | AE60: 21.132208 | AF60: 21.21559633 | AG60: 17.56822307 | AH60: 17.75160218 | AI60: 17.92583113 | AJ60: 18.09087031 | AK60: 18.24682712 | AL60: 18.39391905 | AM60: 18.53244301 | AN60: 18.66275052 | AO60: 18.86089522 | AP60: 19.05438262 | AQ60: 19.24294445 | AR60: 19.42637897 | AS60: 19.60454341 | AT60: 19.77734667 | AU60: 19.94474258 | AV60: 20.10672359 | AW60: 20.1721358 | AX60: 20.2377552 | AY60: 20.30349469 | AZ60: 20.36927156 | BA60: 20.43500751 | BB60: 20.50062866 | BC60: 20.56606553 | BD60: 20.63125298
I65: Bøjlekapacitet
K66: =IF(Brand2!D4-Brand!J34*Brand!O15/1000>0,2*MAX(Brand!O31,Brand!O32)*Brand2!D4/(Brand2!D4-Brand!J34*Brand!O15/1000)^2,2*Brand!O30/Brand!L8) -> 149.4241277 | L66: 0 | M66: =Brand!L8 -> 5 | P66: =IF(P$35<=$L66,$K66*($M66-$L66)*($D$4-0.5*($L66+$M66))/$D$4,IF(P$35<=$M66,$K66*($M66-P$35)*($D$4-0.5*(P$35+$M66))/$D$4,0)) -> 373.5603193 | Q66: 355.1157785 | R66: 337.1381881 | S66: 319.6275482 | T66: 302.5838586 | U66: 286.0071194 | V66: 269.8973307 | W66: 254.2544923 | X66: 239.0786043 | Y66: 224.3696668 | Z66: 210.1276796 | AA66: 196.3526428 | AB66: 183.0445564 | AC66: 170.2034205 | AD66: 157.8292349 | AE66: 145.9219997 | AF66: 134.4817149 | AG66: 123.5083806 | AH66: 113.0019966 | AI66: 102.962563 | AJ66: 93.39007982 | AK66: 84.28454704 | AL66: 75.64596465 | AM66: 67.47433267 | AN66: 59.76965108 | AO66: 52.5319199 | AP66: 45.76113911 | AQ66: 39.45730872 | AR66: 33.62042873 | AS66: 28.25049915 | AT66: 23.34751995 | AU66: 18.91149116 | AV66: 14.94241277 | AW66: 11.44028478 | AX66: 8.405107184 | AY66: 5.836879989 | AZ66: 3.735603193 | BA66: 2.101276796 | BB66: 0.9339007982 | BC66: 0.2334751995 | BD66: 0
K67: =IF(Brand2!D4-Brand!J34*Brand!O15/1000>0,2*MAX(Brand!O31,Brand!O32)*Brand2!D4/(Brand2!D4-Brand!J34*Brand!O15/1000)^2,2*Brand!O30/Brand!L8) -> 149.4241277 | L67: 0 | M67: =Brand!L8 -> 5 | P67: =IF(P$35<$L67,0,IF(P$35<$M67,$K67*(P$35-$L67)*0.5*($L67+P$35)/$D$4,$K67*($M67-$L67)*0.5*($L67+$M67)/$D$4)) -> 0 | Q67: 0.2334751995 | R67: 0.9339007982 | S67: 2.101276796 | T67: 3.735603193 | U67: 5.836879989 | V67: 8.405107184 | W67: 11.44028478 | X67: 14.94241277 | Y67: 18.91149116 | Z67: 23.34751995 | AA67: 28.25049915 | AB67: 33.62042873 | AC67: 39.45730872 | AD67: 45.76113911 | AE67: 52.5319199 | AF67: 59.76965108 | AG67: 67.47433267 | AH67: 75.64596465 | AI67: 84.28454704 | AJ67: 93.39007982 | AK67: 102.962563 | AL67: 113.0019966 | AM67: 123.5083806 | AN67: 134.4817149 | AO67: 145.9219997 | AP67: 157.8292349 | AQ67: 170.2034205 | AR67: 183.0445564 | AS67: 196.3526428 | AT67: 210.1276796 | AU67: 224.3696668 | AV67: 239.0786043 | AW67: 254.2544923 | AX67: 269.8973307 | AY67: 286.0071194 | AZ67: 302.5838586 | BA67: 319.6275482 | BB67: 337.1381881 | BC67: 355.1157785 | BD67: 373.5603193
I68: =MAX(Q68:BC68) -> 0 | Q68: =IF(Q55>MAX(Q66:Q67,Brand!$O$32,Brand!$O$31),1,0) -> 0 | R68: =IF(R55>MAX(R66:R67,Brand!$O$32,Brand!$O$31),1,0) -> 0 | S68: =IF(S55>MAX(S66:S67,Brand!$O$32,Brand!$O$31),1,0) -> 0 | T68: =IF(T55>MAX(T66:T67,Brand!$O$32,Brand!$O$31),1,0) -> 0 | U68: =IF(U55>MAX(U66:U67,Brand!$O$32,Brand!$O$31),1,0) -> 0 | V68: =IF(V55>MAX(V66:V67,Brand!$O$32,Brand!$O$31),1,0) -> 0 | W68: =IF(W55>MAX(W66:W67,Brand!$O$32,Brand!$O$31),1,0) -> 0 | X68: =IF(X55>MAX(X66:X67,Brand!$O$32,Brand!$O$31),1,0) -> 0 | Y68: =IF(Y55>MAX(Y66:Y67,Brand!$O$32,Brand!$O$31),1,0) -> 0 | Z68: =IF(Z55>MAX(Z66:Z67,Brand!$O$32,Brand!$O$31),1,0) -> 0 | AA68: =IF(AA55>MAX(AA66:AA67,Brand!$O$32,Brand!$O$31),1,0) -> 0 | AB68: =IF(AB55>MAX(AB66:AB67,Brand!$O$32,Brand!$O$31),1,0) -> 0 | AC68: =IF(AC55>MAX(AC66:AC67,Brand!$O$32,Brand!$O$31),1,0) -> 0 | AD68: =IF(AD55>MAX(AD66:AD67,Brand!$O$32,Brand!$O$31),1,0) -> 0 | AE68: =IF(AE55>MAX(AE66:AE67,Brand!$O$32,Brand!$O$31),1,0) -> 0 | AF68: =IF(AF55>MAX(AF66:AF67,Brand!$O$32,Brand!$O$31),1,0) -> 0 | AG68: =IF(AG55>MAX(AG66:AG67,Brand!$O$32,Brand!$O$31),1,0) -> 0 | AH68: =IF(AH55>MAX(AH66:AH67,Brand!$O$32,Brand!$O$31),1,0) -> 0 | AI68: =IF(AI55>MAX(AI66:AI67,Brand!$O$32,Brand!$O$31),1,0) -> 0 | AJ68: =IF(AJ55>MAX(AJ66:AJ67,Brand!$O$32,Brand!$O$31),1,0) -> 0 | AK68: =IF(AK55>MAX(AK66:AK67,Brand!$O$32,Brand!$O$31),1,0) -> 0 | AL68: =IF(AL55>MAX(AL66:AL67,Brand!$O$32,Brand!$O$31),1,0) -> 0 | AM68: =IF(AM55>MAX(AM66:AM67,Brand!$O$32,Brand!$O$31),1,0) -> 0 | AN68: =IF(AN55>MAX(AN66:AN67,Brand!$O$32,Brand!$O$31),1,0) -> 0 | AO68: =IF(AO55>MAX(AO66:AO67,Brand!$O$32,Brand!$O$31),1,0) -> 0 | AP68: =IF(AP55>MAX(AP66:AP67,Brand!$O$32,Brand!$O$31),1,0) -> 0 | AQ68: =IF(AQ55>MAX(AQ66:AQ67,Brand!$O$32,Brand!$O$31),1,0) -> 0 | AR68: =IF(AR55>MAX(AR66:AR67,Brand!$O$32,Brand!$O$31),1,0) -> 0 | AS68: =IF(AS55>MAX(AS66:AS67,Brand!$O$32,Brand!$O$31),1,0) -> 0 | AT68: =IF(AT55>MAX(AT66:AT67,Brand!$O$32,Brand!$O$31),1,0) -> 0 | AU68: =IF(AU55>MAX(AU66:AU67,Brand!$O$32,Brand!$O$31),1,0) -> 0 | AV68: =IF(AV55>MAX(AV66:AV67,Brand!$O$32,Brand!$O$31),1,0) -> 0 | AW68: =IF(AW55>MAX(AW66:AW67,Brand!$O$32,Brand!$O$31),1,0) -> 0 | AX68: =IF(AX55>MAX(AX66:AX67,Brand!$O$32,Brand!$O$31),1,0) -> 0 | AY68: =IF(AY55>MAX(AY66:AY67,Brand!$O$32,Brand!$O$31),1,0) -> 0 | AZ68: =IF(AZ55>MAX(AZ66:AZ67,Brand!$O$32,Brand!$O$31),1,0) -> 0 | BA68: =IF(BA55>MAX(BA66:BA67,Brand!$O$32,Brand!$O$31),1,0) -> 0 | BB68: =IF(BB55>MAX(BB66:BB67,Brand!$O$32,Brand!$O$31),1,0) -> 0 | BC68: =IF(BC55>MAX(BC66:BC67,Brand!$O$32,Brand!$O$31),1,0) -> 0
C85: Jævnt fordelte laste | G85: Punktlaste
D86: p1 | E86: p2 | F86: p3 | H86: P1 | I86: P2 | J86: P3
B88: Kar. værdi | C88: (kN/m) | D88: =Kold2!D88 -> 5 | E88: =Kold2!E88 -> 9 | F88: =Kold2!F88 -> 10 | G88: (kN) | H88: =Kold2!H88 -> 15 | I88: =Kold2!I88 -> 12 | J88: =Kold2!J88 -> 22
B89: Regnm. værdi | C89: (kN/m) | D89: =B95+C95*I95 -> 5 | E89: =B96+C96*I96 -> 7.8 | F89: =B97+C97*I97 -> 7.2 | G89: (kN) | H89: =B99+C99*I99 -> 15 | I89: =B100+C100*I100 -> 12 | J89: =B101+C101*I101 -> 20
B90: Excentricitet, exc. | C90: (mm) | D90: =Kold2!D90 -> 25 | E90: =Kold2!E90 -> 15 | F90: =Kold2!F90 -> 25 | G90: (mm) | H90: =Kold2!H90 -> 10 | I90: =Kold2!I90 -> 15 | J90: =Kold2!J90 -> 20
B91: x1 | C91: (m) | D91: =Kold2!D91 -> 0 | E91: =Kold2!E91 -> 1 | F91: =Kold2!F91 -> 2 | G91: (m) | H91: =Kold2!H91 -> 1 | I91: =Kold2!I91 -> 1.5 | J91: =Kold2!J91 -> 2
B92: x2 | C92: (m) | D92: =Kold2!D92 -> 5 | E92: =Kold2!E92 -> 3 | F92: =Kold2!F92 -> 4
A94: =Kold!B21 -> Lastparametre: | B94: =Kold!C21 -> gk [kN/m] | C94: =Kold!D21 -> qk [kN/m] | D94: =Kold!E21 -> e [mm] | E94: =Kold!F21 -> x1 [m] | F94: =Kold!G21 -> x2 [m] | G94: =Kold!H21 -> ϒg | H94: =Kold!I21 -> ϒq | I94: =Kold!J21 -> ψ1 | J94: =Kold!K21 -> ψ2
A95: =Kold!B22 -> p1 | B95: =Kold!C22 -> 5 | C95: =Kold!D22 -> 0 | D95: =Kold!E22 -> 25 | E95: =Kold!F22 -> 0 | F95: =Kold!G22 -> 5 | G95: =Kold!H22 -> 1.1 | H95: =Kold!I22 -> 0 | I95: =Kold!J22 -> 0 | J95: =Kold!K22 -> 0
A96: =Kold!B23 -> p2 | B96: =Kold!C23 -> 6 | C96: =Kold!D23 -> 3 | D96: =Kold!E23 -> 15 | E96: =Kold!F23 -> 1 | F96: =Kold!G23 -> 3 | G96: =Kold!H23 -> 1.1 | H96: =Kold!I23 -> 1.65 | I96: =Kold!J23 -> 0.6 | J96: =Kold!K23 -> 0.5
A97: =Kold!B24 -> p3 | B97: =Kold!C24 -> 3 | C97: =Kold!D24 -> 7 | D97: =Kold!E24 -> 25 | E97: =Kold!F24 -> 2 | F97: =Kold!G24 -> 4 | G97: =Kold!H24 -> 1.1 | H97: =Kold!I24 -> 1.65 | I97: =Kold!J24 -> 0.6 | J97: =Kold!K24 -> 0.5
A98: =Kold!B25 -> 0 | B98: =Kold!C25 -> Gk [kN] | C98: =Kold!D25 -> Qk [kN] | D98: =Kold!E25 -> e [mm] | E98: =Kold!F25 -> x1 [m] | F98: =Kold!G25 -> 0
A99: =Kold!B26 -> P1 | B99: =Kold!C26 -> 15 | C99: =Kold!D26 -> 0 | D99: =Kold!E26 -> 10 | E99: =Kold!F26 -> 1 | F99: =Kold!G26 -> 0 | G99: =Kold!H26 -> 1.1 | H99: =Kold!I26 -> 1.65 | I99: =Kold!J26 -> 0.6 | J99: =Kold!K26 -> 0.5
A100: =Kold!B27 -> P2 | B100: =Kold!C27 -> 12 | C100: =Kold!D27 -> 0 | D100: =Kold!E27 -> 15 | E100: =Kold!F27 -> 1.5 | F100: =Kold!G27 -> 0 | G100: =Kold!H27 -> 1.1 | H100: =Kold!I27 -> 1.65 | I100: =Kold!J27 -> 0.6 | J100: =Kold!K27 -> 0.5
A101: =Kold!B28 -> P3 | B101: =Kold!C28 -> 17 | C101: =Kold!D28 -> 5 | D101: =Kold!E28 -> 20 | E101: =Kold!F28 -> 2 | F101: =Kold!G28 -> 0 | G101: =Kold!H28 -> 1.1 | H101: =Kold!I28 -> 1.65 | I101: =Kold!J28 -> 0.6 | J101: =Kold!K28 -> 0.5

Sheet Firsidig
D2: 0 | K2: Q | M2: y | N2: Q-3 | V2: Q-4 | Z2: Temp i bøjler | AB2: y | AC2: Q-3 | AK2: Q-4
L3: Punkt | O3: 1 | P3: 2 | Q3: 3 | R3: Midte | S3: 4 | T3: 5 | U3: 6 | AA3: Punkt | AD3: 1 | AE3: 2 | AF3: 3 | AG3: Midte | AH3: 4 | AI3: 5 | AJ3: 6
K4: x | O4: =$E$16/(4*$E$19)+(O3-1)*$E$16/(2*$E$19) -> 0.025 | P4: =$E$16/(4*$E$19)+(P3-1)*$E$16/(2*$E$19) -> 0.075 | Q4: =$E$16/(4*$E$19)+(Q3-1)*$E$16/(2*$E$19) -> 0.125 | R4: =0.5*E16 -> 0.15 | S4: =$E$16/(4*$E$19)+(S3-1)*$E$16/(2*$E$19) -> 0.175 | T4: =$E$16/(4*$E$19)+(T3-1)*$E$16/(2*$E$19) -> 0.225 | U4: =$E$16/(4*$E$19)+(U3-1)*$E$16/(2*$E$19) -> 0.275 | Z4: x | AD4: =E29-0.5*(MAX(Brand!M11:M13)+MAX(Brand!M15:M16))/1000 -> 0.029 | AE4: =AD4+0.4*($AG$4-$AD$4) -> 0.0774 | AF4: =AE4+0.4*($AG$4-$AD$4) -> 0.1258 | AG4: =0.5*E16 -> 0.15 | AH4: =AG4+0.2*($AJ$4-$AG$4) -> 0.1742 | AI4: =AH4+0.4*($AJ$4-$AG$4) -> 0.2226 | AJ4: =E16-AD4 -> 0.271
K5: Q-1 | O5: =MAX(312*LOG10(8*$E$17+1)*EXP(-1.9*O4*$E$18/SQRT($E$17))*SIN(PI()/2-O4*$E$18/SQRT($E$17)),0)*$B$6 -> 390.0020292 | P5: =MAX(312*LOG10(8*$E$17+1)*EXP(-1.9*P4*$E$18/SQRT($E$17))*SIN(PI()/2-P4*$E$18/SQRT($E$17)),0)*$B$6 -> 47.42381787 | Q5: =MAX(312*LOG10(8*$E$17+1)*EXP(-1.9*Q4*$E$18/SQRT($E$17))*SIN(PI()/2-Q4*$E$18/SQRT($E$17)),0)*$B$6 -> 0 | R5: 0 | S5: 0 | T5: 0 | U5: 0 | V5: =MAX(312*LOG10(8*$E$17+1)*EXP(-1.9*($E$16)*$E$18/SQRT($E$17))*SIN(PI()/2-($E$16)*$E$18/SQRT($E$17)),0) -> 0 | Z5: Q-1 | AD5: =MAX(312*LOG10(8*$E$17+1)*EXP(-1.9*AD4*$E$18/SQRT($E$17))*SIN(PI()/2-AD4*$E$18/SQRT($E$17)),0)*$B$6 -> 340.5411366 | AE5: =MAX(312*LOG10(8*$E$17+1)*EXP(-1.9*AE4*$E$18/SQRT($E$17))*SIN(PI()/2-AE4*$E$18/SQRT($E$17)),0)*$B$6 -> 41.29492656 | AF5: 0 | AG5: 0 | AH5: 0 | AI5: 0 | AJ5: 0
B6: =Brand!AT40 -> 1 | F6: =Brand!AT40 -> 1 | L6: 1 | M6: =$E$15/(4*$E$19)+(L6-1)*$E$15/(2*$E$19) -> 0.05833333333 | N6: =MAX(312*LOG10(8*$E$17+1)*EXP(-1.9*M6*$E$18/SQRT($E$17))*SIN(PI()/2-M6*$E$18/SQRT($E$17)),0)*$D$2 -> 0 | O6: =MAX(((O$5+O$13)*$E$20/($E$20+$V$5))*(1-($N6+$V6)/$E$20)+$N6+$V6,20) -> 390.0020292 | P6: =MAX(((P$5+P$13)*$E$20/($E$20+$V$5))*(1-($N6+$V6)/$E$20)+$N6+$V6,20) -> 47.42381787 | Q6: 20 | R6: 20 | S6: 20 | T6: 47.42381787 | U6: 390.0020292 | V6: =MAX(312*LOG10(8*$E$17+1)*EXP(-1.9*($E$15-M6)*$E$18/SQRT($E$17))*SIN(PI()/2-($E$15-M6)*$E$18/SQRT($E$17)),0)*$D$11 -> 0
L7: 2 | M7: =$E$15/(4*$E$19)+(L7-1)*$E$15/(2*$E$19) -> 0.175 | N7: =MAX(312*LOG10(8*$E$17+1)*EXP(-1.9*M7*$E$18/SQRT($E$17))*SIN(PI()/2-M7*$E$18/SQRT($E$17)),0)*$D$2 -> 0 | O7: =MAX(((O$5+O$13)*$E$20/($E$20+$V$5))*(1-($N7+$V7)/$E$20)+$N7+$V7,20) -> 390.0020643 | P7: 47.42387989 | Q7: 20 | R7: 20 | S7: 20 | T7: 47.42387989 | U7: 390.0020643 | V7: =MAX(312*LOG10(8*$E$17+1)*EXP(-1.9*($E$15-M7)*$E$18/SQRT($E$17))*SIN(PI()/2-($E$15-M7)*$E$18/SQRT($E$17)),0)*$D$11 -> 6.574884926e-05
L8: 3 | M8: =$E$15/(4*$E$19)+(L8-1)*$E$15/(2*$E$19) -> 0.2916666667 | N8: 0 | O8: =MAX(((O$5+O$13)*$E$20/($E$20+$V$5))*(1-($N8+$V8)/$E$20)+$N8+$V8,20) -> 390.0070301 | P8: 47.43265306 | Q8: 20 | R8: 20 | S8: 20 | T8: 47.43265306 | U8: 390.0070301 | V8: 0.00936596482
L9: Midte | M9: =0.5*E15 -> 0.35 | N9: 0 | O9: 390.0125897 | P9: 47.44247507 | Q9: 20 | R9: 20 | S9: 20 | T9: 47.44247507 | U9: 390.0125897 | V9: 0.01977803583 | AA9: Midte | AB9: =0.5*E15 -> 0.35 | AC9: =MAX(312*LOG10(8*$E$17+1)*EXP(-1.9*AB9*$E$18/SQRT($E$17))*SIN(PI()/2-AB9*$E$18/SQRT($E$17)),0)*$D$2 -> 0
L10: 4 | M10: =$E$15/(4*$E$19)+(L10-1)*$E$15/(2*$E$19) -> 0.4083333333 | N10: 0 | O10: 390.0020292 | P10: 47.42381787 | Q10: 20 | R10: 20 | S10: 20 | T10: 47.42381787 | U10: 390.0020292 | V10: 0 | AA10: 4 | AB10: =AB9+0.2*($AB$12-$AB$9) -> 0.4142 | AC10: =MAX(312*LOG10(8*$E$17+1)*EXP(-1.9*AB10*$E$18/SQRT($E$17))*SIN(PI()/2-AB10*$E$18/SQRT($E$17)),0)*$D$2 -> 0 | AD10: =MAX((($AC10+$AK10)*$E$20/($E$20+$V$5))*(1-(AD$5+AD$13)/$E$20)+AD$5+AD$13,20) -> 340.5411366 | AJ10: =MAX((($AC10+$AK10)*$E$20/($E$20+$V$5))*(1-(AJ$5+AJ$13)/$E$20)+AJ$5+AJ$13,20) -> 340.5411366 | AK10: =MAX(312*LOG10(8*$E$17+1)*EXP(-1.9*($E$15-AB10)*$E$18/SQRT($E$17))*SIN(PI()/2-($E$15-AB10)*$E$18/SQRT($E$17)),0)*$D$11 -> 0
D11: =Brand!AT39 -> 1 | L11: 5 | M11: =$E$15/(4*$E$19)+(L11-1)*$E$15/(2*$E$19) -> 0.525 | N11: 0 | O11: 390.0020292 | P11: 47.42381787 | Q11: 20 | R11: 20 | S11: 20 | T11: 47.42381787 | U11: 390.0020292 | V11: 0 | AA11: 5 | AB11: =AB10+0.4*($AB$12-$AB$9) -> 0.5426 | AC11: =MAX(312*LOG10(8*$E$17+1)*EXP(-1.9*AB11*$E$18/SQRT($E$17))*SIN(PI()/2-AB11*$E$18/SQRT($E$17)),0)*$D$2 -> 0 | AD11: 340.5411366 | AJ11: 340.5411366 | AK11: =MAX(312*LOG10(8*$E$17+1)*EXP(-1.9*($E$15-AB11)*$E$18/SQRT($E$17))*SIN(PI()/2-($E$15-AB11)*$E$18/SQRT($E$17)),0)*$D$11 -> 0
L12: 6 | M12: =$E$15/(4*$E$19)+(L12-1)*$E$15/(2*$E$19) -> 0.6416666667 | N12: 0 | O12: 448.0282062 | P12: 149.9380932 | Q12: 108.6728557 | R12: 108.6728557 | S12: 108.6728557 | T12: 149.9380932 | U12: 448.0282062 | V12: 108.6728557 | AA12: 6 | AB12: =E15-E29+0.5*(MAX(Brand!M11:M13)+MAX(Brand!M15:M16))/1000 -> 0.671 | AC12: =MAX(312*LOG10(8*$E$17+1)*EXP(-1.9*AB12*$E$18/SQRT($E$17))*SIN(PI()/2-AB12*$E$18/SQRT($E$17)),0)*$D$2 -> 0 | AD12: 542.5017532 | AE12: 365.0314196 | AF12: 340.5411366 | AG12: 340.5411366 | AH12: 340.5411366 | AI12: 365.0314196 | AJ12: 542.5017532 | AK12: =MAX(312*LOG10(8*$E$17+1)*EXP(-1.9*($E$15-AB12)*$E$18/SQRT($E$17))*SIN(PI()/2-($E$15-AB12)*$E$18/SQRT($E$17)),0)*$D$11 -> 340.5411366
B13: Betontværsnit | K13: Q-2 | M13: =E15-E27 -> 0.6834870703 | O13: =MAX(312*LOG10(8*$E$17+1)*EXP(-1.9*($E$16-O4)*$E$18/SQRT($E$17))*SIN(PI()/2-($E$16-O4)*$E$18/SQRT($E$17)),0)*$F$6 -> 0 | P13: =MAX(312*LOG10(8*$E$17+1)*EXP(-1.9*($E$16-P4)*$E$18/SQRT($E$17))*SIN(PI()/2-($E$16-P4)*$E$18/SQRT($E$17)),0)*$F$6 -> 0 | Q13: 0 | R13: 0 | S13: 0 | T13: 47.42381787 | U13: 390.0020292 | V13: =MAX(312*LOG10(8*$E$17+1)*EXP(-1.9*($E$15-M13)*$E$18/SQRT($E$17))*SIN(PI()/2-($E$15-M13)*$E$18/SQRT($E$17)),20)*$D$11 -> 513.4087081 | Z13: Q-2 | AB13: =E15-E25 -> 0.7 | AC13: =MAX(312*LOG10(8*$E$17+1)*EXP(-1.9*AB13*$E$18/SQRT($E$17))*SIN(PI()/2-AB13*$E$18/SQRT($E$17)),0)*$D$2 -> 0 | AD13: =MAX(312*LOG10(8*$E$17+1)*EXP(-1.9*($E$16-AD4)*$E$18/SQRT($E$17))*SIN(PI()/2-($E$16-AD4)*$E$18/SQRT($E$17)),0)*$F$6 -> 0 | AE13: =MAX(312*LOG10(8*$E$17+1)*EXP(-1.9*($E$16-AE4)*$E$18/SQRT($E$17))*SIN(PI()/2-($E$16-AE4)*$E$18/SQRT($E$17)),0)*$F$6 -> 0 | AF13: 0 | AG13: 0 | AH13: 0 | AI13: 41.29492656 | AJ13: 340.5411366 | AK13: =MAX(312*LOG10(8*$E$17+1)*EXP(-1.9*($E$15-AB13)*$E$18/SQRT($E$17))*SIN(PI()/2-($E$15-AB13)*$E$18/SQRT($E$17)),0)*$D$11 -> 836.8294892
K14: z-1 | Z14: Middeltemperatur i bøjler: | AC14: =(0.4*(AB12-AB9)*((AD10+AJ10)+(AD11+AJ11)+0.5*(AD12+AJ12))+0.4*(AG4-AD4)*(0.5*(AD12+AJ12)+(AE12+AI12)+(AF12+AH12)))/(2*(AB12-AB9)+(AJ4-AD4)) -> 383.6150013 | AE14: (integreret over den nederste halvdel af bjælken)
D15: h | E15: =Brand!O7/1000 -> 0.7 | F15: m | L15: Punkt | O15: 1 | P15: 2 | Q15: 3 | R15: Midte | S15: 4 | T15: 5 | U15: 6
D16: b | E16: =Brand!O8/1000 -> 0.3 | F16: m
B17: Brandtid | D17: t | E17: =IF(D2+F6+D11+B6=0,0.0001,Brand!L23+0.0001) -> 60.0001 | F17: min
B18: Svækket tværsnit | D18: k | E18: =SQRT(PI()*2300*1000/(750*0.75)) -> 113.338534 | L18: 1 | O18: =INDEX(Bet,VLOOKUP(O6,Bet,5),2)+(INDEX(Bet,VLOOKUP(O6,Bet,5)+1,2)-INDEX(Bet,VLOOKUP(O6,Bet,5),2))*(O6-INDEX(Bet,VLOOKUP(O6,Bet,5),1))/(INDEX(Bet,VLOOKUP(O6,Bet,5)+1,1)-INDEX(Bet,VLOOKUP(O6,Bet,5),1)) -> 0.8733319172 | P18: 1 | Q18: 1 | S18: =INDEX(Bet,VLOOKUP(S6,Bet,5),2)+(INDEX(Bet,VLOOKUP(S6,Bet,5)+1,2)-INDEX(Bet,VLOOKUP(S6,Bet,5),2))*(S6-INDEX(Bet,VLOOKUP(S6,Bet,5),1))/(INDEX(Bet,VLOOKUP(S6,Bet,5)+1,1)-INDEX(Bet,VLOOKUP(S6,Bet,5),1)) -> 1 | T18: 1 | U18: 0.8733319172
D19: n | E19: 3 | L19: 2 | O19: 0.8733318938 | P19: 1 | Q19: 1 | S19: 1 | T19: 1 | U19: 0.8733318938
D20: Q-maks | E20: =MAX(312*LOG10(8*$E$17+1)*EXP(-1.9*0*$E$18/SQRT($E$17))*SIN(PI()/2-0*$E$18/SQRT($E$17)),0) -> 836.8294892 | G20: ecu | L20: 3 | O20: 0.8733285832 | P20: 1 | Q20: 1 | S20: 1 | T20: 1 | U20: 0.8733285832
D21: z-M / e1 | E21: =R21 -> 1 | F21: =INDEX(Bet,VLOOKUP(R9,Bet,5),3)+(INDEX(Bet,VLOOKUP(R9,Bet,5)+1,3)-INDEX(Bet,VLOOKUP(R9,Bet,5),3))*(R9-INDEX(Bet,VLOOKUP(R9,Bet,5),1))/(INDEX(Bet,VLOOKUP(R9,Bet,5)+1,1)-INDEX(Bet,VLOOKUP(R9,Bet,5),1)) -> 0.0025 | G21: =INDEX(Bet,VLOOKUP(R9,Bet,5),4)+(INDEX(Bet,VLOOKUP(R9,Bet,5)+1,4)-INDEX(Bet,VLOOKUP(R9,Bet,5),4))*(R9-INDEX(Bet,VLOOKUP(R9,Bet,5),1))/(INDEX(Bet,VLOOKUP(R9,Bet,5)+1,1)-INDEX(Bet,VLOOKUP(R9,Bet,5),1)) -> 0.02 | L21: Midte | R21: =INDEX(Bet,VLOOKUP(R9,Bet,5),2)+(INDEX(Bet,VLOOKUP(R9,Bet,5)+1,2)-INDEX(Bet,VLOOKUP(R9,Bet,5),2))*(R9-INDEX(Bet,VLOOKUP(R9,Bet,5),1))/(INDEX(Bet,VLOOKUP(R9,Bet,5)+1,1)-INDEX(Bet,VLOOKUP(R9,Bet,5),1)) -> 1
D22: z-middel | E22: =((1-0.2/E19)/(2*E19)^2)*IF(AND(D2=1,D11=0),2*SUM(O18:U20),IF(AND(D11=1,D2=0),2*SUM(O22:U24),SUM(O18:U20)+SUM(O22:U24))) -> 0.889913802 | L22: 4 | O22: =INDEX(Bet,VLOOKUP(O10,Bet,5),2)+(INDEX(Bet,VLOOKUP(O10,Bet,5)+1,2)-INDEX(Bet,VLOOKUP(O10,Bet,5),2))*(O10-INDEX(Bet,VLOOKUP(O10,Bet,5),1))/(INDEX(Bet,VLOOKUP(O10,Bet,5)+1,1)-INDEX(Bet,VLOOKUP(O10,Bet,5),1)) -> 0.8733319172 | P22: 1 | Q22: 1 | S22: =INDEX(Bet,VLOOKUP(S10,Bet,5),2)+(INDEX(Bet,VLOOKUP(S10,Bet,5)+1,2)-INDEX(Bet,VLOOKUP(S10,Bet,5),2))*(S10-INDEX(Bet,VLOOKUP(S10,Bet,5),1))/(INDEX(Bet,VLOOKUP(S10,Bet,5)+1,1)-INDEX(Bet,VLOOKUP(S10,Bet,5),1)) -> 1 | T22: 1 | U22: 0.8733319172
D23: a (bjælke) | E23: =IF(OR((D11+B6+D2+F6)*E17=0,E17<0.1),0,0.5*IF(B6=0,E15,MIN(E15,E16))*(1-E22/E21)) -> 0.0165129297 | F23: m | L23: 5 | O23: 0.8733319172 | P23: 1 | Q23: 1 | S23: 1 | T23: 1 | U23: 0.8733319172
D24: a (instabilitet) | E24: =IF(OR((D11+B6+D2+F6)*E17=0,E17<0.1),0,0.5*IF(B6=0,E15,MIN(E15,E16))*(1-(E22/E21)^1.3)) -> 0.02110277006 | F24: m | L24: 6 | O24: 0.8346478279 | P24: 1 | Q24: 1 | S24: 1 | T24: 1 | U24: 0.8346478279
B25: Randzoner | D25: atop | E25: =E23*D2 -> 0 | F25: m
D26: aside | E26: =E23*MAX(B6,F6) -> 0.0165129297 | F26: m
D27: abund | E27: =E23*D11 -> 0.0165129297 | F27: m
B28: Stål-gen | C28: type | D28: =IF($E$28="Q",1,IF($E$28="AC",3,5)) -> 3 | E28: =Brand!AR36 -> AC | K28: Træklag 1 | M28: =M95 -> 0.04 | N28: 0.04 | O28: 0.04 | P28: 0.04 | Q28: 0.04 | R28: 0.04 | S28: 0.04 | T28: 0.04 | U28: 0.04 | V28: 0.04
C29: side-"dæklag" | E29: =Brand!M9/1000 -> 0.04 | F29: m | M29: =MAX(312*LOG10(8*$E$17+1)*EXP(-1.9*M28*$E$18/SQRT($E$17))*SIN(PI()/2-M28*$E$18/SQRT($E$17)),0)*$B$6 -> 229.4173602 | N29: =IF(N28=M28,0,MAX(312*LOG10(8*$E$17+1)*EXP(-1.9*N28*$E$18/SQRT($E$17))*SIN(PI()/2-N28*$E$18/SQRT($E$17)),0))*$B$6 -> 0 | O29: =IF(O28=N28,0,MAX(312*LOG10(8*$E$17+1)*EXP(-1.9*O28*$E$18/SQRT($E$17))*SIN(PI()/2-O28*$E$18/SQRT($E$17)),0))*$B$6 -> 0 | P29: 0 | Q29: 0 | R29: 0 | S29: 0 | T29: 0 | U29: 0 | V29: 0
B30: Træklag 1 | D30: nc | E30: =Brand!O12 -> 0 | K30: =-M98 -> 0.6 | L30: =MAX(312*LOG10(8*$E$17+1)*EXP(-1.9*K30*$E$18/SQRT($E$17))*SIN(PI()/2-K30*$E$18/SQRT($E$17)),0)*$D$2 -> 0 | M30: =MAX(((M$29+M$31)*$E$20/($E$20+$V$5))*(1-($L30+$W30)/$E$20)+$L30+$W30,20) -> 233.4640816 | N30: =IF(N28=M28,0,MAX(((N$29+N$31)*$E$20/($E$20+$V$5))*(1-($L30+$W30)/$E$20)+$L30+$W30,20)) -> 0 | O30: =IF(O28=N28,0,MAX(((O$29+O$31)*$E$20/($E$20+$V$5))*(1-($L30+$W30)/$E$20)+$L30+$W30,20)) -> 0 | P30: 0 | Q30: 0 | R30: 0 | S30: 0 | T30: 0 | U30: 0 | V30: 0 | W30: =MAX(312*LOG10(8*$E$17+1)*EXP(-1.9*($E$15-K30)*$E$18/SQRT($E$17))*SIN(PI()/2-($E$15-K30)*$E$18/SQRT($E$17)),0)*$D$11 -> 5.575153434
D31: reduc nc | E31: =MIN(FLOOR(E30,1),10) -> 0 | M31: =MAX(312*LOG10(8*$E$17+1)*EXP(-1.9*($E$16-M28)*$E$18/SQRT($E$17))*SIN(PI()/2-($E$16-M28)*$E$18/SQRT($E$17)),0)*$F$6 -> 0 | N31: =IF(N28=M28,0,MAX(312*LOG10(8*$E$17+1)*EXP(-1.9*($E$16-N28)*$E$18/SQRT($E$17))*SIN(PI()/2-($E$16-N28)*$E$18/SQRT($E$17)),0))*$F$6 -> 0 | O31: =IF(O28=N28,0,MAX(312*LOG10(8*$E$17+1)*EXP(-1.9*($E$16-O28)*$E$18/SQRT($E$17))*SIN(PI()/2-($E$16-O28)*$E$18/SQRT($E$17)),0))*$F$6 -> 0 | P31: 0 | Q31: 0 | R31: 0 | S31: 0 | T31: 0 | U31: 0 | V31: 0
D32: ac | E32: =Brand!N12/1000 -> 0.1 | F32: m | K32: Træklag 2 | M32: =W95 -> 0.04 | N32: 0.07142857143 | O32: 0.1028571429 | P32: 0.1342857143 | Q32: 0.1657142857 | R32: 0.1971428571 | S32: 0.2285714286 | T32: 0.26 | U32: 0.26 | V32: 0.26
D33: dc | E33: =IF(E30<2,0,(E16-2*E29)/(E31-1)) -> 0 | F33: m | M33: =MAX(312*LOG10(8*$E$17+1)*EXP(-1.9*M32*$E$18/SQRT($E$17))*SIN(PI()/2-M32*$E$18/SQRT($E$17)),0)*$B$6 -> 229.4173602 | N33: =IF(N32=M32,0,MAX(312*LOG10(8*$E$17+1)*EXP(-1.9*N32*$E$18/SQRT($E$17))*SIN(PI()/2-N32*$E$18/SQRT($E$17)),0))*$B$6 -> 57.64308834 | O33: =IF(O32=N32,0,MAX(312*LOG10(8*$E$17+1)*EXP(-1.9*O32*$E$18/SQRT($E$17))*SIN(PI()/2-O32*$E$18/SQRT($E$17)),0))*$B$6 -> 3.152618741 | P33: 0 | Q33: 0 | R33: 0 | S33: 0 | T33: 0 | U33: 0 | V33: 0
D34: E/Ek | E34: =IF(E30=0,1,(SUM(E53:E62)+0.5*(E30-E31)*(E57+E58))/E30) -> 1 | K34: =-W99 -> 0.66 | L34: =MAX(312*LOG10(8*$E$17+1)*EXP(-1.9*K34*$E$18/SQRT($E$17))*SIN(PI()/2-K34*$E$18/SQRT($E$17)),0)*$D$2 -> 0 | M34: =MAX(((M$33+M$35)*$E$20/($E$20+$V$5))*(1-($L34+$W34)/$E$20)+$L34+$W34,20) -> 395.9397988 | N34: =IF(N32=M32,0,MAX(((N$33+N$35)*$E$20/($E$20+$V$5))*(1-($L34+$W34)/$E$20)+$L34+$W34,20)) -> 271.2575576 | O34: =IF(O32=N32,0,MAX(((O$33+O$35)*$E$20/($E$20+$V$5))*(1-($L34+$W34)/$E$20)+$L34+$W34,20)) -> 231.7056864 | P34: 229.4173602 | Q34: 229.4173602 | R34: 231.7056864 | S34: 271.2575576 | T34: 395.9397988 | U34: 0 | V34: 0 | W34: =MAX(312*LOG10(8*$E$17+1)*EXP(-1.9*($E$15-K34)*$E$18/SQRT($E$17))*SIN(PI()/2-($E$15-K34)*$E$18/SQRT($E$17)),0)*$D$11 -> 229.4173602 | X34: =(SUM(D54:D63)+0.5*(E36-E37)*(D58+D59))/E36 -> 49.49247484
D35: fy/fyk | E35: =IF(E30=0,1,(SUM(F53:F62)+0.5*(E30-E31)*(F57+F58))/E30) -> 1 | M35: =MAX(312*LOG10(8*$E$17+1)*EXP(-1.9*($E$16-M32)*$E$18/SQRT($E$17))*SIN(PI()/2-($E$16-M32)*$E$18/SQRT($E$17)),0)*$F$6 -> 0 | N35: =IF(N32=M32,0,MAX(312*LOG10(8*$E$17+1)*EXP(-1.9*($E$16-N32)*$E$18/SQRT($E$17))*SIN(PI()/2-($E$16-N32)*$E$18/SQRT($E$17)),0))*$F$6 -> 0 | O35: =IF(O32=N32,0,MAX(312*LOG10(8*$E$17+1)*EXP(-1.9*($E$16-O32)*$E$18/SQRT($E$17))*SIN(PI()/2-($E$16-O32)*$E$18/SQRT($E$17)),0))*$F$6 -> 0 | P35: 0 | Q35: 0 | R35: 3.152618741 | S35: 57.64308834 | T35: 229.4173602 | U35: 0 | V35: 0
B36: Træklag 2 | D36: nt | E36: =Brand!O13 -> 8 | K36: Tryklag | M36: =E29 -> 0.04 | N36: =IF(N40<=$E$43,M36+$E$45,M36) -> 0.07142857143 | O36: =IF(O40<=$E$43,N36+$E$45,N36) -> 0.1028571429 | P36: 0.1342857143 | Q36: 0.1657142857 | R36: 0.1971428571 | S36: 0.2285714286 | T36: 0.26 | U36: 0.26 | V36: 0.26
D37: reduc nt | E37: =MIN(FLOOR(E36,1),10) -> 8 | M37: =MAX(312*LOG10(8*$E$17+1)*EXP(-1.9*M36*$E$18/SQRT($E$17))*SIN(PI()/2-M36*$E$18/SQRT($E$17)),0)*$B$6 -> 229.4173602 | N37: =IF(N36=M36,0,MAX(312*LOG10(8*$E$17+1)*EXP(-1.9*N36*$E$18/SQRT($E$17))*SIN(PI()/2-N36*$E$18/SQRT($E$17)),0))*$B$6 -> 57.64308834 | O37: =IF(O36=N36,0,MAX(312*LOG10(8*$E$17+1)*EXP(-1.9*O36*$E$18/SQRT($E$17))*SIN(PI()/2-O36*$E$18/SQRT($E$17)),0))*$B$6 -> 3.152618741 | P37: 0 | Q37: 0 | R37: 0 | S37: 0 | T37: 0 | U37: 0 | V37: 0
D38: at | E38: =Brand!N13/1000 -> 0.04 | F38: m | K38: =E44 -> 0.04 | L38: =MAX(312*LOG10(8*$E$17+1)*EXP(-1.9*K38*$E$18/SQRT($E$17))*SIN(PI()/2-K38*$E$18/SQRT($E$17)),0)*$D$2 -> 0 | M38: =MAX(((M$37+M$39)*$E$20/($E$20+$V$5))*(1-($L38+$W38)/$E$20)+$L38+$W38,20) -> 229.4173602 | N38: =IF(N36=M36,0,MAX(((N$37+N$39)*$E$20/($E$20+$V$5))*(1-($L38+$W38)/$E$20)+$L38+$W38,20)) -> 57.64308834 | O38: =IF(O36=N36,0,MAX(((O$37+O$39)*$E$20/($E$20+$V$5))*(1-($L38+$W38)/$E$20)+$L38+$W38,20)) -> 20 | P38: 20 | Q38: 20 | R38: 20 | S38: 57.64308834 | T38: 229.4173602 | U38: 0 | V38: 0 | W38: =MAX(312*LOG10(8*$E$17+1)*EXP(-1.9*($E$15-K38)*$E$18/SQRT($E$17))*SIN(PI()/2-($E$15-K38)*$E$18/SQRT($E$17)),0)*$D$11 -> 0 | X38: =(SUM(D67:D76)+0.5*(E40-E41)*(D71+D72))/E40 -> 1474.557471
D39: dt | E39: =IF(E36<2,0,(E16-2*E29)/(E37-1)) -> 0.03142857143 | F39: m | M39: =MAX(312*LOG10(8*$E$17+1)*EXP(-1.9*($E$16-M36)*$E$18/SQRT($E$17))*SIN(PI()/2-($E$16-M36)*$E$18/SQRT($E$17)),0)*$F$6 -> 0 | N39: =IF(N36=M36,0,MAX(312*LOG10(8*$E$17+1)*EXP(-1.9*($E$16-N36)*$E$18/SQRT($E$17))*SIN(PI()/2-($E$16-N36)*$E$18/SQRT($E$17)),0))*$F$6 -> 0 | O39: =IF(O36=N36,0,MAX(312*LOG10(8*$E$17+1)*EXP(-1.9*($E$16-O36)*$E$18/SQRT($E$17))*SIN(PI()/2-($E$16-O36)*$E$18/SQRT($E$17)),0))*$F$6 -> 0 | P39: 0 | Q39: 0 | R39: 3.152618741 | S39: 57.64308834 | T39: 229.4173602 | U39: 0 | V39: 0
D40: E/Ek | E40: =IF(E36=0,1,(SUM(E63:E72)+0.5*(E36-E37)*(E67+E68))/E36) -> 0.986995 | M40: 1 | N40: 2 | O40: 3 | P40: 4 | Q40: 5 | R40: 6 | S40: 7 | T40: 8 | U40: 9 | V40: 10
D41: fy/fyk | E41: =IF(E36=0,1,(SUM(F63:F72)+0.5*(E36-E37)*(F67+F68))/E36) -> 0.8845689798
B42: Tryklag | D42: nt | E42: =Brand!O11 -> 8 | K42: Træklag 1 | R42: Træklag 2 | Y42: Tryklag | AF42: Bøjler
D43: reduc nt | E43: =MIN(FLOOR(E42,1),10) -> 8 | K43: Tabel | L43: type (+Q) | N43: type (+AC) | P43: type (+C) | R43: Tabel | S43: type (+Q) | U43: type (+AC) | W43: type (+C) | Y43: Tabel | Z43: type (+Q) | AB43: type (+AC) | AD43: type (+C) | AF43: Tabel | AG43: type (+Q) | AI43: type (+AC) | AK43: type (+C)
D44: atr | E44: =Brand!N11/1000 -> 0.04 | F44: m | K44: Q-stål | L44: E/Ek | M44: fy/fyk | N44: E/Ek | O44: fy/fyk | P44: E/Ek | Q44: fy/fyk | R44: Q-stål | S44: E/Ek | T44: fy/fyk | U44: E/Ek | V44: fy/fyk | W44: E/Ek | X44: fy/fyk | Y44: Q-stål | Z44: E/Ek | AA44: fy/fyk | AB44: E/Ek | AC44: fy/fyk | AD44: E/Ek | AE44: fy/fyk | AF44: Q-stål | AG44: E/Ek | AH44: fy/fyk | AI44: E/Ek | AJ44: fy/fyk | AK44: E/Ek | AL44: fy/fyk
D45: dt | E45: =IF(E42<2,0,(E16-2*E29)/(E43-1)) -> 0.03142857143 | F45: m | K45: Temp-1 | R45: Temp-11 | Y45: Temp-21 | AF45: Temp-31
D46: E/Ek | E46: =IF(E42=0,1,(SUM(E73:E82)+0.5*(E42-E43)*(E77+E78))/E42) -> 0.999264566 | K46: =D53 -> 233.4640816 | L46: =IF(K46=K48,L48,L48+(L47-L48)*(K46-K48)/(K47-K48)) -> 0.8665359184 | M46: =IF(K46=K48,M48,M48+(M47-M48)*(K46-K48)/(K47-K48)) -> 0.8431895102 | N46: =IF(K46=K48,N48,N48+(N47-N48)*(K46-K48)/(K47-K48)) -> 0.9966535918 | O46: =IF(K46=K48,O48,O48+(O47-O48)*(K46-K48)/(K47-K48)) -> 0.9232679592 | P46: =IF(K46=K48,P48,P48+(P47-P48)*(K46-K48)/(K47-K48)) -> 0.8198038776 | Q46: =IF(K46=K48,Q48,Q48+(Q47-Q48)*(K46-K48)/(K47-K48)) -> 0.929921551 | R46: =D63 -> 395.9397988 | S46: =IF(R46=R48,S48,S48+(S47-S48)*(R46-R48)/(R47-R48)) -> 0.7040602012 | T46: =IF(R46=R48,T48,T48+(T47-T48)*(R46-R48)/(R47-R48)) -> 0.6548722415 | U46: =IF(R46=R48,U48,U48+(U47-U48)*(R46-R48)/(R47-R48)) -> 0.9612180604 | V46: =IF(R46=R48,V48,V48+(V47-V48)*(R46-R48)/(R47-R48)) -> 0.7844662214 | W46: =IF(R46=R48,W48,W48+(W47-W48)*(R46-R48)/(R47-R48)) -> 0.566496322 | X46: =IF(R46=R48,X48,X48+(X47-X48)*(R46-R48)/(R47-R48)) -> 0.7844662214 | Y46: =D73 -> 229.4173602 | Z46: =IF(Y46=Y48,Z48,Z48+(Z47-Z48)*(Y46-Y48)/(Y47-Y48)) -> 0.8705826398 | AA46: =IF(Y46=Y48,AA48,AA48+(AA47-AA48)*(Y46-Y48)/(Y47-Y48)) -> 0.8476409038 | AB46: =IF(Y46=Y48,AB48,AB48+(AB47-AB48)*(Y46-Y48)/(Y47-Y48)) -> 0.997058264 | AC46: =IF(Y46=Y48,AC48,AC48+(AC47-AC48)*(Y46-Y48)/(Y47-Y48)) -> 0.9252913199 | AD46: =IF(Y46=Y48,AD48,AD48+(AD47-AD48)*(Y46-Y48)/(Y47-Y48)) -> 0.8258739597 | AE46: =IF(Y46=Y48,AE48,AE48+(AE47-AE48)*(Y46-Y48)/(Y47-Y48)) -> 0.9323495839 | AF46: =AC14 -> 383.6150013 | AG46: =IF(AF46=AF48,AG48,AG48+(AG47-AG48)*(AF46-AF48)/(AF47-AF48)) -> 0.7163849987 | AH46: =IF(AF46=AF48,AH48,AH48+(AH47-AH48)*(AF46-AF48)/(AF47-AF48)) -> 0.6696619984 | AI46: =IF(AF46=AF48,AI48,AI48+(AI47-AI48)*(AF46-AF48)/(AF47-AF48)) -> 0.9649154996 | AJ46: =IF(AF46=AF48,AJ48,AJ48+(AJ47-AJ48)*(AF46-AF48)/(AF47-AF48)) -> 0.7980234986 | AK46: =IF(AF46=AF48,AK48,AK48+(AK47-AK48)*(AF46-AF48)/(AF47-AF48)) -> 0.5862159979 | AL46: =IF(AF46=AF48,AL48,AL48+(AL47-AL48)*(AF46-AF48)/(AF47-AF48)) -> 0.7980234986
D47: fy/fyk | E47: =IF(E42=0,1,(SUM(F73:F82)+0.5*(E42-E43)*(F77+F78))/E42) -> 0.978970137 | K47: =CEILING(K46,100) -> 300 | L47: =VLOOKUP(K47,$B$105:$H$117,2,TRUE) -> 0.8 | M47: =VLOOKUP(K47,$B$105:$H$117,3,TRUE) -> 0.77 | N47: =VLOOKUP(K47,$B$105:$H$117,4,TRUE) -> 0.99 | O47: =VLOOKUP(K47,$B$105:$H$117,5,TRUE) -> 0.89 | P47: =VLOOKUP(K47,$B$105:$H$117,6,TRUE) -> 0.72 | Q47: =VLOOKUP(K47,$B$105:$H$117,7,TRUE) -> 0.89 | R47: =CEILING(R46,100) -> 400 | S47: =VLOOKUP(R47,$B$105:$H$117,2,TRUE) -> 0.7 | T47: =VLOOKUP(R47,$B$105:$H$117,3,TRUE) -> 0.65 | U47: =VLOOKUP(R47,$B$105:$H$117,4,TRUE) -> 0.96 | V47: =VLOOKUP(R47,$B$105:$H$117,5,TRUE) -> 0.78 | W47: =VLOOKUP(R47,$B$105:$H$117,6,TRUE) -> 0.56 | X47: =VLOOKUP(R47,$B$105:$H$117,7,TRUE) -> 0.78 | Y47: =CEILING(Y46,100) -> 300 | Z47: =VLOOKUP(Y47,$B$105:$H$117,2,TRUE) -> 0.8 | AA47: =VLOOKUP(Y47,$B$105:$H$117,3,TRUE) -> 0.77 | AB47: =VLOOKUP(Y47,$B$105:$H$117,4,TRUE) -> 0.99 | AC47: =VLOOKUP(Y47,$B$105:$H$117,5,TRUE) -> 0.89 | AD47: =VLOOKUP(Y47,$B$105:$H$117,6,TRUE) -> 0.72 | AE47: =VLOOKUP(Y47,$B$105:$H$117,7,TRUE) -> 0.89 | AF47: =CEILING(AF46,100) -> 400 | AG47: =VLOOKUP(AF47,$B$105:$H$117,2,TRUE) -> 0.7 | AH47: =VLOOKUP(AF47,$B$105:$H$117,3,TRUE) -> 0.65 | AI47: =VLOOKUP(AF47,$B$105:$H$117,4,TRUE) -> 0.96 | AJ47: =VLOOKUP(AF47,$B$105:$H$117,5,TRUE) -> 0.78 | AK47: =VLOOKUP(AF47,$B$105:$H$117,6,TRUE) -> 0.56 | AL47: =VLOOKUP(AF47,$B$105:$H$117,7,TRUE) -> 0.78
B48: Bøjler | D48: E/Ek | E48: =E83 -> 0.9649154996 | K48: =MAX(FLOOR(K46,100),20) -> 200 | L48: =VLOOKUP(K48,$B$105:$H$117,2,TRUE) -> 0.9 | M48: =VLOOKUP(K48,$B$105:$H$117,3,TRUE) -> 0.88 | N48: =VLOOKUP(K48,$B$105:$H$117,4,TRUE) -> 1 | O48: =VLOOKUP(K48,$B$105:$H$117,5,TRUE) -> 0.94 | P48: =VLOOKUP(K48,$B$105:$H$117,6,TRUE) -> 0.87 | Q48: =VLOOKUP(K48,$B$105:$H$117,7,TRUE) -> 0.95 | R48: =MAX(FLOOR(R46,100),20) -> 300 | S48: =VLOOKUP(R48,$B$105:$H$117,2,TRUE) -> 0.8 | T48: =VLOOKUP(R48,$B$105:$H$117,3,TRUE) -> 0.77 | U48: =VLOOKUP(R48,$B$105:$H$117,4,TRUE) -> 0.99 | V48: =VLOOKUP(R48,$B$105:$H$117,5,TRUE) -> 0.89 | W48: =VLOOKUP(R48,$B$105:$H$117,6,TRUE) -> 0.72 | X48: =VLOOKUP(R48,$B$105:$H$117,7,TRUE) -> 0.89 | Y48: =MAX(FLOOR(Y46,100),20) -> 200 | Z48: =VLOOKUP(Y48,$B$105:$H$117,2,TRUE) -> 0.9 | AA48: =VLOOKUP(Y48,$B$105:$H$117,3,TRUE) -> 0.88 | AB48: =VLOOKUP(Y48,$B$105:$H$117,4,TRUE) -> 1 | AC48: =VLOOKUP(Y48,$B$105:$H$117,5,TRUE) -> 0.94 | AD48: =VLOOKUP(Y48,$B$105:$H$117,6,TRUE) -> 0.87 | AE48: =VLOOKUP(Y48,$B$105:$H$117,7,TRUE) -> 0.95 | AF48: =MAX(FLOOR(AF46,100),20) -> 300 | AG48: =VLOOKUP(AF48,$B$105:$H$117,2,TRUE) -> 0.8 | AH48: =VLOOKUP(AF48,$B$105:$H$117,3,TRUE) -> 0.77 | AI48: =VLOOKUP(AF48,$B$105:$H$117,4,TRUE) -> 0.99 | AJ48: =VLOOKUP(AF48,$B$105:$H$117,5,TRUE) -> 0.89 | AK48: =VLOOKUP(AF48,$B$105:$H$117,6,TRUE) -> 0.72 | AL48: =VLOOKUP(AF48,$B$105:$H$117,7,TRUE) -> 0.89
D49: fy/fyk | E49: =F83 -> 0.7980234986 | K49: Temp-2 | R49: Temp-12 | Y49: Temp-22
K50: =D54 -> 0 | L50: =IF(K50=K52,L52,L52+(L51-L52)*(K50-K52)/(K51-K52)) ->  | M50: =IF(K50=K52,M52,M52+(M51-M52)*(K50-K52)/(K51-K52)) ->  | N50: =IF(K50=K52,N52,N52+(N51-N52)*(K50-K52)/(K51-K52)) ->  | O50: =IF(K50=K52,O52,O52+(O51-O52)*(K50-K52)/(K51-K52)) ->  | P50: =IF(K50=K52,P52,P52+(P51-P52)*(K50-K52)/(K51-K52)) ->  | Q50: =IF(K50=K52,Q52,Q52+(Q51-Q52)*(K50-K52)/(K51-K52)) ->  | R50: =D64 -> 271.2575576 | S50: =IF(R50=R52,S52,S52+(S51-S52)*(R50-R52)/(R51-R52)) -> 0.8287424424 | T50: =IF(R50=R52,T52,T52+(T51-T52)*(R50-R52)/(R51-R52)) -> 0.8016166866 | U50: =IF(R50=R52,U52,U52+(U51-U52)*(R50-R52)/(R51-R52)) -> 0.9928742442 | V50: =IF(R50=R52,V52,V52+(V51-V52)*(R50-R52)/(R51-R52)) -> 0.9043712212 | W50: =IF(R50=R52,W52,W52+(W51-W52)*(R50-R52)/(R51-R52)) -> 0.7631136636 | X50: =IF(R50=R52,X52,X52+(X51-X52)*(R50-R52)/(R51-R52)) -> 0.9072454654 | Y50: =D74 -> 57.64308834 | Z50: =IF(Y50=Y52,Z52,Z52+(Z51-Z52)*(Y50-Y52)/(Y51-Y52)) -> 1 | AA50: =IF(Y50=Y52,AA52,AA52+(AA51-AA52)*(Y50-Y52)/(Y51-Y52)) -> 0.9811784558 | AB50: =IF(Y50=Y52,AB52,AB52+(AB51-AB52)*(Y50-Y52)/(Y51-Y52)) -> 1 | AC50: =IF(Y50=Y52,AC52,AC52+(AC51-AC52)*(Y50-Y52)/(Y51-Y52)) -> 0.9905892279 | AD50: =IF(Y50=Y52,AD52,AD52+(AD51-AD52)*(Y50-Y52)/(Y51-Y52)) -> 1 | AE50: =IF(Y50=Y52,AE52,AE52+(AE51-AE52)*(Y50-Y52)/(Y51-Y52)) -> 0.995294614
K51: =CEILING(K50,100) -> 0 | L51: =VLOOKUP(K51,$B$105:$H$117,2,TRUE) ->  | M51: =VLOOKUP(K51,$B$105:$H$117,3,TRUE) ->  | N51: =VLOOKUP(K51,$B$105:$H$117,4,TRUE) ->  | O51: =VLOOKUP(K51,$B$105:$H$117,5,TRUE) ->  | P51: =VLOOKUP(K51,$B$105:$H$117,6,TRUE) ->  | Q51: =VLOOKUP(K51,$B$105:$H$117,7,TRUE) ->  | R51: =CEILING(R50,100) -> 300 | S51: =VLOOKUP(R51,$B$105:$H$117,2,TRUE) -> 0.8 | T51: =VLOOKUP(R51,$B$105:$H$117,3,TRUE) -> 0.77 | U51: =VLOOKUP(R51,$B$105:$H$117,4,TRUE) -> 0.99 | V51: =VLOOKUP(R51,$B$105:$H$117,5,TRUE) -> 0.89 | W51: =VLOOKUP(R51,$B$105:$H$117,6,TRUE) -> 0.72 | X51: =VLOOKUP(R51,$B$105:$H$117,7,TRUE) -> 0.89 | Y51: =CEILING(Y50,100) -> 100 | Z51: =VLOOKUP(Y51,$B$105:$H$117,2,TRUE) -> 1 | AA51: =VLOOKUP(Y51,$B$105:$H$117,3,TRUE) -> 0.96 | AB51: =VLOOKUP(Y51,$B$105:$H$117,4,TRUE) -> 1 | AC51: =VLOOKUP(Y51,$B$105:$H$117,5,TRUE) -> 0.98 | AD51: =VLOOKUP(Y51,$B$105:$H$117,6,TRUE) -> 1 | AE51: =VLOOKUP(Y51,$B$105:$H$117,7,TRUE) -> 0.99
D52: Temp | E52: E/Ek | F52: fy/fyk | K52: =MAX(FLOOR(K50,100),20) -> 20 | L52: =VLOOKUP(K52,$B$105:$H$117,2,TRUE) -> 1 | M52: =VLOOKUP(K52,$B$105:$H$117,3,TRUE) -> 1 | N52: =VLOOKUP(K52,$B$105:$H$117,4,TRUE) -> 1 | O52: =VLOOKUP(K52,$B$105:$H$117,5,TRUE) -> 1 | P52: =VLOOKUP(K52,$B$105:$H$117,6,TRUE) -> 1 | Q52: =VLOOKUP(K52,$B$105:$H$117,7,TRUE) -> 1 | R52: =MAX(FLOOR(R50,100),20) -> 200 | S52: =VLOOKUP(R52,$B$105:$H$117,2,TRUE) -> 0.9 | T52: =VLOOKUP(R52,$B$105:$H$117,3,TRUE) -> 0.88 | U52: =VLOOKUP(R52,$B$105:$H$117,4,TRUE) -> 1 | V52: =VLOOKUP(R52,$B$105:$H$117,5,TRUE) -> 0.94 | W52: =VLOOKUP(R52,$B$105:$H$117,6,TRUE) -> 0.87 | X52: =VLOOKUP(R52,$B$105:$H$117,7,TRUE) -> 0.95 | Y52: =MAX(FLOOR(Y50,100),20) -> 20 | Z52: =VLOOKUP(Y52,$B$105:$H$117,2,TRUE) -> 1 | AA52: =VLOOKUP(Y52,$B$105:$H$117,3,TRUE) -> 1 | AB52: =VLOOKUP(Y52,$B$105:$H$117,4,TRUE) -> 1 | AC52: =VLOOKUP(Y52,$B$105:$H$117,5,TRUE) -> 1 | AD52: =VLOOKUP(Y52,$B$105:$H$117,6,TRUE) -> 1 | AE52: =VLOOKUP(Y52,$B$105:$H$117,7,TRUE) -> 1
B53: Træklag 1 | C53: 1 | D53: =M30 -> 233.4640816 | E53: =IF(D53=0,0,INDEX($L$45:$Q$84,2+(C53-1)*4,$D$28)) -> 0.9966535918 | F53: =IF(D53=0,0,INDEX($L$45:$Q$84,2+(C53-1)*4,$D$28+1)) -> 0.9232679592 | K53: Temp-3 | R53: Temp-13 | Y53: Temp-23
C54: 2 | D54: =N30 -> 0 | E54: 0 | F54: 0 | K54: =D55 -> 0 | L54: =IF(K54=K56,L56,L56+(L55-L56)*(K54-K56)/(K55-K56)) ->  | M54: =IF(K54=K56,M56,M56+(M55-M56)*(K54-K56)/(K55-K56)) ->  | N54: =IF(K54=K56,N56,N56+(N55-N56)*(K54-K56)/(K55-K56)) ->  | O54: =IF(K54=K56,O56,O56+(O55-O56)*(K54-K56)/(K55-K56)) ->  | P54: =IF(K54=K56,P56,P56+(P55-P56)*(K54-K56)/(K55-K56)) ->  | Q54: =IF(K54=K56,Q56,Q56+(Q55-Q56)*(K54-K56)/(K55-K56)) ->  | R54: =D65 -> 231.7056864 | S54: =IF(R54=R56,S56,S56+(S55-S56)*(R54-R56)/(R55-R56)) -> 0.8682943136 | T54: =IF(R54=R56,T56,T56+(T55-T56)*(R54-R56)/(R55-R56)) -> 0.8451237449 | U54: =IF(R54=R56,U56,U56+(U55-U56)*(R54-R56)/(R55-R56)) -> 0.9968294314 | V54: =IF(R54=R56,V56,V56+(V55-V56)*(R54-R56)/(R55-R56)) -> 0.9241471568 | W54: =IF(R54=R56,W56,W56+(W55-W56)*(R54-R56)/(R55-R56)) -> 0.8224414704 | X54: =IF(R54=R56,X56,X56+(X55-X56)*(R54-R56)/(R55-R56)) -> 0.9309765881 | Y54: =D75 -> 20 | Z54: =IF(Y54=Y56,Z56,Z56+(Z55-Z56)*(Y54-Y56)/(Y55-Y56)) -> 1 | AA54: =IF(Y54=Y56,AA56,AA56+(AA55-AA56)*(Y54-Y56)/(Y55-Y56)) -> 1 | AB54: =IF(Y54=Y56,AB56,AB56+(AB55-AB56)*(Y54-Y56)/(Y55-Y56)) -> 1 | AC54: =IF(Y54=Y56,AC56,AC56+(AC55-AC56)*(Y54-Y56)/(Y55-Y56)) -> 1 | AD54: =IF(Y54=Y56,AD56,AD56+(AD55-AD56)*(Y54-Y56)/(Y55-Y56)) -> 1 | AE54: =IF(Y54=Y56,AE56,AE56+(AE55-AE56)*(Y54-Y56)/(Y55-Y56)) -> 1
C55: 3 | D55: =O30 -> 0 | E55: 0 | F55: 0 | K55: =CEILING(K54,100) -> 0 | L55: =VLOOKUP(K55,$B$105:$H$117,2,TRUE) ->  | M55: =VLOOKUP(K55,$B$105:$H$117,3,TRUE) ->  | N55: =VLOOKUP(K55,$B$105:$H$117,4,TRUE) ->  | O55: =VLOOKUP(K55,$B$105:$H$117,5,TRUE) ->  | P55: =VLOOKUP(K55,$B$105:$H$117,6,TRUE) ->  | Q55: =VLOOKUP(K55,$B$105:$H$117,7,TRUE) ->  | R55: =CEILING(R54,100) -> 300 | S55: =VLOOKUP(R55,$B$105:$H$117,2,TRUE) -> 0.8 | T55: =VLOOKUP(R55,$B$105:$H$117,3,TRUE) -> 0.77 | U55: =VLOOKUP(R55,$B$105:$H$117,4,TRUE) -> 0.99 | V55: =VLOOKUP(R55,$B$105:$H$117,5,TRUE) -> 0.89 | W55: =VLOOKUP(R55,$B$105:$H$117,6,TRUE) -> 0.72 | X55: =VLOOKUP(R55,$B$105:$H$117,7,TRUE) -> 0.89 | Y55: =CEILING(Y54,100) -> 100 | Z55: =VLOOKUP(Y55,$B$105:$H$117,2,TRUE) -> 1 | AA55: =VLOOKUP(Y55,$B$105:$H$117,3,TRUE) -> 0.96 | AB55: =VLOOKUP(Y55,$B$105:$H$117,4,TRUE) -> 1 | AC55: =VLOOKUP(Y55,$B$105:$H$117,5,TRUE) -> 0.98 | AD55: =VLOOKUP(Y55,$B$105:$H$117,6,TRUE) -> 1 | AE55: =VLOOKUP(Y55,$B$105:$H$117,7,TRUE) -> 0.99
C56: 4 | D56: =P30 -> 0 | E56: 0 | F56: 0 | K56: =MAX(FLOOR(K54,100),20) -> 20 | L56: =VLOOKUP(K56,$B$105:$H$117,2,TRUE) -> 1 | M56: =VLOOKUP(K56,$B$105:$H$117,3,TRUE) -> 1 | N56: =VLOOKUP(K56,$B$105:$H$117,4,TRUE) -> 1 | O56: =VLOOKUP(K56,$B$105:$H$117,5,TRUE) -> 1 | P56: =VLOOKUP(K56,$B$105:$H$117,6,TRUE) -> 1 | Q56: =VLOOKUP(K56,$B$105:$H$117,7,TRUE) -> 1 | R56: =MAX(FLOOR(R54,100),20) -> 200 | S56: =VLOOKUP(R56,$B$105:$H$117,2,TRUE) -> 0.9 | T56: =VLOOKUP(R56,$B$105:$H$117,3,TRUE) -> 0.88 | U56: =VLOOKUP(R56,$B$105:$H$117,4,TRUE) -> 1 | V56: =VLOOKUP(R56,$B$105:$H$117,5,TRUE) -> 0.94 | W56: =VLOOKUP(R56,$B$105:$H$117,6,TRUE) -> 0.87 | X56: =VLOOKUP(R56,$B$105:$H$117,7,TRUE) -> 0.95 | Y56: =MAX(FLOOR(Y54,100),20) -> 20 | Z56: =VLOOKUP(Y56,$B$105:$H$117,2,TRUE) -> 1 | AA56: =VLOOKUP(Y56,$B$105:$H$117,3,TRUE) -> 1 | AB56: =VLOOKUP(Y56,$B$105:$H$117,4,TRUE) -> 1 | AC56: =VLOOKUP(Y56,$B$105:$H$117,5,TRUE) -> 1 | AD56: =VLOOKUP(Y56,$B$105:$H$117,6,TRUE) -> 1 | AE56: =VLOOKUP(Y56,$B$105:$H$117,7,TRUE) -> 1
C57: 5 | D57: =Q30 -> 0 | E57: 0 | F57: 0 | K57: Temp-4 | R57: Temp-14 | Y57: Temp-24
C58: 6 | D58: =R30 -> 0 | E58: 0 | F58: 0 | K58: =D56 -> 0 | L58: =IF(K58=K60,L60,L60+(L59-L60)*(K58-K60)/(K59-K60)) ->  | M58: =IF(K58=K60,M60,M60+(M59-M60)*(K58-K60)/(K59-K60)) ->  | N58: =IF(K58=K60,N60,N60+(N59-N60)*(K58-K60)/(K59-K60)) ->  | O58: =IF(K58=K60,O60,O60+(O59-O60)*(K58-K60)/(K59-K60)) ->  | P58: =IF(K58=K60,P60,P60+(P59-P60)*(K58-K60)/(K59-K60)) ->  | Q58: =IF(K58=K60,Q60,Q60+(Q59-Q60)*(K58-K60)/(K59-K60)) ->  | R58: =D66 -> 229.4173602 | S58: =IF(R58=R60,S60,S60+(S59-S60)*(R58-R60)/(R59-R60)) -> 0.8705826398 | T58: =IF(R58=R60,T60,T60+(T59-T60)*(R58-R60)/(R59-R60)) -> 0.8476409038 | U58: =IF(R58=R60,U60,U60+(U59-U60)*(R58-R60)/(R59-R60)) -> 0.997058264 | V58: =IF(R58=R60,V60,V60+(V59-V60)*(R58-R60)/(R59-R60)) -> 0.9252913199 | W58: =IF(R58=R60,W60,W60+(W59-W60)*(R58-R60)/(R59-R60)) -> 0.8258739597 | X58: =IF(R58=R60,X60,X60+(X59-X60)*(R58-R60)/(R59-R60)) -> 0.9323495839 | Y58: =D76 -> 20 | Z58: =IF(Y58=Y60,Z60,Z60+(Z59-Z60)*(Y58-Y60)/(Y59-Y60)) -> 1 | AA58: =IF(Y58=Y60,AA60,AA60+(AA59-AA60)*(Y58-Y60)/(Y59-Y60)) -> 1 | AB58: =IF(Y58=Y60,AB60,AB60+(AB59-AB60)*(Y58-Y60)/(Y59-Y60)) -> 1 | AC58: =IF(Y58=Y60,AC60,AC60+(AC59-AC60)*(Y58-Y60)/(Y59-Y60)) -> 1 | AD58: =IF(Y58=Y60,AD60,AD60+(AD59-AD60)*(Y58-Y60)/(Y59-Y60)) -> 1 | AE58: =IF(Y58=Y60,AE60,AE60+(AE59-AE60)*(Y58-Y60)/(Y59-Y60)) -> 1
C59: 7 | D59: =S30 -> 0 | E59: 0 | F59: 0 | K59: =CEILING(K58,100) -> 0 | L59: =VLOOKUP(K59,$B$105:$H$117,2,TRUE) ->  | M59: =VLOOKUP(K59,$B$105:$H$117,3,TRUE) ->  | N59: =VLOOKUP(K59,$B$105:$H$117,4,TRUE) ->  | O59: =VLOOKUP(K59,$B$105:$H$117,5,TRUE) ->  | P59: =VLOOKUP(K59,$B$105:$H$117,6,TRUE) ->  | Q59: =VLOOKUP(K59,$B$105:$H$117,7,TRUE) ->  | R59: =CEILING(R58,100) -> 300 | S59: =VLOOKUP(R59,$B$105:$H$117,2,TRUE) -> 0.8 | T59: =VLOOKUP(R59,$B$105:$H$117,3,TRUE) -> 0.77 | U59: =VLOOKUP(R59,$B$105:$H$117,4,TRUE) -> 0.99 | V59: =VLOOKUP(R59,$B$105:$H$117,5,TRUE) -> 0.89 | W59: =VLOOKUP(R59,$B$105:$H$117,6,TRUE) -> 0.72 | X59: =VLOOKUP(R59,$B$105:$H$117,7,TRUE) -> 0.89 | Y59: =CEILING(Y58,100) -> 100 | Z59: =VLOOKUP(Y59,$B$105:$H$117,2,TRUE) -> 1 | AA59: =VLOOKUP(Y59,$B$105:$H$117,3,TRUE) -> 0.96 | AB59: =VLOOKUP(Y59,$B$105:$H$117,4,TRUE) -> 1 | AC59: =VLOOKUP(Y59,$B$105:$H$117,5,TRUE) -> 0.98 | AD59: =VLOOKUP(Y59,$B$105:$H$117,6,TRUE) -> 1 | AE59: =VLOOKUP(Y59,$B$105:$H$117,7,TRUE) -> 0.99
C60: 8 | D60: =T30 -> 0 | E60: 0 | F60: 0 | K60: =MAX(FLOOR(K58,100),20) -> 20 | L60: =VLOOKUP(K60,$B$105:$H$117,2,TRUE) -> 1 | M60: =VLOOKUP(K60,$B$105:$H$117,3,TRUE) -> 1 | N60: =VLOOKUP(K60,$B$105:$H$117,4,TRUE) -> 1 | O60: =VLOOKUP(K60,$B$105:$H$117,5,TRUE) -> 1 | P60: =VLOOKUP(K60,$B$105:$H$117,6,TRUE) -> 1 | Q60: =VLOOKUP(K60,$B$105:$H$117,7,TRUE) -> 1 | R60: =MAX(FLOOR(R58,100),20) -> 200 | S60: =VLOOKUP(R60,$B$105:$H$117,2,TRUE) -> 0.9 | T60: =VLOOKUP(R60,$B$105:$H$117,3,TRUE) -> 0.88 | U60: =VLOOKUP(R60,$B$105:$H$117,4,TRUE) -> 1 | V60: =VLOOKUP(R60,$B$105:$H$117,5,TRUE) -> 0.94 | W60: =VLOOKUP(R60,$B$105:$H$117,6,TRUE) -> 0.87 | X60: =VLOOKUP(R60,$B$105:$H$117,7,TRUE) -> 0.95 | Y60: =MAX(FLOOR(Y58,100),20) -> 20 | Z60: =VLOOKUP(Y60,$B$105:$H$117,2,TRUE) -> 1 | AA60: =VLOOKUP(Y60,$B$105:$H$117,3,TRUE) -> 1 | AB60: =VLOOKUP(Y60,$B$105:$H$117,4,TRUE) -> 1 | AC60: =VLOOKUP(Y60,$B$105:$H$117,5,TRUE) -> 1 | AD60: =VLOOKUP(Y60,$B$105:$H$117,6,TRUE) -> 1 | AE60: =VLOOKUP(Y60,$B$105:$H$117,7,TRUE) -> 1
C61: 9 | D61: =U30 -> 0 | E61: 0 | F61: 0 | K61: Temp-5 | R61: Temp-15 | Y61: Temp-25
C62: 10 | D62: =V30 -> 0 | E62: 0 | F62: 0 | K62: =D57 -> 0 | L62: =IF(K62=K64,L64,L64+(L63-L64)*(K62-K64)/(K63-K64)) ->  | M62: =IF(K62=K64,M64,M64+(M63-M64)*(K62-K64)/(K63-K64)) ->  | N62: =IF(K62=K64,N64,N64+(N63-N64)*(K62-K64)/(K63-K64)) ->  | O62: =IF(K62=K64,O64,O64+(O63-O64)*(K62-K64)/(K63-K64)) ->  | P62: =IF(K62=K64,P64,P64+(P63-P64)*(K62-K64)/(K63-K64)) ->  | Q62: =IF(K62=K64,Q64,Q64+(Q63-Q64)*(K62-K64)/(K63-K64)) ->  | R62: =D67 -> 229.4173602 | S62: =IF(R62=R64,S64,S64+(S63-S64)*(R62-R64)/(R63-R64)) -> 0.8705826398 | T62: =IF(R62=R64,T64,T64+(T63-T64)*(R62-R64)/(R63-R64)) -> 0.8476409038 | U62: =IF(R62=R64,U64,U64+(U63-U64)*(R62-R64)/(R63-R64)) -> 0.997058264 | V62: =IF(R62=R64,V64,V64+(V63-V64)*(R62-R64)/(R63-R64)) -> 0.9252913199 | W62: =IF(R62=R64,W64,W64+(W63-W64)*(R62-R64)/(R63-R64)) -> 0.8258739597 | X62: =IF(R62=R64,X64,X64+(X63-X64)*(R62-R64)/(R63-R64)) -> 0.9323495839 | Y62: =D77 -> 20 | Z62: =IF(Y62=Y64,Z64,Z64+(Z63-Z64)*(Y62-Y64)/(Y63-Y64)) -> 1 | AA62: =IF(Y62=Y64,AA64,AA64+(AA63-AA64)*(Y62-Y64)/(Y63-Y64)) -> 1 | AB62: =IF(Y62=Y64,AB64,AB64+(AB63-AB64)*(Y62-Y64)/(Y63-Y64)) -> 1 | AC62: =IF(Y62=Y64,AC64,AC64+(AC63-AC64)*(Y62-Y64)/(Y63-Y64)) -> 1 | AD62: =IF(Y62=Y64,AD64,AD64+(AD63-AD64)*(Y62-Y64)/(Y63-Y64)) -> 1 | AE62: =IF(Y62=Y64,AE64,AE64+(AE63-AE64)*(Y62-Y64)/(Y63-Y64)) -> 1
B63: Træklag 2 | C63: 11 | D63: =M34 -> 395.9397988 | E63: =IF(D63=0,0,INDEX($S$45:$X$84,2+(C63-11)*4,$D$28)) -> 0.9612180604 | F63: =IF(D63=0,0,INDEX($S$45:$X$84,2+(C63-11)*4,$D$28+1)) -> 0.7844662214 | K63: =CEILING(K62,100) -> 0 | L63: =VLOOKUP(K63,$B$105:$H$117,2,TRUE) ->  | M63: =VLOOKUP(K63,$B$105:$H$117,3,TRUE) ->  | N63: =VLOOKUP(K63,$B$105:$H$117,4,TRUE) ->  | O63: =VLOOKUP(K63,$B$105:$H$117,5,TRUE) ->  | P63: =VLOOKUP(K63,$B$105:$H$117,6,TRUE) ->  | Q63: =VLOOKUP(K63,$B$105:$H$117,7,TRUE) ->  | R63: =CEILING(R62,100) -> 300 | S63: =VLOOKUP(R63,$B$105:$H$117,2,TRUE) -> 0.8 | T63: =VLOOKUP(R63,$B$105:$H$117,3,TRUE) -> 0.77 | U63: =VLOOKUP(R63,$B$105:$H$117,4,TRUE) -> 0.99 | V63: =VLOOKUP(R63,$B$105:$H$117,5,TRUE) -> 0.89 | W63: =VLOOKUP(R63,$B$105:$H$117,6,TRUE) -> 0.72 | X63: =VLOOKUP(R63,$B$105:$H$117,7,TRUE) -> 0.89 | Y63: =CEILING(Y62,100) -> 100 | Z63: =VLOOKUP(Y63,$B$105:$H$117,2,TRUE) -> 1 | AA63: =VLOOKUP(Y63,$B$105:$H$117,3,TRUE) -> 0.96 | AB63: =VLOOKUP(Y63,$B$105:$H$117,4,TRUE) -> 1 | AC63: =VLOOKUP(Y63,$B$105:$H$117,5,TRUE) -> 0.98 | AD63: =VLOOKUP(Y63,$B$105:$H$117,6,TRUE) -> 1 | AE63: =VLOOKUP(Y63,$B$105:$H$117,7,TRUE) -> 0.99
C64: 12 | D64: =N34 -> 271.2575576 | E64: 0.9928742442 | F64: 0.9043712212 | K64: =MAX(FLOOR(K62,100),20) -> 20 | L64: =VLOOKUP(K64,$B$105:$H$117,2,TRUE) -> 1 | M64: =VLOOKUP(K64,$B$105:$H$117,3,TRUE) -> 1 | N64: =VLOOKUP(K64,$B$105:$H$117,4,TRUE) -> 1 | O64: =VLOOKUP(K64,$B$105:$H$117,5,TRUE) -> 1 | P64: =VLOOKUP(K64,$B$105:$H$117,6,TRUE) -> 1 | Q64: =VLOOKUP(K64,$B$105:$H$117,7,TRUE) -> 1 | R64: =MAX(FLOOR(R62,100),20) -> 200 | S64: =VLOOKUP(R64,$B$105:$H$117,2,TRUE) -> 0.9 | T64: =VLOOKUP(R64,$B$105:$H$117,3,TRUE) -> 0.88 | U64: =VLOOKUP(R64,$B$105:$H$117,4,TRUE) -> 1 | V64: =VLOOKUP(R64,$B$105:$H$117,5,TRUE) -> 0.94 | W64: =VLOOKUP(R64,$B$105:$H$117,6,TRUE) -> 0.87 | X64: =VLOOKUP(R64,$B$105:$H$117,7,TRUE) -> 0.95 | Y64: =MAX(FLOOR(Y62,100),20) -> 20 | Z64: =VLOOKUP(Y64,$B$105:$H$117,2,TRUE) -> 1 | AA64: =VLOOKUP(Y64,$B$105:$H$117,3,TRUE) -> 1 | AB64: =VLOOKUP(Y64,$B$105:$H$117,4,TRUE) -> 1 | AC64: =VLOOKUP(Y64,$B$105:$H$117,5,TRUE) -> 1 | AD64: =VLOOKUP(Y64,$B$105:$H$117,6,TRUE) -> 1 | AE64: =VLOOKUP(Y64,$B$105:$H$117,7,TRUE) -> 1
C65: 13 | D65: =O34 -> 231.7056864 | E65: 0.9968294314 | F65: 0.9241471568 | K65: Temp-6 | R65: Temp-16 | Y65: Temp-26
C66: 14 | D66: =P34 -> 229.4173602 | E66: 0.997058264 | F66: 0.9252913199 | K66: =D58 -> 0 | L66: =IF(K66=K68,L68,L68+(L67-L68)*(K66-K68)/(K67-K68)) ->  | M66: =IF(K66=K68,M68,M68+(M67-M68)*(K66-K68)/(K67-K68)) ->  | N66: =IF(K66=K68,N68,N68+(N67-N68)*(K66-K68)/(K67-K68)) ->  | O66: =IF(K66=K68,O68,O68+(O67-O68)*(K66-K68)/(K67-K68)) ->  | P66: =IF(K66=K68,P68,P68+(P67-P68)*(K66-K68)/(K67-K68)) ->  | Q66: =IF(K66=K68,Q68,Q68+(Q67-Q68)*(K66-K68)/(K67-K68)) ->  | R66: =D68 -> 231.7056864 | S66: =IF(R66=R68,S68,S68+(S67-S68)*(R66-R68)/(R67-R68)) -> 0.8682943136 | T66: =IF(R66=R68,T68,T68+(T67-T68)*(R66-R68)/(R67-R68)) -> 0.8451237449 | U66: =IF(R66=R68,U68,U68+(U67-U68)*(R66-R68)/(R67-R68)) -> 0.9968294314 | V66: =IF(R66=R68,V68,V68+(V67-V68)*(R66-R68)/(R67-R68)) -> 0.9241471568 | W66: =IF(R66=R68,W68,W68+(W67-W68)*(R66-R68)/(R67-R68)) -> 0.8224414704 | X66: =IF(R66=R68,X68,X68+(X67-X68)*(R66-R68)/(R67-R68)) -> 0.9309765881 | Y66: =D78 -> 20 | Z66: =IF(Y66=Y68,Z68,Z68+(Z67-Z68)*(Y66-Y68)/(Y67-Y68)) -> 1 | AA66: =IF(Y66=Y68,AA68,AA68+(AA67-AA68)*(Y66-Y68)/(Y67-Y68)) -> 1 | AB66: =IF(Y66=Y68,AB68,AB68+(AB67-AB68)*(Y66-Y68)/(Y67-Y68)) -> 1 | AC66: =IF(Y66=Y68,AC68,AC68+(AC67-AC68)*(Y66-Y68)/(Y67-Y68)) -> 1 | AD66: =IF(Y66=Y68,AD68,AD68+(AD67-AD68)*(Y66-Y68)/(Y67-Y68)) -> 1 | AE66: =IF(Y66=Y68,AE68,AE68+(AE67-AE68)*(Y66-Y68)/(Y67-Y68)) -> 1
C67: 15 | D67: =Q34 -> 229.4173602 | E67: 0.997058264 | F67: 0.9252913199 | K67: =CEILING(K66,100) -> 0 | L67: =VLOOKUP(K67,$B$105:$H$117,2,TRUE) ->  | M67: =VLOOKUP(K67,$B$105:$H$117,3,TRUE) ->  | N67: =VLOOKUP(K67,$B$105:$H$117,4,TRUE) ->  | O67: =VLOOKUP(K67,$B$105:$H$117,5,TRUE) ->  | P67: =VLOOKUP(K67,$B$105:$H$117,6,TRUE) ->  | Q67: =VLOOKUP(K67,$B$105:$H$117,7,TRUE) ->  | R67: =CEILING(R66,100) -> 300 | S67: =VLOOKUP(R67,$B$105:$H$117,2,TRUE) -> 0.8 | T67: =VLOOKUP(R67,$B$105:$H$117,3,TRUE) -> 0.77 | U67: =VLOOKUP(R67,$B$105:$H$117,4,TRUE) -> 0.99 | V67: =VLOOKUP(R67,$B$105:$H$117,5,TRUE) -> 0.89 | W67: =VLOOKUP(R67,$B$105:$H$117,6,TRUE) -> 0.72 | X67: =VLOOKUP(R67,$B$105:$H$117,7,TRUE) -> 0.89 | Y67: =CEILING(Y66,100) -> 100 | Z67: =VLOOKUP(Y67,$B$105:$H$117,2,TRUE) -> 1 | AA67: =VLOOKUP(Y67,$B$105:$H$117,3,TRUE) -> 0.96 | AB67: =VLOOKUP(Y67,$B$105:$H$117,4,TRUE) -> 1 | AC67: =VLOOKUP(Y67,$B$105:$H$117,5,TRUE) -> 0.98 | AD67: =VLOOKUP(Y67,$B$105:$H$117,6,TRUE) -> 1 | AE67: =VLOOKUP(Y67,$B$105:$H$117,7,TRUE) -> 0.99
C68: 16 | D68: =R34 -> 231.7056864 | E68: 0.9968294314 | F68: 0.9241471568 | K68: =MAX(FLOOR(K66,100),20) -> 20 | L68: =VLOOKUP(K68,$B$105:$H$117,2,TRUE) -> 1 | M68: =VLOOKUP(K68,$B$105:$H$117,3,TRUE) -> 1 | N68: =VLOOKUP(K68,$B$105:$H$117,4,TRUE) -> 1 | O68: =VLOOKUP(K68,$B$105:$H$117,5,TRUE) -> 1 | P68: =VLOOKUP(K68,$B$105:$H$117,6,TRUE) -> 1 | Q68: =VLOOKUP(K68,$B$105:$H$117,7,TRUE) -> 1 | R68: =MAX(FLOOR(R66,100),20) -> 200 | S68: =VLOOKUP(R68,$B$105:$H$117,2,TRUE) -> 0.9 | T68: =VLOOKUP(R68,$B$105:$H$117,3,TRUE) -> 0.88 | U68: =VLOOKUP(R68,$B$105:$H$117,4,TRUE) -> 1 | V68: =VLOOKUP(R68,$B$105:$H$117,5,TRUE) -> 0.94 | W68: =VLOOKUP(R68,$B$105:$H$117,6,TRUE) -> 0.87 | X68: =VLOOKUP(R68,$B$105:$H$117,7,TRUE) -> 0.95 | Y68: =MAX(FLOOR(Y66,100),20) -> 20 | Z68: =VLOOKUP(Y68,$B$105:$H$117,2,TRUE) -> 1 | AA68: =VLOOKUP(Y68,$B$105:$H$117,3,TRUE) -> 1 | AB68: =VLOOKUP(Y68,$B$105:$H$117,4,TRUE) -> 1 | AC68: =VLOOKUP(Y68,$B$105:$H$117,5,TRUE) -> 1 | AD68: =VLOOKUP(Y68,$B$105:$H$117,6,TRUE) -> 1 | AE68: =VLOOKUP(Y68,$B$105:$H$117,7,TRUE) -> 1
C69: 17 | D69: =S34 -> 271.2575576 | E69: 0.9928742442 | F69: 0.9043712212 | K69: Temp-7 | R69: Temp-17 | Y69: Temp-27
C70: 18 | D70: =T34 -> 395.9397988 | E70: 0.9612180604 | F70: 0.7844662214 | K70: =D59 -> 0 | L70: =IF(K70=K72,L72,L72+(L71-L72)*(K70-K72)/(K71-K72)) ->  | M70: =IF(K70=K72,M72,M72+(M71-M72)*(K70-K72)/(K71-K72)) ->  | N70: =IF(K70=K72,N72,N72+(N71-N72)*(K70-K72)/(K71-K72)) ->  | O70: =IF(K70=K72,O72,O72+(O71-O72)*(K70-K72)/(K71-K72)) ->  | P70: =IF(K70=K72,P72,P72+(P71-P72)*(K70-K72)/(K71-K72)) ->  | Q70: =IF(K70=K72,Q72,Q72+(Q71-Q72)*(K70-K72)/(K71-K72)) ->  | R70: =D69 -> 271.2575576 | S70: =IF(R70=R72,S72,S72+(S71-S72)*(R70-R72)/(R71-R72)) -> 0.8287424424 | T70: =IF(R70=R72,T72,T72+(T71-T72)*(R70-R72)/(R71-R72)) -> 0.8016166866 | U70: =IF(R70=R72,U72,U72+(U71-U72)*(R70-R72)/(R71-R72)) -> 0.9928742442 | V70: =IF(R70=R72,V72,V72+(V71-V72)*(R70-R72)/(R71-R72)) -> 0.9043712212 | W70: =IF(R70=R72,W72,W72+(W71-W72)*(R70-R72)/(R71-R72)) -> 0.7631136636 | X70: =IF(R70=R72,X72,X72+(X71-X72)*(R70-R72)/(R71-R72)) -> 0.9072454654 | Y70: =D79 -> 57.64308834 | Z70: =IF(Y70=Y72,Z72,Z72+(Z71-Z72)*(Y70-Y72)/(Y71-Y72)) -> 1 | AA70: =IF(Y70=Y72,AA72,AA72+(AA71-AA72)*(Y70-Y72)/(Y71-Y72)) -> 0.9811784558 | AB70: =IF(Y70=Y72,AB72,AB72+(AB71-AB72)*(Y70-Y72)/(Y71-Y72)) -> 1 | AC70: =IF(Y70=Y72,AC72,AC72+(AC71-AC72)*(Y70-Y72)/(Y71-Y72)) -> 0.9905892279 | AD70: =IF(Y70=Y72,AD72,AD72+(AD71-AD72)*(Y70-Y72)/(Y71-Y72)) -> 1 | AE70: =IF(Y70=Y72,AE72,AE72+(AE71-AE72)*(Y70-Y72)/(Y71-Y72)) -> 0.995294614
C71: 19 | D71: =U34 -> 0 | E71: 0 | F71: 0 | K71: =CEILING(K70,100) -> 0 | L71: =VLOOKUP(K71,$B$105:$H$117,2,TRUE) ->  | M71: =VLOOKUP(K71,$B$105:$H$117,3,TRUE) ->  | N71: =VLOOKUP(K71,$B$105:$H$117,4,TRUE) ->  | O71: =VLOOKUP(K71,$B$105:$H$117,5,TRUE) ->  | P71: =VLOOKUP(K71,$B$105:$H$117,6,TRUE) ->  | Q71: =VLOOKUP(K71,$B$105:$H$117,7,TRUE) ->  | R71: =CEILING(R70,100) -> 300 | S71: =VLOOKUP(R71,$B$105:$H$117,2,TRUE) -> 0.8 | T71: =VLOOKUP(R71,$B$105:$H$117,3,TRUE) -> 0.77 | U71: =VLOOKUP(R71,$B$105:$H$117,4,TRUE) -> 0.99 | V71: =VLOOKUP(R71,$B$105:$H$117,5,TRUE) -> 0.89 | W71: =VLOOKUP(R71,$B$105:$H$117,6,TRUE) -> 0.72 | X71: =VLOOKUP(R71,$B$105:$H$117,7,TRUE) -> 0.89 | Y71: =CEILING(Y70,100) -> 100 | Z71: =VLOOKUP(Y71,$B$105:$H$117,2,TRUE) -> 1 | AA71: =VLOOKUP(Y71,$B$105:$H$117,3,TRUE) -> 0.96 | AB71: =VLOOKUP(Y71,$B$105:$H$117,4,TRUE) -> 1 | AC71: =VLOOKUP(Y71,$B$105:$H$117,5,TRUE) -> 0.98 | AD71: =VLOOKUP(Y71,$B$105:$H$117,6,TRUE) -> 1 | AE71: =VLOOKUP(Y71,$B$105:$H$117,7,TRUE) -> 0.99
C72: 20 | D72: =V34 -> 0 | E72: 0 | F72: 0 | K72: =MAX(FLOOR(K70,100),20) -> 20 | L72: =VLOOKUP(K72,$B$105:$H$117,2,TRUE) -> 1 | M72: =VLOOKUP(K72,$B$105:$H$117,3,TRUE) -> 1 | N72: =VLOOKUP(K72,$B$105:$H$117,4,TRUE) -> 1 | O72: =VLOOKUP(K72,$B$105:$H$117,5,TRUE) -> 1 | P72: =VLOOKUP(K72,$B$105:$H$117,6,TRUE) -> 1 | Q72: =VLOOKUP(K72,$B$105:$H$117,7,TRUE) -> 1 | R72: =MAX(FLOOR(R70,100),20) -> 200 | S72: =VLOOKUP(R72,$B$105:$H$117,2,TRUE) -> 0.9 | T72: =VLOOKUP(R72,$B$105:$H$117,3,TRUE) -> 0.88 | U72: =VLOOKUP(R72,$B$105:$H$117,4,TRUE) -> 1 | V72: =VLOOKUP(R72,$B$105:$H$117,5,TRUE) -> 0.94 | W72: =VLOOKUP(R72,$B$105:$H$117,6,TRUE) -> 0.87 | X72: =VLOOKUP(R72,$B$105:$H$117,7,TRUE) -> 0.95 | Y72: =MAX(FLOOR(Y70,100),20) -> 20 | Z72: =VLOOKUP(Y72,$B$105:$H$117,2,TRUE) -> 1 | AA72: =VLOOKUP(Y72,$B$105:$H$117,3,TRUE) -> 1 | AB72: =VLOOKUP(Y72,$B$105:$H$117,4,TRUE) -> 1 | AC72: =VLOOKUP(Y72,$B$105:$H$117,5,TRUE) -> 1 | AD72: =VLOOKUP(Y72,$B$105:$H$117,6,TRUE) -> 1 | AE72: =VLOOKUP(Y72,$B$105:$H$117,7,TRUE) -> 1
B73: Tryklag | C73: 21 | D73: =M38 -> 229.4173602 | E73: =IF(D73=0,0,INDEX($Z$45:$AE$84,2+(C73-21)*4,$D$28)) -> 0.997058264 | F73: =IF(D73=0,0,INDEX($Z$45:$AE$84,2+(C73-21)*4,$D$28+1)) -> 0.9252913199 | K73: Temp-8 | R73: Temp-18 | Y73: Temp-28
C74: 22 | D74: =N38 -> 57.64308834 | E74: 1 | F74: 0.9905892279 | K74: =D60 -> 0 | L74: =IF(K74=K76,L76,L76+(L75-L76)*(K74-K76)/(K75-K76)) ->  | M74: =IF(K74=K76,M76,M76+(M75-M76)*(K74-K76)/(K75-K76)) ->  | N74: =IF(K74=K76,N76,N76+(N75-N76)*(K74-K76)/(K75-K76)) ->  | O74: =IF(K74=K76,O76,O76+(O75-O76)*(K74-K76)/(K75-K76)) ->  | P74: =IF(K74=K76,P76,P76+(P75-P76)*(K74-K76)/(K75-K76)) ->  | Q74: =IF(K74=K76,Q76,Q76+(Q75-Q76)*(K74-K76)/(K75-K76)) ->  | R74: =D70 -> 395.9397988 | S74: =IF(R74=R76,S76,S76+(S75-S76)*(R74-R76)/(R75-R76)) -> 0.7040602012 | T74: =IF(R74=R76,T76,T76+(T75-T76)*(R74-R76)/(R75-R76)) -> 0.6548722415 | U74: =IF(R74=R76,U76,U76+(U75-U76)*(R74-R76)/(R75-R76)) -> 0.9612180604 | V74: =IF(R74=R76,V76,V76+(V75-V76)*(R74-R76)/(R75-R76)) -> 0.7844662214 | W74: =IF(R74=R76,W76,W76+(W75-W76)*(R74-R76)/(R75-R76)) -> 0.566496322 | X74: =IF(R74=R76,X76,X76+(X75-X76)*(R74-R76)/(R75-R76)) -> 0.7844662214 | Y74: =D80 -> 229.4173602 | Z74: =IF(Y74=Y76,Z76,Z76+(Z75-Z76)*(Y74-Y76)/(Y75-Y76)) -> 0.8705826398 | AA74: =IF(Y74=Y76,AA76,AA76+(AA75-AA76)*(Y74-Y76)/(Y75-Y76)) -> 0.8476409038 | AB74: =IF(Y74=Y76,AB76,AB76+(AB75-AB76)*(Y74-Y76)/(Y75-Y76)) -> 0.997058264 | AC74: =IF(Y74=Y76,AC76,AC76+(AC75-AC76)*(Y74-Y76)/(Y75-Y76)) -> 0.9252913199 | AD74: =IF(Y74=Y76,AD76,AD76+(AD75-AD76)*(Y74-Y76)/(Y75-Y76)) -> 0.8258739597 | AE74: =IF(Y74=Y76,AE76,AE76+(AE75-AE76)*(Y74-Y76)/(Y75-Y76)) -> 0.9323495839
C75: 23 | D75: =O38 -> 20 | E75: 1 | F75: 1 | K75: =CEILING(K74,100) -> 0 | L75: =VLOOKUP(K75,$B$105:$H$117,2,TRUE) ->  | M75: =VLOOKUP(K75,$B$105:$H$117,3,TRUE) ->  | N75: =VLOOKUP(K75,$B$105:$H$117,4,TRUE) ->  | O75: =VLOOKUP(K75,$B$105:$H$117,5,TRUE) ->  | P75: =VLOOKUP(K75,$B$105:$H$117,6,TRUE) ->  | Q75: =VLOOKUP(K75,$B$105:$H$117,7,TRUE) ->  | R75: =CEILING(R74,100) -> 400 | S75: =VLOOKUP(R75,$B$105:$H$117,2,TRUE) -> 0.7 | T75: =VLOOKUP(R75,$B$105:$H$117,3,TRUE) -> 0.65 | U75: =VLOOKUP(R75,$B$105:$H$117,4,TRUE) -> 0.96 | V75: =VLOOKUP(R75,$B$105:$H$117,5,TRUE) -> 0.78 | W75: =VLOOKUP(R75,$B$105:$H$117,6,TRUE) -> 0.56 | X75: =VLOOKUP(R75,$B$105:$H$117,7,TRUE) -> 0.78 | Y75: =CEILING(Y74,100) -> 300 | Z75: =VLOOKUP(Y75,$B$105:$H$117,2,TRUE) -> 0.8 | AA75: =VLOOKUP(Y75,$B$105:$H$117,3,TRUE) -> 0.77 | AB75: =VLOOKUP(Y75,$B$105:$H$117,4,TRUE) -> 0.99 | AC75: =VLOOKUP(Y75,$B$105:$H$117,5,TRUE) -> 0.89 | AD75: =VLOOKUP(Y75,$B$105:$H$117,6,TRUE) -> 0.72 | AE75: =VLOOKUP(Y75,$B$105:$H$117,7,TRUE) -> 0.89
C76: 24 | D76: =P38 -> 20 | E76: 1 | F76: 1 | K76: =MAX(FLOOR(K74,100),20) -> 20 | L76: =VLOOKUP(K76,$B$105:$H$117,2,TRUE) -> 1 | M76: =VLOOKUP(K76,$B$105:$H$117,3,TRUE) -> 1 | N76: =VLOOKUP(K76,$B$105:$H$117,4,TRUE) -> 1 | O76: =VLOOKUP(K76,$B$105:$H$117,5,TRUE) -> 1 | P76: =VLOOKUP(K76,$B$105:$H$117,6,TRUE) -> 1 | Q76: =VLOOKUP(K76,$B$105:$H$117,7,TRUE) -> 1 | R76: =MAX(FLOOR(R74,100),20) -> 300 | S76: =VLOOKUP(R76,$B$105:$H$117,2,TRUE) -> 0.8 | T76: =VLOOKUP(R76,$B$105:$H$117,3,TRUE) -> 0.77 | U76: =VLOOKUP(R76,$B$105:$H$117,4,TRUE) -> 0.99 | V76: =VLOOKUP(R76,$B$105:$H$117,5,TRUE) -> 0.89 | W76: =VLOOKUP(R76,$B$105:$H$117,6,TRUE) -> 0.72 | X76: =VLOOKUP(R76,$B$105:$H$117,7,TRUE) -> 0.89 | Y76: =MAX(FLOOR(Y74,100),20) -> 200 | Z76: =VLOOKUP(Y76,$B$105:$H$117,2,TRUE) -> 0.9 | AA76: =VLOOKUP(Y76,$B$105:$H$117,3,TRUE) -> 0.88 | AB76: =VLOOKUP(Y76,$B$105:$H$117,4,TRUE) -> 1 | AC76: =VLOOKUP(Y76,$B$105:$H$117,5,TRUE) -> 0.94 | AD76: =VLOOKUP(Y76,$B$105:$H$117,6,TRUE) -> 0.87 | AE76: =VLOOKUP(Y76,$B$105:$H$117,7,TRUE) -> 0.95
C77: 25 | D77: =Q38 -> 20 | E77: 1 | F77: 1 | K77: Temp-9 | R77: Temp-19 | Y77: Temp-29
C78: 26 | D78: =R38 -> 20 | E78: 1 | F78: 1 | K78: =D61 -> 0 | L78: =IF(K78=K80,L80,L80+(L79-L80)*(K78-K80)/(K79-K80)) ->  | M78: =IF(K78=K80,M80,M80+(M79-M80)*(K78-K80)/(K79-K80)) ->  | N78: =IF(K78=K80,N80,N80+(N79-N80)*(K78-K80)/(K79-K80)) ->  | O78: =IF(K78=K80,O80,O80+(O79-O80)*(K78-K80)/(K79-K80)) ->  | P78: =IF(K78=K80,P80,P80+(P79-P80)*(K78-K80)/(K79-K80)) ->  | Q78: =IF(K78=K80,Q80,Q80+(Q79-Q80)*(K78-K80)/(K79-K80)) ->  | R78: =D71 -> 0 | S78: =IF(R78=R80,S80,S80+(S79-S80)*(R78-R80)/(R79-R80)) ->  | T78: =IF(R78=R80,T80,T80+(T79-T80)*(R78-R80)/(R79-R80)) ->  | U78: =IF(R78=R80,U80,U80+(U79-U80)*(R78-R80)/(R79-R80)) ->  | V78: =IF(R78=R80,V80,V80+(V79-V80)*(R78-R80)/(R79-R80)) ->  | W78: =IF(R78=R80,W80,W80+(W79-W80)*(R78-R80)/(R79-R80)) ->  | X78: =IF(R78=R80,X80,X80+(X79-X80)*(R78-R80)/(R79-R80)) ->  | Y78: =D81 -> 0 | Z78: =IF(Y78=Y80,Z80,Z80+(Z79-Z80)*(Y78-Y80)/(Y79-Y80)) ->  | AA78: =IF(Y78=Y80,AA80,AA80+(AA79-AA80)*(Y78-Y80)/(Y79-Y80)) ->  | AB78: =IF(Y78=Y80,AB80,AB80+(AB79-AB80)*(Y78-Y80)/(Y79-Y80)) ->  | AC78: =IF(Y78=Y80,AC80,AC80+(AC79-AC80)*(Y78-Y80)/(Y79-Y80)) ->  | AD78: =IF(Y78=Y80,AD80,AD80+(AD79-AD80)*(Y78-Y80)/(Y79-Y80)) ->  | AE78: =IF(Y78=Y80,AE80,AE80+(AE79-AE80)*(Y78-Y80)/(Y79-Y80)) -> 
C79: 27 | D79: =S38 -> 57.64308834 | E79: 1 | F79: 0.9905892279 | K79: =CEILING(K78,100) -> 0 | L79: =VLOOKUP(K79,$B$105:$H$117,2,TRUE) ->  | M79: =VLOOKUP(K79,$B$105:$H$117,3,TRUE) ->  | N79: =VLOOKUP(K79,$B$105:$H$117,4,TRUE) ->  | O79: =VLOOKUP(K79,$B$105:$H$117,5,TRUE) ->  | P79: =VLOOKUP(K79,$B$105:$H$117,6,TRUE) ->  | Q79: =VLOOKUP(K79,$B$105:$H$117,7,TRUE) ->  | R79: =CEILING(R78,100) -> 0 | S79: =VLOOKUP(R79,$B$105:$H$117,2,TRUE) ->  | T79: =VLOOKUP(R79,$B$105:$H$117,3,TRUE) ->  | U79: =VLOOKUP(R79,$B$105:$H$117,4,TRUE) ->  | V79: =VLOOKUP(R79,$B$105:$H$117,5,TRUE) ->  | W79: =VLOOKUP(R79,$B$105:$H$117,6,TRUE) ->  | X79: =VLOOKUP(R79,$B$105:$H$117,7,TRUE) ->  | Y79: =CEILING(Y78,100) -> 0 | Z79: =VLOOKUP(Y79,$B$105:$H$117,2,TRUE) ->  | AA79: =VLOOKUP(Y79,$B$105:$H$117,3,TRUE) ->  | AB79: =VLOOKUP(Y79,$B$105:$H$117,4,TRUE) ->  | AC79: =VLOOKUP(Y79,$B$105:$H$117,5,TRUE) ->  | AD79: =VLOOKUP(Y79,$B$105:$H$117,6,TRUE) ->  | AE79: =VLOOKUP(Y79,$B$105:$H$117,7,TRUE) -> 
C80: 28 | D80: =T38 -> 229.4173602 | E80: 0.997058264 | F80: 0.9252913199 | K80: =MAX(FLOOR(K78,100),20) -> 20 | L80: =VLOOKUP(K80,$B$105:$H$117,2,TRUE) -> 1 | M80: =VLOOKUP(K80,$B$105:$H$117,3,TRUE) -> 1 | N80: =VLOOKUP(K80,$B$105:$H$117,4,TRUE) -> 1 | O80: =VLOOKUP(K80,$B$105:$H$117,5,TRUE) -> 1 | P80: =VLOOKUP(K80,$B$105:$H$117,6,TRUE) -> 1 | Q80: =VLOOKUP(K80,$B$105:$H$117,7,TRUE) -> 1 | R80: =MAX(FLOOR(R78,100),20) -> 20 | S80: =VLOOKUP(R80,$B$105:$H$117,2,TRUE) -> 1 | T80: =VLOOKUP(R80,$B$105:$H$117,3,TRUE) -> 1 | U80: =VLOOKUP(R80,$B$105:$H$117,4,TRUE) -> 1 | V80: =VLOOKUP(R80,$B$105:$H$117,5,TRUE) -> 1 | W80: =VLOOKUP(R80,$B$105:$H$117,6,TRUE) -> 1 | X80: =VLOOKUP(R80,$B$105:$H$117,7,TRUE) -> 1 | Y80: =MAX(FLOOR(Y78,100),20) -> 20 | Z80: =VLOOKUP(Y80,$B$105:$H$117,2,TRUE) -> 1 | AA80: =VLOOKUP(Y80,$B$105:$H$117,3,TRUE) -> 1 | AB80: =VLOOKUP(Y80,$B$105:$H$117,4,TRUE) -> 1 | AC80: =VLOOKUP(Y80,$B$105:$H$117,5,TRUE) -> 1 | AD80: =VLOOKUP(Y80,$B$105:$H$117,6,TRUE) -> 1 | AE80: =VLOOKUP(Y80,$B$105:$H$117,7,TRUE) -> 1
C81: 29 | D81: =U38 -> 0 | E81: 0 | F81: 0 | K81: Temp-10 | R81: Temp-20 | Y81: Temp-300
C82: 30 | D82: =V38 -> 0 | E82: 0 | F82: 0 | K82: =D62 -> 0 | L82: =IF(K82=K84,L84,L84+(L83-L84)*(K82-K84)/(K83-K84)) ->  | M82: =IF(K82=K84,M84,M84+(M83-M84)*(K82-K84)/(K83-K84)) ->  | N82: =IF(K82=K84,N84,N84+(N83-N84)*(K82-K84)/(K83-K84)) ->  | O82: =IF(K82=K84,O84,O84+(O83-O84)*(K82-K84)/(K83-K84)) ->  | P82: =IF(K82=K84,P84,P84+(P83-P84)*(K82-K84)/(K83-K84)) ->  | Q82: =IF(K82=K84,Q84,Q84+(Q83-Q84)*(K82-K84)/(K83-K84)) ->  | R82: =D72 -> 0 | S82: =IF(R82=R84,S84,S84+(S83-S84)*(R82-R84)/(R83-R84)) ->  | T82: =IF(R82=R84,T84,T84+(T83-T84)*(R82-R84)/(R83-R84)) ->  | U82: =IF(R82=R84,U84,U84+(U83-U84)*(R82-R84)/(R83-R84)) ->  | V82: =IF(R82=R84,V84,V84+(V83-V84)*(R82-R84)/(R83-R84)) ->  | W82: =IF(R82=R84,W84,W84+(W83-W84)*(R82-R84)/(R83-R84)) ->  | X82: =IF(R82=R84,X84,X84+(X83-X84)*(R82-R84)/(R83-R84)) ->  | Y82: =D82 -> 0 | Z82: =IF(Y82=Y84,Z84,Z84+(Z83-Z84)*(Y82-Y84)/(Y83-Y84)) ->  | AA82: =IF(Y82=Y84,AA84,AA84+(AA83-AA84)*(Y82-Y84)/(Y83-Y84)) ->  | AB82: =IF(Y82=Y84,AB84,AB84+(AB83-AB84)*(Y82-Y84)/(Y83-Y84)) ->  | AC82: =IF(Y82=Y84,AC84,AC84+(AC83-AC84)*(Y82-Y84)/(Y83-Y84)) ->  | AD82: =IF(Y82=Y84,AD84,AD84+(AD83-AD84)*(Y82-Y84)/(Y83-Y84)) ->  | AE82: =IF(Y82=Y84,AE84,AE84+(AE83-AE84)*(Y82-Y84)/(Y83-Y84)) -> 
B83: Bøjler | C83: 31 | D83: =AC14 -> 383.6150013 | E83: =IF(D83=0,0,INDEX($AG$45:$AL$48,2+(C83-31)*4,$D$28)) -> 0.9649154996 | F83: =IF(D83=0,0,INDEX($AG$45:$AL$84,2+(C83-31)*4,$D$28+1)) -> 0.7980234986 | K83: =CEILING(K82,100) -> 0 | L83: =VLOOKUP(K83,$B$105:$H$117,2,TRUE) ->  | M83: =VLOOKUP(K83,$B$105:$H$117,3,TRUE) ->  | N83: =VLOOKUP(K83,$B$105:$H$117,4,TRUE) ->  | O83: =VLOOKUP(K83,$B$105:$H$117,5,TRUE) ->  | P83: =VLOOKUP(K83,$B$105:$H$117,6,TRUE) ->  | Q83: =VLOOKUP(K83,$B$105:$H$117,7,TRUE) ->  | R83: =CEILING(R82,100) -> 0 | S83: =VLOOKUP(R83,$B$105:$H$117,2,TRUE) ->  | T83: =VLOOKUP(R83,$B$105:$H$117,3,TRUE) ->  | U83: =VLOOKUP(R83,$B$105:$H$117,4,TRUE) ->  | V83: =VLOOKUP(R83,$B$105:$H$117,5,TRUE) ->  | W83: =VLOOKUP(R83,$B$105:$H$117,6,TRUE) ->  | X83: =VLOOKUP(R83,$B$105:$H$117,7,TRUE) ->  | Y83: =CEILING(Y82,100) -> 0 | Z83: =VLOOKUP(Y83,$B$105:$H$117,2,TRUE) ->  | AA83: =VLOOKUP(Y83,$B$105:$H$117,3,TRUE) ->  | AB83: =VLOOKUP(Y83,$B$105:$H$117,4,TRUE) ->  | AC83: =VLOOKUP(Y83,$B$105:$H$117,5,TRUE) ->  | AD83: =VLOOKUP(Y83,$B$105:$H$117,6,TRUE) ->  | AE83: =VLOOKUP(Y83,$B$105:$H$117,7,TRUE) -> 
K84: =MAX(FLOOR(K82,100),20) -> 20 | L84: =VLOOKUP(K84,$B$105:$H$117,2,TRUE) -> 1 | M84: =VLOOKUP(K84,$B$105:$H$117,3,TRUE) -> 1 | N84: =VLOOKUP(K84,$B$105:$H$117,4,TRUE) -> 1 | O84: =VLOOKUP(K84,$B$105:$H$117,5,TRUE) -> 1 | P84: =VLOOKUP(K84,$B$105:$H$117,6,TRUE) -> 1 | Q84: =VLOOKUP(K84,$B$105:$H$117,7,TRUE) -> 1 | R84: =MAX(FLOOR(R82,100),20) -> 20 | S84: =VLOOKUP(R84,$B$105:$H$117,2,TRUE) -> 1 | T84: =VLOOKUP(R84,$B$105:$H$117,3,TRUE) -> 1 | U84: =VLOOKUP(R84,$B$105:$H$117,4,TRUE) -> 1 | V84: =VLOOKUP(R84,$B$105:$H$117,5,TRUE) -> 1 | W84: =VLOOKUP(R84,$B$105:$H$117,6,TRUE) -> 1 | X84: =VLOOKUP(R84,$B$105:$H$117,7,TRUE) -> 1 | Y84: =MAX(FLOOR(Y82,100),20) -> 20 | Z84: =VLOOKUP(Y84,$B$105:$H$117,2,TRUE) -> 1 | AA84: =VLOOKUP(Y84,$B$105:$H$117,3,TRUE) -> 1 | AB84: =VLOOKUP(Y84,$B$105:$H$117,4,TRUE) -> 1 | AC84: =VLOOKUP(Y84,$B$105:$H$117,5,TRUE) -> 1 | AD84: =VLOOKUP(Y84,$B$105:$H$117,6,TRUE) -> 1 | AE84: =VLOOKUP(Y84,$B$105:$H$117,7,TRUE) -> 1
B94: GRAF | M94: 1 | N94: 2 | O94: 3 | P94: 4 | Q94: 5 | R94: 6 | S94: 7 | T94: 8 | U94: 9 | V94: 10 | W94: 1 | X94: 2 | Y94: 3 | Z94: 4 | AA94: 5 | AB94: 6 | AC94: 7 | AD94: 8 | AE94: 9 | AF94: 10
B95: x | C95: 0 | D95: =E16 -> 0.3 | E95: =E16 -> 0.3 | F95: 0 | G95: 0 | H95: =E26 -> 0.0165129297 | I95: =D95-E26 -> 0.2834870703 | J95: =E95-E26 -> 0.2834870703 | K95: =E26 -> 0.0165129297 | L95: =E26 -> 0.0165129297 | M95: =E29 -> 0.04 | N95: =IF(N94>$E$31,M95,M95+$E$33) -> 0.04 | O95: 0.04 | P95: 0.04 | Q95: 0.04 | R95: 0.04 | S95: 0.04 | T95: 0.04 | U95: 0.04 | V95: 0.04 | W95: =E29 -> 0.04 | X95: =IF(X94>$E$37,W95,W95+$E$39) -> 0.07142857143 | Y95: 0.1028571429 | Z95: 0.1342857143 | AA95: 0.1657142857 | AB95: 0.1971428571 | AC95: 0.2285714286 | AD95: 0.26 | AE95: 0.26 | AF95: 0.26 | AG95: =IF(E15>E16,E15,E16) -> 0.7
B96: Opr rand | C96: 0 | D96: 0 | E96: =-E15 -> -0.7 | F96: =-E15 -> -0.7 | G96: 0
B97: Reduc rand | H97: =-E25 -> 0 | I97: =-E25 -> 0 | J97: =E96+E27 -> -0.6834870703 | K97: =F96+E27 -> -0.6834870703 | L97: =-E25 -> 0
B98: Træklag 1 | M98: =-$E$15+$E$32 -> -0.6 | N98: =-$E$15+$E$32 -> -0.6 | O98: -0.6 | P98: -0.6 | Q98: -0.6 | R98: -0.6 | S98: -0.6 | T98: -0.6 | U98: -0.6 | V98: -0.6
B99: Træklag 2 | W99: =-$E$15+$E$38 -> -0.66 | X99: -0.66 | Y99: -0.66 | Z99: -0.66 | AA99: -0.66 | AB99: -0.66 | AC99: -0.66 | AD99: -0.66 | AE99: -0.66 | AF99: -0.66
B100: Skala | AG100: =IF(E15>E16,-E15,-E16) -> -0.7
B103: Tabel | C103: type (+Q) | E103: type (+AC) | G103: type (+C)
B104: Q-stål | C104: E/Ek | D104: fy/fyk | E104: E/Ek | F104: fy/fyk | G104: E/Ek | H104: fy/fyk
B105: 20 | C105: 1 | D105: 1 | E105: 1 | F105: 1 | G105: 1 | H105: 1
B106: 100 | C106: 1 | D106: 0.96 | E106: 1 | F106: 0.98 | G106: 1 | H106: 0.99
B107: 200 | C107: 0.9 | D107: 0.88 | E107: 1 | F107: 0.94 | G107: 0.87 | H107: 0.95
B108: 300 | C108: 0.8 | D108: 0.77 | E108: 0.99 | F108: 0.89 | G108: 0.72 | H108: 0.89
B109: 400 | C109: 0.7 | D109: 0.65 | E109: 0.96 | F109: 0.78 | G109: 0.56 | H109: 0.78
B110: 500 | C110: 0.6 | D110: 0.47 | E110: 0.79 | F110: 0.55 | G110: 0.4 | H110: 0.57
B111: 600 | C111: 0.31 | D111: 0.27 | E111: 0.48 | F111: 0.27 | G111: 0.24 | H111: 0.3
B112: 700 | C112: 0.13 | D112: 0.13 | E112: 0.21 | F112: 0.1 | G112: 0.08 | H112: 0.12
B113: 800 | C113: 0.09 | D113: 0.05 | E113: 0.08 | F113: 0 | G113: 0.06 | H113: 0.05
B114: 900 | C114: 0.07 | D114: 0.02 | E114: 0.03 | F114: 0 | G114: 0.05 | H114: 0.02
B115: 1000 | C115: 0.04 | D115: 0.01 | E115: 0 | F115: 0 | G115: 0.03 | H115: 0.01
B116: 1100 | C116: 0.02 | D116: 0.01 | E116: 0 | F116: 0 | G116: 0.02 | H116: 0
B117: 1200 | C117: 0 | D117: 0 | E117: 0 | F117: 0 | G117: 0 | H117: 0
B121: Betontype | C121: =Makro!A3 -> 2
B122: Reduktionsparametre, beton | G122: Betontype, fc,t/fck
B123: q | C123: fc,t/fck | D123: ec1 | E123: ecu1,t | F123: Indeks | G123: 1 | H123: 2
B124: 20 | C124: =IF($C$121=1,G124,H124) -> 1 | D124: 0.0025 | E124: 0.02 | F124: 1 | G124: 1 | H124: 1
B125: 100 | C125: =IF($C$121=1,G125,H125) -> 1 | D125: 0.004 | E125: 0.0225 | F125: 2 | G125: 1 | H125: 1
B126: 200 | C126: 1 | D126: 0.0055 | E126: 0.025 | F126: 3 | G126: 0.95 | H126: 1
B127: 300 | C127: 0.9333333 | D127: 0.007 | E127: 0.0275 | F127: 4 | G127: 0.85 | H127: =H126-0.0666667 -> 0.9333333
B128: 400 | C128: 0.8666666 | D128: 0.01 | E128: 0.03 | F128: 5 | G128: 0.75 | H128: =H127-0.0666667 -> 0.8666666
B129: 500 | C129: 0.8 | D129: 0.015 | E129: 0.0325 | F129: 6 | G129: 0.6 | H129: 0.8
B130: 600 | C130: 0.6 | D130: 0.025 | E130: 0.035 | F130: 7 | G130: 0.45 | H130: =H129-0.2 -> 0.6
B131: 700 | C131: 0.4 | D131: 0.025 | E131: 0.0375 | F131: 8 | G131: 0.3 | H131: =H130-0.2 -> 0.4
B132: 800 | C132: 0.2 | D132: 0.025 | E132: 0.04 | F132: 9 | G132: 0.15 | H132: =H131-0.2 -> 0.2
B133: 900 | C133: 0 | D133: 0.025 | E133: 0.0425 | F133: 10 | G133: 0.08 | H133: 0
B134: 1000 | C134: 0 | D134: 0.025 | E134: 0.045 | F134: 11 | G134: 0.04 | H134: 0
B135: 1100 | C135: 0.002042648973 | D135: 0.025 | E135: 0.0475 | F135: 12 | G135: 0.01 | H135: =0+(1-0)/(1+(B135/100000)+(B135/1080)^2+(B135/690)^8+(B135/1000)^64) -> 0.002042648973
B136: 1200 | C136: 8.552261303e-06 | F136: 13 | G136: 0 | H136: =0+(1-0)/(1+(B136/100000)+(B136/1080)^2+(B136/690)^8+(B136/1000)^64) -> 8.552261303e-06

Sheet Makro
A1: 2 | B1: Brand ja/nej
A2: 2 | B2: Brand ja/nej
A3: 2 | B3: Tilslag
A4: 2 | B4: Bratkølet eller
A20: =IF(E20=1,0,1000000) -> 0 | E20: 1
